Workbook

Sheet Home
B1: =uxb_works!$B$92 -> Blue Peace: 2020 | BA1: 0 | BB1: 0

Sheet Contents
C1: =uxb_works!B92 -> Blue Peace: 2020 | BA1: 0 | BB1: 1 | BC1: 2
C10: Table of Contents
D12: =uxb_works!C94 -> RESULTS | E12: =uxb_works!B94 -> MAP | G12: An interactive heat map of scores
E13: =uxb_works!B95 -> SUMMARY | G13: Shows the overall and category scores and rankings for all countries or basins
E14: =uxb_works!B96 -> INDICATOR DETAILS | G14: Offers a more detailed description of the scoring for each indicator (including background data)
E15: =uxb_works!B97 -> AREA PROFILE | G15: Review river basin in detail
E16: =uxb_works!B98 -> COMPARE | G16: Allows comparisons for up to four countries or river basins through spider charts and bar charts
D18: =uxb_works!C95 -> ANALYSIS | E18: =uxb_works!B100 -> SCATTER | G18: Displays scatter plots between indicators (including background indicators)
E19: =uxb_works!B101 -> CORRELATIONS | G19: Provides correlation analysis between indicators (including background indicators)
D21: =uxb_works!C96 -> INPUTS | E21: =uxb_works!B102 -> DATA/SCORES | G21: Shows raw data and normalised scores for each indicator and country or basin
E22: =uxb_works!B103 -> INDICATOR WEIGHTS | G22: Adjust indicator weights and save profiles
E23: =uxb_works!B104 -> COUNTRY WEIGHTS | G23: Adjust country weights for basin scores

Sheet Map
A1: =uxb_works!$B$92 -> Blue Peace: 2020 | AZ1: 1 | BA1: 1 | BB1: 0 | BC1: 2 | BE1: 1 | BF1: 2
BB2: 2 | BC2: 0
A4: =uxb_works!B111 -> 2
A6: =uxb_works!$C$5 -> The active weight profile has been changed from its default setting
A8: =uxb_works!D67 -> Active river basin: <no filter>
A11: =uxb_works!$G$21 -> OVERALL SCORE
A12: =iIndiRank!$F$2 -> OVERALL SCORE | AF12: =A12 -> OVERALL SCORE
B28: =IF(uxb_works!$B$6=1,"SELECT COUNTRY","SELECTED COUNTRY") -> SELECT COUNTRY
B29: =iMap_Rank!C9 -> Click on map or select from the country highlight drop down box
B43: =uxb_works!J19 -> 0
B44: =iMap_Rank!AZ17 -> 4 | E44: =iMap_Rank!BA17 -> 3 | H44: =iMap_Rank!BB17 -> 1 | I44: =H44 -> 1 | K44: =iMap_Rank!BC17 -> 0 | L44: =K44 -> 0 | N44: =iMap_Rank!BD17 -> 0 | O44: =N44 -> 0
A45: =MAX(A46,D46,G46,J46,M46) -> 24 | B45: =iMap_Rank!BF14 -> High | E45: =iMap_Rank!BI14 -> Medium | H45: =iMap_Rank!BL14 -> low | K45: =iMap_Rank!BO14 -> 0 | N45: =iMap_Rank!BR14 -> NASCENT
A46: =MAX(COUNTIF(A47:A78,"<>0"),1) -> 2 | B46: =iMap_Rank!BF15 -> Score 70.1 to => 100 | D46: =MAX(COUNTIF(D47:D78,"<>0"),1) -> 24 | E46: =iMap_Rank!BI15 -> Score 40.1 to => 70 | G46: =MAX(COUNTIF(G47:G78,"<>0"),1) -> 6 | H46: =iMap_Rank!BL15 -> Score 0 to => 40 | J46: =MAX(COUNTIF(J47:J78,"<>0"),1) -> 1 | K46: =iMap_Rank!BO15 -> Score 0 to => 40 | M46: =MAX(COUNTIF(M47:M78,"<>0"),1) -> 1 | N46: =iMap_Rank!BR15 -> Score 0 to => 40 | Z46: =B46 -> Score 70.1 to => 100 | AA46: =E46 -> Score 40.1 to => 70 | AB46: =H46 -> Score 0 to => 40 | AC46: =K46 -> Score 0 to => 40 | AD46: =N46 -> Score 0 to => 40
A47: =iMap_Rank!BE19 -> 1 | B47: =iMap_Rank!BF19 -> Slovenia | C47: =iMap_Rank!BG19 -> 75.8 | D47: =iMap_Rank!BH19 -> 1 | E47: =iMap_Rank!BI19 -> Thailand | F47: =iMap_Rank!BJ19 -> 68.7 | G47: =iMap_Rank!BK19 -> 1 | H47: =iMap_Rank!BL19 -> Turkmenistan | I47: =iMap_Rank!BM19 -> 39.2 | J47: =iMap_Rank!BN19 -> 0 | K47: =iMap_Rank!BO19 ->  | L47: =iMap_Rank!BP19 ->  | M47: =iMap_Rank!BQ19 -> 0 | N47: =iMap_Rank!BR19 ->  | O47: =iMap_Rank!BS19 -> 
A48: =iMap_Rank!BE20 -> 1 | B48: =iMap_Rank!BF20 -> Croatia | C48: =iMap_Rank!BG20 -> 73.1 | D48: =iMap_Rank!BH20 -> 1 | E48: =iMap_Rank!BI20 -> Senegal | F48: =iMap_Rank!BJ20 -> 66.3 | G48: =iMap_Rank!BK20 -> 1 | H48: =iMap_Rank!BL20 -> Myanmar | I48: =iMap_Rank!BM20 -> 37.2 | J48: =iMap_Rank!BN20 -> 0 | K48: =iMap_Rank!BO20 ->  | L48: =iMap_Rank!BP20 ->  | M48: =iMap_Rank!BQ20 -> 0 | N48: =iMap_Rank!BR20 ->  | O48: =iMap_Rank!BS20 -> 
A49: =iMap_Rank!BE21 -> 0 | B49: =iMap_Rank!BF21 ->  | C49: =iMap_Rank!BG21 ->  | D49: =iMap_Rank!BH21 -> 1 | E49: =iMap_Rank!BI21 -> Serbia | F49: =iMap_Rank!BJ21 -> 63.2 | G49: =iMap_Rank!BK21 -> 1 | H49: =iMap_Rank!BL21 -> Iran | I49: =iMap_Rank!BM21 -> 26.7 | J49: =iMap_Rank!BN21 -> 0 | K49: =iMap_Rank!BO21 ->  | L49: =iMap_Rank!BP21 ->  | M49: =iMap_Rank!BQ21 -> 0 | N49: =iMap_Rank!BR21 ->  | O49: =iMap_Rank!BS21 -> 
A50: =iMap_Rank!BE22 -> 0 | B50: =iMap_Rank!BF22 ->  | C50: =iMap_Rank!BG22 ->  | D50: =iMap_Rank!BH22 -> 1 | E50: =iMap_Rank!BI22 -> Vietnam | F50: =iMap_Rank!BJ22 -> 62.7 | G50: =iMap_Rank!BK22 -> 1 | H50: =iMap_Rank!BL22 -> Afghanistan | I50: =iMap_Rank!BM22 -> 19 | J50: =iMap_Rank!BN22 -> 0 | K50: =iMap_Rank!BO22 ->  | L50: =iMap_Rank!BP22 ->  | M50: =iMap_Rank!BQ22 -> 0 | N50: =iMap_Rank!BR22 ->  | O50: =iMap_Rank!BS22 -> 
A51: =iMap_Rank!BE23 -> 0 | B51: =iMap_Rank!BF23 ->  | C51: =iMap_Rank!BG23 ->  | D51: =iMap_Rank!BH23 -> 1 | E51: =iMap_Rank!BI23 -> Mali | F51: =iMap_Rank!BJ23 -> 62.3 | G51: =iMap_Rank!BK23 -> 1 | H51: =iMap_Rank!BL23 -> Iraq | I51: =iMap_Rank!BM23 -> 17.6 | J51: =iMap_Rank!BN23 -> 0 | K51: =iMap_Rank!BO23 ->  | L51: =iMap_Rank!BP23 ->  | M51: =iMap_Rank!BQ23 -> 0 | N51: =iMap_Rank!BR23 ->  | O51: =iMap_Rank!BS23 -> 
A52: =iMap_Rank!BE24 -> 0 | B52: =iMap_Rank!BF24 ->  | C52: =iMap_Rank!BG24 ->  | D52: =iMap_Rank!BH24 -> 1 | E52: =iMap_Rank!BI24 -> Peru | F52: =iMap_Rank!BJ24 -> 62.3 | G52: =iMap_Rank!BK24 -> 1 | H52: =iMap_Rank!BL24 -> Syria | I52: =iMap_Rank!BM24 -> 14.8 | J52: =iMap_Rank!BN24 -> 0 | K52: =iMap_Rank!BO24 ->  | L52: =iMap_Rank!BP24 ->  | M52: =iMap_Rank!BQ24 -> 0 | N52: =iMap_Rank!BR24 ->  | O52: =iMap_Rank!BS24 -> 
A53: =iMap_Rank!BE25 -> 0 | B53: =iMap_Rank!BF25 ->  | C53: =iMap_Rank!BG25 ->  | D53: =iMap_Rank!BH25 -> 1 | E53: =iMap_Rank!BI25 -> Brazil | F53: =iMap_Rank!BJ25 -> 60.1 | G53: =iMap_Rank!BK25 -> 0 | H53: =iMap_Rank!BL25 ->  | I53: =iMap_Rank!BM25 ->  | J53: =iMap_Rank!BN25 -> 0 | K53: =iMap_Rank!BO25 ->  | L53: =iMap_Rank!BP25 ->  | M53: =iMap_Rank!BQ25 -> 0 | N53: =iMap_Rank!BR25 ->  | O53: =iMap_Rank!BS25 -> 
A54: =iMap_Rank!BE26 -> 0 | B54: =iMap_Rank!BF26 ->  | C54: =iMap_Rank!BG26 ->  | D54: =iMap_Rank!BH26 -> 1 | E54: =iMap_Rank!BI26 -> Bosnia and herzegovina | F54: =iMap_Rank!BJ26 -> 59.5 | G54: =iMap_Rank!BK26 -> 0 | H54: =iMap_Rank!BL26 ->  | I54: =iMap_Rank!BM26 ->  | J54: =iMap_Rank!BN26 -> 0 | K54: =iMap_Rank!BO26 ->  | L54: =iMap_Rank!BP26 ->  | M54: =iMap_Rank!BQ26 -> 0 | N54: =iMap_Rank!BR26 ->  | O54: =iMap_Rank!BS26 -> 
A55: =iMap_Rank!BE27 -> 0 | B55: =iMap_Rank!BF27 ->  | C55: =iMap_Rank!BG27 ->  | D55: =iMap_Rank!BH27 -> 1 | E55: =iMap_Rank!BI27 -> Colombia | F55: =iMap_Rank!BJ27 -> 57.6 | G55: =iMap_Rank!BK27 -> 0 | H55: =iMap_Rank!BL27 ->  | I55: =iMap_Rank!BM27 ->  | J55: =iMap_Rank!BN27 -> 0 | K55: =iMap_Rank!BO27 ->  | L55: =iMap_Rank!BP27 ->  | M55: =iMap_Rank!BQ27 -> 0 | N55: =iMap_Rank!BR27 ->  | O55: =iMap_Rank!BS27 -> 
A56: =iMap_Rank!BE28 -> 0 | B56: =iMap_Rank!BF28 ->  | C56: =iMap_Rank!BG28 ->  | D56: =iMap_Rank!BH28 -> 1 | E56: =iMap_Rank!BI28 -> Cambodia | F56: =iMap_Rank!BJ28 -> 56.9 | G56: =iMap_Rank!BK28 -> 0 | H56: =iMap_Rank!BL28 ->  | I56: =iMap_Rank!BM28 ->  | J56: =iMap_Rank!BN28 -> 0 | K56: =iMap_Rank!BO28 ->  | L56: =iMap_Rank!BP28 ->  | M56: =iMap_Rank!BQ28 -> 0 | N56: =iMap_Rank!BR28 ->  | O56: =iMap_Rank!BS28 -> 
A57: =iMap_Rank!BE29 -> 0 | B57: =iMap_Rank!BF29 ->  | C57: =iMap_Rank!BG29 ->  | D57: =iMap_Rank!BH29 -> 1 | E57: =iMap_Rank!BI29 -> Laos | F57: =iMap_Rank!BJ29 -> 55 | G57: =iMap_Rank!BK29 -> 0 | H57: =iMap_Rank!BL29 ->  | I57: =iMap_Rank!BM29 ->  | J57: =iMap_Rank!BN29 -> 0 | K57: =iMap_Rank!BO29 ->  | L57: =iMap_Rank!BP29 ->  | M57: =iMap_Rank!BQ29 -> 0 | N57: =iMap_Rank!BR29 ->  | O57: =iMap_Rank!BS29 -> 
A58: =iMap_Rank!BE30 -> 0 | B58: =iMap_Rank!BF30 ->  | C58: =iMap_Rank!BG30 ->  | D58: =iMap_Rank!BH30 -> 1 | E58: =iMap_Rank!BI30 -> Bolivia | F58: =iMap_Rank!BJ30 -> 54.9 | G58: =iMap_Rank!BK30 -> 0 | H58: =iMap_Rank!BL30 ->  | I58: =iMap_Rank!BM30 ->  | J58: =iMap_Rank!BN30 -> 0 | K58: =iMap_Rank!BO30 ->  | L58: =iMap_Rank!BP30 ->  | M58: =iMap_Rank!BQ30 -> 0 | N58: =iMap_Rank!BR30 ->  | O58: =iMap_Rank!BS30 -> 
A59: =iMap_Rank!BE31 -> 0 | B59: =iMap_Rank!BF31 ->  | C59: =iMap_Rank!BG31 ->  | D59: =iMap_Rank!BH31 -> 1 | E59: =iMap_Rank!BI31 -> Kazakhstan | F59: =iMap_Rank!BJ31 -> 53.2 | G59: =iMap_Rank!BK31 -> 0 | H59: =iMap_Rank!BL31 ->  | I59: =iMap_Rank!BM31 ->  | J59: =iMap_Rank!BN31 -> 0 | K59: =iMap_Rank!BO31 ->  | L59: =iMap_Rank!BP31 ->  | M59: =iMap_Rank!BQ31 -> 0 | N59: =iMap_Rank!BR31 ->  | O59: =iMap_Rank!BS31 -> 
A60: =iMap_Rank!BE32 -> 0 | B60: =iMap_Rank!BF32 ->  | C60: =iMap_Rank!BG32 ->  | D60: =iMap_Rank!BH32 -> 1 | E60: =iMap_Rank!BI32 -> China | F60: =iMap_Rank!BJ32 -> 49.4 | G60: =iMap_Rank!BK32 -> 0 | H60: =iMap_Rank!BL32 ->  | I60: =iMap_Rank!BM32 ->  | J60: =iMap_Rank!BN32 -> 0 | K60: =iMap_Rank!BO32 ->  | L60: =iMap_Rank!BP32 ->  | M60: =iMap_Rank!BQ32 -> 0 | N60: =iMap_Rank!BR32 ->  | O60: =iMap_Rank!BS32 -> 
A61: =iMap_Rank!BE33 -> 0 | B61: =iMap_Rank!BF33 ->  | C61: =iMap_Rank!BG33 ->  | D61: =iMap_Rank!BH33 -> 1 | E61: =iMap_Rank!BI33 -> Ecuador | F61: =iMap_Rank!BJ33 -> 49.1 | G61: =iMap_Rank!BK33 -> 0 | H61: =iMap_Rank!BL33 ->  | I61: =iMap_Rank!BM33 ->  | J61: =iMap_Rank!BN33 -> 0 | K61: =iMap_Rank!BO33 ->  | L61: =iMap_Rank!BP33 ->  | M61: =iMap_Rank!BQ33 -> 0 | N61: =iMap_Rank!BR33 ->  | O61: =iMap_Rank!BS33 -> 
A62: =iMap_Rank!BE34 -> 0 | B62: =iMap_Rank!BF34 ->  | C62: =iMap_Rank!BG34 ->  | D62: =iMap_Rank!BH34 -> 1 | E62: =iMap_Rank!BI34 -> Uzbekistan: Syr | F62: =iMap_Rank!BJ34 -> 48.9 | G62: =iMap_Rank!BK34 -> 0 | H62: =iMap_Rank!BL34 ->  | I62: =iMap_Rank!BM34 ->  | J62: =iMap_Rank!BN34 -> 0 | K62: =iMap_Rank!BO34 ->  | L62: =iMap_Rank!BP34 ->  | M62: =iMap_Rank!BQ34 -> 0 | N62: =iMap_Rank!BR34 ->  | O62: =iMap_Rank!BS34 -> 
A63: =iMap_Rank!BE35 -> 0 | B63: =iMap_Rank!BF35 ->  | C63: =iMap_Rank!BG35 ->  | D63: =iMap_Rank!BH35 -> 1 | E63: =iMap_Rank!BI35 -> Uzbekistan: Amu | F63: =iMap_Rank!BJ35 -> 48.3 | G63: =iMap_Rank!BK35 -> 0 | H63: =iMap_Rank!BL35 ->  | I63: =iMap_Rank!BM35 ->  | J63: =iMap_Rank!BN35 -> 0 | K63: =iMap_Rank!BO35 ->  | L63: =iMap_Rank!BP35 ->  | M63: =iMap_Rank!BQ35 -> 0 | N63: =iMap_Rank!BR35 ->  | O63: =iMap_Rank!BS35 -> 
A64: =iMap_Rank!BE36 -> 0 | B64: =iMap_Rank!BF36 ->  | C64: =iMap_Rank!BG36 ->  | D64: =iMap_Rank!BH36 -> 1 | E64: =iMap_Rank!BI36 -> Mauritania | F64: =iMap_Rank!BJ36 -> 48.2 | G64: =iMap_Rank!BK36 -> 0 | H64: =iMap_Rank!BL36 ->  | I64: =iMap_Rank!BM36 ->  | J64: =iMap_Rank!BN36 -> 0 | K64: =iMap_Rank!BO36 ->  | L64: =iMap_Rank!BP36 ->  | M64: =iMap_Rank!BQ36 -> 0 | N64: =iMap_Rank!BR36 ->  | O64: =iMap_Rank!BS36 -> 
A65: =iMap_Rank!BE37 -> 0 | B65: =iMap_Rank!BF37 ->  | C65: =iMap_Rank!BG37 ->  | D65: =iMap_Rank!BH37 -> 1 | E65: =iMap_Rank!BI37 -> Guinea | F65: =iMap_Rank!BJ37 -> 48 | G65: =iMap_Rank!BK37 -> 0 | H65: =iMap_Rank!BL37 ->  | I65: =iMap_Rank!BM37 ->  | J65: =iMap_Rank!BN37 -> 0 | K65: =iMap_Rank!BO37 ->  | L65: =iMap_Rank!BP37 ->  | M65: =iMap_Rank!BQ37 -> 0 | N65: =iMap_Rank!BR37 ->  | O65: =iMap_Rank!BS37 -> 
A66: =iMap_Rank!BE38 -> 0 | B66: =iMap_Rank!BF38 ->  | C66: =iMap_Rank!BG38 ->  | D66: =iMap_Rank!BH38 -> 1 | E66: =iMap_Rank!BI38 -> Kyrgyzstan | F66: =iMap_Rank!BJ38 -> 46.5 | G66: =iMap_Rank!BK38 -> 0 | H66: =iMap_Rank!BL38 ->  | I66: =iMap_Rank!BM38 ->  | J66: =iMap_Rank!BN38 -> 0 | K66: =iMap_Rank!BO38 ->  | L66: =iMap_Rank!BP38 ->  | M66: =iMap_Rank!BQ38 -> 0 | N66: =iMap_Rank!BR38 ->  | O66: =iMap_Rank!BS38 -> 
A67: =iMap_Rank!BE39 -> 0 | B67: =iMap_Rank!BF39 ->  | C67: =iMap_Rank!BG39 ->  | D67: =iMap_Rank!BH39 -> 1 | E67: =iMap_Rank!BI39 -> Tajikistan: Syr | F67: =iMap_Rank!BJ39 -> 43.9 | G67: =iMap_Rank!BK39 -> 0 | H67: =iMap_Rank!BL39 ->  | I67: =iMap_Rank!BM39 ->  | J67: =iMap_Rank!BN39 -> 0 | K67: =iMap_Rank!BO39 ->  | L67: =iMap_Rank!BP39 ->  | M67: =iMap_Rank!BQ39 -> 0 | N67: =iMap_Rank!BR39 ->  | O67: =iMap_Rank!BS39 -> 
A68: =iMap_Rank!BE40 -> 0 | B68: =iMap_Rank!BF40 ->  | C68: =iMap_Rank!BG40 ->  | D68: =iMap_Rank!BH40 -> 1 | E68: =iMap_Rank!BI40 -> Tajikistan: Amu | F68: =iMap_Rank!BJ40 -> 42.7 | G68: =iMap_Rank!BK40 -> 0 | H68: =iMap_Rank!BL40 ->  | I68: =iMap_Rank!BM40 ->  | J68: =iMap_Rank!BN40 -> 0 | K68: =iMap_Rank!BO40 ->  | L68: =iMap_Rank!BP40 ->  | M68: =iMap_Rank!BQ40 -> 0 | N68: =iMap_Rank!BR40 ->  | O68: =iMap_Rank!BS40 -> 
A69: =iMap_Rank!BE41 -> 0 | B69: =iMap_Rank!BF41 ->  | C69: =iMap_Rank!BG41 ->  | D69: =iMap_Rank!BH41 -> 1 | E69: =iMap_Rank!BI41 -> Venezuela | F69: =iMap_Rank!BJ41 -> 41.4 | G69: =iMap_Rank!BK41 -> 0 | H69: =iMap_Rank!BL41 ->  | I69: =iMap_Rank!BM41 ->  | J69: =iMap_Rank!BN41 -> 0 | K69: =iMap_Rank!BO41 ->  | L69: =iMap_Rank!BP41 ->  | M69: =iMap_Rank!BQ41 -> 0 | N69: =iMap_Rank!BR41 ->  | O69: =iMap_Rank!BS41 -> 
A70: =iMap_Rank!BE42 -> 0 | B70: =iMap_Rank!BF42 ->  | C70: =iMap_Rank!BG42 ->  | D70: =iMap_Rank!BH42 -> 1 | E70: =iMap_Rank!BI42 -> Turkey | F70: =iMap_Rank!BJ42 -> 40.7 | G70: =iMap_Rank!BK42 -> 0 | H70: =iMap_Rank!BL42 ->  | I70: =iMap_Rank!BM42 ->  | J70: =iMap_Rank!BN42 -> 0 | K70: =iMap_Rank!BO42 ->  | L70: =iMap_Rank!BP42 ->  | M70: =iMap_Rank!BQ42 -> 0 | N70: =iMap_Rank!BR42 ->  | O70: =iMap_Rank!BS42 -> 
A71: =iMap_Rank!BE43 -> 0 | B71: =iMap_Rank!BF43 ->  | C71: =iMap_Rank!BG43 ->  | D71: =iMap_Rank!BH43 -> 0 | E71: =iMap_Rank!BI43 ->  | F71: =iMap_Rank!BJ43 ->  | G71: =iMap_Rank!BK43 -> 0 | H71: =iMap_Rank!BL43 ->  | I71: =iMap_Rank!BM43 ->  | J71: =iMap_Rank!BN43 -> 0 | K71: =iMap_Rank!BO43 ->  | L71: =iMap_Rank!BP43 ->  | M71: =iMap_Rank!BQ43 -> 0 | N71: =iMap_Rank!BR43 ->  | O71: =iMap_Rank!BS43 -> 
A72: =iMap_Rank!BE44 -> 0 | B72: =iMap_Rank!BF44 ->  | C72: =iMap_Rank!BG44 ->  | D72: =iMap_Rank!BH44 -> 0 | E72: =iMap_Rank!BI44 ->  | F72: =iMap_Rank!BJ44 ->  | G72: =iMap_Rank!BK44 -> 0 | H72: =iMap_Rank!BL44 ->  | I72: =iMap_Rank!BM44 ->  | J72: =iMap_Rank!BN44 -> 0 | K72: =iMap_Rank!BO44 ->  | L72: =iMap_Rank!BP44 ->  | M72: =iMap_Rank!BQ44 -> 0 | N72: =iMap_Rank!BR44 ->  | O72: =iMap_Rank!BS44 -> 
A73: =iMap_Rank!BE45 -> 0 | B73: =iMap_Rank!BF45 ->  | C73: =iMap_Rank!BG45 ->  | D73: =iMap_Rank!BH45 -> 0 | E73: =iMap_Rank!BI45 ->  | F73: =iMap_Rank!BJ45 ->  | G73: =iMap_Rank!BK45 -> 0 | H73: =iMap_Rank!BL45 ->  | I73: =iMap_Rank!BM45 ->  | J73: =iMap_Rank!BN45 -> 0 | K73: =iMap_Rank!BO45 ->  | L73: =iMap_Rank!BP45 ->  | M73: =iMap_Rank!BQ45 -> 0 | N73: =iMap_Rank!BR45 ->  | O73: =iMap_Rank!BS45 -> 
A74: =iMap_Rank!BE46 -> 0 | B74: =iMap_Rank!BF46 ->  | C74: =iMap_Rank!BG46 ->  | D74: =iMap_Rank!BH46 -> 0 | E74: =iMap_Rank!BI46 ->  | F74: =iMap_Rank!BJ46 ->  | G74: =iMap_Rank!BK46 -> 0 | H74: =iMap_Rank!BL46 ->  | I74: =iMap_Rank!BM46 ->  | J74: =iMap_Rank!BN46 -> 0 | K74: =iMap_Rank!BO46 ->  | L74: =iMap_Rank!BP46 ->  | M74: =iMap_Rank!BQ46 -> 0 | N74: =iMap_Rank!BR46 ->  | O74: =iMap_Rank!BS46 -> 
A75: =iMap_Rank!BE47 -> 0 | B75: =iMap_Rank!BF47 ->  | C75: =iMap_Rank!BG47 ->  | D75: =iMap_Rank!BH47 -> 0 | E75: =iMap_Rank!BI47 ->  | F75: =iMap_Rank!BJ47 ->  | G75: =iMap_Rank!BK47 -> 0 | H75: =iMap_Rank!BL47 ->  | I75: =iMap_Rank!BM47 ->  | J75: =iMap_Rank!BN47 -> 0 | K75: =iMap_Rank!BO47 ->  | L75: =iMap_Rank!BP47 ->  | M75: =iMap_Rank!BQ47 -> 0 | N75: =iMap_Rank!BR47 ->  | O75: =iMap_Rank!BS47 -> 
A76: =iMap_Rank!BE48 -> 0 | B76: =iMap_Rank!BF48 ->  | C76: =iMap_Rank!BG48 ->  | D76: =iMap_Rank!BH48 -> 0 | E76: =iMap_Rank!BI48 ->  | F76: =iMap_Rank!BJ48 ->  | G76: =iMap_Rank!BK48 -> 0 | H76: =iMap_Rank!BL48 ->  | I76: =iMap_Rank!BM48 ->  | J76: =iMap_Rank!BN48 -> 0 | K76: =iMap_Rank!BO48 ->  | L76: =iMap_Rank!BP48 ->  | M76: =iMap_Rank!BQ48 -> 0 | N76: =iMap_Rank!BR48 ->  | O76: =iMap_Rank!BS48 -> 
A77: =iMap_Rank!BE49 -> 0 | B77: =iMap_Rank!BF49 ->  | C77: =iMap_Rank!BG49 ->  | D77: =iMap_Rank!BH49 -> 0 | E77: =iMap_Rank!BI49 ->  | F77: =iMap_Rank!BJ49 ->  | G77: =iMap_Rank!BK49 -> 0 | H77: =iMap_Rank!BL49 ->  | I77: =iMap_Rank!BM49 ->  | J77: =iMap_Rank!BN49 -> 0 | K77: =iMap_Rank!BO49 ->  | L77: =iMap_Rank!BP49 ->  | M77: =iMap_Rank!BQ49 -> 0 | N77: =iMap_Rank!BR49 ->  | O77: =iMap_Rank!BS49 -> 
A78: =iMap_Rank!BE50 -> 0 | B78: =iMap_Rank!BF50 ->  | C78: =iMap_Rank!BG50 ->  | D78: =iMap_Rank!BH50 -> 0 | E78: =iMap_Rank!BI50 ->  | F78: =iMap_Rank!BJ50 ->  | G78: =iMap_Rank!BK50 -> 0 | H78: =iMap_Rank!BL50 ->  | I78: =iMap_Rank!BM50 ->  | J78: =iMap_Rank!BN50 -> 0 | K78: =iMap_Rank!BO50 ->  | L78: =iMap_Rank!BP50 ->  | M78: =iMap_Rank!BQ50 -> 0 | N78: =iMap_Rank!BR50 ->  | O78: =iMap_Rank!BS50 -> 

Sheet Summary
A1: =uxb_works!$B$92 -> Blue Peace: 2020 | BA1: 1 | BB1: 1
A4: =uxb_works!B111 -> 2
D6: =uxb_works!$C$5 -> The active weight profile has been changed from its default setting
D8: =uxb_works!D67 -> Active river basin: <no filter>
B12: =uxb_works!$B$8 -> 1
B13: =COUNTIF(B15:B47,"<>0") -> 33 | D13: =iSummary!R6 -> OVERALL SCORE | H13: r | I13: Score | J13: r | K13: Rank | O13: =iSummary!AL6 -> 1) POLICY AND LEGAL FRAMEWORKS | S13: r | T13: Score | U13: r | V13: Rank | Z13: =iSummary!BF6 -> 2) INSTITUTIONAL ARRANGEMENTS AND PARTICIPATION | AD13: r | AE13: Score | AF13: r | AG13: Rank | AK13: =iSummary!BZ6 -> 3) WATER MANAGEMENT INSTRUMENTS | AO13: r | AP13: Score | AQ13: r | AR13: Rank | AV13: =iSummary!CT6 -> 4) INFRASTRUCTURE AND FINANCING | AZ13: r | BA13: Score | BB13: r | BC13: Rank | BG13: =iSummary!DN6 -> 5) COOPERATION CONTEXT | BK13: r | BL13: Score | BM13: r | BN13: Rank | BP13: r | BQ13: Score | BR13: r | BS13: Rank
B15: =iSummary!Q8 -> 1 | C15: =IF(B15=0,0,IF(G15<=uxb_works!$B$121,2,IF(G15<=uxb_works!$B$120,3,4))) -> 4 | E15: =iSummary!R8 -> 1 | F15: =iSummary!S8 -> Slovenia | G15: =iSummary!T8 -> 75.8 | H15: =iSummary!W8 -> 75.8 | I15: =iSummary!X8 -> p | J15: =IF(iSummary!Y8=0,"",iSummary!Y8) ->  | K15: =iSummary!Z8 -> 1 | M15: =iSummary!AK8 -> 1 | N15: =IF(M15=0,0,IF(R15<=uxb_works!$B$122,2,IF(R15<=uxb_works!$B$121,3,4))) -> 4 | P15: =iSummary!AL8 -> 1 | Q15: =iSummary!AM8 -> Croatia | R15: =iSummary!AN8 -> 93.3 | S15: =iSummary!AQ8 -> = | T15: =iSummary!AR8 ->  | U15: =iSummary!AS8 -> 0 | V15: =iSummary!AT8 -> 1 | X15: =iSummary!BE8 -> 1 | Y15: =IF(X15=0,0,IF(AC15<=uxb_works!$B$122,2,IF(AC15<=uxb_works!$B$121,3,4))) -> 4 | AA15: =iSummary!BF8 -> 1 | AB15: =iSummary!BG8 -> Thailand | AC15: =iSummary!BH8 -> 84.7 | AD15: =iSummary!BK8 -> = | AE15: =iSummary!BL8 ->  | AF15: =iSummary!BM8 -> 0 | AG15: =iSummary!BN8 -> 1 | AI15: =iSummary!BY8 -> 1 | AJ15: =IF(AI15=0,0,IF(AN15<=uxb_works!$B$122,2,IF(AN15<=uxb_works!$B$121,3,4))) -> 4 | AL15: =iSummary!BZ8 -> 1 | AM15: =iSummary!CA8 -> Thailand | AN15: =iSummary!CB8 -> 91.7 | AO15: =iSummary!CE8 -> = | AP15: =iSummary!CF8 ->  | AQ15: =iSummary!CG8 -> 0 | AR15: =iSummary!CH8 -> 1 | AT15: =iSummary!CS8 -> 1 | AU15: =IF(AT15=0,0,IF(AY15<=uxb_works!$B$122,2,IF(AY15<=uxb_works!$B$121,3,4))) -> 4 | AW15: =iSummary!CT8 -> 1 | AX15: =iSummary!CU8 -> Senegal | AY15: =iSummary!CV8 -> 56.7 | AZ15: =iSummary!CY8 -> = | BA15: =iSummary!CZ8 ->  | BB15: =iSummary!DA8 -> 0 | BC15: =iSummary!DB8 -> 1 | BE15: =iSummary!DM8 -> 1 | BF15: =IF(BE15=0,0,IF(BJ15<=uxb_works!$B$122,1,IF(BJ15<=uxb_works!$B$121,2,IF(BJ15<=uxb_works!$B$120,3,4)))) -> 4 | BH15: =iSummary!DN8 -> 1 | BI15: =iSummary!DO8 -> Slovenia | BJ15: =iSummary!DP8 -> 80.7 | BK15: =iSummary!DS8 -> = | BL15: =iSummary!DT8 ->  | BM15: =iSummary!DU8 -> 0 | BN15: =iSummary!DV8 -> 1 | BP15: =iSummary!#REF! ->  | BQ15: =iSummary!#REF! ->  | BR15: =iSummary!#REF! ->  | BS15: =iSummary!#REF! -> 
B16: =iSummary!Q9 -> 1 | C16: =IF(B16=0,0,IF(G16<=uxb_works!$B$121,2,IF(G16<=uxb_works!$B$120,3,4))) -> 4 | E16: =iSummary!R9 -> 2 | F16: =iSummary!S9 -> Croatia | G16: =IF(ISNUMBER(iSummary!T9),ROUND(iSummary!T9,1),"") -> 73.1 | H16: =iSummary!W9 -> 73.1 | I16: =iSummary!X9 -> p | J16: =IF(iSummary!Y9=0,"",iSummary!Y9) ->  | K16: =iSummary!Z9 -> 1 | M16: =iSummary!AK9 -> 1 | N16: =IF(M16=0,0,IF(R16<=uxb_works!$B$121,2,IF(R16<=uxb_works!$B$120,3,4))) -> 4 | P16: =iSummary!AL9 -> 2 | Q16: =iSummary!AM9 -> Slovenia | R16: =iSummary!AN9 -> 89.2 | S16: =iSummary!AQ9 -> = | T16: =iSummary!AR9 ->  | U16: =iSummary!AS9 -> 0 | V16: =iSummary!AT9 -> 1 | X16: =iSummary!BE9 -> 1 | Y16: =IF(X16=0,0,IF(AC16<=uxb_works!$B$121,2,IF(AC16<=uxb_works!$B$120,3,4))) -> 4 | AA16: =iSummary!BF9 -> 2 | AB16: =iSummary!BG9 -> Mali | AC16: =iSummary!BH9 -> 83.3 | AD16: =iSummary!BK9 -> = | AE16: =iSummary!BL9 ->  | AF16: =iSummary!BM9 -> 0 | AG16: =iSummary!BN9 -> 1 | AI16: =iSummary!BY9 -> 1 | AJ16: =IF(AI16=0,0,IF(AN16<=uxb_works!$B$121,2,IF(AN16<=uxb_works!$B$120,3,4))) -> 4 | AL16: =iSummary!BZ9 -> 2 | AM16: =iSummary!CA9 -> Slovenia | AN16: =iSummary!CB9 -> 83.3 | AO16: =iSummary!CE9 -> = | AP16: =iSummary!CF9 ->  | AQ16: =iSummary!CG9 -> 0 | AR16: =iSummary!CH9 -> 1 | AT16: =iSummary!CS9 -> 1 | AU16: =IF(AT16=0,0,IF(AY16<=uxb_works!$B$121,2,IF(AY16<=uxb_works!$B$120,3,4))) -> 3 | AW16: =iSummary!CT9 -> 2 | AX16: =iSummary!CU9 -> Thailand | AY16: =iSummary!CV9 -> 55.5 | AZ16: =iSummary!CY9 -> = | BA16: =iSummary!CZ9 ->  | BB16: =iSummary!DA9 -> 0 | BC16: =iSummary!DB9 -> 1 | BE16: =iSummary!DM9 -> 1 | BF16: =IF(BE16=0,0,IF(BJ16<=uxb_works!$B$121,2,IF(BJ16<=uxb_works!$B$120,3,4))) -> 4 | BH16: =iSummary!DN9 -> 2 | BI16: =iSummary!DO9 -> Croatia | BJ16: =iSummary!DP9 -> 71.7 | BK16: =iSummary!DS9 -> = | BL16: =iSummary!DT9 ->  | BM16: =iSummary!DU9 -> 0 | BN16: =iSummary!DV9 -> 1 | BP16: =iSummary!#REF! ->  | BQ16: =iSummary!#REF! ->  | BR16: =iSummary!#REF! ->  | BS16: =iSummary!#REF! -> 
B17: =iSummary!Q10 -> 1 | C17: =IF(B17=0,0,IF(G17<=uxb_works!$B$121,2,IF(G17<=uxb_works!$B$120,3,4))) -> 3 | E17: =iSummary!R10 -> 3 | F17: =iSummary!S10 -> Thailand | G17: =IF(ISNUMBER(iSummary!T10),ROUND(iSummary!T10,1),"") -> 68.7 | H17: =iSummary!W10 -> 68.7 | I17: =iSummary!X10 -> p | J17: =IF(iSummary!Y10=0,"",iSummary!Y10) ->  | K17: =iSummary!Z10 -> 1 | M17: =iSummary!AK10 -> 1 | N17: =IF(M17=0,0,IF(R17<=uxb_works!$B$121,2,IF(R17<=uxb_works!$B$120,3,4))) -> 4 | P17: =iSummary!AL10 -> 3 | Q17: =iSummary!AM10 -> Senegal | R17: =iSummary!AN10 -> 88.5 | S17: =iSummary!AQ10 -> = | T17: =iSummary!AR10 ->  | U17: =iSummary!AS10 -> 0 | V17: =iSummary!AT10 -> 1 | X17: =iSummary!BE10 -> 1 | Y17: =IF(X17=0,0,IF(AC17<=uxb_works!$B$121,2,IF(AC17<=uxb_works!$B$120,3,4))) -> 4 | AA17: =iSummary!BF10 -> 3 | AB17: =iSummary!BG10 -> Senegal | AC17: =iSummary!BH10 -> 77.8 | AD17: =iSummary!BK10 -> = | AE17: =iSummary!BL10 ->  | AF17: =iSummary!BM10 -> 0 | AG17: =iSummary!BN10 -> 1 | AI17: =iSummary!BY10 -> 1 | AJ17: =IF(AI17=0,0,IF(AN17<=uxb_works!$B$121,2,IF(AN17<=uxb_works!$B$120,3,4))) -> 4 | AL17: =iSummary!BZ10 -> 3 | AM17: =iSummary!CA10 -> Cambodia | AN17: =iSummary!CB10 -> 79.2 | AO17: =iSummary!CE10 -> = | AP17: =iSummary!CF10 ->  | AQ17: =iSummary!CG10 -> 0 | AR17: =iSummary!CH10 -> 1 | AT17: =iSummary!CS10 -> 1 | AU17: =IF(AT17=0,0,IF(AY17<=uxb_works!$B$121,2,IF(AY17<=uxb_works!$B$120,3,4))) -> 3 | AW17: =iSummary!CT10 -> 3 | AX17: =iSummary!CU10 -> Slovenia | AY17: =iSummary!CV10 -> 55.1 | AZ17: =iSummary!CY10 -> = | BA17: =iSummary!CZ10 ->  | BB17: =iSummary!DA10 -> 0 | BC17: =iSummary!DB10 -> 1 | BE17: =iSummary!DM10 -> 1 | BF17: =IF(BE17=0,0,IF(BJ17<=uxb_works!$B$121,2,IF(BJ17<=uxb_works!$B$120,3,4))) -> 3 | BH17: =iSummary!DN10 -> 3 | BI17: =iSummary!DO10 -> Brazil | BJ17: =iSummary!DP10 -> 68.1 | BK17: =iSummary!DS10 -> = | BL17: =iSummary!DT10 ->  | BM17: =iSummary!DU10 -> 0 | BN17: =iSummary!DV10 -> 1 | BP17: =iSummary!#REF! ->  | BQ17: =iSummary!#REF! ->  | BR17: =iSummary!#REF! ->  | BS17: =iSummary!#REF! -> 
B18: =iSummary!Q11 -> 1 | C18: =IF(B18=0,0,IF(G18<=uxb_works!$B$121,2,IF(G18<=uxb_works!$B$120,3,4))) -> 3 | E18: =iSummary!R11 -> 4 | F18: =iSummary!S11 -> Senegal | G18: =IF(ISNUMBER(iSummary!T11),ROUND(iSummary!T11,1),"") -> 66.3 | H18: =iSummary!W11 -> 66.3 | I18: =iSummary!X11 -> p | J18: =IF(iSummary!Y11=0,"",iSummary!Y11) ->  | K18: =iSummary!Z11 -> 1 | M18: =iSummary!AK11 -> 1 | N18: =IF(M18=0,0,IF(R18<=uxb_works!$B$121,2,IF(R18<=uxb_works!$B$120,3,4))) -> 4 | P18: =iSummary!AL11 -> =4 | Q18: =iSummary!AM11 -> Bosnia and herzegovina | R18: =iSummary!AN11 -> 86 | S18: =iSummary!AQ11 -> = | T18: =iSummary!AR11 ->  | U18: =iSummary!AS11 -> 0 | V18: =iSummary!AT11 -> 1 | X18: =iSummary!BE11 -> 1 | Y18: =IF(X18=0,0,IF(AC18<=uxb_works!$B$121,2,IF(AC18<=uxb_works!$B$120,3,4))) -> 4 | AA18: =iSummary!BF11 -> 4 | AB18: =iSummary!BG11 -> Croatia | AC18: =iSummary!BH11 -> 75 | AD18: =iSummary!BK11 -> = | AE18: =iSummary!BL11 ->  | AF18: =iSummary!BM11 -> 0 | AG18: =iSummary!BN11 -> 1 | AI18: =iSummary!BY11 -> 1 | AJ18: =IF(AI18=0,0,IF(AN18<=uxb_works!$B$121,2,IF(AN18<=uxb_works!$B$120,3,4))) -> 4 | AL18: =iSummary!BZ11 -> 4 | AM18: =iSummary!CA11 -> Croatia | AN18: =iSummary!CB11 -> 75 | AO18: =iSummary!CE11 -> = | AP18: =iSummary!CF11 ->  | AQ18: =iSummary!CG11 -> 0 | AR18: =iSummary!CH11 -> 1 | AT18: =iSummary!CS11 -> 1 | AU18: =IF(AT18=0,0,IF(AY18<=uxb_works!$B$121,2,IF(AY18<=uxb_works!$B$120,3,4))) -> 3 | AW18: =iSummary!CT11 -> 4 | AX18: =iSummary!CU11 -> Peru | AY18: =iSummary!CV11 -> 54.5 | AZ18: =iSummary!CY11 -> = | BA18: =iSummary!CZ11 ->  | BB18: =iSummary!DA11 -> 0 | BC18: =iSummary!DB11 -> 1 | BE18: =iSummary!DM11 -> 1 | BF18: =IF(BE18=0,0,IF(BJ18<=uxb_works!$B$121,2,IF(BJ18<=uxb_works!$B$120,3,4))) -> 3 | BH18: =iSummary!DN11 -> 4 | BI18: =iSummary!DO11 -> Laos | BJ18: =iSummary!DP11 -> 65.8 | BK18: =iSummary!DS11 -> = | BL18: =iSummary!DT11 ->  | BM18: =iSummary!DU11 -> 0 | BN18: =iSummary!DV11 -> 1 | BP18: =iSummary!#REF! ->  | BQ18: =iSummary!#REF! ->  | BR18: =iSummary!#REF! ->  | BS18: =iSummary!#REF! -> 
B19: =iSummary!Q12 -> 1 | C19: =IF(B19=0,0,IF(G19<=uxb_works!$B$121,2,IF(G19<=uxb_works!$B$120,3,4))) -> 3 | E19: =iSummary!R12 -> 5 | F19: =iSummary!S12 -> Serbia | G19: =IF(ISNUMBER(iSummary!T12),ROUND(iSummary!T12,1),"") -> 63.2 | H19: =iSummary!W12 -> 63.2 | I19: =iSummary!X12 -> p | J19: =IF(iSummary!Y12=0,"",iSummary!Y12) ->  | K19: =iSummary!Z12 -> 1 | M19: =iSummary!AK12 -> 1 | N19: =IF(M19=0,0,IF(R19<=uxb_works!$B$121,2,IF(R19<=uxb_works!$B$120,3,4))) -> 4 | P19: =iSummary!AL12 -> =4 | Q19: =iSummary!AM12 -> Serbia | R19: =iSummary!AN12 -> 86 | S19: =iSummary!AQ12 -> = | T19: =iSummary!AR12 ->  | U19: =iSummary!AS12 -> 0 | V19: =iSummary!AT12 -> 1 | X19: =iSummary!BE12 -> 1 | Y19: =IF(X19=0,0,IF(AC19<=uxb_works!$B$121,2,IF(AC19<=uxb_works!$B$120,3,4))) -> 4 | AA19: =iSummary!BF12 -> 5 | AB19: =iSummary!BG12 -> Peru | AC19: =iSummary!BH12 -> 73.6 | AD19: =iSummary!BK12 -> = | AE19: =iSummary!BL12 ->  | AF19: =iSummary!BM12 -> 0 | AG19: =iSummary!BN12 -> 1 | AI19: =iSummary!BY12 -> 1 | AJ19: =IF(AI19=0,0,IF(AN19<=uxb_works!$B$121,2,IF(AN19<=uxb_works!$B$120,3,4))) -> 3 | AL19: =iSummary!BZ12 -> =5 | AM19: =iSummary!CA12 -> Colombia | AN19: =iSummary!CB12 -> 66.7 | AO19: =iSummary!CE12 -> = | AP19: =iSummary!CF12 ->  | AQ19: =iSummary!CG12 -> 0 | AR19: =iSummary!CH12 -> 1 | AT19: =iSummary!CS12 -> 1 | AU19: =IF(AT19=0,0,IF(AY19<=uxb_works!$B$121,2,IF(AY19<=uxb_works!$B$120,3,4))) -> 3 | AW19: =iSummary!CT12 -> 5 | AX19: =iSummary!CU12 -> Brazil | AY19: =iSummary!CV12 -> 53.2 | AZ19: =iSummary!CY12 -> = | BA19: =iSummary!CZ12 ->  | BB19: =iSummary!DA12 -> 0 | BC19: =iSummary!DB12 -> 1 | BE19: =iSummary!DM12 -> 1 | BF19: =IF(BE19=0,0,IF(BJ19<=uxb_works!$B$121,2,IF(BJ19<=uxb_works!$B$120,3,4))) -> 3 | BH19: =iSummary!DN12 -> 5 | BI19: =iSummary!DO12 -> Peru | BJ19: =iSummary!DP12 -> 65 | BK19: =iSummary!DS12 -> = | BL19: =iSummary!DT12 ->  | BM19: =iSummary!DU12 -> 0 | BN19: =iSummary!DV12 -> 1 | BP19: =iSummary!#REF! ->  | BQ19: =iSummary!#REF! ->  | BR19: =iSummary!#REF! ->  | BS19: =iSummary!#REF! -> 
B20: =iSummary!Q13 -> 1 | C20: =IF(B20=0,0,IF(G20<=uxb_works!$B$121,2,IF(G20<=uxb_works!$B$120,3,4))) -> 3 | E20: =iSummary!R13 -> 6 | F20: =iSummary!S13 -> Vietnam | G20: =IF(ISNUMBER(iSummary!T13),ROUND(iSummary!T13,1),"") -> 62.7 | H20: =iSummary!W13 -> 62.7 | I20: =iSummary!X13 -> p | J20: =IF(iSummary!Y13=0,"",iSummary!Y13) ->  | K20: =iSummary!Z13 -> 1 | M20: =iSummary!AK13 -> 1 | N20: =IF(M20=0,0,IF(R20<=uxb_works!$B$121,2,IF(R20<=uxb_works!$B$120,3,4))) -> 4 | P20: =iSummary!AL13 -> 6 | Q20: =iSummary!AM13 -> Vietnam | R20: =iSummary!AN13 -> 74.2 | S20: =iSummary!AQ13 -> = | T20: =iSummary!AR13 ->  | U20: =iSummary!AS13 -> 0 | V20: =iSummary!AT13 -> 1 | X20: =iSummary!BE13 -> 1 | Y20: =IF(X20=0,0,IF(AC20<=uxb_works!$B$121,2,IF(AC20<=uxb_works!$B$120,3,4))) -> 4 | AA20: =iSummary!BF13 -> 6 | AB20: =iSummary!BG13 -> Brazil | AC20: =iSummary!BH13 -> 72.2 | AD20: =iSummary!BK13 -> = | AE20: =iSummary!BL13 ->  | AF20: =iSummary!BM13 -> 0 | AG20: =iSummary!BN13 -> 1 | AI20: =iSummary!BY13 -> 1 | AJ20: =IF(AI20=0,0,IF(AN20<=uxb_works!$B$121,2,IF(AN20<=uxb_works!$B$120,3,4))) -> 3 | AL20: =iSummary!BZ13 -> =5 | AM20: =iSummary!CA13 -> Mali | AN20: =iSummary!CB13 -> 66.7 | AO20: =iSummary!CE13 -> = | AP20: =iSummary!CF13 ->  | AQ20: =iSummary!CG13 -> 0 | AR20: =iSummary!CH13 -> 1 | AT20: =iSummary!CS13 -> 1 | AU20: =IF(AT20=0,0,IF(AY20<=uxb_works!$B$121,2,IF(AY20<=uxb_works!$B$120,3,4))) -> 3 | AW20: =iSummary!CT13 -> 6 | AX20: =iSummary!CU13 -> Colombia | AY20: =iSummary!CV13 -> 52.9 | AZ20: =iSummary!CY13 -> = | BA20: =iSummary!CZ13 ->  | BB20: =iSummary!DA13 -> 0 | BC20: =iSummary!DB13 -> 1 | BE20: =iSummary!DM13 -> 1 | BF20: =IF(BE20=0,0,IF(BJ20<=uxb_works!$B$121,2,IF(BJ20<=uxb_works!$B$120,3,4))) -> 3 | BH20: =iSummary!DN13 -> 6 | BI20: =iSummary!DO13 -> Serbia | BJ20: =iSummary!DP13 -> 64.5 | BK20: =iSummary!DS13 -> = | BL20: =iSummary!DT13 ->  | BM20: =iSummary!DU13 -> 0 | BN20: =iSummary!DV13 -> 1 | BP20: =iSummary!#REF! ->  | BQ20: =iSummary!#REF! ->  | BR20: =iSummary!#REF! ->  | BS20: =iSummary!#REF! -> 
B21: =iSummary!Q14 -> 1 | C21: =IF(B21=0,0,IF(G21<=uxb_works!$B$121,2,IF(G21<=uxb_works!$B$120,3,4))) -> 3 | E21: =iSummary!R14 -> =7 | F21: =iSummary!S14 -> Mali | G21: =IF(ISNUMBER(iSummary!T14),ROUND(iSummary!T14,1),"") -> 62.3 | H21: =iSummary!W14 -> 62.3 | I21: =iSummary!X14 -> p | J21: =IF(iSummary!Y14=0,"",iSummary!Y14) ->  | K21: =iSummary!Z14 -> 1 | M21: =iSummary!AK14 -> 1 | N21: =IF(M21=0,0,IF(R21<=uxb_works!$B$121,2,IF(R21<=uxb_works!$B$120,3,4))) -> 3 | P21: =iSummary!AL14 -> 7 | Q21: =iSummary!AM14 -> Bolivia | R21: =iSummary!AN14 -> 63.3 | S21: =iSummary!AQ14 -> = | T21: =iSummary!AR14 ->  | U21: =iSummary!AS14 -> 0 | V21: =iSummary!AT14 -> 1 | X21: =iSummary!BE14 -> 1 | Y21: =IF(X21=0,0,IF(AC21<=uxb_works!$B$121,2,IF(AC21<=uxb_works!$B$120,3,4))) -> 4 | AA21: =iSummary!BF14 -> =7 | AB21: =iSummary!BG14 -> Cambodia | AC21: =iSummary!BH14 -> 70.8 | AD21: =iSummary!BK14 -> = | AE21: =iSummary!BL14 ->  | AF21: =iSummary!BM14 -> 0 | AG21: =iSummary!BN14 -> 1 | AI21: =iSummary!BY14 -> 1 | AJ21: =IF(AI21=0,0,IF(AN21<=uxb_works!$B$121,2,IF(AN21<=uxb_works!$B$120,3,4))) -> 3 | AL21: =iSummary!BZ14 -> =5 | AM21: =iSummary!CA14 -> Peru | AN21: =iSummary!CB14 -> 66.7 | AO21: =iSummary!CE14 -> = | AP21: =iSummary!CF14 ->  | AQ21: =iSummary!CG14 -> 0 | AR21: =iSummary!CH14 -> 1 | AT21: =iSummary!CS14 -> 1 | AU21: =IF(AT21=0,0,IF(AY21<=uxb_works!$B$121,2,IF(AY21<=uxb_works!$B$120,3,4))) -> 3 | AW21: =iSummary!CT14 -> 7 | AX21: =iSummary!CU14 -> Mali | AY21: =iSummary!CV14 -> 51.6 | AZ21: =iSummary!CY14 -> = | BA21: =iSummary!CZ14 ->  | BB21: =iSummary!DA14 -> 0 | BC21: =iSummary!DB14 -> 1 | BE21: =iSummary!DM14 -> 1 | BF21: =IF(BE21=0,0,IF(BJ21<=uxb_works!$B$121,2,IF(BJ21<=uxb_works!$B$120,3,4))) -> 3 | BH21: =iSummary!DN14 -> 7 | BI21: =iSummary!DO14 -> Colombia | BJ21: =iSummary!DP14 -> 64.4 | BK21: =iSummary!DS14 -> = | BL21: =iSummary!DT14 ->  | BM21: =iSummary!DU14 -> 0 | BN21: =iSummary!DV14 -> 1 | BP21: =iSummary!#REF! ->  | BQ21: =iSummary!#REF! ->  | BR21: =iSummary!#REF! ->  | BS21: =iSummary!#REF! -> 
B22: =iSummary!Q15 -> 1 | C22: =IF(B22=0,0,IF(G22<=uxb_works!$B$121,2,IF(G22<=uxb_works!$B$120,3,4))) -> 3 | E22: =iSummary!R15 -> =7 | F22: =iSummary!S15 -> Peru | G22: =IF(ISNUMBER(iSummary!T15),ROUND(iSummary!T15,1),"") -> 62.3 | H22: =iSummary!W15 -> 62.3 | I22: =iSummary!X15 -> p | J22: =IF(iSummary!Y15=0,"",iSummary!Y15) ->  | K22: =iSummary!Z15 -> 1 | M22: =iSummary!AK15 -> 1 | N22: =IF(M22=0,0,IF(R22<=uxb_works!$B$121,2,IF(R22<=uxb_works!$B$120,3,4))) -> 3 | P22: =iSummary!AL15 -> 8 | Q22: =iSummary!AM15 -> Kazakhstan | R22: =iSummary!AN15 -> 57.5 | S22: =iSummary!AQ15 -> = | T22: =iSummary!AR15 ->  | U22: =iSummary!AS15 -> 0 | V22: =iSummary!AT15 -> 1 | X22: =iSummary!BE15 -> 1 | Y22: =IF(X22=0,0,IF(AC22<=uxb_works!$B$121,2,IF(AC22<=uxb_works!$B$120,3,4))) -> 4 | AA22: =iSummary!BF15 -> =7 | AB22: =iSummary!BG15 -> Slovenia | AC22: =iSummary!BH15 -> 70.8 | AD22: =iSummary!BK15 -> = | AE22: =iSummary!BL15 ->  | AF22: =iSummary!BM15 -> 0 | AG22: =iSummary!BN15 -> 1 | AI22: =iSummary!BY15 -> 1 | AJ22: =IF(AI22=0,0,IF(AN22<=uxb_works!$B$121,2,IF(AN22<=uxb_works!$B$120,3,4))) -> 3 | AL22: =iSummary!BZ15 -> =5 | AM22: =iSummary!CA15 -> Vietnam | AN22: =iSummary!CB15 -> 66.7 | AO22: =iSummary!CE15 -> = | AP22: =iSummary!CF15 ->  | AQ22: =iSummary!CG15 -> 0 | AR22: =iSummary!CH15 -> 1 | AT22: =iSummary!CS15 -> 1 | AU22: =IF(AT22=0,0,IF(AY22<=uxb_works!$B$121,2,IF(AY22<=uxb_works!$B$120,3,4))) -> 3 | AW22: =iSummary!CT15 -> 8 | AX22: =iSummary!CU15 -> Croatia | AY22: =iSummary!CV15 -> 50.4 | AZ22: =iSummary!CY15 -> = | BA22: =iSummary!CZ15 ->  | BB22: =iSummary!DA15 -> 0 | BC22: =iSummary!DB15 -> 1 | BE22: =iSummary!DM15 -> 1 | BF22: =IF(BE22=0,0,IF(BJ22<=uxb_works!$B$121,2,IF(BJ22<=uxb_works!$B$120,3,4))) -> 3 | BH22: =iSummary!DN15 -> 8 | BI22: =iSummary!DO15 -> Bolivia | BJ22: =iSummary!DP15 -> 62.9 | BK22: =iSummary!DS15 -> = | BL22: =iSummary!DT15 ->  | BM22: =iSummary!DU15 -> 0 | BN22: =iSummary!DV15 -> 1 | BP22: =iSummary!#REF! ->  | BQ22: =iSummary!#REF! ->  | BR22: =iSummary!#REF! ->  | BS22: =iSummary!#REF! -> 
B23: =iSummary!Q16 -> 1 | C23: =IF(B23=0,0,IF(G23<=uxb_works!$B$121,2,IF(G23<=uxb_works!$B$120,3,4))) -> 3 | E23: =iSummary!R16 -> 9 | F23: =iSummary!S16 -> Brazil | G23: =IF(ISNUMBER(iSummary!T16),ROUND(iSummary!T16,1),"") -> 60.1 | H23: =iSummary!W16 -> 60.1 | I23: =iSummary!X16 -> p | J23: =IF(iSummary!Y16=0,"",iSummary!Y16) ->  | K23: =iSummary!Z16 -> 1 | M23: =iSummary!AK16 -> 1 | N23: =IF(M23=0,0,IF(R23<=uxb_works!$B$121,2,IF(R23<=uxb_works!$B$120,3,4))) -> 3 | P23: =iSummary!AL16 -> 9 | Q23: =iSummary!AM16 -> Mali | R23: =iSummary!AN16 -> 57.3 | S23: =iSummary!AQ16 -> = | T23: =iSummary!AR16 ->  | U23: =iSummary!AS16 -> 0 | V23: =iSummary!AT16 -> 1 | X23: =iSummary!BE16 -> 1 | Y23: =IF(X23=0,0,IF(AC23<=uxb_works!$B$121,2,IF(AC23<=uxb_works!$B$120,3,4))) -> 3 | AA23: =iSummary!BF16 -> 9 | AB23: =iSummary!BG16 -> Mauritania | AC23: =iSummary!BH16 -> 68.1 | AD23: =iSummary!BK16 -> = | AE23: =iSummary!BL16 ->  | AF23: =iSummary!BM16 -> 0 | AG23: =iSummary!BN16 -> 1 | AI23: =iSummary!BY16 -> 1 | AJ23: =IF(AI23=0,0,IF(AN23<=uxb_works!$B$121,2,IF(AN23<=uxb_works!$B$120,3,4))) -> 3 | AL23: =iSummary!BZ16 -> 9 | AM23: =iSummary!CA16 -> Laos | AN23: =iSummary!CB16 -> 58.3 | AO23: =iSummary!CE16 -> = | AP23: =iSummary!CF16 ->  | AQ23: =iSummary!CG16 -> 0 | AR23: =iSummary!CH16 -> 1 | AT23: =iSummary!CS16 -> 1 | AU23: =IF(AT23=0,0,IF(AY23<=uxb_works!$B$121,2,IF(AY23<=uxb_works!$B$120,3,4))) -> 3 | AW23: =iSummary!CT16 -> =9 | AX23: =iSummary!CU16 -> China | AY23: =iSummary!CV16 -> 49 | AZ23: =iSummary!CY16 -> = | BA23: =iSummary!CZ16 ->  | BB23: =iSummary!DA16 -> 0 | BC23: =iSummary!DB16 -> 1 | BE23: =iSummary!DM16 -> 1 | BF23: =IF(BE23=0,0,IF(BJ23<=uxb_works!$B$121,2,IF(BJ23<=uxb_works!$B$120,3,4))) -> 3 | BH23: =iSummary!DN16 -> 9 | BI23: =iSummary!DO16 -> Senegal | BJ23: =iSummary!DP16 -> 62.7 | BK23: =iSummary!DS16 -> = | BL23: =iSummary!DT16 ->  | BM23: =iSummary!DU16 -> 0 | BN23: =iSummary!DV16 -> 1 | BP23: =iSummary!#REF! ->  | BQ23: =iSummary!#REF! ->  | BR23: =iSummary!#REF! ->  | BS23: =iSummary!#REF! -> 
B24: =iSummary!Q17 -> 1 | C24: =IF(B24=0,0,IF(G24<=uxb_works!$B$121,2,IF(G24<=uxb_works!$B$120,3,4))) -> 3 | E24: =iSummary!R17 -> 10 | F24: =iSummary!S17 -> Bosnia and herzegovina | G24: =IF(ISNUMBER(iSummary!T17),ROUND(iSummary!T17,1),"") -> 59.5 | H24: =iSummary!W17 -> 59.5 | I24: =iSummary!X17 -> p | J24: =IF(iSummary!Y17=0,"",iSummary!Y17) ->  | K24: =iSummary!Z17 -> 1 | M24: =iSummary!AK17 -> 1 | N24: =IF(M24=0,0,IF(R24<=uxb_works!$B$121,2,IF(R24<=uxb_works!$B$120,3,4))) -> 3 | P24: =iSummary!AL17 -> 10 | Q24: =iSummary!AM17 -> Ecuador | R24: =iSummary!AN17 -> 56 | S24: =iSummary!AQ17 -> = | T24: =iSummary!AR17 ->  | U24: =iSummary!AS17 -> 0 | V24: =iSummary!AT17 -> 1 | X24: =iSummary!BE17 -> 1 | Y24: =IF(X24=0,0,IF(AC24<=uxb_works!$B$121,2,IF(AC24<=uxb_works!$B$120,3,4))) -> 3 | AA24: =iSummary!BF17 -> =10 | AB24: =iSummary!BG17 -> Serbia | AC24: =iSummary!BH17 -> 65.3 | AD24: =iSummary!BK17 -> = | AE24: =iSummary!BL17 ->  | AF24: =iSummary!BM17 -> 0 | AG24: =iSummary!BN17 -> 1 | AI24: =iSummary!BY17 -> 1 | AJ24: =IF(AI24=0,0,IF(AN24<=uxb_works!$B$121,2,IF(AN24<=uxb_works!$B$120,3,4))) -> 3 | AL24: =iSummary!BZ17 -> =10 | AM24: =iSummary!CA17 -> Bolivia | AN24: =iSummary!CB17 -> 54.2 | AO24: =iSummary!CE17 -> = | AP24: =iSummary!CF17 ->  | AQ24: =iSummary!CG17 -> 0 | AR24: =iSummary!CH17 -> 1 | AT24: =iSummary!CS17 -> 1 | AU24: =IF(AT24=0,0,IF(AY24<=uxb_works!$B$121,2,IF(AY24<=uxb_works!$B$120,3,4))) -> 3 | AW24: =iSummary!CT17 -> =9 | AX24: =iSummary!CU17 -> Mauritania | AY24: =iSummary!CV17 -> 49 | AZ24: =iSummary!CY17 -> = | BA24: =iSummary!CZ17 ->  | BB24: =iSummary!DA17 -> 0 | BC24: =iSummary!DB17 -> 1 | BE24: =iSummary!DM17 -> 1 | BF24: =IF(BE24=0,0,IF(BJ24<=uxb_works!$B$121,2,IF(BJ24<=uxb_works!$B$120,3,4))) -> 3 | BH24: =iSummary!DN17 -> 10 | BI24: =iSummary!DO17 -> Vietnam | BJ24: =iSummary!DP17 -> 61.5 | BK24: =iSummary!DS17 -> = | BL24: =iSummary!DT17 ->  | BM24: =iSummary!DU17 -> 0 | BN24: =iSummary!DV17 -> 1 | BP24: =iSummary!#REF! ->  | BQ24: =iSummary!#REF! ->  | BR24: =iSummary!#REF! ->  | BS24: =iSummary!#REF! -> 
B25: =iSummary!Q18 -> 1 | C25: =IF(B25=0,0,IF(G25<=uxb_works!$B$121,2,IF(G25<=uxb_works!$B$120,3,4))) -> 3 | E25: =iSummary!R18 -> 11 | F25: =iSummary!S18 -> Colombia | G25: =IF(ISNUMBER(iSummary!T18),ROUND(iSummary!T18,1),"") -> 57.6 | H25: =iSummary!W18 -> 57.6 | I25: =iSummary!X18 -> p | J25: =IF(iSummary!Y18=0,"",iSummary!Y18) ->  | K25: =iSummary!Z18 -> 1 | M25: =iSummary!AK18 -> 1 | N25: =IF(M25=0,0,IF(R25<=uxb_works!$B$121,2,IF(R25<=uxb_works!$B$120,3,4))) -> 3 | P25: =iSummary!AL18 -> 11 | Q25: =iSummary!AM18 -> Venezuela | R25: =iSummary!AN18 -> 55 | S25: =iSummary!AQ18 -> = | T25: =iSummary!AR18 ->  | U25: =iSummary!AS18 -> 0 | V25: =iSummary!AT18 -> 1 | X25: =iSummary!BE18 -> 1 | Y25: =IF(X25=0,0,IF(AC25<=uxb_works!$B$121,2,IF(AC25<=uxb_works!$B$120,3,4))) -> 3 | AA25: =iSummary!BF18 -> =10 | AB25: =iSummary!BG18 -> Uzbekistan: Amu | AC25: =iSummary!BH18 -> 65.3 | AD25: =iSummary!BK18 -> = | AE25: =iSummary!BL18 ->  | AF25: =iSummary!BM18 -> 0 | AG25: =iSummary!BN18 -> 1 | AI25: =iSummary!BY18 -> 1 | AJ25: =IF(AI25=0,0,IF(AN25<=uxb_works!$B$121,2,IF(AN25<=uxb_works!$B$120,3,4))) -> 3 | AL25: =iSummary!BZ18 -> =10 | AM25: =iSummary!CA18 -> Brazil | AN25: =iSummary!CB18 -> 54.2 | AO25: =iSummary!CE18 -> = | AP25: =iSummary!CF18 ->  | AQ25: =iSummary!CG18 -> 0 | AR25: =iSummary!CH18 -> 1 | AT25: =iSummary!CS18 -> 1 | AU25: =IF(AT25=0,0,IF(AY25<=uxb_works!$B$121,2,IF(AY25<=uxb_works!$B$120,3,4))) -> 3 | AW25: =iSummary!CT18 -> 11 | AX25: =iSummary!CU18 -> Guinea | AY25: =iSummary!CV18 -> 48.7 | AZ25: =iSummary!CY18 -> = | BA25: =iSummary!CZ18 ->  | BB25: =iSummary!DA18 -> 0 | BC25: =iSummary!DB18 -> 1 | BE25: =iSummary!DM18 -> 1 | BF25: =IF(BE25=0,0,IF(BJ25<=uxb_works!$B$121,2,IF(BJ25<=uxb_works!$B$120,3,4))) -> 3 | BH25: =iSummary!DN18 -> =11 | BI25: =iSummary!DO18 -> Ecuador | BJ25: =iSummary!DP18 -> 61 | BK25: =iSummary!DS18 -> = | BL25: =iSummary!DT18 ->  | BM25: =iSummary!DU18 -> 0 | BN25: =iSummary!DV18 -> 1 | BP25: =iSummary!#REF! ->  | BQ25: =iSummary!#REF! ->  | BR25: =iSummary!#REF! ->  | BS25: =iSummary!#REF! -> 
B26: =iSummary!Q19 -> 1 | C26: =IF(B26=0,0,IF(G26<=uxb_works!$B$121,2,IF(G26<=uxb_works!$B$120,3,4))) -> 3 | E26: =iSummary!R19 -> 12 | F26: =iSummary!S19 -> Cambodia | G26: =IF(ISNUMBER(iSummary!T19),ROUND(iSummary!T19,1),"") -> 56.9 | H26: =iSummary!W19 -> 56.9 | I26: =iSummary!X19 -> p | J26: =IF(iSummary!Y19=0,"",iSummary!Y19) ->  | K26: =iSummary!Z19 -> 1 | M26: =iSummary!AK19 -> 4 | N26: =IF(M26=0,0,IF(R26<=uxb_works!$B$121,2,IF(R26<=uxb_works!$B$120,3,4))) -> 3 | P26: =iSummary!AL19 ->  | Q26: =iSummary!AM19 -> AVERAGE | R26: =iSummary!AN19 -> 53.7 | S26: =iSummary!AQ19 ->  | T26: =iSummary!AR19 ->  | U26: =iSummary!AS19 ->  | V26: =iSummary!AT19 ->  | X26: =iSummary!BE19 -> 1 | Y26: =IF(X26=0,0,IF(AC26<=uxb_works!$B$121,2,IF(AC26<=uxb_works!$B$120,3,4))) -> 3 | AA26: =iSummary!BF19 -> =10 | AB26: =iSummary!BG19 -> Uzbekistan: Syr | AC26: =iSummary!BH19 -> 65.3 | AD26: =iSummary!BK19 -> = | AE26: =iSummary!BL19 ->  | AF26: =iSummary!BM19 -> 0 | AG26: =iSummary!BN19 -> 1 | AI26: =iSummary!BY19 -> 1 | AJ26: =IF(AI26=0,0,IF(AN26<=uxb_works!$B$121,2,IF(AN26<=uxb_works!$B$120,3,4))) -> 3 | AL26: =iSummary!BZ19 -> =10 | AM26: =iSummary!CA19 -> Serbia | AN26: =iSummary!CB19 -> 54.2 | AO26: =iSummary!CE19 -> = | AP26: =iSummary!CF19 ->  | AQ26: =iSummary!CG19 -> 0 | AR26: =iSummary!CH19 -> 1 | AT26: =iSummary!CS19 -> 1 | AU26: =IF(AT26=0,0,IF(AY26<=uxb_works!$B$121,2,IF(AY26<=uxb_works!$B$120,3,4))) -> 3 | AW26: =iSummary!CT19 -> 12 | AX26: =iSummary!CU19 -> Vietnam | AY26: =iSummary!CV19 -> 47.3 | AZ26: =iSummary!CY19 -> = | BA26: =iSummary!CZ19 ->  | BB26: =iSummary!DA19 -> 0 | BC26: =iSummary!DB19 -> 1 | BE26: =iSummary!DM19 -> 1 | BF26: =IF(BE26=0,0,IF(BJ26<=uxb_works!$B$121,2,IF(BJ26<=uxb_works!$B$120,3,4))) -> 3 | BH26: =iSummary!DN19 -> =11 | BI26: =iSummary!DO19 -> Kazakhstan | BJ26: =iSummary!DP19 -> 61 | BK26: =iSummary!DS19 -> = | BL26: =iSummary!DT19 ->  | BM26: =iSummary!DU19 -> 0 | BN26: =iSummary!DV19 -> 1 | BP26: =iSummary!#REF! ->  | BQ26: =iSummary!#REF! ->  | BR26: =iSummary!#REF! ->  | BS26: =iSummary!#REF! -> 
B27: =iSummary!Q20 -> 1 | C27: =IF(B27=0,0,IF(G27<=uxb_works!$B$121,2,IF(G27<=uxb_works!$B$120,3,4))) -> 3 | E27: =iSummary!R20 -> 13 | F27: =iSummary!S20 -> Laos | G27: =IF(ISNUMBER(iSummary!T20),ROUND(iSummary!T20,1),"") -> 55 | H27: =iSummary!W20 -> 55 | I27: =iSummary!X20 -> p | J27: =IF(iSummary!Y20=0,"",iSummary!Y20) ->  | K27: =iSummary!Z20 -> 1 | M27: =iSummary!AK20 -> 1 | N27: =IF(M27=0,0,IF(R27<=uxb_works!$B$121,2,IF(R27<=uxb_works!$B$120,3,4))) -> 3 | P27: =iSummary!AL20 -> =12 | Q27: =iSummary!AM20 -> Uzbekistan: Amu | R27: =iSummary!AN20 -> 53.3 | S27: =iSummary!AQ20 -> = | T27: =iSummary!AR20 ->  | U27: =iSummary!AS20 -> 0 | V27: =iSummary!AT20 -> 1 | X27: =iSummary!BE20 -> 1 | Y27: =IF(X27=0,0,IF(AC27<=uxb_works!$B$121,2,IF(AC27<=uxb_works!$B$120,3,4))) -> 3 | AA27: =iSummary!BF20 -> 13 | AB27: =iSummary!BG20 -> Vietnam | AC27: =iSummary!BH20 -> 63.9 | AD27: =iSummary!BK20 -> = | AE27: =iSummary!BL20 ->  | AF27: =iSummary!BM20 -> 0 | AG27: =iSummary!BN20 -> 1 | AI27: =iSummary!BY20 -> 1 | AJ27: =IF(AI27=0,0,IF(AN27<=uxb_works!$B$121,2,IF(AN27<=uxb_works!$B$120,3,4))) -> 3 | AL27: =iSummary!BZ20 -> =13 | AM27: =iSummary!CA20 -> Bosnia and herzegovina | AN27: =iSummary!CB20 -> 50 | AO27: =iSummary!CE20 -> = | AP27: =iSummary!CF20 ->  | AQ27: =iSummary!CG20 -> 0 | AR27: =iSummary!CH20 -> 1 | AT27: =iSummary!CS20 -> 1 | AU27: =IF(AT27=0,0,IF(AY27<=uxb_works!$B$121,2,IF(AY27<=uxb_works!$B$120,3,4))) -> 3 | AW27: =iSummary!CT20 -> 13 | AX27: =iSummary!CU20 -> Cambodia | AY27: =iSummary!CV20 -> 46.1 | AZ27: =iSummary!CY20 -> = | BA27: =iSummary!CZ20 ->  | BB27: =iSummary!DA20 -> 0 | BC27: =iSummary!DB20 -> 1 | BE27: =iSummary!DM20 -> 1 | BF27: =IF(BE27=0,0,IF(BJ27<=uxb_works!$B$121,2,IF(BJ27<=uxb_works!$B$120,3,4))) -> 3 | BH27: =iSummary!DN20 -> 13 | BI27: =iSummary!DO20 -> Guinea | BJ27: =iSummary!DP20 -> 60.9 | BK27: =iSummary!DS20 -> = | BL27: =iSummary!DT20 ->  | BM27: =iSummary!DU20 -> 0 | BN27: =iSummary!DV20 -> 1 | BP27: =iSummary!#REF! ->  | BQ27: =iSummary!#REF! ->  | BR27: =iSummary!#REF! ->  | BS27: =iSummary!#REF! -> 
B28: =iSummary!Q21 -> 1 | C28: =IF(B28=0,0,IF(G28<=uxb_works!$B$121,2,IF(G28<=uxb_works!$B$120,3,4))) -> 3 | E28: =iSummary!R21 -> 14 | F28: =iSummary!S21 -> Bolivia | G28: =IF(ISNUMBER(iSummary!T21),ROUND(iSummary!T21,1),"") -> 54.9 | H28: =iSummary!W21 -> 54.9 | I28: =iSummary!X21 -> p | J28: =IF(iSummary!Y21=0,"",iSummary!Y21) ->  | K28: =iSummary!Z21 -> 1 | M28: =iSummary!AK21 -> 1 | N28: =IF(M28=0,0,IF(R28<=uxb_works!$B$121,2,IF(R28<=uxb_works!$B$120,3,4))) -> 3 | P28: =iSummary!AL21 -> =12 | Q28: =iSummary!AM21 -> Uzbekistan: Syr | R28: =iSummary!AN21 -> 53.3 | S28: =iSummary!AQ21 -> = | T28: =iSummary!AR21 ->  | U28: =iSummary!AS21 -> 0 | V28: =iSummary!AT21 -> 1 | X28: =iSummary!BE21 -> 1 | Y28: =IF(X28=0,0,IF(AC28<=uxb_works!$B$121,2,IF(AC28<=uxb_works!$B$120,3,4))) -> 3 | AA28: =iSummary!BF21 -> =14 | AB28: =iSummary!BG21 -> Bosnia and herzegovina | AC28: =iSummary!BH21 -> 61.1 | AD28: =iSummary!BK21 -> = | AE28: =iSummary!BL21 ->  | AF28: =iSummary!BM21 -> 0 | AG28: =iSummary!BN21 -> 1 | AI28: =iSummary!BY21 -> 1 | AJ28: =IF(AI28=0,0,IF(AN28<=uxb_works!$B$121,2,IF(AN28<=uxb_works!$B$120,3,4))) -> 3 | AL28: =iSummary!BZ21 -> =13 | AM28: =iSummary!CA21 -> China | AN28: =iSummary!CB21 -> 50 | AO28: =iSummary!CE21 -> = | AP28: =iSummary!CF21 ->  | AQ28: =iSummary!CG21 -> 0 | AR28: =iSummary!CH21 -> 1 | AT28: =iSummary!CS21 -> 1 | AU28: =IF(AT28=0,0,IF(AY28<=uxb_works!$B$121,2,IF(AY28<=uxb_works!$B$120,3,4))) -> 3 | AW28: =iSummary!CT21 -> 14 | AX28: =iSummary!CU21 -> Serbia | AY28: =iSummary!CV21 -> 46 | AZ28: =iSummary!CY21 -> = | BA28: =iSummary!CZ21 ->  | BB28: =iSummary!DA21 -> 0 | BC28: =iSummary!DB21 -> 1 | BE28: =iSummary!DM21 -> 1 | BF28: =IF(BE28=0,0,IF(BJ28<=uxb_works!$B$121,2,IF(BJ28<=uxb_works!$B$120,3,4))) -> 3 | BH28: =iSummary!DN21 -> 14 | BI28: =iSummary!DO21 -> Thailand | BJ28: =iSummary!DP21 -> 60.5 | BK28: =iSummary!DS21 -> = | BL28: =iSummary!DT21 ->  | BM28: =iSummary!DU21 -> 0 | BN28: =iSummary!DV21 -> 1 | BP28: =iSummary!#REF! ->  | BQ28: =iSummary!#REF! ->  | BR28: =iSummary!#REF! ->  | BS28: =iSummary!#REF! -> 
B29: =iSummary!Q22 -> 1 | C29: =IF(B29=0,0,IF(G29<=uxb_works!$B$121,2,IF(G29<=uxb_works!$B$120,3,4))) -> 3 | E29: =iSummary!R22 -> 15 | F29: =iSummary!S22 -> Kazakhstan | G29: =IF(ISNUMBER(iSummary!T22),ROUND(iSummary!T22,1),"") -> 53.2 | H29: =iSummary!W22 -> 53.2 | I29: =iSummary!X22 -> p | J29: =IF(iSummary!Y22=0,"",iSummary!Y22) ->  | K29: =iSummary!Z22 -> 1 | M29: =iSummary!AK22 -> 1 | N29: =IF(M29=0,0,IF(R29<=uxb_works!$B$121,2,IF(R29<=uxb_works!$B$120,3,4))) -> 3 | P29: =iSummary!AL22 -> =14 | Q29: =iSummary!AM22 -> Brazil | R29: =iSummary!AN22 -> 52.9 | S29: =iSummary!AQ22 -> = | T29: =iSummary!AR22 ->  | U29: =iSummary!AS22 -> 0 | V29: =iSummary!AT22 -> 1 | X29: =iSummary!BE22 -> 1 | Y29: =IF(X29=0,0,IF(AC29<=uxb_works!$B$121,2,IF(AC29<=uxb_works!$B$120,3,4))) -> 3 | AA29: =iSummary!BF22 -> =14 | AB29: =iSummary!BG22 -> Venezuela | AC29: =iSummary!BH22 -> 61.1 | AD29: =iSummary!BK22 -> = | AE29: =iSummary!BL22 ->  | AF29: =iSummary!BM22 -> 0 | AG29: =iSummary!BN22 -> 1 | AI29: =iSummary!BY22 -> 4 | AJ29: =IF(AI29=0,0,IF(AN29<=uxb_works!$B$121,2,IF(AN29<=uxb_works!$B$120,3,4))) -> 3 | AL29: =iSummary!BZ22 ->  | AM29: =iSummary!CA22 -> AVERAGE | AN29: =iSummary!CB22 -> 46.9 | AO29: =iSummary!CE22 ->  | AP29: =iSummary!CF22 ->  | AQ29: =iSummary!CG22 ->  | AR29: =iSummary!CH22 ->  | AT29: =iSummary!CS22 -> 1 | AU29: =IF(AT29=0,0,IF(AY29<=uxb_works!$B$121,2,IF(AY29<=uxb_works!$B$120,3,4))) -> 3 | AW29: =iSummary!CT22 -> 15 | AX29: =iSummary!CU22 -> Kazakhstan | AY29: =iSummary!CV22 -> 45.9 | AZ29: =iSummary!CY22 -> = | BA29: =iSummary!CZ22 ->  | BB29: =iSummary!DA22 -> 0 | BC29: =iSummary!DB22 -> 1 | BE29: =iSummary!DM22 -> 1 | BF29: =IF(BE29=0,0,IF(BJ29<=uxb_works!$B$121,2,IF(BJ29<=uxb_works!$B$120,3,4))) -> 3 | BH29: =iSummary!DN22 -> 15 | BI29: =iSummary!DO22 -> Bosnia and herzegovina | BJ29: =iSummary!DP22 -> 59.1 | BK29: =iSummary!DS22 -> = | BL29: =iSummary!DT22 ->  | BM29: =iSummary!DU22 -> 0 | BN29: =iSummary!DV22 -> 1 | BP29: =iSummary!#REF! ->  | BQ29: =iSummary!#REF! ->  | BR29: =iSummary!#REF! ->  | BS29: =iSummary!#REF! -> 
B30: =iSummary!Q23 -> 4 | C30: =IF(B30=0,0,IF(G30<=uxb_works!$B$121,2,IF(G30<=uxb_works!$B$120,3,4))) -> 3 | E30: =iSummary!R23 ->  | F30: =iSummary!S23 -> AVERAGE | G30: =IF(ISNUMBER(iSummary!T23),ROUND(iSummary!T23,1),"") -> 49.8 | H30: =iSummary!W23 ->  | I30: =iSummary!X23 ->  | J30: =IF(iSummary!Y23=0,"",iSummary!Y23) ->  | K30: =iSummary!Z23 ->  | M30: =iSummary!AK23 -> 1 | N30: =IF(M30=0,0,IF(R30<=uxb_works!$B$121,2,IF(R30<=uxb_works!$B$120,3,4))) -> 3 | P30: =iSummary!AL23 -> =14 | Q30: =iSummary!AM23 -> Colombia | R30: =iSummary!AN23 -> 52.9 | S30: =iSummary!AQ23 -> = | T30: =iSummary!AR23 ->  | U30: =iSummary!AS23 -> 0 | V30: =iSummary!AT23 -> 1 | X30: =iSummary!BE23 -> 1 | Y30: =IF(X30=0,0,IF(AC30<=uxb_works!$B$121,2,IF(AC30<=uxb_works!$B$120,3,4))) -> 3 | AA30: =iSummary!BF23 -> =16 | AB30: =iSummary!BG23 -> Bolivia | AC30: =iSummary!BH23 -> 59.7 | AD30: =iSummary!BK23 -> = | AE30: =iSummary!BL23 ->  | AF30: =iSummary!BM23 -> 0 | AG30: =iSummary!BN23 -> 1 | AI30: =iSummary!BY23 -> 1 | AJ30: =IF(AI30=0,0,IF(AN30<=uxb_works!$B$121,2,IF(AN30<=uxb_works!$B$120,3,4))) -> 3 | AL30: =iSummary!BZ23 -> =15 | AM30: =iSummary!CA23 -> Kyrgyzstan | AN30: =iSummary!CB23 -> 45.8 | AO30: =iSummary!CE23 -> = | AP30: =iSummary!CF23 ->  | AQ30: =iSummary!CG23 -> 0 | AR30: =iSummary!CH23 -> 1 | AT30: =iSummary!CS23 -> 1 | AU30: =IF(AT30=0,0,IF(AY30<=uxb_works!$B$121,2,IF(AY30<=uxb_works!$B$120,3,4))) -> 3 | AW30: =iSummary!CT23 -> 16 | AX30: =iSummary!CU23 -> Laos | AY30: =iSummary!CV23 -> 45.6 | AZ30: =iSummary!CY23 -> = | BA30: =iSummary!CZ23 ->  | BB30: =iSummary!DA23 -> 0 | BC30: =iSummary!DB23 -> 1 | BE30: =iSummary!DM23 -> 1 | BF30: =IF(BE30=0,0,IF(BJ30<=uxb_works!$B$121,2,IF(BJ30<=uxb_works!$B$120,3,4))) -> 3 | BH30: =iSummary!DN23 -> 16 | BI30: =iSummary!DO23 -> Kyrgyzstan | BJ30: =iSummary!DP23 -> 55 | BK30: =iSummary!DS23 -> = | BL30: =iSummary!DT23 ->  | BM30: =iSummary!DU23 -> 0 | BN30: =iSummary!DV23 -> 1 | BP30: =iSummary!#REF! ->  | BQ30: =iSummary!#REF! ->  | BR30: =iSummary!#REF! ->  | BS30: =iSummary!#REF! -> 
B31: =iSummary!Q24 -> 1 | C31: =IF(B31=0,0,IF(G31<=uxb_works!$B$121,2,IF(G31<=uxb_works!$B$120,3,4))) -> 3 | E31: =iSummary!R24 -> 16 | F31: =iSummary!S24 -> China | G31: =IF(ISNUMBER(iSummary!T24),ROUND(iSummary!T24,1),"") -> 49.4 | H31: =iSummary!W24 -> 49.4 | I31: =iSummary!X24 -> p | J31: =IF(iSummary!Y24=0,"",iSummary!Y24) ->  | K31: =iSummary!Z24 -> 1 | M31: =iSummary!AK24 -> 1 | N31: =IF(M31=0,0,IF(R31<=uxb_works!$B$121,2,IF(R31<=uxb_works!$B$120,3,4))) -> 3 | P31: =iSummary!AL24 -> 16 | Q31: =iSummary!AM24 -> Kyrgyzstan | R31: =iSummary!AN24 -> 52.7 | S31: =iSummary!AQ24 -> = | T31: =iSummary!AR24 ->  | U31: =iSummary!AS24 -> 0 | V31: =iSummary!AT24 -> 1 | X31: =iSummary!BE24 -> 1 | Y31: =IF(X31=0,0,IF(AC31<=uxb_works!$B$121,2,IF(AC31<=uxb_works!$B$120,3,4))) -> 3 | AA31: =iSummary!BF24 -> =16 | AB31: =iSummary!BG24 -> Kazakhstan | AC31: =iSummary!BH24 -> 59.7 | AD31: =iSummary!BK24 -> = | AE31: =iSummary!BL24 ->  | AF31: =iSummary!BM24 -> 0 | AG31: =iSummary!BN24 -> 1 | AI31: =iSummary!BY24 -> 1 | AJ31: =IF(AI31=0,0,IF(AN31<=uxb_works!$B$121,2,IF(AN31<=uxb_works!$B$120,3,4))) -> 3 | AL31: =iSummary!BZ24 -> =15 | AM31: =iSummary!CA24 -> Senegal | AN31: =iSummary!CB24 -> 45.8 | AO31: =iSummary!CE24 -> = | AP31: =iSummary!CF24 ->  | AQ31: =iSummary!CG24 -> 0 | AR31: =iSummary!CH24 -> 1 | AT31: =iSummary!CS24 -> 1 | AU31: =IF(AT31=0,0,IF(AY31<=uxb_works!$B$121,2,IF(AY31<=uxb_works!$B$120,3,4))) -> 3 | AW31: =iSummary!CT24 -> =17 | AX31: =iSummary!CU24 -> Uzbekistan: Amu | AY31: =iSummary!CV24 -> 44.4 | AZ31: =iSummary!CY24 -> = | BA31: =iSummary!CZ24 ->  | BB31: =iSummary!DA24 -> 0 | BC31: =iSummary!DB24 -> 1 | BE31: =iSummary!DM24 -> 1 | BF31: =IF(BE31=0,0,IF(BJ31<=uxb_works!$B$121,2,IF(BJ31<=uxb_works!$B$120,3,4))) -> 3 | BH31: =iSummary!DN24 -> 17 | BI31: =iSummary!DO24 -> Venezuela | BJ31: =iSummary!DP24 -> 54.9 | BK31: =iSummary!DS24 -> = | BL31: =iSummary!DT24 ->  | BM31: =iSummary!DU24 -> 0 | BN31: =iSummary!DV24 -> 1 | BP31: =iSummary!#REF! ->  | BQ31: =iSummary!#REF! ->  | BR31: =iSummary!#REF! ->  | BS31: =iSummary!#REF! -> 
B32: =iSummary!Q25 -> 1 | C32: =IF(B32=0,0,IF(G32<=uxb_works!$B$121,2,IF(G32<=uxb_works!$B$120,3,4))) -> 3 | E32: =iSummary!R25 -> 17 | F32: =iSummary!S25 -> Ecuador | G32: =IF(ISNUMBER(iSummary!T25),ROUND(iSummary!T25,1),"") -> 49.1 | H32: =iSummary!W25 -> 49.1 | I32: =iSummary!X25 -> p | J32: =IF(iSummary!Y25=0,"",iSummary!Y25) ->  | K32: =iSummary!Z25 -> 1 | M32: =iSummary!AK25 -> 1 | N32: =IF(M32=0,0,IF(R32<=uxb_works!$B$121,2,IF(R32<=uxb_works!$B$120,3,4))) -> 3 | P32: =iSummary!AL25 -> 17 | Q32: =iSummary!AM25 -> Peru | R32: =iSummary!AN25 -> 51.9 | S32: =iSummary!AQ25 -> = | T32: =iSummary!AR25 ->  | U32: =iSummary!AS25 -> 0 | V32: =iSummary!AT25 -> 1 | X32: =iSummary!BE25 -> 1 | Y32: =IF(X32=0,0,IF(AC32<=uxb_works!$B$121,2,IF(AC32<=uxb_works!$B$120,3,4))) -> 3 | AA32: =iSummary!BF25 -> 18 | AB32: =iSummary!BG25 -> China | AC32: =iSummary!BH25 -> 56.9 | AD32: =iSummary!BK25 -> = | AE32: =iSummary!BL25 ->  | AF32: =iSummary!BM25 -> 0 | AG32: =iSummary!BN25 -> 1 | AI32: =iSummary!BY25 -> 1 | AJ32: =IF(AI32=0,0,IF(AN32<=uxb_works!$B$121,2,IF(AN32<=uxb_works!$B$120,3,4))) -> 3 | AL32: =iSummary!BZ25 -> =17 | AM32: =iSummary!CA25 -> Guinea | AN32: =iSummary!CB25 -> 41.7 | AO32: =iSummary!CE25 -> = | AP32: =iSummary!CF25 ->  | AQ32: =iSummary!CG25 -> 0 | AR32: =iSummary!CH25 -> 1 | AT32: =iSummary!CS25 -> 1 | AU32: =IF(AT32=0,0,IF(AY32<=uxb_works!$B$121,2,IF(AY32<=uxb_works!$B$120,3,4))) -> 3 | AW32: =iSummary!CT25 -> =17 | AX32: =iSummary!CU25 -> Uzbekistan: Syr | AY32: =iSummary!CV25 -> 44.4 | AZ32: =iSummary!CY25 -> = | BA32: =iSummary!CZ25 ->  | BB32: =iSummary!DA25 -> 0 | BC32: =iSummary!DB25 -> 1 | BE32: =iSummary!DM25 -> 1 | BF32: =IF(BE32=0,0,IF(BJ32<=uxb_works!$B$121,2,IF(BJ32<=uxb_works!$B$120,3,4))) -> 3 | BH32: =iSummary!DN25 -> 18 | BI32: =iSummary!DO25 -> Mali | BJ32: =iSummary!DP25 -> 52.3 | BK32: =iSummary!DS25 -> = | BL32: =iSummary!DT25 ->  | BM32: =iSummary!DU25 -> 0 | BN32: =iSummary!DV25 -> 1 | BP32: =iSummary!#REF! ->  | BQ32: =iSummary!#REF! ->  | BR32: =iSummary!#REF! ->  | BS32: =iSummary!#REF! -> 
B33: =iSummary!Q26 -> 1 | C33: =IF(B33=0,0,IF(G33<=uxb_works!$B$121,2,IF(G33<=uxb_works!$B$120,3,4))) -> 3 | E33: =iSummary!R26 -> 18 | F33: =iSummary!S26 -> Uzbekistan: Syr | G33: =IF(ISNUMBER(iSummary!T26),ROUND(iSummary!T26,1),"") -> 48.9 | H33: =iSummary!W26 -> 48.9 | I33: =iSummary!X26 -> p | J33: =IF(iSummary!Y26=0,"",iSummary!Y26) ->  | K33: =iSummary!Z26 -> 1 | M33: =iSummary!AK26 -> 1 | N33: =IF(M33=0,0,IF(R33<=uxb_works!$B$121,2,IF(R33<=uxb_works!$B$120,3,4))) -> 3 | P33: =iSummary!AL26 -> =18 | Q33: =iSummary!AM26 -> Laos | R33: =iSummary!AN26 -> 51.3 | S33: =iSummary!AQ26 -> = | T33: =iSummary!AR26 ->  | U33: =iSummary!AS26 -> 0 | V33: =iSummary!AT26 -> 1 | X33: =iSummary!BE26 -> 4 | Y33: =IF(X33=0,0,IF(AC33<=uxb_works!$B$121,2,IF(AC33<=uxb_works!$B$120,3,4))) -> 3 | AA33: =iSummary!BF26 ->  | AB33: =iSummary!BG26 -> AVERAGE | AC33: =iSummary!BH26 -> 56.7 | AD33: =iSummary!BK26 ->  | AE33: =iSummary!BL26 ->  | AF33: =iSummary!BM26 ->  | AG33: =iSummary!BN26 ->  | AI33: =iSummary!BY26 -> 1 | AJ33: =IF(AI33=0,0,IF(AN33<=uxb_works!$B$121,2,IF(AN33<=uxb_works!$B$120,3,4))) -> 3 | AL33: =iSummary!BZ26 -> =17 | AM33: =iSummary!CA26 -> Kazakhstan | AN33: =iSummary!CB26 -> 41.7 | AO33: =iSummary!CE26 -> = | AP33: =iSummary!CF26 ->  | AQ33: =iSummary!CG26 -> 0 | AR33: =iSummary!CH26 -> 1 | AT33: =iSummary!CS26 -> 1 | AU33: =IF(AT33=0,0,IF(AY33<=uxb_works!$B$121,2,IF(AY33<=uxb_works!$B$120,3,4))) -> 3 | AW33: =iSummary!CT26 -> 19 | AX33: =iSummary!CU26 -> Bosnia and herzegovina | AY33: =iSummary!CV26 -> 41.1 | AZ33: =iSummary!CY26 -> = | BA33: =iSummary!CZ26 ->  | BB33: =iSummary!DA26 -> 0 | BC33: =iSummary!DB26 -> 1 | BE33: =iSummary!DM26 -> 4 | BF33: =IF(BE33=0,0,IF(BJ33<=uxb_works!$B$121,2,IF(BJ33<=uxb_works!$B$120,3,4))) -> 3 | BH33: =iSummary!DN26 ->  | BI33: =iSummary!DO26 -> AVERAGE | BJ33: =iSummary!DP26 -> 52 | BK33: =iSummary!DS26 ->  | BL33: =iSummary!DT26 ->  | BM33: =iSummary!DU26 ->  | BN33: =iSummary!DV26 ->  | BP33: =iSummary!#REF! ->  | BQ33: =iSummary!#REF! ->  | BR33: =iSummary!#REF! ->  | BS33: =iSummary!#REF! -> 
B34: =iSummary!Q27 -> 1 | C34: =IF(B34=0,0,IF(G34<=uxb_works!$B$121,2,IF(G34<=uxb_works!$B$120,3,4))) -> 3 | E34: =iSummary!R27 -> 19 | F34: =iSummary!S27 -> Uzbekistan: Amu | G34: =IF(ISNUMBER(iSummary!T27),ROUND(iSummary!T27,1),"") -> 48.3 | H34: =iSummary!W27 -> 48.3 | I34: =iSummary!X27 -> p | J34: =IF(iSummary!Y27=0,"",iSummary!Y27) ->  | K34: =iSummary!Z27 -> 1 | M34: =iSummary!AK27 -> 1 | N34: =IF(M34=0,0,IF(R34<=uxb_works!$B$121,2,IF(R34<=uxb_works!$B$120,3,4))) -> 3 | P34: =iSummary!AL27 -> =18 | Q34: =iSummary!AM27 -> Thailand | R34: =iSummary!AN27 -> 51.3 | S34: =iSummary!AQ27 -> = | T34: =iSummary!AR27 ->  | U34: =iSummary!AS27 -> 0 | V34: =iSummary!AT27 -> 1 | X34: =iSummary!BE27 -> 1 | Y34: =IF(X34=0,0,IF(AC34<=uxb_works!$B$121,2,IF(AC34<=uxb_works!$B$120,3,4))) -> 3 | AA34: =iSummary!BF27 -> =19 | AB34: =iSummary!BG27 -> Laos | AC34: =iSummary!BH27 -> 54.2 | AD34: =iSummary!BK27 -> = | AE34: =iSummary!BL27 ->  | AF34: =iSummary!BM27 -> 0 | AG34: =iSummary!BN27 -> 1 | AI34: =iSummary!BY27 -> 1 | AJ34: =IF(AI34=0,0,IF(AN34<=uxb_works!$B$121,2,IF(AN34<=uxb_works!$B$120,3,4))) -> 3 | AL34: =iSummary!BZ27 -> =17 | AM34: =iSummary!CA27 -> Mauritania | AN34: =iSummary!CB27 -> 41.7 | AO34: =iSummary!CE27 -> = | AP34: =iSummary!CF27 ->  | AQ34: =iSummary!CG27 -> 0 | AR34: =iSummary!CH27 -> 1 | AT34: =iSummary!CS27 -> 4 | AU34: =IF(AT34=0,0,IF(AY34<=uxb_works!$B$121,2,IF(AY34<=uxb_works!$B$120,3,4))) -> 2 | AW34: =iSummary!CT27 ->  | AX34: =iSummary!CU27 -> AVERAGE | AY34: =iSummary!CV27 -> 39.7 | AZ34: =iSummary!CY27 ->  | BA34: =iSummary!CZ27 ->  | BB34: =iSummary!DA27 ->  | BC34: =iSummary!DB27 ->  | BE34: =iSummary!DM27 -> 1 | BF34: =IF(BE34=0,0,IF(BJ34<=uxb_works!$B$121,2,IF(BJ34<=uxb_works!$B$120,3,4))) -> 3 | BH34: =iSummary!DN27 -> 19 | BI34: =iSummary!DO27 -> China | BJ34: =iSummary!DP27 -> 51.5 | BK34: =iSummary!DS27 -> = | BL34: =iSummary!DT27 ->  | BM34: =iSummary!DU27 -> 0 | BN34: =iSummary!DV27 -> 1 | BP34: =iSummary!#REF! ->  | BQ34: =iSummary!#REF! ->  | BR34: =iSummary!#REF! ->  | BS34: =iSummary!#REF! -> 
B35: =iSummary!Q28 -> 1 | C35: =IF(B35=0,0,IF(G35<=uxb_works!$B$121,2,IF(G35<=uxb_works!$B$120,3,4))) -> 3 | E35: =iSummary!R28 -> 20 | F35: =iSummary!S28 -> Mauritania | G35: =IF(ISNUMBER(iSummary!T28),ROUND(iSummary!T28,1),"") -> 48.2 | H35: =iSummary!W28 -> 48.2 | I35: =iSummary!X28 -> p | J35: =IF(iSummary!Y28=0,"",iSummary!Y28) ->  | K35: =iSummary!Z28 -> 1 | M35: =iSummary!AK28 -> 1 | N35: =IF(M35=0,0,IF(R35<=uxb_works!$B$121,2,IF(R35<=uxb_works!$B$120,3,4))) -> 3 | P35: =iSummary!AL28 -> =18 | Q35: =iSummary!AM28 -> Turkmenistan | R35: =iSummary!AN28 -> 51.3 | S35: =iSummary!AQ28 -> = | T35: =iSummary!AR28 ->  | U35: =iSummary!AS28 -> 0 | V35: =iSummary!AT28 -> 1 | X35: =iSummary!BE28 -> 1 | Y35: =IF(X35=0,0,IF(AC35<=uxb_works!$B$121,2,IF(AC35<=uxb_works!$B$120,3,4))) -> 3 | AA35: =iSummary!BF28 -> =19 | AB35: =iSummary!BG28 -> Tajikistan: Amu | AC35: =iSummary!BH28 -> 54.2 | AD35: =iSummary!BK28 -> = | AE35: =iSummary!BL28 ->  | AF35: =iSummary!BM28 -> 0 | AG35: =iSummary!BN28 -> 1 | AI35: =iSummary!BY28 -> 1 | AJ35: =IF(AI35=0,0,IF(AN35<=uxb_works!$B$121,2,IF(AN35<=uxb_works!$B$120,3,4))) -> 3 | AL35: =iSummary!BZ28 -> =17 | AM35: =iSummary!CA28 -> Uzbekistan: Amu | AN35: =iSummary!CB28 -> 41.7 | AO35: =iSummary!CE28 -> = | AP35: =iSummary!CF28 ->  | AQ35: =iSummary!CG28 -> 0 | AR35: =iSummary!CH28 -> 1 | AT35: =iSummary!CS28 -> 1 | AU35: =IF(AT35=0,0,IF(AY35<=uxb_works!$B$121,2,IF(AY35<=uxb_works!$B$120,3,4))) -> 2 | AW35: =iSummary!CT28 -> 20 | AX35: =iSummary!CU28 -> Ecuador | AY35: =iSummary!CV28 -> 38.1 | AZ35: =iSummary!CY28 -> = | BA35: =iSummary!CZ28 ->  | BB35: =iSummary!DA28 -> 0 | BC35: =iSummary!DB28 -> 1 | BE35: =iSummary!DM28 -> 1 | BF35: =IF(BE35=0,0,IF(BJ35<=uxb_works!$B$121,2,IF(BJ35<=uxb_works!$B$120,3,4))) -> 3 | BH35: =iSummary!DN28 -> 20 | BI35: =iSummary!DO28 -> Myanmar | BJ35: =iSummary!DP28 -> 49.5 | BK35: =iSummary!DS28 -> = | BL35: =iSummary!DT28 ->  | BM35: =iSummary!DU28 -> 0 | BN35: =iSummary!DV28 -> 1 | BP35: =iSummary!#REF! ->  | BQ35: =iSummary!#REF! ->  | BR35: =iSummary!#REF! ->  | BS35: =iSummary!#REF! -> 
B36: =iSummary!Q29 -> 1 | C36: =IF(B36=0,0,IF(G36<=uxb_works!$B$121,2,IF(G36<=uxb_works!$B$120,3,4))) -> 3 | E36: =iSummary!R29 -> 21 | F36: =iSummary!S29 -> Guinea | G36: =IF(ISNUMBER(iSummary!T29),ROUND(iSummary!T29,1),"") -> 48 | H36: =iSummary!W29 -> 48 | I36: =iSummary!X29 -> p | J36: =IF(iSummary!Y29=0,"",iSummary!Y29) ->  | K36: =iSummary!Z29 -> 1 | M36: =iSummary!AK29 -> 1 | N36: =IF(M36=0,0,IF(R36<=uxb_works!$B$121,2,IF(R36<=uxb_works!$B$120,3,4))) -> 3 | P36: =iSummary!AL29 -> =21 | Q36: =iSummary!AM29 -> Tajikistan: Amu | R36: =iSummary!AN29 -> 47.1 | S36: =iSummary!AQ29 -> = | T36: =iSummary!AR29 ->  | U36: =iSummary!AS29 -> 0 | V36: =iSummary!AT29 -> 1 | X36: =iSummary!BE29 -> 1 | Y36: =IF(X36=0,0,IF(AC36<=uxb_works!$B$121,2,IF(AC36<=uxb_works!$B$120,3,4))) -> 3 | AA36: =iSummary!BF29 -> =19 | AB36: =iSummary!BG29 -> Tajikistan: Syr | AC36: =iSummary!BH29 -> 54.2 | AD36: =iSummary!BK29 -> = | AE36: =iSummary!BL29 ->  | AF36: =iSummary!BM29 -> 0 | AG36: =iSummary!BN29 -> 1 | AI36: =iSummary!BY29 -> 1 | AJ36: =IF(AI36=0,0,IF(AN36<=uxb_works!$B$121,2,IF(AN36<=uxb_works!$B$120,3,4))) -> 3 | AL36: =iSummary!BZ29 -> =17 | AM36: =iSummary!CA29 -> Uzbekistan: Syr | AN36: =iSummary!CB29 -> 41.7 | AO36: =iSummary!CE29 -> = | AP36: =iSummary!CF29 ->  | AQ36: =iSummary!CG29 -> 0 | AR36: =iSummary!CH29 -> 1 | AT36: =iSummary!CS29 -> 1 | AU36: =IF(AT36=0,0,IF(AY36<=uxb_works!$B$121,2,IF(AY36<=uxb_works!$B$120,3,4))) -> 2 | AW36: =iSummary!CT29 -> =21 | AX36: =iSummary!CU29 -> Tajikistan: Amu | AY36: =iSummary!CV29 -> 37.1 | AZ36: =iSummary!CY29 -> = | BA36: =iSummary!CZ29 ->  | BB36: =iSummary!DA29 -> 0 | BC36: =iSummary!DB29 -> 1 | BE36: =iSummary!DM29 -> 1 | BF36: =IF(BE36=0,0,IF(BJ36<=uxb_works!$B$121,2,IF(BJ36<=uxb_works!$B$120,3,4))) -> 3 | BH36: =iSummary!DN29 -> 21 | BI36: =iSummary!DO29 -> Turkey | BJ36: =iSummary!DP29 -> 49.2 | BK36: =iSummary!DS29 -> = | BL36: =iSummary!DT29 ->  | BM36: =iSummary!DU29 -> 0 | BN36: =iSummary!DV29 -> 1 | BP36: =iSummary!#REF! ->  | BQ36: =iSummary!#REF! ->  | BR36: =iSummary!#REF! ->  | BS36: =iSummary!#REF! -> 
B37: =iSummary!Q30 -> 1 | C37: =IF(B37=0,0,IF(G37<=uxb_works!$B$121,2,IF(G37<=uxb_works!$B$120,3,4))) -> 3 | E37: =iSummary!R30 -> 22 | F37: =iSummary!S30 -> Kyrgyzstan | G37: =IF(ISNUMBER(iSummary!T30),ROUND(iSummary!T30,1),"") -> 46.5 | H37: =iSummary!W30 -> 46.5 | I37: =iSummary!X30 -> p | J37: =IF(iSummary!Y30=0,"",iSummary!Y30) ->  | K37: =iSummary!Z30 -> 1 | M37: =iSummary!AK30 -> 1 | N37: =IF(M37=0,0,IF(R37<=uxb_works!$B$121,2,IF(R37<=uxb_works!$B$120,3,4))) -> 3 | P37: =iSummary!AL30 -> =21 | Q37: =iSummary!AM30 -> Tajikistan: Syr | R37: =iSummary!AN30 -> 47.1 | S37: =iSummary!AQ30 -> = | T37: =iSummary!AR30 ->  | U37: =iSummary!AS30 -> 0 | V37: =iSummary!AT30 -> 1 | X37: =iSummary!BE30 -> 1 | Y37: =IF(X37=0,0,IF(AC37<=uxb_works!$B$121,2,IF(AC37<=uxb_works!$B$120,3,4))) -> 3 | AA37: =iSummary!BF30 -> =22 | AB37: =iSummary!BG30 -> Ecuador | AC37: =iSummary!BH30 -> 52.8 | AD37: =iSummary!BK30 -> = | AE37: =iSummary!BL30 ->  | AF37: =iSummary!BM30 -> 0 | AG37: =iSummary!BN30 -> 1 | AI37: =iSummary!BY30 -> 1 | AJ37: =IF(AI37=0,0,IF(AN37<=uxb_works!$B$121,2,IF(AN37<=uxb_works!$B$120,3,4))) -> 2 | AL37: =iSummary!BZ30 -> =22 | AM37: =iSummary!CA30 -> Ecuador | AN37: =iSummary!CB30 -> 37.5 | AO37: =iSummary!CE30 -> = | AP37: =iSummary!CF30 ->  | AQ37: =iSummary!CG30 -> 0 | AR37: =iSummary!CH30 -> 1 | AT37: =iSummary!CS30 -> 1 | AU37: =IF(AT37=0,0,IF(AY37<=uxb_works!$B$121,2,IF(AY37<=uxb_works!$B$120,3,4))) -> 2 | AW37: =iSummary!CT30 -> =21 | AX37: =iSummary!CU30 -> Tajikistan: Syr | AY37: =iSummary!CV30 -> 37.1 | AZ37: =iSummary!CY30 -> = | BA37: =iSummary!CZ30 ->  | BB37: =iSummary!DA30 -> 0 | BC37: =iSummary!DB30 -> 1 | BE37: =iSummary!DM30 -> 1 | BF37: =IF(BE37=0,0,IF(BJ37<=uxb_works!$B$121,2,IF(BJ37<=uxb_works!$B$120,3,4))) -> 3 | BH37: =iSummary!DN30 -> 22 | BI37: =iSummary!DO30 -> Cambodia | BJ37: =iSummary!DP30 -> 46.6 | BK37: =iSummary!DS30 -> = | BL37: =iSummary!DT30 ->  | BM37: =iSummary!DU30 -> 0 | BN37: =iSummary!DV30 -> 1 | BP37: =iSummary!#REF! ->  | BQ37: =iSummary!#REF! ->  | BR37: =iSummary!#REF! ->  | BS37: =iSummary!#REF! -> 
B38: =iSummary!Q31 -> 1 | C38: =IF(B38=0,0,IF(G38<=uxb_works!$B$121,2,IF(G38<=uxb_works!$B$120,3,4))) -> 3 | E38: =iSummary!R31 -> 23 | F38: =iSummary!S31 -> Tajikistan: Syr | G38: =IF(ISNUMBER(iSummary!T31),ROUND(iSummary!T31,1),"") -> 43.9 | H38: =iSummary!W31 -> 43.9 | I38: =iSummary!X31 -> p | J38: =IF(iSummary!Y31=0,"",iSummary!Y31) ->  | K38: =iSummary!Z31 -> 1 | M38: =iSummary!AK31 -> 1 | N38: =IF(M38=0,0,IF(R38<=uxb_works!$B$121,2,IF(R38<=uxb_works!$B$120,3,4))) -> 3 | P38: =iSummary!AL31 -> 23 | Q38: =iSummary!AM31 -> Mauritania | R38: =iSummary!AN31 -> 43.8 | S38: =iSummary!AQ31 -> = | T38: =iSummary!AR31 ->  | U38: =iSummary!AS31 -> 0 | V38: =iSummary!AT31 -> 1 | X38: =iSummary!BE31 -> 1 | Y38: =IF(X38=0,0,IF(AC38<=uxb_works!$B$121,2,IF(AC38<=uxb_works!$B$120,3,4))) -> 3 | AA38: =iSummary!BF31 -> =22 | AB38: =iSummary!BG31 -> Kyrgyzstan | AC38: =iSummary!BH31 -> 52.8 | AD38: =iSummary!BK31 -> = | AE38: =iSummary!BL31 ->  | AF38: =iSummary!BM31 -> 0 | AG38: =iSummary!BN31 -> 1 | AI38: =iSummary!BY31 -> 1 | AJ38: =IF(AI38=0,0,IF(AN38<=uxb_works!$B$121,2,IF(AN38<=uxb_works!$B$120,3,4))) -> 2 | AL38: =iSummary!BZ31 -> =22 | AM38: =iSummary!CA31 -> Tajikistan: Amu | AN38: =iSummary!CB31 -> 37.5 | AO38: =iSummary!CE31 -> = | AP38: =iSummary!CF31 ->  | AQ38: =iSummary!CG31 -> 0 | AR38: =iSummary!CH31 -> 1 | AT38: =iSummary!CS31 -> 1 | AU38: =IF(AT38=0,0,IF(AY38<=uxb_works!$B$121,2,IF(AY38<=uxb_works!$B$120,3,4))) -> 2 | AW38: =iSummary!CT31 -> 23 | AX38: =iSummary!CU31 -> Turkey | AY38: =iSummary!CV31 -> 35 | AZ38: =iSummary!CY31 -> = | BA38: =iSummary!CZ31 ->  | BB38: =iSummary!DA31 -> 0 | BC38: =iSummary!DB31 -> 1 | BE38: =iSummary!DM31 -> 1 | BF38: =IF(BE38=0,0,IF(BJ38<=uxb_works!$B$121,2,IF(BJ38<=uxb_works!$B$120,3,4))) -> 3 | BH38: =iSummary!DN31 -> 23 | BI38: =iSummary!DO31 -> Tajikistan: Syr | BJ38: =iSummary!DP31 -> 43.7 | BK38: =iSummary!DS31 -> = | BL38: =iSummary!DT31 ->  | BM38: =iSummary!DU31 -> 0 | BN38: =iSummary!DV31 -> 1 | BP38: =iSummary!#REF! ->  | BQ38: =iSummary!#REF! ->  | BR38: =iSummary!#REF! ->  | BS38: =iSummary!#REF! -> 
B39: =iSummary!Q32 -> 1 | C39: =IF(B39=0,0,IF(G39<=uxb_works!$B$121,2,IF(G39<=uxb_works!$B$120,3,4))) -> 3 | E39: =iSummary!R32 -> 24 | F39: =iSummary!S32 -> Tajikistan: Amu | G39: =IF(ISNUMBER(iSummary!T32),ROUND(iSummary!T32,1),"") -> 42.7 | H39: =iSummary!W32 -> 42.7 | I39: =iSummary!X32 -> p | J39: =IF(iSummary!Y32=0,"",iSummary!Y32) ->  | K39: =iSummary!Z32 -> 1 | M39: =iSummary!AK32 -> 1 | N39: =IF(M39=0,0,IF(R39<=uxb_works!$B$121,2,IF(R39<=uxb_works!$B$120,3,4))) -> 3 | P39: =iSummary!AL32 -> 24 | Q39: =iSummary!AM32 -> Cambodia | R39: =iSummary!AN32 -> 41.9 | S39: =iSummary!AQ32 -> = | T39: =iSummary!AR32 ->  | U39: =iSummary!AS32 -> 0 | V39: =iSummary!AT32 -> 1 | X39: =iSummary!BE32 -> 1 | Y39: =IF(X39=0,0,IF(AC39<=uxb_works!$B$121,2,IF(AC39<=uxb_works!$B$120,3,4))) -> 3 | AA39: =iSummary!BF32 -> =22 | AB39: =iSummary!BG32 -> Turkmenistan | AC39: =iSummary!BH32 -> 52.8 | AD39: =iSummary!BK32 -> = | AE39: =iSummary!BL32 ->  | AF39: =iSummary!BM32 -> 0 | AG39: =iSummary!BN32 -> 1 | AI39: =iSummary!BY32 -> 1 | AJ39: =IF(AI39=0,0,IF(AN39<=uxb_works!$B$121,2,IF(AN39<=uxb_works!$B$120,3,4))) -> 2 | AL39: =iSummary!BZ32 -> =22 | AM39: =iSummary!CA32 -> Tajikistan: Syr | AN39: =iSummary!CB32 -> 37.5 | AO39: =iSummary!CE32 -> = | AP39: =iSummary!CF32 ->  | AQ39: =iSummary!CG32 -> 0 | AR39: =iSummary!CH32 -> 1 | AT39: =iSummary!CS32 -> 1 | AU39: =IF(AT39=0,0,IF(AY39<=uxb_works!$B$121,2,IF(AY39<=uxb_works!$B$120,3,4))) -> 2 | AW39: =iSummary!CT32 -> 24 | AX39: =iSummary!CU32 -> Bolivia | AY39: =iSummary!CV32 -> 34.5 | AZ39: =iSummary!CY32 -> = | BA39: =iSummary!CZ32 ->  | BB39: =iSummary!DA32 -> 0 | BC39: =iSummary!DB32 -> 1 | BE39: =iSummary!DM32 -> 1 | BF39: =IF(BE39=0,0,IF(BJ39<=uxb_works!$B$121,2,IF(BJ39<=uxb_works!$B$120,3,4))) -> 2 | BH39: =iSummary!DN32 -> 24 | BI39: =iSummary!DO32 -> Uzbekistan: Syr | BJ39: =iSummary!DP32 -> 39.6 | BK39: =iSummary!DS32 -> = | BL39: =iSummary!DT32 ->  | BM39: =iSummary!DU32 -> 0 | BN39: =iSummary!DV32 -> 1 | BP39: =iSummary!#REF! ->  | BQ39: =iSummary!#REF! ->  | BR39: =iSummary!#REF! ->  | BS39: =iSummary!#REF! -> 
B40: =iSummary!Q33 -> 1 | C40: =IF(B40=0,0,IF(G40<=uxb_works!$B$121,2,IF(G40<=uxb_works!$B$120,3,4))) -> 3 | E40: =iSummary!R33 -> 25 | F40: =iSummary!S33 -> Venezuela | G40: =IF(ISNUMBER(iSummary!T33),ROUND(iSummary!T33,1),"") -> 41.4 | H40: =iSummary!W33 -> 41.4 | I40: =iSummary!X33 -> p | J40: =IF(iSummary!Y33=0,"",iSummary!Y33) ->  | K40: =iSummary!Z33 -> 1 | M40: =iSummary!AK33 -> 1 | N40: =IF(M40=0,0,IF(R40<=uxb_works!$B$121,2,IF(R40<=uxb_works!$B$120,3,4))) -> 2 | P40: =iSummary!AL33 -> 25 | Q40: =iSummary!AM33 -> China | R40: =iSummary!AN33 -> 39.6 | S40: =iSummary!AQ33 -> = | T40: =iSummary!AR33 ->  | U40: =iSummary!AS33 -> 0 | V40: =iSummary!AT33 -> 1 | X40: =iSummary!BE33 -> 1 | Y40: =IF(X40=0,0,IF(AC40<=uxb_works!$B$121,2,IF(AC40<=uxb_works!$B$120,3,4))) -> 3 | AA40: =iSummary!BF33 -> 25 | AB40: =iSummary!BG33 -> Colombia | AC40: =iSummary!BH33 -> 51.4 | AD40: =iSummary!BK33 -> = | AE40: =iSummary!BL33 ->  | AF40: =iSummary!BM33 -> 0 | AG40: =iSummary!BN33 -> 1 | AI40: =iSummary!BY33 -> 1 | AJ40: =IF(AI40=0,0,IF(AN40<=uxb_works!$B$121,2,IF(AN40<=uxb_works!$B$120,3,4))) -> 2 | AL40: =iSummary!BZ33 -> =22 | AM40: =iSummary!CA33 -> Turkey | AN40: =iSummary!CB33 -> 37.5 | AO40: =iSummary!CE33 -> = | AP40: =iSummary!CF33 ->  | AQ40: =iSummary!CG33 -> 0 | AR40: =iSummary!CH33 -> 1 | AT40: =iSummary!CS33 -> 1 | AU40: =IF(AT40=0,0,IF(AY40<=uxb_works!$B$121,2,IF(AY40<=uxb_works!$B$120,3,4))) -> 2 | AW40: =iSummary!CT33 -> 25 | AX40: =iSummary!CU33 -> Venezuela | AY40: =iSummary!CV33 -> 27.8 | AZ40: =iSummary!CY33 -> = | BA40: =iSummary!CZ33 ->  | BB40: =iSummary!DA33 -> 0 | BC40: =iSummary!DB33 -> 1 | BE40: =iSummary!DM33 -> 1 | BF40: =IF(BE40=0,0,IF(BJ40<=uxb_works!$B$121,2,IF(BJ40<=uxb_works!$B$120,3,4))) -> 2 | BH40: =iSummary!DN33 -> 25 | BI40: =iSummary!DO33 -> Mauritania | BJ40: =iSummary!DP33 -> 38.7 | BK40: =iSummary!DS33 -> = | BL40: =iSummary!DT33 ->  | BM40: =iSummary!DU33 -> 0 | BN40: =iSummary!DV33 -> 1 | BP40: =iSummary!#REF! ->  | BQ40: =iSummary!#REF! ->  | BR40: =iSummary!#REF! ->  | BS40: =iSummary!#REF! -> 
B41: =iSummary!Q34 -> 1 | C41: =IF(B41=0,0,IF(G41<=uxb_works!$B$121,2,IF(G41<=uxb_works!$B$120,3,4))) -> 3 | E41: =iSummary!R34 -> 26 | F41: =iSummary!S34 -> Turkey | G41: =IF(ISNUMBER(iSummary!T34),ROUND(iSummary!T34,1),"") -> 40.7 | H41: =iSummary!W34 -> 40.7 | I41: =iSummary!X34 -> p | J41: =IF(iSummary!Y34=0,"",iSummary!Y34) ->  | K41: =iSummary!Z34 -> 1 | M41: =iSummary!AK34 -> 1 | N41: =IF(M41=0,0,IF(R41<=uxb_works!$B$121,2,IF(R41<=uxb_works!$B$120,3,4))) -> 2 | P41: =iSummary!AL34 -> 26 | Q41: =iSummary!AM34 -> Guinea | R41: =iSummary!AN34 -> 38.5 | S41: =iSummary!AQ34 -> = | T41: =iSummary!AR34 ->  | U41: =iSummary!AS34 -> 0 | V41: =iSummary!AT34 -> 1 | X41: =iSummary!BE34 -> 1 | Y41: =IF(X41=0,0,IF(AC41<=uxb_works!$B$121,2,IF(AC41<=uxb_works!$B$120,3,4))) -> 3 | AA41: =iSummary!BF34 -> =26 | AB41: =iSummary!BG34 -> Guinea | AC41: =iSummary!BH34 -> 50 | AD41: =iSummary!BK34 -> = | AE41: =iSummary!BL34 ->  | AF41: =iSummary!BM34 -> 0 | AG41: =iSummary!BN34 -> 1 | AI41: =iSummary!BY34 -> 1 | AJ41: =IF(AI41=0,0,IF(AN41<=uxb_works!$B$121,2,IF(AN41<=uxb_works!$B$120,3,4))) -> 2 | AL41: =iSummary!BZ34 -> 26 | AM41: =iSummary!CA34 -> Myanmar | AN41: =iSummary!CB34 -> 33.3 | AO41: =iSummary!CE34 -> = | AP41: =iSummary!CF34 ->  | AQ41: =iSummary!CG34 -> 0 | AR41: =iSummary!CH34 -> 1 | AT41: =iSummary!CS34 -> 1 | AU41: =IF(AT41=0,0,IF(AY41<=uxb_works!$B$121,2,IF(AY41<=uxb_works!$B$120,3,4))) -> 2 | AW41: =iSummary!CT34 -> 26 | AX41: =iSummary!CU34 -> Turkmenistan | AY41: =iSummary!CV34 -> 26.5 | AZ41: =iSummary!CY34 -> = | BA41: =iSummary!CZ34 ->  | BB41: =iSummary!DA34 -> 0 | BC41: =iSummary!DB34 -> 1 | BE41: =iSummary!DM34 -> 1 | BF41: =IF(BE41=0,0,IF(BJ41<=uxb_works!$B$121,2,IF(BJ41<=uxb_works!$B$120,3,4))) -> 2 | BH41: =iSummary!DN34 -> 26 | BI41: =iSummary!DO34 -> Iran | BJ41: =iSummary!DP34 -> 37.7 | BK41: =iSummary!DS34 -> = | BL41: =iSummary!DT34 ->  | BM41: =iSummary!DU34 -> 0 | BN41: =iSummary!DV34 -> 1 | BP41: =iSummary!#REF! ->  | BQ41: =iSummary!#REF! ->  | BR41: =iSummary!#REF! ->  | BS41: =iSummary!#REF! -> 
B42: =iSummary!Q35 -> 1 | C42: =IF(B42=0,0,IF(G42<=uxb_works!$B$121,2,IF(G42<=uxb_works!$B$120,3,4))) -> 2 | E42: =iSummary!R35 -> 27 | F42: =iSummary!S35 -> Turkmenistan | G42: =IF(ISNUMBER(iSummary!T35),ROUND(iSummary!T35,1),"") -> 39.2 | H42: =iSummary!W35 -> 39.2 | I42: =iSummary!X35 -> p | J42: =IF(iSummary!Y35=0,"",iSummary!Y35) ->  | K42: =iSummary!Z35 -> 1 | M42: =iSummary!AK35 -> 1 | N42: =IF(M42=0,0,IF(R42<=uxb_works!$B$121,2,IF(R42<=uxb_works!$B$120,3,4))) -> 2 | P42: =iSummary!AL35 -> 27 | Q42: =iSummary!AM35 -> Myanmar | R42: =iSummary!AN35 -> 36.5 | S42: =iSummary!AQ35 -> = | T42: =iSummary!AR35 ->  | U42: =iSummary!AS35 -> 0 | V42: =iSummary!AT35 -> 1 | X42: =iSummary!BE35 -> 1 | Y42: =IF(X42=0,0,IF(AC42<=uxb_works!$B$121,2,IF(AC42<=uxb_works!$B$120,3,4))) -> 3 | AA42: =iSummary!BF35 -> =26 | AB42: =iSummary!BG35 -> Myanmar | AC42: =iSummary!BH35 -> 50 | AD42: =iSummary!BK35 -> = | AE42: =iSummary!BL35 ->  | AF42: =iSummary!BM35 -> 0 | AG42: =iSummary!BN35 -> 1 | AI42: =iSummary!BY35 -> 1 | AJ42: =IF(AI42=0,0,IF(AN42<=uxb_works!$B$121,2,IF(AN42<=uxb_works!$B$120,3,4))) -> 2 | AL42: =iSummary!BZ35 -> =27 | AM42: =iSummary!CA35 -> Iran | AN42: =iSummary!CB35 -> 29.2 | AO42: =iSummary!CE35 -> = | AP42: =iSummary!CF35 ->  | AQ42: =iSummary!CG35 -> 0 | AR42: =iSummary!CH35 -> 1 | AT42: =iSummary!CS35 -> 1 | AU42: =IF(AT42=0,0,IF(AY42<=uxb_works!$B$121,2,IF(AY42<=uxb_works!$B$120,3,4))) -> 2 | AW42: =iSummary!CT35 -> 27 | AX42: =iSummary!CU35 -> Kyrgyzstan | AY42: =iSummary!CV35 -> 26.3 | AZ42: =iSummary!CY35 -> = | BA42: =iSummary!CZ35 ->  | BB42: =iSummary!DA35 -> 0 | BC42: =iSummary!DB35 -> 1 | BE42: =iSummary!DM35 -> 1 | BF42: =IF(BE42=0,0,IF(BJ42<=uxb_works!$B$121,2,IF(BJ42<=uxb_works!$B$120,3,4))) -> 2 | BH42: =iSummary!DN35 -> 27 | BI42: =iSummary!DO35 -> Tajikistan: Amu | BJ42: =iSummary!DP35 -> 37.6 | BK42: =iSummary!DS35 -> = | BL42: =iSummary!DT35 ->  | BM42: =iSummary!DU35 -> 0 | BN42: =iSummary!DV35 -> 1 | BP42: =iSummary!#REF! ->  | BQ42: =iSummary!#REF! ->  | BR42: =iSummary!#REF! ->  | BS42: =iSummary!#REF! -> 
B43: =iSummary!Q36 -> 1 | C43: =IF(B43=0,0,IF(G43<=uxb_works!$B$121,2,IF(G43<=uxb_works!$B$120,3,4))) -> 2 | E43: =iSummary!R36 -> 28 | F43: =iSummary!S36 -> Myanmar | G43: =IF(ISNUMBER(iSummary!T36),ROUND(iSummary!T36,1),"") -> 37.2 | H43: =iSummary!W36 -> 37.2 | I43: =iSummary!X36 -> p | J43: =IF(iSummary!Y36=0,"",iSummary!Y36) ->  | K43: =iSummary!Z36 -> 1 | M43: =iSummary!AK36 -> 1 | N43: =IF(M43=0,0,IF(R43<=uxb_works!$B$121,2,IF(R43<=uxb_works!$B$120,3,4))) -> 2 | P43: =iSummary!AL36 -> 28 | Q43: =iSummary!AM36 -> Turkey | R43: =iSummary!AN36 -> 36 | S43: =iSummary!AQ36 -> = | T43: =iSummary!AR36 ->  | U43: =iSummary!AS36 -> 0 | V43: =iSummary!AT36 -> 1 | X43: =iSummary!BE36 -> 1 | Y43: =IF(X43=0,0,IF(AC43<=uxb_works!$B$121,2,IF(AC43<=uxb_works!$B$120,3,4))) -> 3 | AA43: =iSummary!BF36 -> 28 | AB43: =iSummary!BG36 -> Turkey | AC43: =iSummary!BH36 -> 45.8 | AD43: =iSummary!BK36 -> = | AE43: =iSummary!BL36 ->  | AF43: =iSummary!BM36 -> 0 | AG43: =iSummary!BN36 -> 1 | AI43: =iSummary!BY36 -> 1 | AJ43: =IF(AI43=0,0,IF(AN43<=uxb_works!$B$121,2,IF(AN43<=uxb_works!$B$120,3,4))) -> 2 | AL43: =iSummary!BZ36 -> =27 | AM43: =iSummary!CA36 -> Turkmenistan | AN43: =iSummary!CB36 -> 29.2 | AO43: =iSummary!CE36 -> = | AP43: =iSummary!CF36 ->  | AQ43: =iSummary!CG36 -> 0 | AR43: =iSummary!CH36 -> 1 | AT43: =iSummary!CS36 -> 1 | AU43: =IF(AT43=0,0,IF(AY43<=uxb_works!$B$121,2,IF(AY43<=uxb_works!$B$120,3,4))) -> 2 | AW43: =iSummary!CT36 -> 28 | AX43: =iSummary!CU36 -> Iran | AY43: =iSummary!CV36 -> 18.8 | AZ43: =iSummary!CY36 -> = | BA43: =iSummary!CZ36 ->  | BB43: =iSummary!DA36 -> 0 | BC43: =iSummary!DB36 -> 1 | BE43: =iSummary!DM36 -> 1 | BF43: =IF(BE43=0,0,IF(BJ43<=uxb_works!$B$121,2,IF(BJ43<=uxb_works!$B$120,3,4))) -> 2 | BH43: =iSummary!DN36 -> 28 | BI43: =iSummary!DO36 -> Uzbekistan: Amu | BJ43: =iSummary!DP36 -> 36.7 | BK43: =iSummary!DS36 -> = | BL43: =iSummary!DT36 ->  | BM43: =iSummary!DU36 -> 0 | BN43: =iSummary!DV36 -> 1 | BP43: =iSummary!#REF! ->  | BQ43: =iSummary!#REF! ->  | BR43: =iSummary!#REF! ->  | BS43: =iSummary!#REF! -> 
B44: =iSummary!Q37 -> 1 | C44: =IF(B44=0,0,IF(G44<=uxb_works!$B$121,2,IF(G44<=uxb_works!$B$120,3,4))) -> 2 | E44: =iSummary!R37 -> 29 | F44: =iSummary!S37 -> Iran | G44: =IF(ISNUMBER(iSummary!T37),ROUND(iSummary!T37,1),"") -> 26.7 | H44: =iSummary!W37 -> 26.7 | I44: =iSummary!X37 -> p | J44: =IF(iSummary!Y37=0,"",iSummary!Y37) ->  | K44: =iSummary!Z37 -> 1 | M44: =iSummary!AK37 -> 1 | N44: =IF(M44=0,0,IF(R44<=uxb_works!$B$121,2,IF(R44<=uxb_works!$B$120,3,4))) -> 2 | P44: =iSummary!AL37 -> 29 | Q44: =iSummary!AM37 -> Iraq | R44: =iSummary!AN37 -> 35.6 | S44: =iSummary!AQ37 -> = | T44: =iSummary!AR37 ->  | U44: =iSummary!AS37 -> 0 | V44: =iSummary!AT37 -> 1 | X44: =iSummary!BE37 -> 1 | Y44: =IF(X44=0,0,IF(AC44<=uxb_works!$B$121,2,IF(AC44<=uxb_works!$B$120,3,4))) -> 2 | AA44: =iSummary!BF37 -> 29 | AB44: =iSummary!BG37 -> Iran | AC44: =iSummary!BH37 -> 22.2 | AD44: =iSummary!BK37 -> = | AE44: =iSummary!BL37 ->  | AF44: =iSummary!BM37 -> 0 | AG44: =iSummary!BN37 -> 1 | AI44: =iSummary!BY37 -> 1 | AJ44: =IF(AI44=0,0,IF(AN44<=uxb_works!$B$121,2,IF(AN44<=uxb_works!$B$120,3,4))) -> 2 | AL44: =iSummary!BZ37 -> 29 | AM44: =iSummary!CA37 -> Afghanistan | AN44: =iSummary!CB37 -> 20.8 | AO44: =iSummary!CE37 -> = | AP44: =iSummary!CF37 ->  | AQ44: =iSummary!CG37 -> 0 | AR44: =iSummary!CH37 -> 1 | AT44: =iSummary!CS37 -> 1 | AU44: =IF(AT44=0,0,IF(AY44<=uxb_works!$B$121,2,IF(AY44<=uxb_works!$B$120,3,4))) -> 2 | AW44: =iSummary!CT37 -> 29 | AX44: =iSummary!CU37 -> Myanmar | AY44: =iSummary!CV37 -> 16.8 | AZ44: =iSummary!CY37 -> = | BA44: =iSummary!CZ37 ->  | BB44: =iSummary!DA37 -> 0 | BC44: =iSummary!DB37 -> 1 | BE44: =iSummary!DM37 -> 1 | BF44: =IF(BE44=0,0,IF(BJ44<=uxb_works!$B$121,2,IF(BJ44<=uxb_works!$B$120,3,4))) -> 2 | BH44: =iSummary!DN37 -> 29 | BI44: =iSummary!DO37 -> Turkmenistan | BJ44: =iSummary!DP37 -> 36.1 | BK44: =iSummary!DS37 -> = | BL44: =iSummary!DT37 ->  | BM44: =iSummary!DU37 -> 0 | BN44: =iSummary!DV37 -> 1 | BP44: =iSummary!#REF! ->  | BQ44: =iSummary!#REF! ->  | BR44: =iSummary!#REF! ->  | BS44: =iSummary!#REF! -> 
B45: =iSummary!Q38 -> 1 | C45: =IF(B45=0,0,IF(G45<=uxb_works!$B$121,2,IF(G45<=uxb_works!$B$120,3,4))) -> 2 | E45: =iSummary!R38 -> 30 | F45: =iSummary!S38 -> Afghanistan | G45: =IF(ISNUMBER(iSummary!T38),ROUND(iSummary!T38,1),"") -> 19 | H45: =iSummary!W38 -> 19 | I45: =iSummary!X38 -> p | J45: =IF(iSummary!Y38=0,"",iSummary!Y38) ->  | K45: =iSummary!Z38 -> 1 | M45: =iSummary!AK38 -> 1 | N45: =IF(M45=0,0,IF(R45<=uxb_works!$B$121,2,IF(R45<=uxb_works!$B$120,3,4))) -> 2 | P45: =iSummary!AL38 -> 30 | Q45: =iSummary!AM38 -> Syria | R45: =iSummary!AN38 -> 30.8 | S45: =iSummary!AQ38 -> = | T45: =iSummary!AR38 ->  | U45: =iSummary!AS38 -> 0 | V45: =iSummary!AT38 -> 1 | X45: =iSummary!BE38 -> 1 | Y45: =IF(X45=0,0,IF(AC45<=uxb_works!$B$121,2,IF(AC45<=uxb_works!$B$120,3,4))) -> 2 | AA45: =iSummary!BF38 -> 30 | AB45: =iSummary!BG38 -> Syria | AC45: =iSummary!BH38 -> 18.1 | AD45: =iSummary!BK38 -> = | AE45: =iSummary!BL38 ->  | AF45: =iSummary!BM38 -> 0 | AG45: =iSummary!BN38 -> 1 | AI45: =iSummary!BY38 -> 1 | AJ45: =IF(AI45=0,0,IF(AN45<=uxb_works!$B$121,2,IF(AN45<=uxb_works!$B$120,3,4))) -> 2 | AL45: =iSummary!BZ38 -> =30 | AM45: =iSummary!CA38 -> Iraq | AN45: =iSummary!CB38 -> 8.3 | AO45: =iSummary!CE38 -> = | AP45: =iSummary!CF38 ->  | AQ45: =iSummary!CG38 -> 0 | AR45: =iSummary!CH38 -> 1 | AT45: =iSummary!CS38 -> 1 | AU45: =IF(AT45=0,0,IF(AY45<=uxb_works!$B$121,2,IF(AY45<=uxb_works!$B$120,3,4))) -> 2 | AW45: =iSummary!CT38 -> 30 | AX45: =iSummary!CU38 -> Afghanistan | AY45: =iSummary!CV38 -> 15.3 | AZ45: =iSummary!CY38 -> = | BA45: =iSummary!CZ38 ->  | BB45: =iSummary!DA38 -> 0 | BC45: =iSummary!DB38 -> 1 | BE45: =iSummary!DM38 -> 1 | BF45: =IF(BE45=0,0,IF(BJ45<=uxb_works!$B$121,2,IF(BJ45<=uxb_works!$B$120,3,4))) -> 2 | BH45: =iSummary!DN38 -> 30 | BI45: =iSummary!DO38 -> Afghanistan | BJ45: =iSummary!DP38 -> 27.5 | BK45: =iSummary!DS38 -> = | BL45: =iSummary!DT38 ->  | BM45: =iSummary!DU38 -> 0 | BN45: =iSummary!DV38 -> 1 | BP45: =iSummary!#REF! ->  | BQ45: =iSummary!#REF! ->  | BR45: =iSummary!#REF! ->  | BS45: =iSummary!#REF! -> 
B46: =iSummary!Q39 -> 1 | C46: =IF(B46=0,0,IF(G46<=uxb_works!$B$121,2,IF(G46<=uxb_works!$B$120,3,4))) -> 2 | E46: =iSummary!R39 -> 31 | F46: =iSummary!S39 -> Iraq | G46: =IF(ISNUMBER(iSummary!T39),ROUND(iSummary!T39,1),"") -> 17.6 | H46: =iSummary!W39 -> 17.6 | I46: =iSummary!X39 -> p | J46: =IF(iSummary!Y39=0,"",iSummary!Y39) ->  | K46: =iSummary!Z39 -> 1 | M46: =iSummary!AK39 -> 1 | N46: =IF(M46=0,0,IF(R46<=uxb_works!$B$121,2,IF(R46<=uxb_works!$B$120,3,4))) -> 2 | P46: =iSummary!AL39 -> 31 | Q46: =iSummary!AM39 -> Iran | R46: =iSummary!AN39 -> 25.6 | S46: =iSummary!AQ39 -> = | T46: =iSummary!AR39 ->  | U46: =iSummary!AS39 -> 0 | V46: =iSummary!AT39 -> 1 | X46: =iSummary!BE39 -> 1 | Y46: =IF(X46=0,0,IF(AC46<=uxb_works!$B$121,2,IF(AC46<=uxb_works!$B$120,3,4))) -> 2 | AA46: =iSummary!BF39 -> 31 | AB46: =iSummary!BG39 -> Afghanistan | AC46: =iSummary!BH39 -> 13.9 | AD46: =iSummary!BK39 -> = | AE46: =iSummary!BL39 ->  | AF46: =iSummary!BM39 -> 0 | AG46: =iSummary!BN39 -> 1 | AI46: =iSummary!BY39 -> 1 | AJ46: =IF(AI46=0,0,IF(AN46<=uxb_works!$B$121,2,IF(AN46<=uxb_works!$B$120,3,4))) -> 2 | AL46: =iSummary!BZ39 -> =30 | AM46: =iSummary!CA39 -> Venezuela | AN46: =iSummary!CB39 -> 8.3 | AO46: =iSummary!CE39 -> = | AP46: =iSummary!CF39 ->  | AQ46: =iSummary!CG39 -> 0 | AR46: =iSummary!CH39 -> 1 | AT46: =iSummary!CS39 -> 1 | AU46: =IF(AT46=0,0,IF(AY46<=uxb_works!$B$121,2,IF(AY46<=uxb_works!$B$120,3,4))) -> 2 | AW46: =iSummary!CT39 -> 31 | AX46: =iSummary!CU39 -> Iraq | AY46: =iSummary!CV39 -> 14.5 | AZ46: =iSummary!CY39 -> = | BA46: =iSummary!CZ39 ->  | BB46: =iSummary!DA39 -> 0 | BC46: =iSummary!DB39 -> 1 | BE46: =iSummary!DM39 -> 1 | BF46: =IF(BE46=0,0,IF(BJ46<=uxb_works!$B$121,2,IF(BJ46<=uxb_works!$B$120,3,4))) -> 2 | BH46: =iSummary!DN39 -> 31 | BI46: =iSummary!DO39 -> Iraq | BJ46: =iSummary!DP39 -> 22.6 | BK46: =iSummary!DS39 -> = | BL46: =iSummary!DT39 ->  | BM46: =iSummary!DU39 -> 0 | BN46: =iSummary!DV39 -> 1 | BP46: =iSummary!#REF! ->  | BQ46: =iSummary!#REF! ->  | BR46: =iSummary!#REF! ->  | BS46: =iSummary!#REF! -> 
B47: =iSummary!Q40 -> 1 | C47: =IF(B47=0,0,IF(G47<=uxb_works!$B$121,2,IF(G47<=uxb_works!$B$120,3,4))) -> 2 | E47: =iSummary!R40 -> 32 | F47: =iSummary!S40 -> Syria | G47: =IF(ISNUMBER(iSummary!T40),ROUND(iSummary!T40,1),"") -> 14.8 | H47: =iSummary!W40 -> 14.8 | I47: =iSummary!X40 -> p | J47: =IF(iSummary!Y40=0,"",iSummary!Y40) ->  | K47: =iSummary!Z40 -> 1 | M47: =iSummary!AK40 -> 1 | N47: =IF(M47=0,0,IF(R47<=uxb_works!$B$121,2,IF(R47<=uxb_works!$B$120,3,4))) -> 2 | P47: =iSummary!AL40 -> 32 | Q47: =iSummary!AM40 -> Afghanistan | R47: =iSummary!AN40 -> 17.7 | S47: =iSummary!AQ40 -> = | T47: =iSummary!AR40 ->  | U47: =iSummary!AS40 -> 0 | V47: =iSummary!AT40 -> 1 | X47: =iSummary!BE40 -> 1 | Y47: =IF(X47=0,0,IF(AC47<=uxb_works!$B$121,2,IF(AC47<=uxb_works!$B$120,3,4))) -> 2 | AA47: =iSummary!BF40 -> 32 | AB47: =iSummary!BG40 -> Iraq | AC47: =iSummary!BH40 -> 6.9 | AD47: =iSummary!BK40 -> = | AE47: =iSummary!BL40 ->  | AF47: =iSummary!BM40 -> 0 | AG47: =iSummary!BN40 -> 1 | AI47: =iSummary!BY40 -> 1 | AJ47: =IF(AI47=0,0,IF(AN47<=uxb_works!$B$121,2,IF(AN47<=uxb_works!$B$120,3,4))) -> 2 | AL47: =iSummary!BZ40 -> 32 | AM47: =iSummary!CA40 -> Syria | AN47: =iSummary!CB40 -> 4.2 | AO47: =iSummary!CE40 -> = | AP47: =iSummary!CF40 ->  | AQ47: =iSummary!CG40 -> 0 | AR47: =iSummary!CH40 -> 1 | AT47: =iSummary!CS40 -> 1 | AU47: =IF(AT47=0,0,IF(AY47<=uxb_works!$B$121,2,IF(AY47<=uxb_works!$B$120,3,4))) -> 2 | AW47: =iSummary!CT40 -> 32 | AX47: =iSummary!CU40 -> Syria | AY47: =iSummary!CV40 -> 4.6 | AZ47: =iSummary!CY40 -> = | BA47: =iSummary!CZ40 ->  | BB47: =iSummary!DA40 -> 0 | BC47: =iSummary!DB40 -> 1 | BE47: =iSummary!DM40 -> 1 | BF47: =IF(BE47=0,0,IF(BJ47<=uxb_works!$B$121,2,IF(BJ47<=uxb_works!$B$120,3,4))) -> 2 | BH47: =iSummary!DN40 -> 32 | BI47: =iSummary!DO40 -> Syria | BJ47: =iSummary!DP40 -> 16.1 | BK47: =iSummary!DS40 -> = | BL47: =iSummary!DT40 ->  | BM47: =iSummary!DU40 -> 0 | BN47: =iSummary!DV40 -> 1 | BP47: =iSummary!#REF! ->  | BQ47: =iSummary!#REF! ->  | BR47: =iSummary!#REF! ->  | BS47: =iSummary!#REF! -> 
N48: =IF(M48=0,0,IF(R48<=uxb_works!$B$121,2,IF(R48<=uxb_works!$B$120,3,4))) -> 0 | Y48: =IF(X48=0,0,IF(AC48<=uxb_works!$B$121,2,IF(AC48<=uxb_works!$B$120,3,4))) -> 0 | AJ48: =IF(AI48=0,0,IF(AN48<=uxb_works!$B$121,2,IF(AN48<=uxb_works!$B$120,3,4))) -> 0 | AU48: =IF(AT48=0,0,IF(AY48<=uxb_works!$B$121,2,IF(AY48<=uxb_works!$B$120,3,4))) -> 0 | BF48: =IF(BE48=0,0,IF(BJ48<=uxb_works!$B$121,2,IF(BJ48<=uxb_works!$B$120,3,4))) -> 0

Sheet Indicator_Ranking
A1: =uxb_works!$B$92 -> Blue Peace: 2020 | Z1: $W$24 | AN1: 1600 | AO1: =INDEX(Indicator_Ranking!AN1:AN10,uxb_works!$J$21) -> 1600 | AP1: =2.2*AO1 -> 3520 | BA1: 1 | BB1: 2
AN2: 1600 | AR2: =iIndiRank!U2 -> Justifications for individual scores are available on request | AT2: =iIndiRank!V2 -> 
A4: =uxb_works!B111 -> 2 | AN4: 1600
C6: =uxb_works!$C$5 -> The active weight profile has been changed from its default setting | AN6: 1000
C8: =uxb_works!D67 -> Active river basin: <no filter>
C10: =iIndiRank!$G$2 -> OVERALL SCORE | AN10: 1000
C11: =iIndiRank!$F$2 -> OVERALL SCORE | BO11: =C11 -> OVERALL SCORE
C14: Forecast spend on defense equipment Source: Jane's Year: 2025-2027 Scoring Guidance: US$ million | E14: =iIndiRank!AO2 -> 0 | K14: =COUNT(J17:J40) -> 24 | V14: =IF(COUNTIF(V17:V40,"<>0")=0,1,COUNTIF(V17:V40,"<>0")) -> 1 | W14: =iIndiRank!AU1 -> 0 | Y14: =IF(COUNTIF(Y17:Y40,"<>0")=0,1,COUNTIF(Y17:Y40,"<>0")) -> 1 | Z14: =iIndiRank!AX1 -> 0 | AB14: =IF(COUNTIF(AB17:AB40,"<>0")=0,1,COUNTIF(AB17:AB40,"<>0")) -> 1 | AC14: =iIndiRank!BA1 -> 0 | AE14: =IF(COUNTIF(AE17:AE40,"<>0")=0,1,COUNTIF(AE17:AE40,"<>0")) -> 1 | AF14: =iIndiRank!BD1 -> 0 | AH14: =IF(COUNTIF(AH17:AH40,"<>0")=0,1,COUNTIF(AH17:AH40,"<>0")) -> 1 | AI14: =iIndiRank!BG1 -> 0
B15: =SUM(B16:B49) -> 34 | I15: =iIndiRank!G3 -> 0 | J15: =IF(uxb_works!$B$52=1,uxb_works!$B$8,1) -> 1 | K15: =iIndiRank!G3 -> 0 | W15: =IF(W14<>0,iIndiRank!AU3,"") ->  | Z15: =IF(Z14<>0,iIndiRank!AX3,"") ->  | AC15: =IF(AC14<>0,iIndiRank!BA3,"") ->  | AF15: =IF(AF14<>0,iIndiRank!BD3,"") ->  | AI15: =IF(AI14<>0,iIndiRank!BG3,"") -> 
B16: =iIndiRank!T2 -> 1 | C16: Description: One of the primary objectives of sustainable agriculture is ensuring that farmers can intensify agricultural production while using water more efficiently and reducing environmental degradation. Since water use efficiency characterises how effective the use of water is, by implementing programmes to enhance it, the government would substantially increase water use efficiency across all sectors and ensure sustainable withdrawals and supply of freshwater to address water scarcity and reduce the number of people suffering from water scarcity. Scoring: 2 - Yes, for multiple sectors 1 - Partially, for some sectors 0 - No, there are no programmes to enhance water use efficiency Source: EIU research Justifications for individual scores are available on request | J16: =IF(uxb_works!$J$21=1,COUNTIF(J17:J49,">0"),MAX(V16,Indicator_Ranking!Y16,Indicator_Ranking!AB16,Indicator_Ranking!AE16,Indicator_Ranking!AH16)) -> 32 | L16: Rank | N16: Country | O16: Score / 100 | P16: =IF(iIndiRank!$G$3=1,"","Score / 100") -> Score / 100 | Q16: =IF(iIndiRank!$G$3=1,"","Visualisation") -> Visualisation | R16: =iIndiRank!S5 ->  | V16: =COUNTIF(V17:V49,">0") -> 0 | Y16: =COUNTIF(Y17:Y49,">0") -> 0 | AB16: =COUNTIF(AB17:AB49,">0") -> 0 | AE16: =COUNTIF(AE17:AE40,">0") -> 0 | AH16: =COUNTIF(AH17:AH40,">0") -> 0 | BA16: =W15 ->  | BD16: =Z15 ->  | BG16: =AC15 ->  | BJ16: =AF15 ->  | BM16: =AI15 -> 
B17: =IF(uxb_works!$J$21=1,1,IF(OR(V17>0,Y17>0,AB17>0,AE17>0,AH17>0),1,0)) -> 1 | J17: =iIndiRank!L6 -> 1 | K17: =IF(J17=0,4,IF(O17<=uxb_works!$B$122,0,IF(O17<=uxb_works!$B$121,1,IF(O17<=uxb_works!$B$120,2,3)))) -> 3 | M17: =iIndiRank!P6 -> 1 | N17: =iIndiRank!Q6 -> Slovenia | O17: =IF(iIndiRank!$G$3=0,iIndiRank!T6,iIndiRank!U6) -> 75.8 | P17: =CHOOSE(iIndiRank!$G$3+1,iIndiRank!T6,IF(AND(O17<0,ISNUMBER(O17)),REPT("|",ABS(O17)/3),"")) -> 75.8 | Q17: =IF(AND(ISNUMBER(O17),O17>0),REPT("|",O17/3),"") -> ||||||||||||||||||||||||| | R17: =TEXT(iIndiRank!S6,iIndiRank!$E$2) ->  | V17: =iIndiRank!AT6 -> 0 | W17: =iIndiRank!AU6 ->  | Y17: =iIndiRank!AW6 -> 0 | Z17: =iIndiRank!AX6 ->  | AB17: =iIndiRank!AZ6 -> 0 | AC17: =iIndiRank!BA6 ->  | AE17: =iIndiRank!BC6 -> 0 | AF17: =iIndiRank!BD6 ->  | AH17: =iIndiRank!BF6 -> 0 | AI17: =iIndiRank!BG6 -> 
B18: =IF(uxb_works!$J$21=1,1,IF(OR(V18>0,Y18>0,AB18>0,AE18>0,AH18>0),1,0)) -> 1 | J18: =iIndiRank!L7 -> 1 | K18: =IF(J18=0,4,IF(O18<=uxb_works!$B$122,0,IF(O18<=uxb_works!$B$121,1,IF(O18<=uxb_works!$B$120,2,3)))) -> 3 | M18: =iIndiRank!P7 -> 2 | N18: =iIndiRank!Q7 -> Croatia | O18: =IF(iIndiRank!$G$3=0,iIndiRank!T7,iIndiRank!U7) -> 73.1 | P18: =CHOOSE(iIndiRank!$G$3+1,iIndiRank!T7,IF(AND(O18<0,ISNUMBER(O18)),REPT("|",ABS(O18)/3),"")) -> 73.1 | Q18: =IF(AND(ISNUMBER(O18),O18>0),REPT("|",O18/3),"") -> |||||||||||||||||||||||| | R18: =TEXT(iIndiRank!S7,iIndiRank!$E$2) ->  | V18: =iIndiRank!AT7 -> 0 | W18: =iIndiRank!AU7 ->  | Y18: =iIndiRank!AW7 -> 0 | Z18: =iIndiRank!AX7 ->  | AB18: =iIndiRank!AZ7 -> 0 | AC18: =iIndiRank!BA7 ->  | AE18: =iIndiRank!BC7 -> 0 | AF18: =iIndiRank!BD7 ->  | AH18: =iIndiRank!BF7 -> 0 | AI18: =iIndiRank!BG7 -> 
B19: =IF(uxb_works!$J$21=1,1,IF(OR(V19>0,Y19>0,AB19>0,AE19>0,AH19>0),1,0)) -> 1 | J19: =iIndiRank!L8 -> 1 | K19: =IF(J19=0,4,IF(O19<=uxb_works!$B$122,0,IF(O19<=uxb_works!$B$121,1,IF(O19<=uxb_works!$B$120,2,3)))) -> 2 | M19: =iIndiRank!P8 -> 3 | N19: =iIndiRank!Q8 -> Thailand | O19: =IF(iIndiRank!$G$3=0,iIndiRank!T8,iIndiRank!U8) -> 68.7 | P19: =CHOOSE(iIndiRank!$G$3+1,iIndiRank!T8,IF(AND(O19<0,ISNUMBER(O19)),REPT("|",ABS(O19)/3),"")) -> 68.7 | Q19: =IF(AND(ISNUMBER(O19),O19>0),REPT("|",O19/3),"") -> |||||||||||||||||||||| | R19: =TEXT(iIndiRank!S8,iIndiRank!$E$2) ->  | V19: =iIndiRank!AT8 -> 0 | W19: =iIndiRank!AU8 ->  | Y19: =iIndiRank!AW8 -> 0 | Z19: =iIndiRank!AX8 ->  | AB19: =iIndiRank!AZ8 -> 0 | AC19: =iIndiRank!BA8 ->  | AE19: =iIndiRank!BC8 -> 0 | AF19: =iIndiRank!BD8 ->  | AH19: =iIndiRank!BF8 -> 0 | AI19: =iIndiRank!BG8 -> 
B20: =IF(uxb_works!$J$21=1,1,IF(OR(V20>0,Y20>0,AB20>0,AE20>0,AH20>0),1,0)) -> 1 | J20: =iIndiRank!L9 -> 1 | K20: =IF(J20=0,4,IF(O20<=uxb_works!$B$122,0,IF(O20<=uxb_works!$B$121,1,IF(O20<=uxb_works!$B$120,2,3)))) -> 2 | M20: =iIndiRank!P9 -> 4 | N20: =iIndiRank!Q9 -> Senegal | O20: =IF(iIndiRank!$G$3=0,iIndiRank!T9,iIndiRank!U9) -> 66.3 | P20: =CHOOSE(iIndiRank!$G$3+1,iIndiRank!T9,IF(AND(O20<0,ISNUMBER(O20)),REPT("|",ABS(O20)/3),"")) -> 66.3 | Q20: |||||||||||||||||||||| | R20: =TEXT(iIndiRank!S9,iIndiRank!$E$2) ->  | V20: =iIndiRank!AT9 -> 0 | W20: =iIndiRank!AU9 ->  | Y20: =iIndiRank!AW9 -> 0 | Z20: =iIndiRank!AX9 ->  | AB20: =iIndiRank!AZ9 -> 0 | AC20: =iIndiRank!BA9 ->  | AE20: =iIndiRank!BC9 -> 0 | AF20: =iIndiRank!BD9 ->  | AH20: =iIndiRank!BF9 -> 0 | AI20: =iIndiRank!BG9 -> 
B21: =IF(uxb_works!$J$21=1,1,IF(OR(V21>0,Y21>0,AB21>0,AE21>0,AH21>0),1,0)) -> 1 | J21: =iIndiRank!L10 -> 1 | K21: =IF(J21=0,4,IF(O21<=uxb_works!$B$122,0,IF(O21<=uxb_works!$B$121,1,IF(O21<=uxb_works!$B$120,2,3)))) -> 2 | M21: =iIndiRank!P10 -> 5 | N21: =iIndiRank!Q10 -> Serbia | O21: =IF(iIndiRank!$G$3=0,iIndiRank!T10,iIndiRank!U10) -> 63.2 | P21: =CHOOSE(iIndiRank!$G$3+1,iIndiRank!T10,IF(AND(O21<0,ISNUMBER(O21)),REPT("|",ABS(O21)/3),"")) -> 63.2 | Q21: ||||||||||||||||||||| | R21: =TEXT(iIndiRank!S10,iIndiRank!$E$2) ->  | V21: =iIndiRank!AT10 -> 0 | W21: =iIndiRank!AU10 ->  | Y21: =iIndiRank!AW10 -> 0 | Z21: =iIndiRank!AX10 ->  | AB21: =iIndiRank!AZ10 -> 0 | AC21: =iIndiRank!BA10 ->  | AE21: =iIndiRank!BC10 -> 0 | AF21: =iIndiRank!BD10 ->  | AH21: =iIndiRank!BF10 -> 0 | AI21: =iIndiRank!BG10 -> 
B22: =IF(uxb_works!$J$21=1,1,IF(OR(V22>0,Y22>0,AB22>0,AE22>0,AH22>0),1,0)) -> 1 | J22: =iIndiRank!L11 -> 1 | K22: =IF(J22=0,4,IF(O22<=uxb_works!$B$122,0,IF(O22<=uxb_works!$B$121,1,IF(O22<=uxb_works!$B$120,2,3)))) -> 2 | M22: =iIndiRank!P11 -> 6 | N22: =iIndiRank!Q11 -> Vietnam | O22: =IF(iIndiRank!$G$3=0,iIndiRank!T11,iIndiRank!U11) -> 62.7 | P22: =CHOOSE(iIndiRank!$G$3+1,iIndiRank!T11,IF(AND(O22<0,ISNUMBER(O22)),REPT("|",ABS(O22)/3),"")) -> 62.7 | Q22: |||||||||||||||||||| | R22: =TEXT(iIndiRank!S11,iIndiRank!$E$2) ->  | V22: =iIndiRank!AT11 -> 0 | W22: =iIndiRank!AU11 ->  | Y22: =iIndiRank!AW11 -> 0 | Z22: =iIndiRank!AX11 ->  | AB22: =iIndiRank!AZ11 -> 0 | AC22: =iIndiRank!BA11 ->  | AE22: =iIndiRank!BC11 -> 0 | AF22: =iIndiRank!BD11 ->  | AH22: =iIndiRank!BF11 -> 0 | AI22: =iIndiRank!BG11 -> 
B23: =IF(uxb_works!$J$21=1,1,IF(OR(V23>0,Y23>0,AB23>0,AE23>0,AH23>0),1,0)) -> 1 | J23: =iIndiRank!L12 -> 1 | K23: =IF(J23=0,4,IF(O23<=uxb_works!$B$122,0,IF(O23<=uxb_works!$B$121,1,IF(O23<=uxb_works!$B$120,2,3)))) -> 2 | M23: =iIndiRank!P12 -> =7 | N23: =iIndiRank!Q12 -> Mali | O23: =IF(iIndiRank!$G$3=0,iIndiRank!T12,iIndiRank!U12) -> 62.3 | P23: =CHOOSE(iIndiRank!$G$3+1,iIndiRank!T12,IF(AND(O23<0,ISNUMBER(O23)),REPT("|",ABS(O23)/3),"")) -> 62.3 | Q23: |||||||||||||||||||| | R23: =TEXT(iIndiRank!S12,iIndiRank!$E$2) ->  | V23: =iIndiRank!AT12 -> 0 | W23: =iIndiRank!AU12 ->  | Y23: =iIndiRank!AW12 -> 0 | Z23: =iIndiRank!AX12 ->  | AB23: =iIndiRank!AZ12 -> 0 | AC23: =iIndiRank!BA12 ->  | AE23: =iIndiRank!BC12 -> 0 | AF23: =iIndiRank!BD12 ->  | AH23: =iIndiRank!BF12 -> 0 | AI23: =iIndiRank!BG12 -> 
B24: =IF(uxb_works!$J$21=1,1,IF(OR(V24>0,Y24>0,AB24>0,AE24>0,AH24>0),1,0)) -> 1 | J24: =iIndiRank!L13 -> 1 | K24: =IF(J24=0,4,IF(O24<=uxb_works!$B$122,0,IF(O24<=uxb_works!$B$121,1,IF(O24<=uxb_works!$B$120,2,3)))) -> 2 | M24: =iIndiRank!P13 -> =7 | N24: =iIndiRank!Q13 -> Peru | O24: =IF(iIndiRank!$G$3=0,iIndiRank!T13,iIndiRank!U13) -> 62.3 | P24: =CHOOSE(iIndiRank!$G$3+1,iIndiRank!T13,IF(AND(O24<0,ISNUMBER(O24)),REPT("|",ABS(O24)/3),"")) -> 62.3 | Q24: |||||||||||||||||||| | R24: =TEXT(iIndiRank!S13,iIndiRank!$E$2) ->  | V24: =iIndiRank!AT13 -> 0 | W24: =iIndiRank!AU13 ->  | Y24: =iIndiRank!AW13 -> 0 | Z24: =iIndiRank!AX13 ->  | AB24: =iIndiRank!AZ13 -> 0 | AC24: =iIndiRank!BA13 ->  | AE24: =iIndiRank!BC13 -> 0 | AF24: =iIndiRank!BD13 ->  | AH24: =iIndiRank!BF13 -> 0 | AI24: =iIndiRank!BG13 -> 
B25: =IF(uxb_works!$J$21=1,1,IF(OR(V25>0,Y25>0,AB25>0,AE25>0,AH25>0),1,0)) -> 1 | J25: =iIndiRank!L14 -> 1 | K25: =IF(J25=0,4,IF(O25<=uxb_works!$B$122,0,IF(O25<=uxb_works!$B$121,1,IF(O25<=uxb_works!$B$120,2,3)))) -> 2 | M25: =iIndiRank!P14 -> 9 | N25: =iIndiRank!Q14 -> Brazil | O25: =IF(iIndiRank!$G$3=0,iIndiRank!T14,iIndiRank!U14) -> 60.1 | P25: =CHOOSE(iIndiRank!$G$3+1,iIndiRank!T14,IF(AND(O25<0,ISNUMBER(O25)),REPT("|",ABS(O25)/3),"")) -> 60.1 | Q25: |||||||||||||||||||| | R25: =TEXT(iIndiRank!S14,iIndiRank!$E$2) ->  | V25: =iIndiRank!AT14 -> 0 | W25: =iIndiRank!AU14 ->  | Y25: =iIndiRank!AW14 -> 0 | Z25: =iIndiRank!AX14 ->  | AB25: =iIndiRank!AZ14 -> 0 | AC25: =iIndiRank!BA14 ->  | AE25: =iIndiRank!BC14 -> 0 | AF25: =iIndiRank!BD14 ->  | AH25: =iIndiRank!BF14 -> 0 | AI25: =iIndiRank!BG14 -> 
B26: =IF(uxb_works!$J$21=1,1,IF(OR(V26>0,Y26>0,AB26>0,AE26>0,AH26>0),1,0)) -> 1 | J26: =iIndiRank!L15 -> 1 | K26: =IF(J26=0,4,IF(O26<=uxb_works!$B$122,0,IF(O26<=uxb_works!$B$121,1,IF(O26<=uxb_works!$B$120,2,3)))) -> 2 | M26: =iIndiRank!P15 -> 10 | N26: =iIndiRank!Q15 -> Bosnia and herzegovina | O26: =IF(iIndiRank!$G$3=0,iIndiRank!T15,iIndiRank!U15) -> 59.5 | P26: =CHOOSE(iIndiRank!$G$3+1,iIndiRank!T15,IF(AND(O26<0,ISNUMBER(O26)),REPT("|",ABS(O26)/3),"")) -> 59.5 | Q26: ||||||||||||||||||| | R26: =TEXT(iIndiRank!S15,iIndiRank!$E$2) ->  | V26: =iIndiRank!AT15 -> 0 | W26: =iIndiRank!AU15 ->  | Y26: =iIndiRank!AW15 -> 0 | Z26: =iIndiRank!AX15 ->  | AB26: =iIndiRank!AZ15 -> 0 | AC26: =iIndiRank!BA15 ->  | AE26: =iIndiRank!BC15 -> 0 | AF26: =iIndiRank!BD15 ->  | AH26: =iIndiRank!BF15 -> 0 | AI26: =iIndiRank!BG15 -> 
B27: =IF(uxb_works!$J$21=1,1,IF(OR(V27>0,Y27>0,AB27>0,AE27>0,AH27>0),1,0)) -> 1 | J27: =iIndiRank!L16 -> 1 | K27: =IF(J27=0,4,IF(O27<=uxb_works!$B$122,0,IF(O27<=uxb_works!$B$121,1,IF(O27<=uxb_works!$B$120,2,3)))) -> 2 | M27: =iIndiRank!P16 -> 11 | N27: =iIndiRank!Q16 -> Colombia | O27: =IF(iIndiRank!$G$3=0,iIndiRank!T16,iIndiRank!U16) -> 57.6 | P27: =CHOOSE(iIndiRank!$G$3+1,iIndiRank!T16,IF(AND(O27<0,ISNUMBER(O27)),REPT("|",ABS(O27)/3),"")) -> 57.6 | Q27: ||||||||||||||||||| | R27: =TEXT(iIndiRank!S16,iIndiRank!$E$2) ->  | V27: =iIndiRank!AT16 -> 0 | W27: =iIndiRank!AU16 ->  | Y27: =iIndiRank!AW16 -> 0 | Z27: =iIndiRank!AX16 ->  | AB27: =iIndiRank!AZ16 -> 0 | AC27: =iIndiRank!BA16 ->  | AE27: =iIndiRank!BC16 -> 0 | AF27: =iIndiRank!BD16 ->  | AH27: =iIndiRank!BF16 -> 0 | AI27: =iIndiRank!BG16 -> 
B28: =IF(uxb_works!$J$21=1,1,IF(OR(V28>0,Y28>0,AB28>0,AE28>0,AH28>0),1,0)) -> 1 | J28: =iIndiRank!L17 -> 1 | K28: =IF(J28=0,4,IF(O28<=uxb_works!$B$122,0,IF(O28<=uxb_works!$B$121,1,IF(O28<=uxb_works!$B$120,2,3)))) -> 2 | M28: =iIndiRank!P17 -> 12 | N28: =iIndiRank!Q17 -> Cambodia | O28: =IF(iIndiRank!$G$3=0,iIndiRank!T17,iIndiRank!U17) -> 56.9 | P28: =CHOOSE(iIndiRank!$G$3+1,iIndiRank!T17,IF(AND(O28<0,ISNUMBER(O28)),REPT("|",ABS(O28)/3),"")) -> 56.9 | Q28: |||||||||||||||||| | R28: =TEXT(iIndiRank!S17,iIndiRank!$E$2) ->  | V28: =iIndiRank!AT17 -> 0 | W28: =iIndiRank!AU17 ->  | Y28: =iIndiRank!AW17 -> 0 | Z28: =iIndiRank!AX17 ->  | AB28: =iIndiRank!AZ17 -> 0 | AC28: =iIndiRank!BA17 ->  | AE28: =iIndiRank!BC17 -> 0 | AF28: =iIndiRank!BD17 ->  | AH28: =iIndiRank!BF17 -> 0 | AI28: =iIndiRank!BG17 -> 
B29: =IF(uxb_works!$J$21=1,1,IF(OR(V29>0,Y29>0,AB29>0,AE29>0,AH29>0),1,0)) -> 1 | J29: =iIndiRank!L18 -> 1 | K29: =IF(J29=0,4,IF(O29<=uxb_works!$B$122,0,IF(O29<=uxb_works!$B$121,1,IF(O29<=uxb_works!$B$120,2,3)))) -> 2 | M29: =iIndiRank!P18 -> 13 | N29: =iIndiRank!Q18 -> Laos | O29: =IF(iIndiRank!$G$3=0,iIndiRank!T18,iIndiRank!U18) -> 55 | P29: =CHOOSE(iIndiRank!$G$3+1,iIndiRank!T18,IF(AND(O29<0,ISNUMBER(O29)),REPT("|",ABS(O29)/3),"")) -> 55 | Q29: |||||||||||||||||| | R29: =TEXT(iIndiRank!S18,iIndiRank!$E$2) ->  | V29: =iIndiRank!AT18 -> 0 | W29: =iIndiRank!AU18 ->  | Y29: =iIndiRank!AW18 -> 0 | Z29: =iIndiRank!AX18 ->  | AB29: =iIndiRank!AZ18 -> 0 | AC29: =iIndiRank!BA18 ->  | AE29: =iIndiRank!BC18 -> 0 | AF29: =iIndiRank!BD18 ->  | AH29: =iIndiRank!BF18 -> 0 | AI29: =iIndiRank!BG18 -> 
B30: =IF(uxb_works!$J$21=1,1,IF(OR(V30>0,Y30>0,AB30>0,AE30>0,AH30>0),1,0)) -> 1 | J30: =iIndiRank!L19 -> 1 | K30: =IF(J30=0,4,IF(O30<=uxb_works!$B$122,0,IF(O30<=uxb_works!$B$121,1,IF(O30<=uxb_works!$B$120,2,3)))) -> 2 | M30: =iIndiRank!P19 -> 14 | N30: =iIndiRank!Q19 -> Bolivia | O30: =IF(iIndiRank!$G$3=0,iIndiRank!T19,iIndiRank!U19) -> 54.9 | P30: =CHOOSE(iIndiRank!$G$3+1,iIndiRank!T19,IF(AND(O30<0,ISNUMBER(O30)),REPT("|",ABS(O30)/3),"")) -> 54.9 | Q30: |||||||||||||||||| | R30: =TEXT(iIndiRank!S19,iIndiRank!$E$2) ->  | V30: =iIndiRank!AT19 -> 0 | W30: =iIndiRank!AU19 ->  | Y30: =iIndiRank!AW19 -> 0 | Z30: =iIndiRank!AX19 ->  | AB30: =iIndiRank!AZ19 -> 0 | AC30: =iIndiRank!BA19 ->  | AE30: =iIndiRank!BC19 -> 0 | AF30: =iIndiRank!BD19 ->  | AH30: =iIndiRank!BF19 -> 0 | AI30: =iIndiRank!BG19 -> 
B31: =IF(uxb_works!$J$21=1,1,IF(OR(V31>0,Y31>0,AB31>0,AE31>0,AH31>0),1,0)) -> 1 | J31: =iIndiRank!L20 -> 1 | K31: =IF(J31=0,4,IF(O31<=uxb_works!$B$122,0,IF(O31<=uxb_works!$B$121,1,IF(O31<=uxb_works!$B$120,2,3)))) -> 2 | M31: =iIndiRank!P20 -> 15 | N31: =iIndiRank!Q20 -> Kazakhstan | O31: =IF(iIndiRank!$G$3=0,iIndiRank!T20,iIndiRank!U20) -> 53.2 | P31: =CHOOSE(iIndiRank!$G$3+1,iIndiRank!T20,IF(AND(O31<0,ISNUMBER(O31)),REPT("|",ABS(O31)/3),"")) -> 53.2 | Q31: ||||||||||||||||| | R31: =TEXT(iIndiRank!S20,iIndiRank!$E$2) ->  | V31: =iIndiRank!AT20 -> 0 | W31: =iIndiRank!AU20 ->  | Y31: =iIndiRank!AW20 -> 0 | Z31: =iIndiRank!AX20 ->  | AB31: =iIndiRank!AZ20 -> 0 | AC31: =iIndiRank!BA20 ->  | AE31: =iIndiRank!BC20 -> 0 | AF31: =iIndiRank!BD20 ->  | AH31: =iIndiRank!BF20 -> 0 | AI31: =iIndiRank!BG20 -> 
B32: =IF(uxb_works!$J$21=1,1,IF(OR(V32>0,Y32>0,AB32>0,AE32>0,AH32>0),1,0)) -> 1 | J32: =iIndiRank!L21 -> 1 | K32: =IF(J32=0,4,IF(O32<=uxb_works!$B$122,0,IF(O32<=uxb_works!$B$121,1,IF(O32<=uxb_works!$B$120,2,3)))) -> 2 | M32: =iIndiRank!P21 -> 16 | N32: =iIndiRank!Q21 -> China | O32: =IF(iIndiRank!$G$3=0,iIndiRank!T21,iIndiRank!U21) -> 49.4 | P32: =CHOOSE(iIndiRank!$G$3+1,iIndiRank!T21,IF(AND(O32<0,ISNUMBER(O32)),REPT("|",ABS(O32)/3),"")) -> 49.4 | Q32: |||||||||||||||| | R32: =TEXT(iIndiRank!S21,iIndiRank!$E$2) ->  | V32: =iIndiRank!AT21 -> 0 | W32: =iIndiRank!AU21 ->  | Y32: =iIndiRank!AW21 -> 0 | Z32: =iIndiRank!AX21 ->  | AB32: =iIndiRank!AZ21 -> 0 | AC32: =iIndiRank!BA21 ->  | AE32: =iIndiRank!BC21 -> 0 | AF32: =iIndiRank!BD21 ->  | AH32: =iIndiRank!BF21 -> 0 | AI32: =iIndiRank!BG21 -> 
B33: =IF(uxb_works!$J$21=1,1,IF(OR(V33>0,Y33>0,AB33>0,AE33>0,AH33>0),1,0)) -> 1 | J33: =iIndiRank!L22 -> 1 | K33: =IF(J33=0,4,IF(O33<=uxb_works!$B$122,0,IF(O33<=uxb_works!$B$121,1,IF(O33<=uxb_works!$B$120,2,3)))) -> 2 | M33: =iIndiRank!P22 -> 17 | N33: =iIndiRank!Q22 -> Ecuador | O33: =IF(iIndiRank!$G$3=0,iIndiRank!T22,iIndiRank!U22) -> 49.1 | P33: =CHOOSE(iIndiRank!$G$3+1,iIndiRank!T22,IF(AND(O33<0,ISNUMBER(O33)),REPT("|",ABS(O33)/3),"")) -> 49.1 | Q33: |||||||||||||||| | R33: =TEXT(iIndiRank!S22,iIndiRank!$E$2) ->  | V33: =iIndiRank!AT22 -> 0 | W33: =iIndiRank!AU22 ->  | Y33: =iIndiRank!AW22 -> 0 | Z33: =iIndiRank!AX22 ->  | AB33: =iIndiRank!AZ22 -> 0 | AC33: =iIndiRank!BA22 ->  | AE33: =iIndiRank!BC22 -> 0 | AF33: =iIndiRank!BD22 ->  | AH33: =iIndiRank!BF22 -> 0 | AI33: =iIndiRank!BG22 -> 
B34: =IF(uxb_works!$J$21=1,1,IF(OR(V34>0,Y34>0,AB34>0,AE34>0,AH34>0),1,0)) -> 1 | J34: =iIndiRank!L23 -> 1 | K34: =IF(J34=0,4,IF(O34<=uxb_works!$B$122,0,IF(O34<=uxb_works!$B$121,1,IF(O34<=uxb_works!$B$120,2,3)))) -> 2 | M34: =iIndiRank!P23 -> 18 | N34: =iIndiRank!Q23 -> Uzbekistan: Syr | O34: =IF(iIndiRank!$G$3=0,iIndiRank!T23,iIndiRank!U23) -> 48.9 | P34: =CHOOSE(iIndiRank!$G$3+1,iIndiRank!T23,IF(AND(O34<0,ISNUMBER(O34)),REPT("|",ABS(O34)/3),"")) -> 48.9 | Q34: |||||||||||||||| | R34: =TEXT(iIndiRank!S23,iIndiRank!$E$2) ->  | V34: =iIndiRank!AT23 -> 0 | W34: =iIndiRank!AU23 ->  | Y34: =iIndiRank!AW23 -> 0 | Z34: =iIndiRank!AX23 ->  | AB34: =iIndiRank!AZ23 -> 0 | AC34: =iIndiRank!BA23 ->  | AE34: =iIndiRank!BC23 -> 0 | AF34: =iIndiRank!BD23 ->  | AH34: =iIndiRank!BF23 -> 0 | AI34: =iIndiRank!BG23 -> 
B35: =IF(uxb_works!$J$21=1,1,IF(OR(V35>0,Y35>0,AB35>0,AE35>0,AH35>0),1,0)) -> 1 | J35: =iIndiRank!L24 -> 1 | K35: =IF(J35=0,4,IF(O35<=uxb_works!$B$122,0,IF(O35<=uxb_works!$B$121,1,IF(O35<=uxb_works!$B$120,2,3)))) -> 2 | M35: =iIndiRank!P24 -> 19 | N35: =iIndiRank!Q24 -> Uzbekistan: Amu | O35: =IF(iIndiRank!$G$3=0,iIndiRank!T24,iIndiRank!U24) -> 48.3 | P35: =CHOOSE(iIndiRank!$G$3+1,iIndiRank!T24,IF(AND(O35<0,ISNUMBER(O35)),REPT("|",ABS(O35)/3),"")) -> 48.3 | Q35: |||||||||||||||| | R35: =TEXT(iIndiRank!S24,iIndiRank!$E$2) ->  | V35: =iIndiRank!AT24 -> 0 | W35: =iIndiRank!AU24 ->  | Y35: =iIndiRank!AW24 -> 0 | Z35: =iIndiRank!AX24 ->  | AB35: =iIndiRank!AZ24 -> 0 | AC35: =iIndiRank!BA24 ->  | AE35: =iIndiRank!BC24 -> 0 | AF35: =iIndiRank!BD24 ->  | AH35: =iIndiRank!BF24 -> 0 | AI35: =iIndiRank!BG24 -> 
B36: =IF(uxb_works!$J$21=1,1,IF(OR(V36>0,Y36>0,AB36>0,AE36>0,AH36>0),1,0)) -> 1 | J36: =iIndiRank!L25 -> 1 | K36: =IF(J36=0,4,IF(O36<=uxb_works!$B$122,0,IF(O36<=uxb_works!$B$121,1,IF(O36<=uxb_works!$B$120,2,3)))) -> 2 | M36: =iIndiRank!P25 -> 20 | N36: =iIndiRank!Q25 -> Mauritania | O36: =IF(iIndiRank!$G$3=0,iIndiRank!T25,iIndiRank!U25) -> 48.2 | P36: =CHOOSE(iIndiRank!$G$3+1,iIndiRank!T25,IF(AND(O36<0,ISNUMBER(O36)),REPT("|",ABS(O36)/3),"")) -> 48.2 | Q36: |||||||||||||||| | R36: =TEXT(iIndiRank!S25,iIndiRank!$E$2) ->  | V36: =iIndiRank!AT25 -> 0 | W36: =iIndiRank!AU25 ->  | Y36: =iIndiRank!AW25 -> 0 | Z36: =iIndiRank!AX25 ->  | AB36: =iIndiRank!AZ25 -> 0 | AC36: =iIndiRank!BA25 ->  | AE36: =iIndiRank!BC25 -> 0 | AF36: =iIndiRank!BD25 ->  | AH36: =iIndiRank!BF25 -> 0 | AI36: =iIndiRank!BG25 -> 
B37: =IF(uxb_works!$J$21=1,1,IF(OR(V37>0,Y37>0,AB37>0,AE37>0,AH37>0),1,0)) -> 1 | J37: =iIndiRank!L26 -> 1 | K37: =IF(J37=0,4,IF(O37<=uxb_works!$B$122,0,IF(O37<=uxb_works!$B$121,1,IF(O37<=uxb_works!$B$120,2,3)))) -> 2 | M37: =iIndiRank!P26 -> 21 | N37: =iIndiRank!Q26 -> Guinea | O37: =IF(iIndiRank!$G$3=0,iIndiRank!T26,iIndiRank!U26) -> 48 | P37: =CHOOSE(iIndiRank!$G$3+1,iIndiRank!T26,IF(AND(O37<0,ISNUMBER(O37)),REPT("|",ABS(O37)/3),"")) -> 48 | Q37: |||||||||||||||| | R37: =TEXT(iIndiRank!S26,iIndiRank!$E$2) ->  | V37: =iIndiRank!AT26 -> 0 | W37: =iIndiRank!AU26 ->  | Y37: =iIndiRank!AW26 -> 0 | Z37: =iIndiRank!AX26 ->  | AB37: =iIndiRank!AZ26 -> 0 | AC37: =iIndiRank!BA26 ->  | AE37: =iIndiRank!BC26 -> 0 | AF37: =iIndiRank!BD26 ->  | AH37: =iIndiRank!BF26 -> 0 | AI37: =iIndiRank!BG26 -> 
B38: =IF(uxb_works!$J$21=1,1,IF(OR(V38>0,Y38>0,AB38>0,AE38>0,AH38>0),1,0)) -> 1 | J38: =iIndiRank!L27 -> 1 | K38: =IF(J38=0,4,IF(O38<=uxb_works!$B$122,0,IF(O38<=uxb_works!$B$121,1,IF(O38<=uxb_works!$B$120,2,3)))) -> 2 | M38: =iIndiRank!P27 -> 22 | N38: =iIndiRank!Q27 -> Kyrgyzstan | O38: =IF(iIndiRank!$G$3=0,iIndiRank!T27,iIndiRank!U27) -> 46.5 | P38: =CHOOSE(iIndiRank!$G$3+1,iIndiRank!T27,IF(AND(O38<0,ISNUMBER(O38)),REPT("|",ABS(O38)/3),"")) -> 46.5 | Q38: ||||||||||||||| | R38: =TEXT(iIndiRank!S27,iIndiRank!$E$2) ->  | V38: =iIndiRank!AT27 -> 0 | W38: =iIndiRank!AU27 ->  | Y38: =iIndiRank!AW27 -> 0 | Z38: =iIndiRank!AX27 ->  | AB38: =iIndiRank!AZ27 -> 0 | AC38: =iIndiRank!BA27 ->  | AE38: =iIndiRank!BC27 -> 0 | AF38: =iIndiRank!BD27 ->  | AH38: =iIndiRank!BF27 -> 0 | AI38: =iIndiRank!BG27 -> 
B39: =IF(uxb_works!$J$21=1,1,IF(OR(V39>0,Y39>0,AB39>0,AE39>0,AH39>0),1,0)) -> 1 | J39: =iIndiRank!L28 -> 1 | K39: =IF(J39=0,4,IF(O39<=uxb_works!$B$122,0,IF(O39<=uxb_works!$B$121,1,IF(O39<=uxb_works!$B$120,2,3)))) -> 2 | M39: =iIndiRank!P28 -> 23 | N39: =iIndiRank!Q28 -> Tajikistan: Syr | O39: =IF(iIndiRank!$G$3=0,iIndiRank!T28,iIndiRank!U28) -> 43.9 | P39: =CHOOSE(iIndiRank!$G$3+1,iIndiRank!T28,IF(AND(O39<0,ISNUMBER(O39)),REPT("|",ABS(O39)/3),"")) -> 43.9 | Q39: |||||||||||||| | R39: =TEXT(iIndiRank!S28,iIndiRank!$E$2) ->  | V39: =iIndiRank!AT28 -> 0 | W39: =iIndiRank!AU28 ->  | Y39: =iIndiRank!AW28 -> 0 | Z39: =iIndiRank!AX28 ->  | AB39: =iIndiRank!AZ28 -> 0 | AC39: =iIndiRank!BA28 ->  | AE39: =iIndiRank!BC28 -> 0 | AF39: =iIndiRank!BD28 ->  | AH39: =iIndiRank!BF28 -> 0 | AI39: =iIndiRank!BG28 -> 
B40: =IF(uxb_works!$J$21=1,1,IF(OR(V40>0,Y40>0,AB40>0,AE40>0,AH40>0),1,0)) -> 1 | J40: =iIndiRank!L29 -> 1 | K40: =IF(J40=0,4,IF(O40<=uxb_works!$B$122,0,IF(O40<=uxb_works!$B$121,1,IF(O40<=uxb_works!$B$120,2,3)))) -> 2 | M40: =iIndiRank!P29 -> 24 | N40: =iIndiRank!Q29 -> Tajikistan: Amu | O40: =IF(iIndiRank!$G$3=0,iIndiRank!T29,iIndiRank!U29) -> 42.7 | P40: =CHOOSE(iIndiRank!$G$3+1,iIndiRank!T29,IF(AND(O40<0,ISNUMBER(O40)),REPT("|",ABS(O40)/3),"")) -> 42.7 | Q40: |||||||||||||| | R40: =TEXT(iIndiRank!S29,iIndiRank!$E$2) ->  | V40: =iIndiRank!AT29 -> 0 | W40: =iIndiRank!AU29 ->  | Y40: =iIndiRank!AW29 -> 0 | Z40: =iIndiRank!AX29 ->  | AB40: =iIndiRank!AZ29 -> 0 | AC40: =iIndiRank!BA29 ->  | AE40: =iIndiRank!BC29 -> 0 | AF40: =iIndiRank!BD29 ->  | AH40: =iIndiRank!BF29 -> 0 | AI40: =iIndiRank!BG29 -> 
B41: =IF(uxb_works!$J$21=1,1,IF(OR(V41>0,Y41>0,AB41>0,AE41>0,AH41>0),1,0)) -> 1 | J41: =iIndiRank!L30 -> 1 | K41: =IF(J41=0,4,IF(O41<=uxb_works!$B$122,0,IF(O41<=uxb_works!$B$121,1,IF(O41<=uxb_works!$B$120,2,3)))) -> 2 | M41: =iIndiRank!P30 -> 25 | N41: =iIndiRank!Q30 -> Venezuela | O41: =IF(iIndiRank!$G$3=0,iIndiRank!T30,iIndiRank!U30) -> 41.4 | P41: =CHOOSE(iIndiRank!$G$3+1,iIndiRank!T30,IF(AND(O41<0,ISNUMBER(O41)),REPT("|",ABS(O41)/3),"")) -> 41.4 | Q41: ||||||||||||| | R41: =TEXT(iIndiRank!S30,iIndiRank!$E$2) ->  | V41: =iIndiRank!AT30 -> 0 | W41: =iIndiRank!AU30 ->  | Y41: =iIndiRank!AW30 -> 0 | Z41: =iIndiRank!AX30 ->  | AB41: =iIndiRank!AZ30 -> 0 | AC41: =iIndiRank!BA30 ->  | AE41: =iIndiRank!BC30 -> 0 | AF41: =iIndiRank!BD30 ->  | AH41: =iIndiRank!BF30 -> 0 | AI41: =iIndiRank!BG30 -> 
B42: =IF(uxb_works!$J$21=1,1,IF(OR(V42>0,Y42>0,AB42>0,AE42>0,AH42>0),1,0)) -> 1 | J42: =iIndiRank!L31 -> 1 | K42: =IF(J42=0,4,IF(O42<=uxb_works!$B$122,0,IF(O42<=uxb_works!$B$121,1,IF(O42<=uxb_works!$B$120,2,3)))) -> 2 | M42: =iIndiRank!P31 -> 26 | N42: =iIndiRank!Q31 -> Turkey | O42: =IF(iIndiRank!$G$3=0,iIndiRank!T31,iIndiRank!U31) -> 40.7 | P42: =CHOOSE(iIndiRank!$G$3+1,iIndiRank!T31,IF(AND(O42<0,ISNUMBER(O42)),REPT("|",ABS(O42)/3),"")) -> 40.7 | Q42: ||||||||||||| | R42: =TEXT(iIndiRank!S31,iIndiRank!$E$2) ->  | V42: =iIndiRank!AT31 -> 0 | W42: =iIndiRank!AU31 ->  | Y42: =iIndiRank!AW31 -> 0 | Z42: =iIndiRank!AX31 ->  | AB42: =iIndiRank!AZ31 -> 0 | AC42: =iIndiRank!BA31 ->  | AE42: =iIndiRank!BC31 -> 0 | AF42: =iIndiRank!BD31 ->  | AH42: =iIndiRank!BF31 -> 0 | AI42: =iIndiRank!BG31 -> 
B43: =IF(uxb_works!$J$21=1,1,IF(OR(V43>0,Y43>0,AB43>0,AE43>0,AH43>0),1,0)) -> 1 | J43: =iIndiRank!L32 -> 1 | K43: =IF(J43=0,4,IF(O43<=uxb_works!$B$122,0,IF(O43<=uxb_works!$B$121,1,IF(O43<=uxb_works!$B$120,2,3)))) -> 1 | M43: =iIndiRank!P32 -> 27 | N43: =iIndiRank!Q32 -> Turkmenistan | O43: =IF(iIndiRank!$G$3=0,iIndiRank!T32,iIndiRank!U32) -> 39.2 | P43: =CHOOSE(iIndiRank!$G$3+1,iIndiRank!T32,IF(AND(O43<0,ISNUMBER(O43)),REPT("|",ABS(O43)/3),"")) -> 39.2 | Q43: ||||||||||||| | R43: =TEXT(iIndiRank!S32,iIndiRank!$E$2) ->  | V43: =iIndiRank!AT32 -> 0 | W43: =iIndiRank!AU32 ->  | Y43: =iIndiRank!AW32 -> 0 | Z43: =iIndiRank!AX32 ->  | AB43: =iIndiRank!AZ32 -> 0 | AC43: =iIndiRank!BA32 ->  | AE43: =iIndiRank!BC32 -> 0 | AF43: =iIndiRank!BD32 ->  | AH43: =iIndiRank!BF32 -> 0 | AI43: =iIndiRank!BG32 -> 
B44: =IF(uxb_works!$J$21=1,1,IF(OR(V44>0,Y44>0,AB44>0,AE44>0,AH44>0),1,0)) -> 1 | J44: =iIndiRank!L33 -> 1 | K44: =IF(J44=0,4,IF(O44<=uxb_works!$B$122,0,IF(O44<=uxb_works!$B$121,1,IF(O44<=uxb_works!$B$120,2,3)))) -> 1 | M44: =iIndiRank!P33 -> 28 | N44: =iIndiRank!Q33 -> Myanmar | O44: =IF(iIndiRank!$G$3=0,iIndiRank!T33,iIndiRank!U33) -> 37.2 | P44: =CHOOSE(iIndiRank!$G$3+1,iIndiRank!T33,IF(AND(O44<0,ISNUMBER(O44)),REPT("|",ABS(O44)/3),"")) -> 37.2 | Q44: |||||||||||| | R44: =TEXT(iIndiRank!S33,iIndiRank!$E$2) ->  | V44: =iIndiRank!AT33 -> 0 | W44: =iIndiRank!AU33 ->  | Y44: =iIndiRank!AW33 -> 0 | Z44: =iIndiRank!AX33 ->  | AB44: =iIndiRank!AZ33 -> 0 | AC44: =iIndiRank!BA33 ->  | AE44: =iIndiRank!BC33 -> 0 | AF44: =iIndiRank!BD33 ->  | AH44: =iIndiRank!BF33 -> 0 | AI44: =iIndiRank!BG33 -> 
B45: =IF(uxb_works!$J$21=1,1,IF(OR(V45>0,Y45>0,AB45>0,AE45>0,AH45>0),1,0)) -> 1 | J45: =iIndiRank!L34 -> 1 | K45: =IF(J45=0,4,IF(O45<=uxb_works!$B$122,0,IF(O45<=uxb_works!$B$121,1,IF(O45<=uxb_works!$B$120,2,3)))) -> 1 | M45: =iIndiRank!P34 -> 29 | N45: =iIndiRank!Q34 -> Iran | O45: =IF(iIndiRank!$G$3=0,iIndiRank!T34,iIndiRank!U34) -> 26.7 | P45: =CHOOSE(iIndiRank!$G$3+1,iIndiRank!T34,IF(AND(O45<0,ISNUMBER(O45)),REPT("|",ABS(O45)/3),"")) -> 26.7 | Q45: |||||||| | R45: =TEXT(iIndiRank!S34,iIndiRank!$E$2) ->  | V45: =iIndiRank!AT34 -> 0 | W45: =iIndiRank!AU34 ->  | Y45: =iIndiRank!AW34 -> 0 | Z45: =iIndiRank!AX34 ->  | AB45: =iIndiRank!AZ34 -> 0 | AC45: =iIndiRank!BA34 ->  | AE45: =iIndiRank!BC34 -> 0 | AF45: =iIndiRank!BD34 ->  | AH45: =iIndiRank!BF34 -> 0 | AI45: =iIndiRank!BG34 -> 
B46: =IF(uxb_works!$J$21=1,1,IF(OR(V46>0,Y46>0,AB46>0,AE46>0,AH46>0),1,0)) -> 1 | J46: =iIndiRank!L35 -> 1 | K46: =IF(J46=0,4,IF(O46<=uxb_works!$B$122,0,IF(O46<=uxb_works!$B$121,1,IF(O46<=uxb_works!$B$120,2,3)))) -> 1 | M46: =iIndiRank!P35 -> 30 | N46: =iIndiRank!Q35 -> Afghanistan | O46: =IF(iIndiRank!$G$3=0,iIndiRank!T35,iIndiRank!U35) -> 19 | P46: =CHOOSE(iIndiRank!$G$3+1,iIndiRank!T35,IF(AND(O46<0,ISNUMBER(O46)),REPT("|",ABS(O46)/3),"")) -> 19 | Q46: |||||| | R46: =TEXT(iIndiRank!S35,iIndiRank!$E$2) ->  | V46: =iIndiRank!AT35 -> 0 | W46: =iIndiRank!AU35 ->  | Y46: =iIndiRank!AW35 -> 0 | Z46: =iIndiRank!AX35 ->  | AB46: =iIndiRank!AZ35 -> 0 | AC46: =iIndiRank!BA35 ->  | AE46: =iIndiRank!BC35 -> 0 | AF46: =iIndiRank!BD35 ->  | AH46: =iIndiRank!BF35 -> 0 | AI46: =iIndiRank!BG35 -> 
B47: =IF(uxb_works!$J$21=1,1,IF(OR(V47>0,Y47>0,AB47>0,AE47>0,AH47>0),1,0)) -> 1 | J47: =iIndiRank!L36 -> 1 | K47: =IF(J47=0,4,IF(O47<=uxb_works!$B$122,0,IF(O47<=uxb_works!$B$121,1,IF(O47<=uxb_works!$B$120,2,3)))) -> 1 | M47: =iIndiRank!P36 -> 31 | N47: =iIndiRank!Q36 -> Iraq | O47: =IF(iIndiRank!$G$3=0,iIndiRank!T36,iIndiRank!U36) -> 17.6 | P47: =CHOOSE(iIndiRank!$G$3+1,iIndiRank!T36,IF(AND(O47<0,ISNUMBER(O47)),REPT("|",ABS(O47)/3),"")) -> 17.6 | Q47: ||||| | R47: =TEXT(iIndiRank!S36,iIndiRank!$E$2) ->  | V47: =iIndiRank!AT36 -> 0 | W47: =iIndiRank!AU36 ->  | Y47: =iIndiRank!AW36 -> 0 | Z47: =iIndiRank!AX36 ->  | AB47: =iIndiRank!AZ36 -> 0 | AC47: =iIndiRank!BA36 ->  | AE47: =iIndiRank!BC36 -> 0 | AF47: =iIndiRank!BD36 ->  | AH47: =iIndiRank!BF36 -> 0 | AI47: =iIndiRank!BG36 -> 
B48: =IF(uxb_works!$J$21=1,1,IF(OR(V48>0,Y48>0,AB48>0,AE48>0,AH48>0),1,0)) -> 1 | J48: =iIndiRank!L37 -> 1 | K48: =IF(J48=0,4,IF(O48<=uxb_works!$B$122,0,IF(O48<=uxb_works!$B$121,1,IF(O48<=uxb_works!$B$120,2,3)))) -> 1 | M48: =iIndiRank!P37 -> 32 | N48: =iIndiRank!Q37 -> Syria | O48: =IF(iIndiRank!$G$3=0,iIndiRank!T37,iIndiRank!U37) -> 14.8 | P48: =CHOOSE(iIndiRank!$G$3+1,iIndiRank!T37,IF(AND(O48<0,ISNUMBER(O48)),REPT("|",ABS(O48)/3),"")) -> 14.8 | Q48: |||| | R48: =TEXT(iIndiRank!S37,iIndiRank!$E$2) ->  | V48: =iIndiRank!AT37 -> 0 | W48: =iIndiRank!AU37 ->  | Y48: =iIndiRank!AW37 -> 0 | Z48: =iIndiRank!AX37 ->  | AB48: =iIndiRank!AZ37 -> 0 | AC48: =iIndiRank!BA37 ->  | AE48: =iIndiRank!BC37 -> 0 | AF48: =iIndiRank!BD37 ->  | AH48: =iIndiRank!BF37 -> 0 | AI48: =iIndiRank!BG37 -> 
B49: =IF(uxb_works!$J$21=1,1,IF(OR(V49>0,Y49>0,AB49>0,AE49>0,AH49>0),1,0)) -> 1 | J49: =iIndiRank!L45 -> 0 | K49: =IF(J49=0,4,IF(O49<=uxb_works!$B$122,0,IF(O49<=uxb_works!$B$121,1,IF(O49<=uxb_works!$B$120,2,3)))) -> 4 | M49: =iIndiRank!P45 -> 0 | N49: =iIndiRank!Q45 -> 0 | O49: =IF(iIndiRank!$G$3=0,iIndiRank!T45,iIndiRank!U45) -> 0 | P49: =CHOOSE(iIndiRank!$G$3+1,iIndiRank!T45,IF(AND(O49<0,ISNUMBER(O49)),REPT("|",ABS(O49)/3),"")) -> 0 | R49: =TEXT(iIndiRank!S45,iIndiRank!$E$2) -> 0.0 | V49: =iIndiRank!AT45 -> 0 | W49: =iIndiRank!AU45 -> 0 | Y49: =iIndiRank!AW45 -> 0 | Z49: =iIndiRank!AX45 -> 0 | AB49: =iIndiRank!AZ45 -> 0 | AC49: =iIndiRank!BA45 -> 0 | AE49: =iIndiRank!BC45 -> 0 | AF49: =iIndiRank!BD45 -> 0 | AH49: =iIndiRank!BF45 -> 0 | AI49: =iIndiRank!BG45 -> 0
B50: =IF(uxb_works!$J$21=1,1,IF(OR(V50>0,Y50>0,AB50>0,AE50>0,AH50>0),1,0)) -> 1

Sheet AreaProfile
A1: =uxb_works!$B$92 -> Blue Peace: 2020 | BA1: 1 | BB1: 4 | BC1: 0 | BD1: 2 | BF1: 1 | BG1: 2
BC2: 2 | BD2: 0
A4: =uxb_works!B111 -> 2
A6: =uxb_works!$C$5 -> The active weight profile has been changed from its default setting
A11: =uxb_works!$G$21 -> OVERALL SCORE
C12: =iIndiRank!$F$2 -> OVERALL SCORE
B23: =UPPER(iAreaProfile!C3) -> AMU-DARYA
B25: RIVER BASIN - BACKGROUND DATA | P25: RIVER BASIN SCORES
N28: =iAreaProfile!F3 -> 1 | P28: =iAreaProfile!E3 -> 37.3
N31: =iAreaRank!W6 -> 3 | O31: =IF(ISNUMBER(iAreaRank!M6),iAreaRank!M6,0) -> 1 | Q31: =iAreaRank!P6 -> 1 | R31: =iAreaRank!Q6 -> Uzbekistan: Amu | S31: =iAreaRank!R6 -> 48.3 | T31: =IF(ISNUMBER(iAreaRank!V6),"("&iAreaRank!V6&"%)","") -> (25%)
N32: =iAreaRank!W7 -> 3 | O32: =IF(ISNUMBER(iAreaRank!M7),iAreaRank!M7,0) -> 1 | Q32: =iAreaRank!P7 -> 2 | R32: =iAreaRank!Q7 -> Tajikistan: Amu | S32: =iAreaRank!R7 -> 42.7 | T32: =IF(ISNUMBER(iAreaRank!V7),"("&iAreaRank!V7&"%)","") -> (25%)
N33: =iAreaRank!W8 -> 1 | O33: =IF(ISNUMBER(iAreaRank!M8),iAreaRank!M8,0) -> 1 | Q33: =iAreaRank!P8 -> 3 | R33: =iAreaRank!Q8 -> Turkmenistan | S33: =iAreaRank!R8 -> 39.2 | T33: =IF(ISNUMBER(iAreaRank!V8),"("&iAreaRank!V8&"%)","") -> (25%)
N34: =iAreaRank!W9 -> 1 | O34: =IF(ISNUMBER(iAreaRank!M9),iAreaRank!M9,0) -> 1 | Q34: =iAreaRank!P9 -> 4 | R34: =iAreaRank!Q9 -> Afghanistan | S34: =iAreaRank!R9 -> 19 | T34: =IF(ISNUMBER(iAreaRank!V9),"("&iAreaRank!V9&"%)","") -> (25%)
N35: =iAreaRank!W10 ->  | O35: =IF(ISNUMBER(iAreaRank!M10),iAreaRank!M10,0) -> 0 | Q35: =iAreaRank!P10 ->  | R35: =iAreaRank!Q10 ->  | S35: =iAreaRank!R10 ->  | T35: =IF(ISNUMBER(iAreaRank!V10),"("&iAreaRank!V10&"%)","") -> 
N36: =iAreaRank!W11 ->  | O36: =IF(ISNUMBER(iAreaRank!M11),iAreaRank!M11,0) -> 0 | Q36: =iAreaRank!P11 ->  | R36: =iAreaRank!Q11 ->  | S36: =iAreaRank!R11 ->  | T36: =IF(ISNUMBER(iAreaRank!V11),"("&iAreaRank!V11&"%)","") -> 
B37: =uxb_works!D204 -> 3 | D37: =iAreaProfile!M14 -> 1 | E37: =iAreaProfile!N14 -> 1 | F37: =iAreaProfile!O14 -> 1 | G37: =iAreaProfile!P14 -> 1 | H37: =iAreaProfile!Q14 -> 0 | I37: =iAreaProfile!R14 -> 0 | K37: =iAreaProfile!T14 -> 0 | L37: =iAreaProfile!U14 -> 0 | M37: =iAreaProfile!V14 -> 0 | O37: =IF(ISNUMBER(iAreaRank!M12),iAreaRank!M12,0) -> 0 | Q37: =iAreaRank!P12 ->  | R37: =iAreaRank!Q12 ->  | S37: =iAreaRank!R12 ->  | T37: =IF(ISNUMBER(iAreaRank!V12),"("&iAreaRank!V12&"%)","") -> 
C38: Click on indicator below to view in chart | D38: =iAreaProfile!M17 -> Afghanistan | E38: =iAreaProfile!N17 -> Tajikistan: Amu | F38: =iAreaProfile!O17 -> Turkmenistan | G38: =iAreaProfile!P17 -> Uzbekistan: Amu | H38: =iAreaProfile!Q17 ->  | I38: =iAreaProfile!R17 ->  | J38: =iAreaProfile!S17 ->  | K38: =iAreaProfile!T17 ->  | L38: =iAreaProfile!U17 ->  | M38: =iAreaProfile!V17 -> 
B39: =iAreaProfile!G18 -> 1 | C39: =iAreaProfile!L18 -> Population, total (thousands) | D39: =iAreaProfile!M18 -> 38042 | E39: =iAreaProfile!N18 -> 9321 | F39: =iAreaProfile!O18 -> 5942 | G39: =iAreaProfile!P18 -> 33581 | H39: =iAreaProfile!Q18 ->  | I39: =iAreaProfile!R18 ->  | J39: =iAreaProfile!S18 ->  | K39: =iAreaProfile!T18 ->  | L39: =iAreaProfile!U18 ->  | M39: =iAreaProfile!V18 -> 
B40: =iAreaProfile!G19 -> 1 | C40: =iAreaProfile!L19 -> Population growth projection 2017 -2050 (%) | D40: =iAreaProfile!M19 -> 70 | E40: =iAreaProfile!N19 -> 74 | F40: =iAreaProfile!O19 -> 34 | G40: =iAreaProfile!P19 -> 28 | H40: =iAreaProfile!Q19 ->  | I40: =iAreaProfile!R19 ->  | J40: =iAreaProfile!S19 ->  | K40: =iAreaProfile!T19 ->  | L40: =iAreaProfile!U19 ->  | M40: =iAreaProfile!V19 -> 
B41: =iAreaProfile!G20 -> 2 | C41: =iAreaProfile!L20 -> Rural population (% of total population) | D41: =iAreaProfile!M20 -> 74.2 | E41: =iAreaProfile!N20 -> 72.7 | F41: =iAreaProfile!O20 -> 48 | G41: =iAreaProfile!P20 -> 49.6 | H41: =iAreaProfile!Q20 ->  | I41: =iAreaProfile!R20 ->  | J41: =iAreaProfile!S20 ->  | K41: =iAreaProfile!T20 ->  | L41: =iAreaProfile!U20 ->  | M41: =iAreaProfile!V20 -> 
B42: =iAreaProfile!G21 -> 1 | C42: =iAreaProfile!L21 -> GNI per capita, PPP (current international $) | D42: =iAreaProfile!M21 -> 2330 | E42: =iAreaProfile!N21 -> 4100 | F42: =iAreaProfile!O21 -> 14560 | G42: =iAreaProfile!P21 -> 7400 | H42: =iAreaProfile!Q21 ->  | I42: =iAreaProfile!R21 ->  | J42: =iAreaProfile!S21 ->  | K42: =iAreaProfile!T21 ->  | L42: =iAreaProfile!U21 ->  | M42: =iAreaProfile!V21 -> 
B43: =iAreaProfile!G22 -> 1 | C43: =iAreaProfile!L22 -> GDP (current US$) in billions | D43: =iAreaProfile!M22 -> 19.1 | E43: =iAreaProfile!N22 -> 8.1 | F43: =iAreaProfile!O22 -> 40.8 | G43: =iAreaProfile!P22 -> 57.9 | H43: =iAreaProfile!Q22 ->  | I43: =iAreaProfile!R22 ->  | J43: =iAreaProfile!S22 ->  | K43: =iAreaProfile!T22 ->  | L43: =iAreaProfile!U22 ->  | M43: =iAreaProfile!V22 -> 
B44: =iAreaProfile!G23 -> 1 | C44: =iAreaProfile!L23 -> Water stress | D44: =iAreaProfile!M23 -> 44 | E44: =iAreaProfile!N23 -> 68.7 | F44: =iAreaProfile!O23 -> 163 | G44: =iAreaProfile!P23 -> 156.4 | H44: =iAreaProfile!Q23 ->  | I44: =iAreaProfile!R23 ->  | J44: =iAreaProfile!S23 ->  | K44: =iAreaProfile!T23 ->  | L44: =iAreaProfile!U23 ->  | M44: =iAreaProfile!V23 -> 
B45: =iAreaProfile!G24 -> 1 | C45: =iAreaProfile!L24 -> Total renewable water resources per capita | D45: =iAreaProfile!M24 -> 1327 | E45: =iAreaProfile!N24 -> 7114 | F45: =iAreaProfile!O24 -> 244 | G45: =iAreaProfile!P24 -> 512 | H45: =iAreaProfile!Q24 ->  | I45: =iAreaProfile!R24 ->  | J45: =iAreaProfile!S24 ->  | K45: =iAreaProfile!T24 ->  | L45: =iAreaProfile!U24 ->  | M45: =iAreaProfile!V24 -> 
C76: For more information about the basins visit https://bluepeaceindex.eiu.com

Sheet CountryCompare
B1: s | C1: =uxb_works!$B$92 -> Blue Peace: 2020 | Z1: 1 | BA1: 1 | BB1: 3
A4: =uxb_works!B111 -> 2 | B4: =uxb_works!C111 -> Hide options | C4: =uxb_works!D111 -> Hide options | D4: =uxb_works!E111 -> Click for more options | E4: =uxb_works!F111 -> 0 | F4: =uxb_works!G111 -> 0 | G4: =uxb_works!H111 -> 0 | H4: =uxb_works!I111 -> 0 | I4: =uxb_works!J111 -> 0 | J4: =uxb_works!K111 -> 0 | K4: =uxb_works!L111 -> 0 | L4: =uxb_works!M111 -> 0 | M4: =uxb_works!N111 -> 0 | N4: =uxb_works!O111 -> 0 | O4: =uxb_works!P111 -> 0 | P4: =uxb_works!Q111 -> 0 | Q4: =uxb_works!R111 -> 0 | R4: =uxb_works!S111 -> 0 | S4: =uxb_works!T111 -> 0 | T4: =uxb_works!U111 -> 0 | U4: =uxb_works!V111 -> 0 | V4: =uxb_works!W111 -> 0 | W4: =uxb_works!X111 -> 0 | X4: =uxb_works!Y111 -> 0 | Y4: =uxb_works!Z111 -> 0 | Z4: =uxb_works!AA111 -> 0 | AA4: =uxb_works!AB111 -> 0 | AB4: =uxb_works!AC111 -> 0 | AC4: =uxb_works!AD111 -> 0 | AD4: =uxb_works!AE111 -> 0 | AE4: =uxb_works!AF111 -> 0 | AF4: =uxb_works!AG111 -> 0 | AG4: =uxb_works!AH111 -> 0 | AH4: =uxb_works!AI111 -> 0 | AI4: =uxb_works!AJ111 -> 0
C6: =uxb_works!$C$5 -> The active weight profile has been changed from its default setting
C8: =uxb_works!D67 -> Active river basin: <no filter>
C10: =TRIM(uxb_works!D32) -> OVERALL SCORE
C12: =CHOOSE(uxb_works!$B$52,"Country Comparison Overview","River Basin Comparison Overview") -> Country Comparison Overview | X12: 1 | Y12: 2 | Z12: 3 | AA12: 1 | AB12: 2 | AC12: =iCountryComp!AH17 -> 3 | AD12: =iCountryComp!AI17 -> 1 | AE12: =iCountryComp!AJ17 -> 2 | AF12: =iCountryComp!AK17 -> 3 | AG12: =iCountryComp!AL17 -> 1 | AH12: =iCountryComp!AM17 -> 2
B14: =MAX(COUNTIF(S16:S57,"<>0"),11) -> 32 | S14: =COUNTIF(S16:S57,"<>0") -> 32 | T14: =uxb_works!E32 -> 0 | V14: Indicator | X14: =iCountryComp!C2 -> Kazakhstan | AA14: =iCountryComp!C3 -> Kyrgyzstan | AD14: =iCountryComp!C4 -> Uzbekistan: Syr | AG14: =iCountryComp!C5 -> Tajikistan: Syr
X15: Score | Y15: Rank | AA15: Score | AB15: Rank | AD15: Score | AE15: Rank | AG15: Score | AH15: Rank
R16: =iCountryComp!AU22 -> 0 | S16: 4 | T16: =iCountryComp!AC22 -> 1 | V16: =iCountryComp!AD22 -> OVERALL SCORE | X16: =iCountryComp!AE22 -> 53.2 | Y16: =iCountryComp!AF22 -> 15 | AA16: =iCountryComp!AG22 -> 46.5 | AB16: =iCountryComp!AH22 -> 22 | AD16: =iCountryComp!AI22 -> 48.9 | AE16: =iCountryComp!AJ22 -> 18 | AG16: =iCountryComp!AL22 -> 43.9 | AH16: =iCountryComp!AM22 -> 23 | AK16: =MIN(X16,AA16,AD16,AG16) -> 43.9 | AL16: =MAX(X16,AA16,AD16,AG16) -> 53.2 | AN16: =V16 -> OVERALL SCORE
R17: =iCountryComp!AU23 -> 0 | S17: =iCountryComp!AB23 -> 1 | T17: =iCountryComp!AC23 -> 1 | V17: =iCountryComp!AD23 -> 1) POLICY AND LEGAL FRAMEWORKS | X17: =iCountryComp!AE23 -> 57.5 | Y17: =iCountryComp!AF23 -> 8 | AA17: =iCountryComp!AG23 -> 52.7 | AB17: =iCountryComp!AH23 -> 16 | AD17: =iCountryComp!AI23 -> 53.3 | AE17: =iCountryComp!AJ23 -> =12 | AG17: =iCountryComp!AL23 -> 47.1 | AH17: =iCountryComp!AM23 -> =21 | AK17: =MIN(X17,AA17,AD17,AG17) -> 47.1 | AL17: =MAX(X17,AA17,AD17,AG17) -> 57.5 | AN17: =V17 -> 1) POLICY AND LEGAL FRAMEWORKS
R18: =iCountryComp!AU24 -> 1 | S18: =iCountryComp!AB24 -> 1 | T18: =iCountryComp!AC24 -> 1 | V18: =iCountryComp!AD24 -> 1.1) National water policy | X18: =iCountryComp!AE24 -> 50 | Y18: =iCountryComp!AF24 -> =12 | AA18: =iCountryComp!AG24 -> 50 | AB18: =iCountryComp!AH24 -> =12 | AD18: =iCountryComp!AI24 -> 33.3 | AE18: =iCountryComp!AJ24 -> =24 | AG18: =iCountryComp!AL24 -> 33.3 | AH18: =iCountryComp!AM24 -> =24 | AK18: 33.3 | AL18: 50 | AN18: 1.1) National water policy
R19: =iCountryComp!AU25 -> 1 | S19: =iCountryComp!AB25 -> 1 | T19: =iCountryComp!AC25 -> 1 | V19: =iCountryComp!AD25 -> 1.2) National environmental policy | X19: =iCountryComp!AE25 -> 50 | Y19: =iCountryComp!AF25 -> =21 | AA19: =iCountryComp!AG25 -> 87.5 | AB19: =iCountryComp!AH25 -> =4 | AD19: =iCountryComp!AI25 -> 50 | AE19: =iCountryComp!AJ25 -> =21 | AG19: =iCountryComp!AL25 -> 75 | AH19: =iCountryComp!AM25 -> =11 | AK19: 50 | AL19: 87.5 | AN19: 1.2) National environmental policy
R20: =iCountryComp!AU26 -> 1 | S20: =iCountryComp!AB26 -> 1 | T20: =iCountryComp!AC26 -> 1 | V20: =iCountryComp!AD26 -> 1.3) International water conventions | X20: =iCountryComp!AE26 -> 100 | Y20: =iCountryComp!AF26 -> =1 | AA20: =iCountryComp!AG26 -> 50 | AB20: =iCountryComp!AH26 -> =13 | AD20: =iCountryComp!AI26 -> 100 | AE20: =iCountryComp!AJ26 -> =1 | AG20: =iCountryComp!AL26 -> 50 | AH20: =iCountryComp!AM26 -> =13 | AK20: 50 | AL20: 100 | AN20: 1.3) International water conventions
R21: =iCountryComp!AU27 -> 2 | S21: =iCountryComp!AB27 -> 1 | T21: =iCountryComp!AC27 -> 1 | V21: =iCountryComp!AD27 -> 1.4) Basin water policy framework | X21: =iCountryComp!AE27 -> 30 | Y21: =iCountryComp!AF27 -> =21 | AA21: =iCountryComp!AG27 -> 23.3 | AB21: =iCountryComp!AH27 -> 27 | AD21: =iCountryComp!AI27 -> 30 | AE21: =iCountryComp!AJ27 -> =21 | AG21: =iCountryComp!AL27 -> 30 | AH21: =iCountryComp!AM27 -> =21 | AK21: 23.3 | AL21: 30 | AN21: 1.4) Basin water policy framework
R22: =iCountryComp!AU28 -> 0 | S22: =iCountryComp!AB28 -> 2 | T22: =iCountryComp!AC28 -> 1 | V22: =iCountryComp!AD28 -> 2) INSTITUTIONAL ARRANGEMENTS AND PARTICIPATION | X22: =iCountryComp!AE28 -> 59.7 | Y22: =iCountryComp!AF28 -> =16 | AA22: =iCountryComp!AG28 -> 52.8 | AB22: =iCountryComp!AH28 -> =22 | AD22: =iCountryComp!AI28 -> 65.3 | AE22: =iCountryComp!AJ28 -> =10 | AG22: =iCountryComp!AL28 -> 54.2 | AH22: =iCountryComp!AM28 -> =19 | AK22: 52.8 | AL22: 65.3 | AN22: =V22 -> 2) INSTITUTIONAL ARRANGEMENTS AND PARTICIPATION
R23: =iCountryComp!AU29 -> 1 | S23: =iCountryComp!AB29 -> 2 | T23: =iCountryComp!AC29 -> 1 | V23: =iCountryComp!AD29 -> 2.1) National water agency | X23: =iCountryComp!AE29 -> 50 | Y23: =iCountryComp!AF29 -> =23 | AA23: =iCountryComp!AG29 -> 100 | AB23: =iCountryComp!AH29 -> =1 | AD23: =iCountryComp!AI29 -> 100 | AE23: =iCountryComp!AJ29 -> =1 | AG23: =iCountryComp!AL29 -> 75 | AH23: =iCountryComp!AM29 -> =11 | AK23: 50 | AL23: 100 | AN23: 2.1) National water agency
R24: =iCountryComp!AU30 -> 1 | S24: =iCountryComp!AB30 -> 2 | T24: =iCountryComp!AC30 -> 1 | V24: =iCountryComp!AD30 -> 2.2) National stakeholder engagement | X24: =iCountryComp!AE30 -> 50 | Y24: =iCountryComp!AF30 -> =13 | AA24: =iCountryComp!AG30 -> 83.3 | AB24: =iCountryComp!AH30 -> =3 | AD24: =iCountryComp!AI30 -> 33.3 | AE24: =iCountryComp!AJ30 -> =18 | AG24: =iCountryComp!AL30 -> 16.7 | AH24: =iCountryComp!AM30 -> =28 | AK24: 16.7 | AL24: 83.3 | AN24: 2.2) National stakeholder engagement
R25: =iCountryComp!AU31 -> 1 | S25: =iCountryComp!AB31 -> 2 | T25: =iCountryComp!AC31 -> 1 | V25: =iCountryComp!AD31 -> 2.3) National data sharing | X25: =iCountryComp!AE31 -> 50 | Y25: =iCountryComp!AF31 -> =13 | AA25: =iCountryComp!AG31 -> 50 | AB25: =iCountryComp!AH31 -> =13 | AD25: =iCountryComp!AI31 -> 50 | AE25: =iCountryComp!AJ31 -> =13 | AG25: =iCountryComp!AL31 -> 25 | AH25: =iCountryComp!AM31 -> =22 | AK25: 25 | AL25: 50 | AN25: 2.3) National data sharing
R26: =iCountryComp!AU32 -> 2 | S26: =iCountryComp!AB32 -> 2 | T26: =iCountryComp!AC32 -> 1 | V26: =iCountryComp!AD32 -> 2.4) Basin level body | X26: =iCountryComp!AE32 -> 83.3 | Y26: =iCountryComp!AF32 -> =9 | AA26: =iCountryComp!AG32 -> 33.3 | AB26: =iCountryComp!AH32 -> 27 | AD26: =iCountryComp!AI32 -> 83.3 | AE26: =iCountryComp!AJ32 -> =9 | AG26: =iCountryComp!AL32 -> 83.3 | AH26: =iCountryComp!AM32 -> =9 | AK26: 33.3 | AL26: 83.3 | AN26: 2.4) Basin level body
R27: =iCountryComp!AU33 -> 2 | S27: =iCountryComp!AB33 -> 2 | T27: =iCountryComp!AC33 -> 1 | V27: =iCountryComp!AD33 -> 2.5) Basin stakeholder engagement | X27: =iCountryComp!AE33 -> 75 | Y27: =iCountryComp!AF33 -> =5 | AA27: =iCountryComp!AG33 -> 50 | AB27: =iCountryComp!AH33 -> =21 | AD27: =iCountryComp!AI33 -> 75 | AE27: =iCountryComp!AJ33 -> =5 | AG27: =iCountryComp!AL33 -> 75 | AH27: =iCountryComp!AM33 -> =5 | AK27: 50 | AL27: 75 | AN27: 2.5) Basin stakeholder engagement
R28: =iCountryComp!AU34 -> 2 | S28: =iCountryComp!AB34 -> 2 | T28: =iCountryComp!AC34 -> 1 | V28: =iCountryComp!AD34 -> 2.6) Basin data sharing | X28: =iCountryComp!AE34 -> 50 | Y28: =iCountryComp!AF34 -> =9 | AA28: =iCountryComp!AG34 -> 0 | AB28: =iCountryComp!AH34 -> =21 | AD28: =iCountryComp!AI34 -> 50 | AE28: =iCountryComp!AJ34 -> =9 | AG28: =iCountryComp!AL34 -> 50 | AH28: =iCountryComp!AM34 -> =9 | AK28: 0 | AL28: 50 | AN28: 2.6) Basin data sharing
R29: =iCountryComp!AU35 -> 0 | S29: =iCountryComp!AB35 -> 1 | T29: =iCountryComp!AC35 -> 1 | V29: =iCountryComp!AD35 -> 3) WATER MANAGEMENT INSTRUMENTS | X29: =iCountryComp!AE35 -> 41.7 | Y29: =iCountryComp!AF35 -> =17 | AA29: =iCountryComp!AG35 -> 45.8 | AB29: =iCountryComp!AH35 -> =15 | AD29: =iCountryComp!AI35 -> 41.7 | AE29: =iCountryComp!AJ35 -> =17 | AG29: =iCountryComp!AL35 -> 37.5 | AH29: =iCountryComp!AM35 -> =22 | AK29: 37.5 | AL29: 45.8 | AN29: 3) WATER MANAGEMENT INSTRUMENTS
R30: =iCountryComp!AU36 -> 1 | S30: =iCountryComp!AB36 -> 1 | T30: =iCountryComp!AC36 -> 1 | V30: =iCountryComp!AD36 -> 3.1) Water availability management | X30: =iCountryComp!AE36 -> 75 | Y30: =iCountryComp!AF36 -> =6 | AA30: =iCountryComp!AG36 -> 75 | AB30: =iCountryComp!AH36 -> =6 | AD30: =iCountryComp!AI36 -> 75 | AE30: =iCountryComp!AJ36 -> =6 | AG30: =iCountryComp!AL36 -> 50 | AH30: =iCountryComp!AM36 -> =14 | AK30: 50 | AL30: 75 | AN30: 3.1) Water availability management
R31: =iCountryComp!AU37 -> 1 | S31: =iCountryComp!AB37 -> 1 | T31: =iCountryComp!AC37 -> 1 | V31: =iCountryComp!AD37 -> 3.2) Pollution control | X31: =iCountryComp!AE37 -> 75 | Y31: =iCountryComp!AF37 -> =5 | AA31: =iCountryComp!AG37 -> 50 | AB31: =iCountryComp!AH37 -> =12 | AD31: =iCountryComp!AI37 -> 50 | AE31: =iCountryComp!AJ37 -> =12 | AG31: =iCountryComp!AL37 -> 50 | AH31: =iCountryComp!AM37 -> =12 | AK31: 50 | AL31: 75 | AN31: 3.2) Pollution control
R32: =iCountryComp!AU38 -> 1 | S32: =iCountryComp!AB38 -> 1 | T32: =iCountryComp!AC38 -> 1 | V32: =iCountryComp!AD38 -> 3.3) National disaster management | X32: =iCountryComp!AE38 -> 50 | Y32: =iCountryComp!AF38 -> =15 | AA32: =iCountryComp!AG38 -> 75 | AB32: =iCountryComp!AH38 -> =7 | AD32: =iCountryComp!AI38 -> 50 | AE32: =iCountryComp!AJ38 -> =15 | AG32: =iCountryComp!AL38 -> 50 | AH32: =iCountryComp!AM38 -> =15 | AK32: 50 | AL32: 75 | AN32: 3.3) National disaster management
R33: =iCountryComp!AU39 -> 2 | S33: =iCountryComp!AB39 -> 1 | T33: =iCountryComp!AC39 -> 1 | V33: =iCountryComp!AD39 -> 3.4) Basin water availability management | X33: =iCountryComp!AE39 -> 25 | Y33: =iCountryComp!AF39 -> =17 | AA33: =iCountryComp!AG39 -> 25 | AB33: =iCountryComp!AH39 -> =17 | AD33: =iCountryComp!AI39 -> 25 | AE33: =iCountryComp!AJ39 -> =17 | AG33: =iCountryComp!AL39 -> 25 | AH33: =iCountryComp!AM39 -> =17 | AK33: 25 | AL33: 25 | AN33: 3.4) Basin water availability management
R34: =iCountryComp!AU40 -> 2 | S34: =iCountryComp!AB40 -> 1 | T34: =iCountryComp!AC40 -> 1 | V34: =iCountryComp!AD40 -> 3.5) Basin pollution control | X34: =iCountryComp!AE40 -> 0 | Y34: =iCountryComp!AF40 -> =13 | AA34: =iCountryComp!AG40 -> 0 | AB34: =iCountryComp!AH40 -> =13 | AD34: =iCountryComp!AI40 -> 0 | AE34: =iCountryComp!AJ40 -> =13 | AG34: =iCountryComp!AL40 -> 0 | AH34: =iCountryComp!AM40 -> =13 | AK34: 0 | AL34: 0 | AN34: 3.5) Basin pollution control
R35: =iCountryComp!AU41 -> 2 | S35: =iCountryComp!AB41 -> 1 | T35: =iCountryComp!AC41 -> 1 | V35: =iCountryComp!AD41 -> 3.6) Basin disaster management | X35: =iCountryComp!AE41 -> 25 | Y35: =iCountryComp!AF41 -> =21 | AA35: =iCountryComp!AG41 -> 50 | AB35: =iCountryComp!AH41 -> =8 | AD35: =iCountryComp!AI41 -> 50 | AE35: =iCountryComp!AJ41 -> =8 | AG35: =iCountryComp!AL41 -> 50 | AH35: =iCountryComp!AM41 -> =8 | AK35: 25 | AL35: 50 | AN35: 3.6) Basin disaster management
R36: =iCountryComp!AU42 -> 0 | S36: =iCountryComp!AB42 -> 2 | T36: =iCountryComp!AC42 -> 1 | V36: =iCountryComp!AD42 -> 4) INFRASTRUCTURE AND FINANCING | X36: =iCountryComp!AE42 -> 45.9 | Y36: =iCountryComp!AF42 -> 15 | AA36: =iCountryComp!AG42 -> 26.3 | AB36: =iCountryComp!AH42 -> 27 | AD36: =iCountryComp!AI42 -> 44.4 | AE36: =iCountryComp!AJ42 -> =17 | AG36: =iCountryComp!AL42 -> 37.1 | AH36: =iCountryComp!AM42 -> =21 | AK36: 26.3 | AL36: 45.9 | AN36: 4) INFRASTRUCTURE AND FINANCING
R37: =iCountryComp!AU43 -> 1 | S37: =iCountryComp!AB43 -> 2 | T37: =iCountryComp!AC43 -> 1 | V37: =iCountryComp!AD43 -> 4.1) National-level investment | X37: =iCountryComp!AE43 -> 59.7 | Y37: =iCountryComp!AF43 -> 10 | AA37: =iCountryComp!AG43 -> 42.4 | AB37: =iCountryComp!AH43 -> 20 | AD37: =iCountryComp!AI43 -> 56 | AE37: =iCountryComp!AJ43 -> =14 | AG37: =iCountryComp!AL43 -> 39.6 | AH37: =iCountryComp!AM43 -> =22 | AK37: 39.6 | AL37: 59.7 | AN37: 4.1) National-level investment
R38: =iCountryComp!AU44 -> 1 | S38: =iCountryComp!AB44 -> 2 | T38: =iCountryComp!AC44 -> 2 | V38: =iCountryComp!AD44 -> 4.2) Private sector investment | X38: =iCountryComp!AE44 -> 16 | Y38: =iCountryComp!AF44 -> 21 | AA38: =iCountryComp!AG44 -> 15.3 | AB38: =iCountryComp!AH44 -> =27 | AD38: =iCountryComp!AI44 -> 15.4 | AE38: =iCountryComp!AJ44 -> =25 | AG38: =iCountryComp!AL44 -> 15.3 | AH38: =iCountryComp!AM44 -> =27 | AK38: 15.3 | AL38: 16 | AN38: 4.2) Private sector investment
R39: =iCountryComp!AU45 -> 1 | S39: =iCountryComp!AB45 -> 2 | T39: =iCountryComp!AC45 -> 1 | V39: =iCountryComp!AD45 -> 4.3) Investment climate | X39: =iCountryComp!AE45 -> 79 | Y39: =iCountryComp!AF45 -> 1 | AA39: =iCountryComp!AG45 -> 73.7 | AB39: =iCountryComp!AH45 -> 5 | AD39: =iCountryComp!AI45 -> 50.8 | AE39: =iCountryComp!AJ45 -> =18 | AG39: =iCountryComp!AL45 -> 55.6 | AH39: =iCountryComp!AM45 -> =12 | AK39: 50.8 | AL39: 79 | AN39: 4.3) Investment climate
R40: =iCountryComp!AU46 -> 2 | S40: =iCountryComp!AB46 -> 2 | T40: =iCountryComp!AC46 -> 1 | V40: =iCountryComp!AD46 -> 4.4) RBO operational financing | X40: =iCountryComp!AE46 -> 75 | Y40: =iCountryComp!AF46 -> =7 | AA40: =iCountryComp!AG46 -> 0 | AB40: =iCountryComp!AH46 -> =26 | AD40: =iCountryComp!AI46 -> 100 | AE40: =iCountryComp!AJ46 -> =1 | AG40: =iCountryComp!AL46 -> 75 | AH40: =iCountryComp!AM46 -> =7 | AK40: 0 | AL40: 100 | AN40: 4.4) RBO operational financing
R41: =iCountryComp!AU47 -> 2 | S41: =iCountryComp!AB47 -> 2 | T41: =iCountryComp!AC47 -> 1 | V41: =iCountryComp!AD47 -> 4.5) Basin infrastructure financing | X41: =iCountryComp!AE47 -> 0 | Y41: =iCountryComp!AF47 -> =9 | AA41: =iCountryComp!AG47 -> 0 | AB41: =iCountryComp!AH47 -> =9 | AD41: =iCountryComp!AI47 -> 0 | AE41: =iCountryComp!AJ47 -> =9 | AG41: =iCountryComp!AL47 -> 0 | AH41: =iCountryComp!AM47 -> =9 | AK41: 0 | AL41: 0 | AN41: 4.5) Basin infrastructure financing
R42: =iCountryComp!AU48 -> 0 | S42: =iCountryComp!AB48 -> 1 | T42: =iCountryComp!AC48 -> 1 | V42: =iCountryComp!AD48 -> 5) COOPERATION CONTEXT | X42: =iCountryComp!AE48 -> 61 | Y42: =iCountryComp!AF48 -> =11 | AA42: =iCountryComp!AG48 -> 55 | AB42: =iCountryComp!AH48 -> 16 | AD42: =iCountryComp!AI48 -> 39.6 | AE42: =iCountryComp!AJ48 -> 24 | AG42: =iCountryComp!AL48 -> 43.7 | AH42: =iCountryComp!AM48 -> 23 | AK42: 39.6 | AL42: 61 | AN42: 5) COOPERATION CONTEXT
R43: =iCountryComp!AU49 -> 1 | S43: =iCountryComp!AB49 -> 1 | T43: =iCountryComp!AC49 -> 1 | V43: =iCountryComp!AD49 -> 5.1) Water stress | X43: =iCountryComp!AE49 -> 43.9 | Y43: =iCountryComp!AF49 -> 19 | AA43: =iCountryComp!AG49 -> 35.9 | AB43: =iCountryComp!AH49 -> 23 | AD43: =iCountryComp!AI49 -> 11 | AE43: =iCountryComp!AJ49 -> =31 | AG43: =iCountryComp!AL49 -> 29.5 | AH43: =iCountryComp!AM49 -> =26 | AK43: 11 | AL43: 43.9 | AN43: 5.1) Water stress
R44: =iCountryComp!AU50 -> 1 | S44: =iCountryComp!AB50 -> 1 | T44: =iCountryComp!AC50 -> 1 | V44: =iCountryComp!AD50 -> 5.2) Socio-economic exposure | X44: =iCountryComp!AE50 -> 70.8 | Y44: =iCountryComp!AF50 -> 8 | AA44: =iCountryComp!AG50 -> 65.6 | AB44: =iCountryComp!AH50 -> =15 | AD44: =iCountryComp!AI50 -> 49 | AE44: =iCountryComp!AJ50 -> =22 | AG44: =iCountryComp!AL50 -> 45.1 | AH44: =iCountryComp!AM50 -> =25 | AK44: 45.1 | AL44: 70.8 | AN44: 5.2) Socio-economic exposure
R45: =iCountryComp!AU51 -> 1 | S45: =iCountryComp!AB51 -> 1 | T45: =iCountryComp!AC51 -> 1 | V45: =iCountryComp!AD51 -> 5.3) Political stability | X45: =iCountryComp!AE51 -> 50.2 | Y45: =iCountryComp!AF51 -> 10 | AA45: =iCountryComp!AG51 -> 44.2 | AB45: =iCountryComp!AH51 -> 14 | AD45: =iCountryComp!AI51 -> 31.9 | AE45: =iCountryComp!AJ51 -> =20 | AG45: =iCountryComp!AL51 -> 23 | AH45: =iCountryComp!AM51 -> =30 | AK45: 23 | AL45: 50.2 | AN45: 5.3) Political stability
R46: =iCountryComp!AU52 -> 2 | S46: =iCountryComp!AB52 -> 1 | T46: =iCountryComp!AC52 -> 1 | V46: =iCountryComp!AD52 -> 5.4) Propensity to conflict | X46: =iCountryComp!AE52 -> 71.7 | Y46: =iCountryComp!AF52 -> =11 | AA46: =iCountryComp!AG52 -> 55.2 | AB46: =iCountryComp!AH52 -> 19 | AD46: =iCountryComp!AI52 -> 51.7 | AE46: =iCountryComp!AJ52 -> =22 | AG46: =iCountryComp!AL52 -> 59.2 | AH46: =iCountryComp!AM52 -> =16 | AK46: 51.7 | AL46: 71.7 | AN46: 5.4) Propensity to conflict
R47: =iCountryComp!AU53 -> 2 | S47: =iCountryComp!AB53 -> 1 | T47: =iCountryComp!AC53 -> 1 | V47: =iCountryComp!AD53 -> 5.5) Economic relations with basin states | X47: =iCountryComp!AE53 -> 68.2 | Y47: =iCountryComp!AF53 -> 7 | AA47: =iCountryComp!AG53 -> 74.1 | AB47: =iCountryComp!AH53 -> 3 | AD47: =iCountryComp!AI53 -> 54.2 | AE47: =iCountryComp!AJ53 -> 17 | AG47: =iCountryComp!AL53 -> 61.6 | AH47: =iCountryComp!AM53 -> 11 | AK47: 54.2 | AL47: 74.1 | AN47: 5.5) Economic relations with basin states
R48: =iCountryComp!AU54 ->  | S48: =iCountryComp!AB54 -> 0 | T48: =iCountryComp!AC54 -> 0 | V48: =iCountryComp!AD54 ->  | X48: =iCountryComp!AE54 ->  | Y48: =iCountryComp!AF54 ->  | AA48: =iCountryComp!AG54 ->  | AB48: =iCountryComp!AH54 ->  | AD48: =iCountryComp!AI54 ->  | AE48: =iCountryComp!AJ54 ->  | AG48: =iCountryComp!AL54 ->  | AH48: =iCountryComp!AM54 ->  | AK48: 0 | AL48: 0
R49: =iCountryComp!AU55 ->  | S49: =iCountryComp!AB55 -> 0 | T49: =iCountryComp!AC55 -> 0 | V49: =iCountryComp!AD55 ->  | X49: =iCountryComp!AE55 ->  | Y49: =iCountryComp!AF55 ->  | AA49: =iCountryComp!AG55 ->  | AB49: =iCountryComp!AH55 ->  | AD49: =iCountryComp!AI55 ->  | AE49: =iCountryComp!AJ55 ->  | AG49: =iCountryComp!AL55 ->  | AH49: =iCountryComp!AM55 ->  | AK49: 0 | AL49: 0
R50: =iCountryComp!AU56 ->  | S50: =iCountryComp!AB56 -> 0 | T50: =iCountryComp!AC56 -> 0 | V50: =iCountryComp!AD56 ->  | X50: =iCountryComp!AE56 ->  | Y50: =iCountryComp!AF56 ->  | AA50: =iCountryComp!AG56 ->  | AB50: =iCountryComp!AH56 ->  | AD50: =iCountryComp!AI56 ->  | AE50: =iCountryComp!AJ56 ->  | AG50: =iCountryComp!AL56 ->  | AH50: =iCountryComp!AM56 ->  | AK50: 0 | AL50: 0
R51: =iCountryComp!AU57 ->  | S51: =iCountryComp!AB57 -> 0 | T51: =iCountryComp!AC57 -> 0 | V51: =iCountryComp!AD57 ->  | X51: =iCountryComp!AE57 ->  | Y51: =iCountryComp!AF57 ->  | AA51: =iCountryComp!AG57 ->  | AB51: =iCountryComp!AH57 ->  | AD51: =iCountryComp!AI57 ->  | AE51: =iCountryComp!AJ57 ->  | AG51: =iCountryComp!AL57 ->  | AH51: =iCountryComp!AM57 ->  | AK51: 0 | AL51: 0
R52: =iCountryComp!AU58 ->  | S52: =iCountryComp!AB58 -> 0 | T52: =iCountryComp!AC58 -> 0 | V52: =iCountryComp!AD58 ->  | X52: =iCountryComp!AE58 ->  | Y52: =iCountryComp!AF58 ->  | AA52: =iCountryComp!AG58 ->  | AB52: =iCountryComp!AH58 ->  | AD52: =iCountryComp!AI58 ->  | AE52: =iCountryComp!AJ58 ->  | AG52: =iCountryComp!AL58 ->  | AH52: =iCountryComp!AM58 ->  | AK52: 0 | AL52: 0
R53: =iCountryComp!AU59 ->  | S53: =iCountryComp!AB59 -> 0 | T53: =iCountryComp!AC59 -> 0 | V53: =iCountryComp!AD59 ->  | X53: =iCountryComp!AE59 ->  | Y53: =iCountryComp!AF59 ->  | AA53: =iCountryComp!AG59 ->  | AB53: =iCountryComp!AH59 ->  | AD53: =iCountryComp!AI59 ->  | AE53: =iCountryComp!AJ59 ->  | AG53: =iCountryComp!AL59 ->  | AH53: =iCountryComp!AM59 ->  | AK53: 0 | AL53: 0
R54: =iCountryComp!AU60 ->  | S54: =iCountryComp!AB60 -> 0 | T54: =iCountryComp!AC60 -> 0 | V54: =iCountryComp!AD60 ->  | X54: =iCountryComp!AE60 ->  | Y54: =iCountryComp!AF60 ->  | AA54: =iCountryComp!AG60 ->  | AB54: =iCountryComp!AH60 ->  | AD54: =iCountryComp!AI60 ->  | AE54: =iCountryComp!AJ60 ->  | AG54: =iCountryComp!AL60 ->  | AH54: =iCountryComp!AM60 ->  | AK54: 0 | AL54: 0
R55: =iCountryComp!AU61 ->  | S55: =iCountryComp!AB61 -> 0 | T55: =iCountryComp!AC61 -> 0 | V55: =iCountryComp!AD61 ->  | X55: =iCountryComp!AE61 ->  | Y55: =iCountryComp!AF61 ->  | AA55: =iCountryComp!AG61 ->  | AB55: =iCountryComp!AH61 ->  | AD55: =iCountryComp!AI61 ->  | AE55: =iCountryComp!AJ61 ->  | AG55: =iCountryComp!AL61 ->  | AH55: =iCountryComp!AM61 ->  | AK55: 0 | AL55: 0
R56: =iCountryComp!AU62 ->  | S56: =iCountryComp!AB62 -> 0 | T56: =iCountryComp!AC62 -> 0 | V56: =iCountryComp!AD62 ->  | X56: =iCountryComp!AE62 ->  | Y56: =iCountryComp!AF62 ->  | AA56: =iCountryComp!AG62 ->  | AB56: =iCountryComp!AH62 ->  | AD56: =iCountryComp!AI62 ->  | AE56: =iCountryComp!AJ62 ->  | AG56: =iCountryComp!AL62 ->  | AH56: =iCountryComp!AM62 ->  | AK56: 0 | AL56: 0
R57: =iCountryComp!AU63 ->  | S57: =iCountryComp!AB63 -> 0 | T57: =iCountryComp!AC63 -> 0 | V57: =iCountryComp!AD63 ->  | X57: =iCountryComp!AE63 ->  | Y57: =iCountryComp!AF63 ->  | AA57: =iCountryComp!AG63 ->  | AB57: =iCountryComp!AH63 ->  | AD57: =iCountryComp!AI63 ->  | AE57: =iCountryComp!AJ63 ->  | AG57: =iCountryComp!AL63 ->  | AH57: =iCountryComp!AM63 ->  | AK57: 0 | AL57: 0
R58: =iCountryComp!AU64 ->  | S58: =iCountryComp!AB64 -> 0 | T58: =iCountryComp!AC64 -> 0 | V58: =iCountryComp!AD64 ->  | X58: =iCountryComp!AE64 ->  | Y58: =iCountryComp!AF64 ->  | AA58: =iCountryComp!AG64 ->  | AB58: =iCountryComp!AH64 ->  | AD58: =iCountryComp!AI64 ->  | AE58: =iCountryComp!AJ64 ->  | AG58: =iCountryComp!AL64 ->  | AH58: =iCountryComp!AM64 ->  | AK58: 0 | AL58: 0

Sheet Scatter
A1: =uxb_works!B92 -> Blue Peace: 2020 | BA1: 1 | BB1: 5
A4: =uxb_works!B111 -> 2 | B4: =uxb_works!C111 -> Hide options | C4: =uxb_works!D111 -> Hide options | D4: =uxb_works!E111 -> Click for more options | E4: =uxb_works!F111 -> 0 | F4: =uxb_works!G111 -> 0 | G4: =uxb_works!H111 -> 0 | H4: =uxb_works!I111 -> 0 | I4: =uxb_works!J111 -> 0 | J4: =uxb_works!K111 -> 0 | K4: =uxb_works!L111 -> 0 | L4: =uxb_works!M111 -> 0 | M4: =uxb_works!N111 -> 0 | N4: =uxb_works!O111 -> 0 | O4: =uxb_works!P111 -> 0 | P4: =uxb_works!Q111 -> 0 | Q4: =uxb_works!R111 -> 0 | R4: =uxb_works!S111 -> 0 | S4: =uxb_works!T111 -> 0 | T4: =uxb_works!U111 -> 0 | U4: =uxb_works!V111 -> 0
B6: =uxb_works!$C$5 -> The active weight profile has been changed from its default setting
B8: =uxb_works!D67 -> Active river basin: <no filter>
B11: =iScatter!G1 -> OVERALL SCORE | H11: =iScatter!G2 -> OVERALL SCORE
B12: =IF(iScatter!B1=1,"",iScatter!F1) ->  | H12: =IF(iScatter!B2=1,"",iScatter!F2) -> 1) POLICY AND LEGAL FRAMEWORKS
S26: CORRELATION(X,Y)
R27: =IF(ISERROR(iScatter!B14),"n/a",iScatter!B14) -> 0.7924788336

Sheet Correlations
A1: =uxb_works!B92 -> Blue Peace: 2020 | BA1: 1 | BB1: 6
A4: =uxb_works!B111 -> 2
D6: =uxb_works!$C$5 -> The active weight profile has been changed from its default setting
D8: =uxb_works!D67 -> Active river basin: <no filter>
H22: Compare
H23: =UPPER(iCorrel1!C6) -> OVERALL SCORE
H24: with *
F25: Most postive correlations | K25: Most negative correlations
E26: =MAX(G26,L26) -> 55 | G26: =MAX(COUNT(G27:G95),1) -> 55 | L26: =MAX(COUNT(L27:L95),1) -> 19
E27: =iCorrel1!N8 -> 4 | F27: =TRIM(iCorrel1!O8) -> 2) INSTITUTIONAL ARRANGEMENTS AND PARTICIPATION | G27: =iCorrel1!P8 -> 0.9 | J27: =iCorrel1!T8 -> 2 | K27: =TRIM(iCorrel1!U8) -> P1) Political Stability Risk | L27: =iCorrel1!V8 -> -0.76
E28: =iCorrel1!N9 -> 4 | F28: =TRIM(iCorrel1!O9) -> 4) INFRASTRUCTURE AND FINANCING | G28: =iCorrel1!P9 -> 0.9 | J28: =iCorrel1!T9 -> 1 | K28: =TRIM(iCorrel1!U9) -> EN2) Environmental water stress | L28: =iCorrel1!V9 -> -0.58
E29: =iCorrel1!N10 -> 3 | F29: =TRIM(iCorrel1!O10) -> 3) WATER MANAGEMENT INSTRUMENTS | G29: =iCorrel1!P10 -> 0.88 | J29: =iCorrel1!T10 -> 1 | K29: =TRIM(iCorrel1!U10) -> EN3) Human water stress | L29: =iCorrel1!V10 -> -0.52
E30: =iCorrel1!N11 -> 3 | F30: =TRIM(iCorrel1!O11) -> 5) COOPERATION CONTEXT | G30: =iCorrel1!P11 -> 0.87 | J30: =iCorrel1!T11 -> 1 | K30: =TRIM(iCorrel1!U11) -> S8) Gender Inequality Index | L30: =iCorrel1!V11 -> -0.47
E31: =iCorrel1!N12 -> 3 | F31: =TRIM(iCorrel1!O12) -> 5.4) Propensity to conflict | G31: =iCorrel1!P12 -> 0.83 | J31: =iCorrel1!T12 -> 1 | K31: =TRIM(iCorrel1!U12) -> S5) Young age (0-14) dependency ratio (per 100 people aged 15-64) | L31: =iCorrel1!V12 -> -0.39
E32: =iCorrel1!N13 -> 2 | F32: =TRIM(iCorrel1!O13) -> 1) POLICY AND LEGAL FRAMEWORKS | G32: =iCorrel1!P13 -> 0.79 | J32: =iCorrel1!T13 -> 1 | K32: =TRIM(iCorrel1!U13) -> S3) Population growth projection | L32: =iCorrel1!V13 -> -0.37
E33: =iCorrel1!N14 -> 2 | F33: =TRIM(iCorrel1!O14) -> 1.4) Basin water policy framework | G33: =iCorrel1!P14 -> 0.79 | J33: =iCorrel1!T14 -> 1 | K33: =TRIM(iCorrel1!U14) -> EN5) Cereal import dependency ratio | L33: =iCorrel1!V14 -> -0.29
E34: =iCorrel1!N15 -> 2 | F34: =TRIM(iCorrel1!O15) -> 2.4) Basin level body | G34: =iCorrel1!P15 -> 0.78 | J34: =iCorrel1!T15 -> 1 | K34: =TRIM(iCorrel1!U15) -> EN6) Interannual variability (WRI) | L34: =iCorrel1!V15 -> -0.29
E35: =iCorrel1!N16 -> 2 | F35: =TRIM(iCorrel1!O16) -> 3.4) Basin water availability management | G35: =iCorrel1!P16 -> 0.78 | J35: =iCorrel1!T16 -> 1 | K35: =TRIM(iCorrel1!U16) -> EN14) Species habitat index | L35: =iCorrel1!V16 -> -0.28
E36: =iCorrel1!N17 -> 2 | F36: =TRIM(iCorrel1!O17) -> P3) Corruption Perception Index | G36: =iCorrel1!P17 -> 0.77 | J36: =iCorrel1!T17 -> 1 | K36: =TRIM(iCorrel1!U17) -> EN10) Total virtual water flows | L36: =iCorrel1!V17 -> -0.23
E37: =iCorrel1!N18 -> 2 | F37: =TRIM(iCorrel1!O18) -> 5.5) Economic relations with basin states | G37: =iCorrel1!P18 -> 0.75 | J37: =iCorrel1!T18 -> 1 | K37: =TRIM(iCorrel1!U18) -> EN8) Total water footprint of national consumption | L37: =iCorrel1!V18 -> -0.21
E38: =iCorrel1!N19 -> 2 | F38: =TRIM(iCorrel1!O19) -> 1.1) National water policy | G38: =iCorrel1!P19 -> 0.74 | J38: =iCorrel1!T19 -> 1 | K38: =TRIM(iCorrel1!U19) -> EN16) ND Gain Vulnerability Index | L38: =iCorrel1!V19 -> -0.12
E39: =iCorrel1!N20 -> 2 | F39: =TRIM(iCorrel1!O20) -> 5.3) Political stability | G39: =iCorrel1!P20 -> 0.74 | J39: =iCorrel1!T20 -> 1 | K39: =TRIM(iCorrel1!U20) -> EN7) Seasonal variability (WRI) | L39: =iCorrel1!V20 -> -0.11
E40: =iCorrel1!N21 -> 2 | F40: =TRIM(iCorrel1!O21) -> 2.3) National data sharing | G40: =iCorrel1!P21 -> 0.7 | J40: =iCorrel1!T21 -> 1 | K40: =TRIM(iCorrel1!U21) -> S9) Access to electricity (% of population) | L40: =iCorrel1!V21 -> -0.11
E41: =iCorrel1!N22 -> 2 | F41: =TRIM(iCorrel1!O22) -> 3.6) Basin disaster management | G41: =iCorrel1!P22 -> 0.7 | J41: =iCorrel1!T22 -> 1 | K41: =TRIM(iCorrel1!U22) -> EC3) Poverty headcount ratio at $1.90 a day (2011 PPP) (% of population) | L41: =iCorrel1!V22 -> -0.08
E42: =iCorrel1!N23 -> 1 | F42: =TRIM(iCorrel1!O23) -> 4.1) National-level investment | G42: =iCorrel1!P23 -> 0.68 | J42: =iCorrel1!T23 -> 1 | K42: =TRIM(iCorrel1!U23) -> EC7) Inward FDI flows (% of GDP) | L42: =iCorrel1!V23 -> -0.04
E43: =iCorrel1!N24 -> 1 | F43: =TRIM(iCorrel1!O24) -> 1.2) National environmental policy | G43: =iCorrel1!P24 -> 0.66 | J43: =iCorrel1!T24 -> 1 | K43: =TRIM(iCorrel1!U24) -> S2) Population projection 2050 | L43: =iCorrel1!V24 -> -0.03
E44: =iCorrel1!N25 -> 1 | F44: =TRIM(iCorrel1!O25) -> 4.4) RBO operational financing | G44: =iCorrel1!P25 -> 0.65 | J44: =iCorrel1!T25 -> 1 | K44: =TRIM(iCorrel1!U25) -> S4) Rural population (% of total population) | L44: =iCorrel1!V25 -> -0.02
E45: =iCorrel1!N26 -> 1 | F45: =TRIM(iCorrel1!O26) -> 2.5) Basin stakeholder engagement | G45: =iCorrel1!P26 -> 0.63 | J45: =iCorrel1!T26 -> 1 | K45: =TRIM(iCorrel1!U26) -> S1) Population, total (thousands) | L45: =iCorrel1!V26 -> -0.01
E46: =iCorrel1!N27 -> 1 | F46: =TRIM(iCorrel1!O27) -> 4.3) Investment climate | G46: =iCorrel1!P27 -> 0.63 | J46: =iCorrel1!T27 -> 0 | K46: =TRIM(iCorrel1!U27) ->  | L46: =iCorrel1!V27 -> 
E47: =iCorrel1!N28 -> 1 | F47: =TRIM(iCorrel1!O28) -> P2) Democracy Index | G47: =iCorrel1!P28 -> 0.62 | J47: =iCorrel1!T28 -> 0 | K47: =TRIM(iCorrel1!U28) ->  | L47: =iCorrel1!V28 -> 
E48: =iCorrel1!N29 -> 1 | F48: =TRIM(iCorrel1!O29) -> 3.5) Basin pollution control | G48: =iCorrel1!P29 -> 0.61 | J48: =iCorrel1!T29 -> 0 | K48: =TRIM(iCorrel1!U29) ->  | L48: =iCorrel1!V29 -> 
E49: =iCorrel1!N30 -> 1 | F49: =TRIM(iCorrel1!O30) -> 2.6) Basin data sharing | G49: =iCorrel1!P30 -> 0.56 | J49: =iCorrel1!T30 -> 0 | K49: =TRIM(iCorrel1!U30) ->  | L49: =iCorrel1!V30 -> 
E50: =iCorrel1!N31 -> 1 | F50: =TRIM(iCorrel1!O31) -> 5.1) Water stress | G50: =iCorrel1!P31 -> 0.52 | J50: =iCorrel1!T31 -> 0 | K50: =TRIM(iCorrel1!U31) ->  | L50: =iCorrel1!V31 -> 
E51: =iCorrel1!N32 -> 1 | F51: =TRIM(iCorrel1!O32) -> 4.2) Private sector investment | G51: =iCorrel1!P32 -> 0.51 | J51: =iCorrel1!T32 -> 0 | K51: =TRIM(iCorrel1!U32) ->  | L51: =iCorrel1!V32 -> 
E52: =iCorrel1!N33 -> 1 | F52: =TRIM(iCorrel1!O33) -> EC4) Exports of goods and services (% of GDP) | G52: =iCorrel1!P33 -> 0.49 | J52: =iCorrel1!T33 -> 0 | K52: =TRIM(iCorrel1!U33) ->  | L52: =iCorrel1!V33 -> 
E53: =iCorrel1!N34 -> 1 | F53: =TRIM(iCorrel1!O34) -> 3.2) National pollution control | G53: =iCorrel1!P34 -> 0.48 | J53: =iCorrel1!T34 -> 0 | K53: =TRIM(iCorrel1!U34) ->  | L53: =iCorrel1!V34 -> 
E54: =iCorrel1!N35 -> 1 | F54: =TRIM(iCorrel1!O35) -> EN15) Environmental Performance Index | G54: =iCorrel1!P35 -> 0.48 | J54: =iCorrel1!T35 -> 0 | K54: =TRIM(iCorrel1!U35) ->  | L54: =iCorrel1!V35 -> 
E55: =iCorrel1!N36 -> 1 | F55: =TRIM(iCorrel1!O36) -> 5.2) Socio-economic exposure | G55: =iCorrel1!P36 -> 0.46 | J55: =iCorrel1!T36 -> 0 | K55: =TRIM(iCorrel1!U36) ->  | L55: =iCorrel1!V36 -> 
E56: =iCorrel1!N37 -> 1 | F56: =TRIM(iCorrel1!O37) -> S12) Expected years of schooling, female (years) | G56: =iCorrel1!P37 -> 0.46 | J56: =iCorrel1!T37 -> 0 | K56: =TRIM(iCorrel1!U37) ->  | L56: =iCorrel1!V37 -> 
E57: =iCorrel1!N38 -> 1 | F57: =TRIM(iCorrel1!O38) -> P6) Regulatory quality | G57: =iCorrel1!P38 -> 0.46 | J57: =iCorrel1!T38 -> 0 | K57: =TRIM(iCorrel1!U38) ->  | L57: =iCorrel1!V38 -> 
E58: =iCorrel1!N39 -> 1 | F58: =TRIM(iCorrel1!O39) -> 3.3) National disaster management | G58: =iCorrel1!P39 -> 0.43 | J58: =iCorrel1!T39 -> 0 | K58: =TRIM(iCorrel1!U39) ->  | L58: =iCorrel1!V39 -> 
E59: =iCorrel1!N40 -> 1 | F59: =TRIM(iCorrel1!O40) -> P5) Rule of Law | G59: =iCorrel1!P40 -> 0.43 | J59: =iCorrel1!T40 -> 0 | K59: =TRIM(iCorrel1!U40) ->  | L59: =iCorrel1!V40 -> 
E60: =iCorrel1!N41 -> 1 | F60: =TRIM(iCorrel1!O41) -> P4) Voice and accountability | G60: =iCorrel1!P41 -> 0.42 | J60: =iCorrel1!T41 -> 0 | K60: =TRIM(iCorrel1!U41) ->  | L60: =iCorrel1!V41 -> 
E61: =iCorrel1!N42 -> 1 | F61: =TRIM(iCorrel1!O42) -> 2.2) National stakeholder engagement | G61: =iCorrel1!P42 -> 0.41 | J61: =iCorrel1!T42 -> 0 | K61: =TRIM(iCorrel1!U42) ->  | L61: =iCorrel1!V42 -> 
E62: =iCorrel1!N43 -> 1 | F62: =TRIM(iCorrel1!O43) -> 3.1) Water availability management | G62: =iCorrel1!P43 -> 0.39 | J62: =iCorrel1!T43 -> 0 | K62: =TRIM(iCorrel1!U43) ->  | L62: =iCorrel1!V43 -> 
E63: =iCorrel1!N44 -> 1 | F63: =TRIM(iCorrel1!O44) -> EN1) Total renewable water resources per capita | G63: =iCorrel1!P44 -> 0.35 | J63: =iCorrel1!T44 -> 0 | K63: =TRIM(iCorrel1!U44) ->  | L63: =iCorrel1!V44 -> 
E64: =iCorrel1!N45 -> 1 | F64: =TRIM(iCorrel1!O45) -> S7) GINI index (World Bank estimate) | G64: =iCorrel1!P45 -> 0.33 | J64: =iCorrel1!T45 -> 0 | K64: =TRIM(iCorrel1!U45) ->  | L64: =iCorrel1!V45 -> 
E65: =iCorrel1!N46 -> 1 | F65: =TRIM(iCorrel1!O46) -> S6) Human Development Index | G65: =iCorrel1!P46 -> 0.3 | J65: =iCorrel1!T46 -> 0 | K65: =TRIM(iCorrel1!U46) ->  | L65: =iCorrel1!V46 -> 
E66: =iCorrel1!N47 -> 1 | F66: =TRIM(iCorrel1!O47) -> EC5) Imports of goods and services (% of GDP) | G66: =iCorrel1!P47 -> 0.3 | J66: =iCorrel1!T47 -> 0 | K66: =TRIM(iCorrel1!U47) ->  | L66: =iCorrel1!V47 -> 
E67: =iCorrel1!N48 -> 1 | F67: =TRIM(iCorrel1!O48) -> 4.5) Basin infrastructure financing | G67: =iCorrel1!P48 -> 0.29 | J67: =iCorrel1!T48 -> 0 | K67: =TRIM(iCorrel1!U48) ->  | L67: =iCorrel1!V48 -> 
E68: =iCorrel1!N49 -> 1 | F68: =TRIM(iCorrel1!O49) -> 2.1) National water agency | G68: =iCorrel1!P49 -> 0.27 | J68: =iCorrel1!T49 -> 0 | K68: =TRIM(iCorrel1!U49) ->  | L68: =iCorrel1!V49 -> 
E69: =iCorrel1!N50 -> 1 | F69: =TRIM(iCorrel1!O50) -> EN12) Threat to fish | G69: =iCorrel1!P50 -> 0.27 | J69: =iCorrel1!T50 -> 0 | K69: =TRIM(iCorrel1!U50) ->  | L69: =iCorrel1!V50 -> 
E70: =iCorrel1!N51 -> 1 | F70: =TRIM(iCorrel1!O51) -> EN11) Change in internal renewable water resources per capita | G70: =iCorrel1!P51 -> 0.25 | J70: =iCorrel1!T51 -> 0 | K70: =TRIM(iCorrel1!U51) ->  | L70: =iCorrel1!V51 -> 
E71: =iCorrel1!N52 -> 1 | F71: =TRIM(iCorrel1!O52) -> EN17) Percentage of tree cover loss at 10% canopy | G71: =iCorrel1!P52 -> 0.24 | J71: =iCorrel1!T52 -> 0 | K71: =TRIM(iCorrel1!U52) ->  | L71: =iCorrel1!V52 -> 
E72: =iCorrel1!N53 -> 1 | F72: =TRIM(iCorrel1!O53) -> S11) Population with at least some secondary education, female (% aged 25 and older) | G72: =iCorrel1!P53 -> 0.19 | J72: =iCorrel1!T53 -> 0 | K72: =TRIM(iCorrel1!U53) ->  | L72: =iCorrel1!V53 -> 
E73: =iCorrel1!N54 -> 1 | F73: =TRIM(iCorrel1!O54) -> EC1) GNI per capita, PPP (current international $) | G73: =iCorrel1!P54 -> 0.19 | J73: =iCorrel1!T54 -> 0 | K73: =TRIM(iCorrel1!U54) ->  | L73: =iCorrel1!V54 -> 
E74: =iCorrel1!N55 -> 1 | F74: =TRIM(iCorrel1!O55) -> EN13) Extinction risk | G74: =iCorrel1!P55 -> 0.17 | J74: =iCorrel1!T55 -> 0 | K74: =TRIM(iCorrel1!U55) ->  | L74: =iCorrel1!V55 -> 
E75: =iCorrel1!N56 -> 1 | F75: =TRIM(iCorrel1!O56) -> 1.3) International water conventions | G75: =iCorrel1!P56 -> 0.06 | J75: =iCorrel1!T56 -> 0 | K75: =TRIM(iCorrel1!U56) ->  | L75: =iCorrel1!V56 -> 
E76: =iCorrel1!N57 -> 1 | F76: =TRIM(iCorrel1!O57) -> S13) Mortality rate attributed to unsafe water, unsafe sanitation and lack of hygiene (deaths per 100,000 population) | G76: =iCorrel1!P57 -> 0.06 | J76: =iCorrel1!T57 -> 0 | K76: =TRIM(iCorrel1!U57) ->  | L76: =iCorrel1!V57 -> 
E77: =iCorrel1!N58 -> 1 | F77: =TRIM(iCorrel1!O58) -> EC6) Net ODA received (% of GNI) | G77: =iCorrel1!P58 -> 0.05 | J77: =iCorrel1!T58 -> 0 | K77: =TRIM(iCorrel1!U58) ->  | L77: =iCorrel1!V58 -> 
E78: =iCorrel1!N59 -> 1 | F78: =TRIM(iCorrel1!O59) -> EN9) Water footprint of national production | G78: =iCorrel1!P59 -> 0.03 | J78: =iCorrel1!T59 -> 0 | K78: =TRIM(iCorrel1!U59) ->  | L78: =iCorrel1!V59 -> 
E79: =iCorrel1!N60 -> 1 | F79: =TRIM(iCorrel1!O60) -> S10) Multidimensional Poverty | G79: =iCorrel1!P60 -> 0.02 | J79: =iCorrel1!T60 -> 0 | K79: =TRIM(iCorrel1!U60) ->  | L79: =iCorrel1!V60 -> 
E80: =iCorrel1!N61 -> 1 | F80: =TRIM(iCorrel1!O61) -> EN4) External water dependency ratio | G80: =iCorrel1!P61 -> 0.01 | J80: =iCorrel1!T61 -> 0 | K80: =TRIM(iCorrel1!U61) ->  | L80: =iCorrel1!V61 -> 
E81: =iCorrel1!N62 -> 1 | F81: =TRIM(iCorrel1!O62) -> EC2) GDP (current US$) in billions | G81: =iCorrel1!P62 -> 0.01 | J81: =iCorrel1!T62 -> 0 | K81: =TRIM(iCorrel1!U62) ->  | L81: =iCorrel1!V62 -> 
E82: =iCorrel1!N63 -> 0 | F82: =TRIM(iCorrel1!O63) ->  | G82: =iCorrel1!P63 ->  | J82: =iCorrel1!T63 -> 0 | K82: =TRIM(iCorrel1!U63) ->  | L82: =iCorrel1!V63 -> 
E83: =iCorrel1!N64 -> 0 | F83: =TRIM(iCorrel1!O64) ->  | G83: =iCorrel1!P64 ->  | J83: =iCorrel1!T64 -> 0 | K83: =TRIM(iCorrel1!U64) ->  | L83: =iCorrel1!V64 -> 
E84: =iCorrel1!N65 -> 0 | F84: =TRIM(iCorrel1!O65) ->  | G84: =iCorrel1!P65 ->  | J84: =iCorrel1!T65 -> 0 | K84: =TRIM(iCorrel1!U65) ->  | L84: =iCorrel1!V65 -> 
E85: =iCorrel1!N66 -> 0 | F85: =TRIM(iCorrel1!O66) ->  | G85: =iCorrel1!P66 ->  | J85: =iCorrel1!T66 -> 0 | K85: =TRIM(iCorrel1!U66) ->  | L85: =iCorrel1!V66 -> 
E86: =iCorrel1!N67 -> 0 | F86: =TRIM(iCorrel1!O67) ->  | G86: =iCorrel1!P67 ->  | J86: =iCorrel1!T67 -> 0 | K86: =TRIM(iCorrel1!U67) ->  | L86: =iCorrel1!V67 -> 
E87: =iCorrel1!N68 -> 0 | F87: =TRIM(iCorrel1!O68) ->  | G87: =iCorrel1!P68 ->  | J87: =iCorrel1!T68 -> 0 | K87: =TRIM(iCorrel1!U68) ->  | L87: =iCorrel1!V68 -> 
E88: =iCorrel1!N69 -> 0 | F88: =TRIM(iCorrel1!O69) ->  | G88: =iCorrel1!P69 ->  | J88: =iCorrel1!T69 -> 0 | K88: =TRIM(iCorrel1!U69) ->  | L88: =iCorrel1!V69 -> 
E89: =iCorrel1!N70 -> 0 | F89: =TRIM(iCorrel1!O70) ->  | G89: =iCorrel1!P70 ->  | J89: =iCorrel1!T70 -> 0 | K89: =TRIM(iCorrel1!U70) ->  | L89: =iCorrel1!V70 -> 
E90: =iCorrel1!N71 -> 0 | F90: =TRIM(iCorrel1!O71) ->  | G90: =iCorrel1!P71 ->  | J90: =iCorrel1!T71 -> 0 | K90: =TRIM(iCorrel1!U71) ->  | L90: =iCorrel1!V71 -> 
E91: =iCorrel1!N72 -> 0 | F91: =TRIM(iCorrel1!O72) ->  | G91: =iCorrel1!P72 ->  | J91: =iCorrel1!T72 -> 0 | K91: =TRIM(iCorrel1!U72) ->  | L91: =iCorrel1!V72 -> 
E92: =iCorrel1!N79 -> 0 | F92: =TRIM(iCorrel1!O79) ->  | G92: =iCorrel1!P79 ->  | J92: =iCorrel1!T79 -> 0 | K92: =TRIM(iCorrel1!U79) ->  | L92: =iCorrel1!V79 -> 
E93: =iCorrel1!N80 -> 0 | F93: =TRIM(iCorrel1!O80) ->  | G93: =iCorrel1!P80 ->  | J93: =iCorrel1!T80 -> 0 | K93: =TRIM(iCorrel1!U80) ->  | L93: =iCorrel1!V80 -> 
E94: =iCorrel1!N81 -> 0 | F94: =TRIM(iCorrel1!O81) ->  | G94: =iCorrel1!P81 ->  | J94: =iCorrel1!T81 -> 0 | K94: =TRIM(iCorrel1!U81) ->  | L94: =iCorrel1!V81 -> 
E95: =iCorrel1!N82 -> 0 | F95: =TRIM(iCorrel1!O82) ->  | G95: =iCorrel1!P82 ->  | J95: =iCorrel1!T82 -> 0 | K95: =TRIM(iCorrel1!U82) ->  | L95: =iCorrel1!V82 -> 

Sheet Scores
N1: =uxb_works!$B$92 -> Blue Peace: 2020 | T1: =uxb_works!B128 -> 1 | U1: =uxb_works!C128 -> 0 | V1: =uxb_works!D128 -> 0 | W1: =uxb_works!E128 -> 0 | X1: =uxb_works!F128 -> 0 | Y1: =uxb_works!G128 -> 0 | Z1: =uxb_works!H128 -> 0 | AA1: =uxb_works!I128 -> 0 | AB1: =uxb_works!J128 -> 0 | AC1: =uxb_works!K128 -> 0 | AD1: =uxb_works!L128 -> 0 | AE1: =uxb_works!M128 -> 0 | AF1: =uxb_works!N128 -> 0 | AG1: =uxb_works!O128 -> 0 | AH1: =uxb_works!P128 -> 0 | AI1: =uxb_works!Q128 -> 0 | AJ1: =uxb_works!R128 -> 0 | AK1: =uxb_works!S128 -> 0 | AL1: =uxb_works!T128 -> 0 | AM1: =uxb_works!U128 -> 0 | AN1: =uxb_works!V128 -> 0 | AO1: =uxb_works!W128 -> 0 | AP1: =uxb_works!X128 -> 0 | AQ1: =uxb_works!Y128 -> 0 | AR1: =uxb_works!Z128 -> 0 | AS1: =uxb_works!AA128 -> 0 | AT1: =uxb_works!AB128 -> 0 | AU1: =uxb_works!AC128 -> 0 | AV1: =uxb_works!AD128 -> 0 | BI1: 1 | BJ1: 7
P3: 0 | Q3: =P3+1 -> 1 | R3: =Q3+1 -> 2 | S3: 3 | T3: 4 | U3: =T3+1 -> 5 | V3: 6 | W3: 7 | X3: 8 | Y3: 9 | Z3: 10 | AA3: 11 | AB3: 12 | AC3: 13 | AD3: =AC3+1 -> 14 | AE3: 15 | AF3: 16 | AG3: 17 | AH3: 18 | AI3: 19 | AJ3: 20 | AK3: 21 | AL3: 22 | AM3: 23 | AN3: 24 | AO3: 25 | AP3: 26 | AQ3: 27 | AR3: 28 | AS3: 29 | AT3: 30 | AU3: 31 | AV3: 32
A4: =uxb_works!B111 -> 2 | N4: =uxb_works!O111 -> 0 | P4: 0 | Q4: =CHOOSE(uxb_works!$B$52,INDEX(tblTerritories!$V$3:$V$34,Scores!Q3),IFERROR(INDEX(tblRiverBasins!$A$3:$A$9,Q$3),"")) -> 1 | R4: =CHOOSE(uxb_works!$B$52,INDEX(tblTerritories!$V$3:$V$34,Scores!R3),IFERROR(INDEX(tblRiverBasins!$A$3:$A$9,R$3),"")) -> 2 | S4: =CHOOSE(uxb_works!$B$52,INDEX(tblTerritories!$V$3:$V$34,Scores!S3),IFERROR(INDEX(tblRiverBasins!$A$3:$A$9,S$3),"")) -> 3 | T4: =CHOOSE(uxb_works!$B$52,INDEX(tblTerritories!$V$3:$V$34,Scores!T3),IFERROR(INDEX(tblRiverBasins!$A$3:$A$9,T$3),"")) -> 4 | U4: =CHOOSE(uxb_works!$B$52,INDEX(tblTerritories!$V$3:$V$34,Scores!U3),IFERROR(INDEX(tblRiverBasins!$A$3:$A$9,U$3),"")) -> 5 | V4: =CHOOSE(uxb_works!$B$52,INDEX(tblTerritories!$V$3:$V$34,Scores!V3),IFERROR(INDEX(tblRiverBasins!$A$3:$A$9,V$3),"")) -> 6 | W4: =CHOOSE(uxb_works!$B$52,INDEX(tblTerritories!$V$3:$V$34,Scores!W3),IFERROR(INDEX(tblRiverBasins!$A$3:$A$9,W$3),"")) -> 7 | X4: =CHOOSE(uxb_works!$B$52,INDEX(tblTerritories!$V$3:$V$34,Scores!X3),IFERROR(INDEX(tblRiverBasins!$A$3:$A$9,X$3),"")) -> 8 | Y4: =CHOOSE(uxb_works!$B$52,INDEX(tblTerritories!$V$3:$V$34,Scores!Y3),IFERROR(INDEX(tblRiverBasins!$A$3:$A$9,Y$3),"")) -> 9 | Z4: =CHOOSE(uxb_works!$B$52,INDEX(tblTerritories!$V$3:$V$34,Scores!Z3),IFERROR(INDEX(tblRiverBasins!$A$3:$A$9,Z$3),"")) -> 10 | AA4: =CHOOSE(uxb_works!$B$52,INDEX(tblTerritories!$V$3:$V$34,Scores!AA3),IFERROR(INDEX(tblRiverBasins!$A$3:$A$9,AA$3),"")) -> 11 | AB4: =CHOOSE(uxb_works!$B$52,INDEX(tblTerritories!$V$3:$V$34,Scores!AB3),IFERROR(INDEX(tblRiverBasins!$A$3:$A$9,AB$3),"")) -> 12 | AC4: =CHOOSE(uxb_works!$B$52,INDEX(tblTerritories!$V$3:$V$34,Scores!AC3),IFERROR(INDEX(tblRiverBasins!$A$3:$A$9,AC$3),"")) -> 13 | AD4: =CHOOSE(uxb_works!$B$52,INDEX(tblTerritories!$V$3:$V$34,Scores!AD3),IFERROR(INDEX(tblRiverBasins!$A$3:$A$9,AD$3),"")) -> 14 | AE4: =CHOOSE(uxb_works!$B$52,INDEX(tblTerritories!$V$3:$V$34,Scores!AE3),IFERROR(INDEX(tblRiverBasins!$A$3:$A$9,AE$3),"")) -> 15 | AF4: =CHOOSE(uxb_works!$B$52,INDEX(tblTerritories!$V$3:$V$34,Scores!AF3),IFERROR(INDEX(tblRiverBasins!$A$3:$A$9,AF$3),"")) -> 16 | AG4: =CHOOSE(uxb_works!$B$52,INDEX(tblTerritories!$V$3:$V$34,Scores!AG3),IFERROR(INDEX(tblRiverBasins!$A$3:$A$9,AG$3),"")) -> 17 | AH4: =CHOOSE(uxb_works!$B$52,INDEX(tblTerritories!$V$3:$V$34,Scores!AH3),IFERROR(INDEX(tblRiverBasins!$A$3:$A$9,AH$3),"")) -> 18 | AI4: =CHOOSE(uxb_works!$B$52,INDEX(tblTerritories!$V$3:$V$34,Scores!AI3),IFERROR(INDEX(tblRiverBasins!$A$3:$A$9,AI$3),"")) -> 19 | AJ4: =CHOOSE(uxb_works!$B$52,INDEX(tblTerritories!$V$3:$V$34,Scores!AJ3),IFERROR(INDEX(tblRiverBasins!$A$3:$A$9,AJ$3),"")) -> 20 | AK4: =CHOOSE(uxb_works!$B$52,INDEX(tblTerritories!$V$3:$V$34,Scores!AK3),IFERROR(INDEX(tblRiverBasins!$A$3:$A$9,AK$3),"")) -> 21 | AL4: =CHOOSE(uxb_works!$B$52,INDEX(tblTerritories!$V$3:$V$34,Scores!AL3),IFERROR(INDEX(tblRiverBasins!$A$3:$A$9,AL$3),"")) -> 22 | AM4: =CHOOSE(uxb_works!$B$52,INDEX(tblTerritories!$V$3:$V$34,Scores!AM3),IFERROR(INDEX(tblRiverBasins!$A$3:$A$9,AM$3),"")) -> 23 | AN4: =CHOOSE(uxb_works!$B$52,INDEX(tblTerritories!$V$3:$V$34,Scores!AN3),IFERROR(INDEX(tblRiverBasins!$A$3:$A$9,AN$3),"")) -> 24 | AO4: =CHOOSE(uxb_works!$B$52,INDEX(tblTerritories!$V$3:$V$34,Scores!AO3),IFERROR(INDEX(tblRiverBasins!$A$3:$A$9,AO$3),"")) -> 25 | AP4: =CHOOSE(uxb_works!$B$52,INDEX(tblTerritories!$V$3:$V$34,Scores!AP3),IFERROR(INDEX(tblRiverBasins!$A$3:$A$9,AP$3),"")) -> 26 | AQ4: =CHOOSE(uxb_works!$B$52,INDEX(tblTerritories!$V$3:$V$34,Scores!AQ3),IFERROR(INDEX(tblRiverBasins!$A$3:$A$9,AQ$3),"")) -> 27 | AR4: =CHOOSE(uxb_works!$B$52,INDEX(tblTerritories!$V$3:$V$34,Scores!AR3),IFERROR(INDEX(tblRiverBasins!$A$3:$A$9,AR$3),"")) -> 28 | AS4: =CHOOSE(uxb_works!$B$52,INDEX(tblTerritories!$V$3:$V$34,Scores!AS3),IFERROR(INDEX(tblRiverBasins!$A$3:$A$9,AS$3),"")) -> 29 | AT4: =CHOOSE(uxb_works!$B$52,INDEX(tblTerritories!$V$3:$V$34,Scores!AT3),IFERROR(INDEX(tblRiverBasins!$A$3:$A$9,AT$3),"")) -> 30 | AU4: =CHOOSE(uxb_works!$B$52,INDEX(tblTerritories!$V$3:$V$34,Scores!AU3),IFERROR(INDEX(tblRiverBasins!$A$3:$A$9,AU$3),"")) -> 31 | AV4: =CHOOSE(uxb_works!$B$52,INDEX(tblTerritories!$V$3:$V$34,Scores!AV3),IFERROR(INDEX(tblRiverBasins!$A$3:$A$9,AV$3),"")) -> 32
Q5: =IF(Q4="","",INDEX(tblTerritories!$W$3:$W$34,Scores!Q3)) -> 2 | R5: =IF(R4="","",INDEX(tblTerritories!$W$3:$W$34,Scores!R3)) -> 2 | S5: =IF(S4="","",INDEX(tblTerritories!$W$3:$W$34,Scores!S3)) -> 2 | T5: =IF(T4="","",INDEX(tblTerritories!$W$3:$W$34,Scores!T3)) -> 2 | U5: =IF(U4="","",INDEX(tblTerritories!$W$3:$W$34,Scores!U3)) -> 2 | V5: =IF(V4="","",INDEX(tblTerritories!$W$3:$W$34,Scores!V3)) -> 2 | W5: =IF(W4="","",INDEX(tblTerritories!$W$3:$W$34,Scores!W3)) -> 2 | X5: =IF(X4="","",INDEX(tblTerritories!$W$3:$W$34,Scores!X3)) -> 2 | Y5: =IF(Y4="","",INDEX(tblTerritories!$W$3:$W$34,Scores!Y3)) -> 2 | Z5: =IF(Z4="","",INDEX(tblTerritories!$W$3:$W$34,Scores!Z3)) -> 2 | AA5: =IF(AA4="","",INDEX(tblTerritories!$W$3:$W$34,Scores!AA3)) -> 2 | AB5: =IF(AB4="","",INDEX(tblTerritories!$W$3:$W$34,Scores!AB3)) -> 2 | AC5: =IF(AC4="","",INDEX(tblTerritories!$W$3:$W$34,Scores!AC3)) -> 2 | AD5: =IF(AD4="","",INDEX(tblTerritories!$W$3:$W$34,Scores!AD3)) -> 2 | AE5: =IF(AE4="","",INDEX(tblTerritories!$W$3:$W$34,Scores!AE3)) -> 2 | AF5: =IF(AF4="","",INDEX(tblTerritories!$W$3:$W$34,Scores!AF3)) -> 2 | AG5: =IF(AG4="","",INDEX(tblTerritories!$W$3:$W$34,Scores!AG3)) -> 2 | AH5: =IF(AH4="","",INDEX(tblTerritories!$W$3:$W$34,Scores!AH3)) -> 2 | AI5: =IF(AI4="","",INDEX(tblTerritories!$W$3:$W$34,Scores!AI3)) -> 2 | AJ5: =IF(AJ4="","",INDEX(tblTerritories!$W$3:$W$34,Scores!AJ3)) -> 2 | AK5: =IF(AK4="","",INDEX(tblTerritories!$W$3:$W$34,Scores!AK3)) -> 2 | AL5: =IF(AL4="","",INDEX(tblTerritories!$W$3:$W$34,Scores!AL3)) -> 2 | AM5: =IF(AM4="","",INDEX(tblTerritories!$W$3:$W$34,Scores!AM3)) -> 2 | AN5: =IF(AN4="","",INDEX(tblTerritories!$W$3:$W$34,Scores!AN3)) -> 2 | AO5: =IF(AO4="","",INDEX(tblTerritories!$W$3:$W$34,Scores!AO3)) -> 2 | AP5: =IF(AP4="","",INDEX(tblTerritories!$W$3:$W$34,Scores!AP3)) -> 2 | AQ5: =IF(AQ4="","",INDEX(tblTerritories!$W$3:$W$34,Scores!AQ3)) -> 2 | AR5: =IF(AR4="","",INDEX(tblTerritories!$W$3:$W$34,Scores!AR3)) -> 2 | AS5: =IF(AS4="","",INDEX(tblTerritories!$W$3:$W$34,Scores!AS3)) -> 2 | AT5: =IF(AT4="","",INDEX(tblTerritories!$W$3:$W$34,Scores!AT3)) -> 2 | AU5: =IF(AU4="","",INDEX(tblTerritories!$W$3:$W$34,Scores!AU3)) -> 2 | AV5: =IF(AV4="","",INDEX(tblTerritories!$W$3:$W$34,Scores!AV3)) -> 2
C6: =iWeights1!#REF! ->  | N6: =uxb_works!C5 -> The active weight profile has been changed from its default setting
N8: =uxb_works!D67 -> Active river basin: <no filter>
B10: =tblIndicators!A1 -> line | F10: =tblIndicators!G1 -> DEPTH | H10: =tblIndicators!AC1 -> Format | K10: =SUM(K12:K165) -> 154 | N10: Indicators | O10: =CHOOSE(uxb_works!$B$47,"Unit","Weight") -> Unit | P10: Source | Q10: =IF(Q$4="","",CHOOSE(uxb_works!$B$52,INDEX(tblTerritories!$C$3:$C$34,Q$4),INDEX(tblRiverBasins!$C$3:$C$12,Q$4))) -> Afghanistan | R10: =IF(R$4="","",CHOOSE(uxb_works!$B$52,INDEX(tblTerritories!$C$3:$C$34,R$4),INDEX(tblRiverBasins!$C$3:$C$12,R$4))) -> Bolivia | S10: =IF(S$4="","",CHOOSE(uxb_works!$B$52,INDEX(tblTerritories!$C$3:$C$34,S$4),INDEX(tblRiverBasins!$C$3:$C$12,S$4))) -> Bosnia and herzegovina | T10: =IF(T$4="","",CHOOSE(uxb_works!$B$52,INDEX(tblTerritories!$C$3:$C$34,T$4),INDEX(tblRiverBasins!$C$3:$C$12,T$4))) -> Brazil | U10: =IF(U$4="","",CHOOSE(uxb_works!$B$52,INDEX(tblTerritories!$C$3:$C$34,U$4),INDEX(tblRiverBasins!$C$3:$C$12,U$4))) -> Cambodia | V10: =IF(V$4="","",CHOOSE(uxb_works!$B$52,INDEX(tblTerritories!$C$3:$C$34,V$4),INDEX(tblRiverBasins!$C$3:$C$12,V$4))) -> China | W10: =IF(W$4="","",CHOOSE(uxb_works!$B$52,INDEX(tblTerritories!$C$3:$C$34,W$4),INDEX(tblRiverBasins!$C$3:$C$12,W$4))) -> Colombia | X10: =IF(X$4="","",CHOOSE(uxb_works!$B$52,INDEX(tblTerritories!$C$3:$C$34,X$4),INDEX(tblRiverBasins!$C$3:$C$12,X$4))) -> Croatia | Y10: =IF(Y$4="","",CHOOSE(uxb_works!$B$52,INDEX(tblTerritories!$C$3:$C$34,Y$4),INDEX(tblRiverBasins!$C$3:$C$12,Y$4))) -> Ecuador | Z10: =IF(Z$4="","",CHOOSE(uxb_works!$B$52,INDEX(tblTerritories!$C$3:$C$34,Z$4),INDEX(tblRiverBasins!$C$3:$C$12,Z$4))) -> Guinea | AA10: =IF(AA$4="","",CHOOSE(uxb_works!$B$52,INDEX(tblTerritories!$C$3:$C$34,AA$4),INDEX(tblRiverBasins!$C$3:$C$12,AA$4))) -> Iran | AB10: =IF(AB$4="","",CHOOSE(uxb_works!$B$52,INDEX(tblTerritories!$C$3:$C$34,AB$4),INDEX(tblRiverBasins!$C$3:$C$12,AB$4))) -> Iraq | AC10: =IF(AC$4="","",CHOOSE(uxb_works!$B$52,INDEX(tblTerritories!$C$3:$C$34,AC$4),INDEX(tblRiverBasins!$C$3:$C$12,AC$4))) -> Kazakhstan | AD10: =IF(AD$4="","",CHOOSE(uxb_works!$B$52,INDEX(tblTerritories!$C$3:$C$34,AD$4),INDEX(tblRiverBasins!$C$3:$C$12,AD$4))) -> Kyrgyzstan | AE10: =IF(AE$4="","",CHOOSE(uxb_works!$B$52,INDEX(tblTerritories!$C$3:$C$34,AE$4),INDEX(tblRiverBasins!$C$3:$C$12,AE$4))) -> Laos | AF10: =IF(AF$4="","",CHOOSE(uxb_works!$B$52,INDEX(tblTerritories!$C$3:$C$34,AF$4),INDEX(tblRiverBasins!$C$3:$C$12,AF$4))) -> Mali | AG10: =IF(AG$4="","",CHOOSE(uxb_works!$B$52,INDEX(tblTerritories!$C$3:$C$34,AG$4),INDEX(tblRiverBasins!$C$3:$C$12,AG$4))) -> Mauritania | AH10: =IF(AH$4="","",CHOOSE(uxb_works!$B$52,INDEX(tblTerritories!$C$3:$C$34,AH$4),INDEX(tblRiverBasins!$C$3:$C$12,AH$4))) -> Myanmar | AI10: =IF(AI$4="","",CHOOSE(uxb_works!$B$52,INDEX(tblTerritories!$C$3:$C$34,AI$4),INDEX(tblRiverBasins!$C$3:$C$12,AI$4))) -> Peru | AJ10: =IF(AJ$4="","",CHOOSE(uxb_works!$B$52,INDEX(tblTerritories!$C$3:$C$34,AJ$4),INDEX(tblRiverBasins!$C$3:$C$12,AJ$4))) -> Senegal | AK10: =IF(AK$4="","",CHOOSE(uxb_works!$B$52,INDEX(tblTerritories!$C$3:$C$34,AK$4),INDEX(tblRiverBasins!$C$3:$C$12,AK$4))) -> Serbia | AL10: =IF(AL$4="","",CHOOSE(uxb_works!$B$52,INDEX(tblTerritories!$C$3:$C$34,AL$4),INDEX(tblRiverBasins!$C$3:$C$12,AL$4))) -> Slovenia | AM10: =IF(AM$4="","",CHOOSE(uxb_works!$B$52,INDEX(tblTerritories!$C$3:$C$34,AM$4),INDEX(tblRiverBasins!$C$3:$C$12,AM$4))) -> Syria | AN10: =IF(AN$4="","",CHOOSE(uxb_works!$B$52,INDEX(tblTerritories!$C$3:$C$34,AN$4),INDEX(tblRiverBasins!$C$3:$C$12,AN$4))) -> Tajikistan: Amu | AO10: =IF(AO$4="","",CHOOSE(uxb_works!$B$52,INDEX(tblTerritories!$C$3:$C$34,AO$4),INDEX(tblRiverBasins!$C$3:$C$12,AO$4))) -> Tajikistan: Syr | AP10: =IF(AP$4="","",CHOOSE(uxb_works!$B$52,INDEX(tblTerritories!$C$3:$C$34,AP$4),INDEX(tblRiverBasins!$C$3:$C$12,AP$4))) -> Thailand | AQ10: =IF(AQ$4="","",CHOOSE(uxb_works!$B$52,INDEX(tblTerritories!$C$3:$C$34,AQ$4),INDEX(tblRiverBasins!$C$3:$C$12,AQ$4))) -> Turkey | AR10: =IF(AR$4="","",CHOOSE(uxb_works!$B$52,INDEX(tblTerritories!$C$3:$C$34,AR$4),INDEX(tblRiverBasins!$C$3:$C$12,AR$4))) -> Turkmenistan | AS10: =IF(AS$4="","",CHOOSE(uxb_works!$B$52,INDEX(tblTerritories!$C$3:$C$34,AS$4),INDEX(tblRiverBasins!$C$3:$C$12,AS$4))) -> Uzbekistan: Amu | AT10: =IF(AT$4="","",CHOOSE(uxb_works!$B$52,INDEX(tblTerritories!$C$3:$C$34,AT$4),INDEX(tblRiverBasins!$C$3:$C$12,AT$4))) -> Uzbekistan: Syr | AU10: =IF(AU$4="","",CHOOSE(uxb_works!$B$52,INDEX(tblTerritories!$C$3:$C$34,AU$4),INDEX(tblRiverBasins!$C$3:$C$12,AU$4))) -> Venezuela | AV10: =IF(AV$4="","",CHOOSE(uxb_works!$B$52,INDEX(tblTerritories!$C$3:$C$34,AV$4),INDEX(tblRiverBasins!$C$3:$C$12,AV$4))) -> Vietnam
B12: =tblIndicators!A2 -> 1 | F12: 5 | H12: =tblIndicators!AC2 -> 0.0 | K12: =IF(uxb_works!$B$46>=L12,1,0) -> 1 | L12: =tblIndicators!G2 -> 0 | N12: =iScores!N6 -> OVERALL SCORE | P12: =IF(tblIndicators!T2="","",IF(AND(uxb_works!$B$47=1,OR(F12=5,Scores!F12<=2)),"",tblIndicators!T2)) ->  | Q12: =IF(Q$4="","",CHOOSE(uxb_works!$B$52,CHOOSE(uxb_works!$B$47,IF(INDEX(aData,$B12,Q$4)="","-",TEXT(INDEX(aData,$B12,Q$4),$H12)),INDEX(aScoresRounded,$B12,Q$4)),CHOOSE(uxb_works!$B$47,IF(INDEX(aData_Basin,$B12,Q$4)="","-",TEXT(INDEX(aData_Basin,$B12,Q$4),$H12)),INDEX(aScoresRounded_Basin,$B12,Q$4)))) -> - | R12: =IF(R$4="","",CHOOSE(uxb_works!$B$52,CHOOSE(uxb_works!$B$47,IF(INDEX(aData,$B12,R$4)="","-",TEXT(INDEX(aData,$B12,R$4),$H12)),INDEX(aScoresRounded,$B12,R$4)),CHOOSE(uxb_works!$B$47,IF(INDEX(aData_Basin,$B12,R$4)="","-",TEXT(INDEX(aData_Basin,$B12,R$4),$H12)),INDEX(aScoresRounded_Basin,$B12,R$4)))) -> - | S12: =IF(S$4="","",CHOOSE(uxb_works!$B$52,CHOOSE(uxb_works!$B$47,IF(INDEX(aData,$B12,S$4)="","-",TEXT(INDEX(aData,$B12,S$4),$H12)),INDEX(aScoresRounded,$B12,S$4)),CHOOSE(uxb_works!$B$47,IF(INDEX(aData_Basin,$B12,S$4)="","-",TEXT(INDEX(aData_Basin,$B12,S$4),$H12)),INDEX(aScoresRounded_Basin,$B12,S$4)))) -> - | T12: =IF(T$4="","",CHOOSE(uxb_works!$B$52,CHOOSE(uxb_works!$B$47,IF(INDEX(aData,$B12,T$4)="","-",TEXT(INDEX(aData,$B12,T$4),$H12)),INDEX(aScoresRounded,$B12,T$4)),CHOOSE(uxb_works!$B$47,IF(INDEX(aData_Basin,$B12,T$4)="","-",TEXT(INDEX(aData_Basin,$B12,T$4),$H12)),INDEX(aScoresRounded_Basin,$B12,T$4)))) -> - | U12: =IF(U$4="","",CHOOSE(uxb_works!$B$52,CHOOSE(uxb_works!$B$47,IF(INDEX(aData,$B12,U$4)="","-",TEXT(INDEX(aData,$B12,U$4),$H12)),INDEX(aScoresRounded,$B12,U$4)),CHOOSE(uxb_works!$B$47,IF(INDEX(aData_Basin,$B12,U$4)="","-",TEXT(INDEX(aData_Basin,$B12,U$4),$H12)),INDEX(aScoresRounded_Basin,$B12,U$4)))) -> - | V12: =IF(V$4="","",CHOOSE(uxb_works!$B$52,CHOOSE(uxb_works!$B$47,IF(INDEX(aData,$B12,V$4)="","-",TEXT(INDEX(aData,$B12,V$4),$H12)),INDEX(aScoresRounded,$B12,V$4)),CHOOSE(uxb_works!$B$47,IF(INDEX(aData_Basin,$B12,V$4)="","-",TEXT(INDEX(aData_Basin,$B12,V$4),$H12)),INDEX(aScoresRounded_Basin,$B12,V$4)))) -> - | W12: =IF(W$4="","",CHOOSE(uxb_works!$B$52,CHOOSE(uxb_works!$B$47,IF(INDEX(aData,$B12,W$4)="","-",TEXT(INDEX(aData,$B12,W$4),$H12)),INDEX(aScoresRounded,$B12,W$4)),CHOOSE(uxb_works!$B$47,IF(INDEX(aData_Basin,$B12,W$4)="","-",TEXT(INDEX(aData_Basin,$B12,W$4),$H12)),INDEX(aScoresRounded_Basin,$B12,W$4)))) -> - | X12: =IF(X$4="","",CHOOSE(uxb_works!$B$52,CHOOSE(uxb_works!$B$47,IF(INDEX(aData,$B12,X$4)="","-",TEXT(INDEX(aData,$B12,X$4),$H12)),INDEX(aScoresRounded,$B12,X$4)),CHOOSE(uxb_works!$B$47,IF(INDEX(aData_Basin,$B12,X$4)="","-",TEXT(INDEX(aData_Basin,$B12,X$4),$H12)),INDEX(aScoresRounded_Basin,$B12,X$4)))) -> - | Y12: =IF(Y$4="","",CHOOSE(uxb_works!$B$52,CHOOSE(uxb_works!$B$47,IF(INDEX(aData,$B12,Y$4)="","-",TEXT(INDEX(aData,$B12,Y$4),$H12)),INDEX(aScoresRounded,$B12,Y$4)),CHOOSE(uxb_works!$B$47,IF(INDEX(aData_Basin,$B12,Y$4)="","-",TEXT(INDEX(aData_Basin,$B12,Y$4),$H12)),INDEX(aScoresRounded_Basin,$B12,Y$4)))) -> - | Z12: =IF(Z$4="","",CHOOSE(uxb_works!$B$52,CHOOSE(uxb_works!$B$47,IF(INDEX(aData,$B12,Z$4)="","-",TEXT(INDEX(aData,$B12,Z$4),$H12)),INDEX(aScoresRounded,$B12,Z$4)),CHOOSE(uxb_works!$B$47,IF(INDEX(aData_Basin,$B12,Z$4)="","-",TEXT(INDEX(aData_Basin,$B12,Z$4),$H12)),INDEX(aScoresRounded_Basin,$B12,Z$4)))) -> - | AA12: =IF(AA$4="","",CHOOSE(uxb_works!$B$52,CHOOSE(uxb_works!$B$47,IF(INDEX(aData,$B12,AA$4)="","-",TEXT(INDEX(aData,$B12,AA$4),$H12)),INDEX(aScoresRounded,$B12,AA$4)),CHOOSE(uxb_works!$B$47,IF(INDEX(aData_Basin,$B12,AA$4)="","-",TEXT(INDEX(aData_Basin,$B12,AA$4),$H12)),INDEX(aScoresRounded_Basin,$B12,AA$4)))) -> - | AB12: =IF(AB$4="","",CHOOSE(uxb_works!$B$52,CHOOSE(uxb_works!$B$47,IF(INDEX(aData,$B12,AB$4)="","-",TEXT(INDEX(aData,$B12,AB$4),$H12)),INDEX(aScoresRounded,$B12,AB$4)),CHOOSE(uxb_works!$B$47,IF(INDEX(aData_Basin,$B12,AB$4)="","-",TEXT(INDEX(aData_Basin,$B12,AB$4),$H12)),INDEX(aScoresRounded_Basin,$B12,AB$4)))) -> - | AC12: =IF(AC$4="","",CHOOSE(uxb_works!$B$52,CHOOSE(uxb_works!$B$47,IF(INDEX(aData,$B12,AC$4)="","-",TEXT(INDEX(aData,$B12,AC$4),$H12)),INDEX(aScoresRounded,$B12,AC$4)),CHOOSE(uxb_works!$B$47,IF(INDEX(aData_Basin,$B12,AC$4)="","-",TEXT(INDEX(aData_Basin,$B12,AC$4),$H12)),INDEX(aScoresRounded_Basin,$B12,AC$4)))) -> - | AD12: =IF(AD$4="","",CHOOSE(uxb_works!$B$52,CHOOSE(uxb_works!$B$47,IF(INDEX(aData,$B12,AD$4)="","-",TEXT(INDEX(aData,$B12,AD$4),$H12)),INDEX(aScoresRounded,$B12,AD$4)),CHOOSE(uxb_works!$B$47,IF(INDEX(aData_Basin,$B12,AD$4)="","-",TEXT(INDEX(aData_Basin,$B12,AD$4),$H12)),INDEX(aScoresRounded_Basin,$B12,AD$4)))) -> - | AE12: =IF(AE$4="","",CHOOSE(uxb_works!$B$52,CHOOSE(uxb_works!$B$47,IF(INDEX(aData,$B12,AE$4)="","-",TEXT(INDEX(aData,$B12,AE$4),$H12)),INDEX(aScoresRounded,$B12,AE$4)),CHOOSE(uxb_works!$B$47,IF(INDEX(aData_Basin,$B12,AE$4)="","-",TEXT(INDEX(aData_Basin,$B12,AE$4),$H12)),INDEX(aScoresRounded_Basin,$B12,AE$4)))) -> - | AF12: =IF(AF$4="","",CHOOSE(uxb_works!$B$52,CHOOSE(uxb_works!$B$47,IF(INDEX(aData,$B12,AF$4)="","-",TEXT(INDEX(aData,$B12,AF$4),$H12)),INDEX(aScoresRounded,$B12,AF$4)),CHOOSE(uxb_works!$B$47,IF(INDEX(aData_Basin,$B12,AF$4)="","-",TEXT(INDEX(aData_Basin,$B12,AF$4),$H12)),INDEX(aScoresRounded_Basin,$B12,AF$4)))) -> - | AG12: =IF(AG$4="","",CHOOSE(uxb_works!$B$52,CHOOSE(uxb_works!$B$47,IF(INDEX(aData,$B12,AG$4)="","-",TEXT(INDEX(aData,$B12,AG$4),$H12)),INDEX(aScoresRounded,$B12,AG$4)),CHOOSE(uxb_works!$B$47,IF(INDEX(aData_Basin,$B12,AG$4)="","-",TEXT(INDEX(aData_Basin,$B12,AG$4),$H12)),INDEX(aScoresRounded_Basin,$B12,AG$4)))) -> - | AH12: =IF(AH$4="","",CHOOSE(uxb_works!$B$52,CHOOSE(uxb_works!$B$47,IF(INDEX(aData,$B12,AH$4)="","-",TEXT(INDEX(aData,$B12,AH$4),$H12)),INDEX(aScoresRounded,$B12,AH$4)),CHOOSE(uxb_works!$B$47,IF(INDEX(aData_Basin,$B12,AH$4)="","-",TEXT(INDEX(aData_Basin,$B12,AH$4),$H12)),INDEX(aScoresRounded_Basin,$B12,AH$4)))) -> - | AI12: =IF(AI$4="","",CHOOSE(uxb_works!$B$52,CHOOSE(uxb_works!$B$47,IF(INDEX(aData,$B12,AI$4)="","-",TEXT(INDEX(aData,$B12,AI$4),$H12)),INDEX(aScoresRounded,$B12,AI$4)),CHOOSE(uxb_works!$B$47,IF(INDEX(aData_Basin,$B12,AI$4)="","-",TEXT(INDEX(aData_Basin,$B12,AI$4),$H12)),INDEX(aScoresRounded_Basin,$B12,AI$4)))) -> - | AJ12: =IF(AJ$4="","",CHOOSE(uxb_works!$B$52,CHOOSE(uxb_works!$B$47,IF(INDEX(aData,$B12,AJ$4)="","-",TEXT(INDEX(aData,$B12,AJ$4),$H12)),INDEX(aScoresRounded,$B12,AJ$4)),CHOOSE(uxb_works!$B$47,IF(INDEX(aData_Basin,$B12,AJ$4)="","-",TEXT(INDEX(aData_Basin,$B12,AJ$4),$H12)),INDEX(aScoresRounded_Basin,$B12,AJ$4)))) -> - | AK12: =IF(AK$4="","",CHOOSE(uxb_works!$B$52,CHOOSE(uxb_works!$B$47,IF(INDEX(aData,$B12,AK$4)="","-",TEXT(INDEX(aData,$B12,AK$4),$H12)),INDEX(aScoresRounded,$B12,AK$4)),CHOOSE(uxb_works!$B$47,IF(INDEX(aData_Basin,$B12,AK$4)="","-",TEXT(INDEX(aData_Basin,$B12,AK$4),$H12)),INDEX(aScoresRounded_Basin,$B12,AK$4)))) -> - | AL12: =IF(AL$4="","",CHOOSE(uxb_works!$B$52,CHOOSE(uxb_works!$B$47,IF(INDEX(aData,$B12,AL$4)="","-",TEXT(INDEX(aData,$B12,AL$4),$H12)),INDEX(aScoresRounded,$B12,AL$4)),CHOOSE(uxb_works!$B$47,IF(INDEX(aData_Basin,$B12,AL$4)="","-",TEXT(INDEX(aData_Basin,$B12,AL$4),$H12)),INDEX(aScoresRounded_Basin,$B12,AL$4)))) -> - | AM12: =IF(AM$4="","",CHOOSE(uxb_works!$B$52,CHOOSE(uxb_works!$B$47,IF(INDEX(aData,$B12,AM$4)="","-",TEXT(INDEX(aData,$B12,AM$4),$H12)),INDEX(aScoresRounded,$B12,AM$4)),CHOOSE(uxb_works!$B$47,IF(INDEX(aData_Basin,$B12,AM$4)="","-",TEXT(INDEX(aData_Basin,$B12,AM$4),$H12)),INDEX(aScoresRounded_Basin,$B12,AM$4)))) -> - | AN12: =IF(AN$4="","",CHOOSE(uxb_works!$B$52,CHOOSE(uxb_works!$B$47,IF(INDEX(aData,$B12,AN$4)="","-",TEXT(INDEX(aData,$B12,AN$4),$H12)),INDEX(aScoresRounded,$B12,AN$4)),CHOOSE(uxb_works!$B$47,IF(INDEX(aData_Basin,$B12,AN$4)="","-",TEXT(INDEX(aData_Basin,$B12,AN$4),$H12)),INDEX(aScoresRounded_Basin,$B12,AN$4)))) -> - | AO12: =IF(AO$4="","",CHOOSE(uxb_works!$B$52,CHOOSE(uxb_works!$B$47,IF(INDEX(aData,$B12,AO$4)="","-",TEXT(INDEX(aData,$B12,AO$4),$H12)),INDEX(aScoresRounded,$B12,AO$4)),CHOOSE(uxb_works!$B$47,IF(INDEX(aData_Basin,$B12,AO$4)="","-",TEXT(INDEX(aData_Basin,$B12,AO$4),$H12)),INDEX(aScoresRounded_Basin,$B12,AO$4)))) -> - | AP12: =IF(AP$4="","",CHOOSE(uxb_works!$B$52,CHOOSE(uxb_works!$B$47,IF(INDEX(aData,$B12,AP$4)="","-",TEXT(INDEX(aData,$B12,AP$4),$H12)),INDEX(aScoresRounded,$B12,AP$4)),CHOOSE(uxb_works!$B$47,IF(INDEX(aData_Basin,$B12,AP$4)="","-",TEXT(INDEX(aData_Basin,$B12,AP$4),$H12)),INDEX(aScoresRounded_Basin,$B12,AP$4)))) -> - | AQ12: =IF(AQ$4="","",CHOOSE(uxb_works!$B$52,CHOOSE(uxb_works!$B$47,IF(INDEX(aData,$B12,AQ$4)="","-",TEXT(INDEX(aData,$B12,AQ$4),$H12)),INDEX(aScoresRounded,$B12,AQ$4)),CHOOSE(uxb_works!$B$47,IF(INDEX(aData_Basin,$B12,AQ$4)="","-",TEXT(INDEX(aData_Basin,$B12,AQ$4),$H12)),INDEX(aScoresRounded_Basin,$B12,AQ$4)))) -> - | AR12: =IF(AR$4="","",CHOOSE(uxb_works!$B$52,CHOOSE(uxb_works!$B$47,IF(INDEX(aData,$B12,AR$4)="","-",TEXT(INDEX(aData,$B12,AR$4),$H12)),INDEX(aScoresRounded,$B12,AR$4)),CHOOSE(uxb_works!$B$47,IF(INDEX(aData_Basin,$B12,AR$4)="","-",TEXT(INDEX(aData_Basin,$B12,AR$4),$H12)),INDEX(aScoresRounded_Basin,$B12,AR$4)))) -> - | AS12: =IF(AS$4="","",CHOOSE(uxb_works!$B$52,CHOOSE(uxb_works!$B$47,IF(INDEX(aData,$B12,AS$4)="","-",TEXT(INDEX(aData,$B12,AS$4),$H12)),INDEX(aScoresRounded,$B12,AS$4)),CHOOSE(uxb_works!$B$47,IF(INDEX(aData_Basin,$B12,AS$4)="","-",TEXT(INDEX(aData_Basin,$B12,AS$4),$H12)),INDEX(aScoresRounded_Basin,$B12,AS$4)))) -> - | AT12: =IF(AT$4="","",CHOOSE(uxb_works!$B$52,CHOOSE(uxb_works!$B$47,IF(INDEX(aData,$B12,AT$4)="","-",TEXT(INDEX(aData,$B12,AT$4),$H12)),INDEX(aScoresRounded,$B12,AT$4)),CHOOSE(uxb_works!$B$47,IF(INDEX(aData_Basin,$B12,AT$4)="","-",TEXT(INDEX(aData_Basin,$B12,AT$4),$H12)),INDEX(aScoresRounded_Basin,$B12,AT$4)))) -> - | AU12: =IF(AU$4="","",CHOOSE(uxb_works!$B$52,CHOOSE(uxb_works!$B$47,IF(INDEX(aData,$B12,AU$4)="","-",TEXT(INDEX(aData,$B12,AU$4),$H12)),INDEX(aScoresRounded,$B12,AU$4)),CHOOSE(uxb_works!$B$47,IF(INDEX(aData_Basin,$B12,AU$4)="","-",TEXT(INDEX(aData_Basin,$B12,AU$4),$H12)),INDEX(aScoresRounded_Basin,$B12,AU$4)))) -> - | AV12: =IF(AV$4="","",CHOOSE(uxb_works!$B$52,CHOOSE(uxb_works!$B$47,IF(INDEX(aData,$B12,AV$4)="","-",TEXT(INDEX(aData,$B12,AV$4),$H12)),INDEX(aScoresRounded,$B12,AV$4)),CHOOSE(uxb_works!$B$47,IF(INDEX(aData_Basin,$B12,AV$4)="","-",TEXT(INDEX(aData_Basin,$B12,AV$4),$H12)),INDEX(aScoresRounded_Basin,$B12,AV$4)))) -> -
B13: =tblIndicators!A3 -> 2 | F13: =tblIndicators!G3 -> 1 | H13: =tblIndicators!AC3 -> #0.0 | K13: =IF(uxb_works!$B$46>=L13,1,0) -> 1 | L13: =tblIndicators!G3 -> 1 | N13: =iScores!N7 -> 1) POLICY AND LEGAL FRAMEWORKS | O13: =CHOOSE(uxb_works!$B$47,iData!I7,iScores!O7) ->  | P13: =IF(tblIndicators!T3="","",IF(AND(uxb_works!$B$47=1,OR(F13=5,Scores!F13<=2)),"",tblIndicators!T3)) ->  | Q13: =IF(Q$4="","",CHOOSE(uxb_works!$B$52,CHOOSE(uxb_works!$B$47,IF(INDEX(aData,$B13,Q$4)="","-",TEXT(INDEX(aData,$B13,Q$4),$H13)),INDEX(aScoresRounded,$B13,Q$4)),CHOOSE(uxb_works!$B$47,IF(INDEX(aData_Basin,$B13,Q$4)="","-",TEXT(INDEX(aData_Basin,$B13,Q$4),$H13)),INDEX(aScoresRounded_Basin,$B13,Q$4)))) -> - | R13: =IF(R$4="","",CHOOSE(uxb_works!$B$52,CHOOSE(uxb_works!$B$47,IF(INDEX(aData,$B13,R$4)="","-",TEXT(INDEX(aData,$B13,R$4),$H13)),INDEX(aScoresRounded,$B13,R$4)),CHOOSE(uxb_works!$B$47,IF(INDEX(aData_Basin,$B13,R$4)="","-",TEXT(INDEX(aData_Basin,$B13,R$4),$H13)),INDEX(aScoresRounded_Basin,$B13,R$4)))) -> - | S13: =IF(S$4="","",CHOOSE(uxb_works!$B$52,CHOOSE(uxb_works!$B$47,IF(INDEX(aData,$B13,S$4)="","-",TEXT(INDEX(aData,$B13,S$4),$H13)),INDEX(aScoresRounded,$B13,S$4)),CHOOSE(uxb_works!$B$47,IF(INDEX(aData_Basin,$B13,S$4)="","-",TEXT(INDEX(aData_Basin,$B13,S$4),$H13)),INDEX(aScoresRounded_Basin,$B13,S$4)))) -> - | T13: =IF(T$4="","",CHOOSE(uxb_works!$B$52,CHOOSE(uxb_works!$B$47,IF(INDEX(aData,$B13,T$4)="","-",TEXT(INDEX(aData,$B13,T$4),$H13)),INDEX(aScoresRounded,$B13,T$4)),CHOOSE(uxb_works!$B$47,IF(INDEX(aData_Basin,$B13,T$4)="","-",TEXT(INDEX(aData_Basin,$B13,T$4),$H13)),INDEX(aScoresRounded_Basin,$B13,T$4)))) -> - | U13: =IF(U$4="","",CHOOSE(uxb_works!$B$52,CHOOSE(uxb_works!$B$47,IF(INDEX(aData,$B13,U$4)="","-",TEXT(INDEX(aData,$B13,U$4),$H13)),INDEX(aScoresRounded,$B13,U$4)),CHOOSE(uxb_works!$B$47,IF(INDEX(aData_Basin,$B13,U$4)="","-",TEXT(INDEX(aData_Basin,$B13,U$4),$H13)),INDEX(aScoresRounded_Basin,$B13,U$4)))) -> - | V13: =IF(V$4="","",CHOOSE(uxb_works!$B$52,CHOOSE(uxb_works!$B$47,IF(INDEX(aData,$B13,V$4)="","-",TEXT(INDEX(aData,$B13,V$4),$H13)),INDEX(aScoresRounded,$B13,V$4)),CHOOSE(uxb_works!$B$47,IF(INDEX(aData_Basin,$B13,V$4)="","-",TEXT(INDEX(aData_Basin,$B13,V$4),$H13)),INDEX(aScoresRounded_Basin,$B13,V$4)))) -> - | W13: =IF(W$4="","",CHOOSE(uxb_works!$B$52,CHOOSE(uxb_works!$B$47,IF(INDEX(aData,$B13,W$4)="","-",TEXT(INDEX(aData,$B13,W$4),$H13)),INDEX(aScoresRounded,$B13,W$4)),CHOOSE(uxb_works!$B$47,IF(INDEX(aData_Basin,$B13,W$4)="","-",TEXT(INDEX(aData_Basin,$B13,W$4),$H13)),INDEX(aScoresRounded_Basin,$B13,W$4)))) -> - | X13: =IF(X$4="","",CHOOSE(uxb_works!$B$52,CHOOSE(uxb_works!$B$47,IF(INDEX(aData,$B13,X$4)="","-",TEXT(INDEX(aData,$B13,X$4),$H13)),INDEX(aScoresRounded,$B13,X$4)),CHOOSE(uxb_works!$B$47,IF(INDEX(aData_Basin,$B13,X$4)="","-",TEXT(INDEX(aData_Basin,$B13,X$4),$H13)),INDEX(aScoresRounded_Basin,$B13,X$4)))) -> - | Y13: =IF(Y$4="","",CHOOSE(uxb_works!$B$52,CHOOSE(uxb_works!$B$47,IF(INDEX(aData,$B13,Y$4)="","-",TEXT(INDEX(aData,$B13,Y$4),$H13)),INDEX(aScoresRounded,$B13,Y$4)),CHOOSE(uxb_works!$B$47,IF(INDEX(aData_Basin,$B13,Y$4)="","-",TEXT(INDEX(aData_Basin,$B13,Y$4),$H13)),INDEX(aScoresRounded_Basin,$B13,Y$4)))) -> - | Z13: =IF(Z$4="","",CHOOSE(uxb_works!$B$52,CHOOSE(uxb_works!$B$47,IF(INDEX(aData,$B13,Z$4)="","-",TEXT(INDEX(aData,$B13,Z$4),$H13)),INDEX(aScoresRounded,$B13,Z$4)),CHOOSE(uxb_works!$B$47,IF(INDEX(aData_Basin,$B13,Z$4)="","-",TEXT(INDEX(aData_Basin,$B13,Z$4),$H13)),INDEX(aScoresRounded_Basin,$B13,Z$4)))) -> - | AA13: =IF(AA$4="","",CHOOSE(uxb_works!$B$52,CHOOSE(uxb_works!$B$47,IF(INDEX(aData,$B13,AA$4)="","-",TEXT(INDEX(aData,$B13,AA$4),$H13)),INDEX(aScoresRounded,$B13,AA$4)),CHOOSE(uxb_works!$B$47,IF(INDEX(aData_Basin,$B13,AA$4)="","-",TEXT(INDEX(aData_Basin,$B13,AA$4),$H13)),INDEX(aScoresRounded_Basin,$B13,AA$4)))) -> - | AB13: =IF(AB$4="","",CHOOSE(uxb_works!$B$52,CHOOSE(uxb_works!$B$47,IF(INDEX(aData,$B13,AB$4)="","-",TEXT(INDEX(aData,$B13,AB$4),$H13)),INDEX(aScoresRounded,$B13,AB$4)),CHOOSE(uxb_works!$B$47,IF(INDEX(aData_Basin,$B13,AB$4)="","-",TEXT(INDEX(aData_Basin,$B13,AB$4),$H13)),INDEX(aScoresRounded_Basin,$B13,AB$4)))) -> - | AC13: =IF(AC$4="","",CHOOSE(uxb_works!$B$52,CHOOSE(uxb_works!$B$47,IF(INDEX(aData,$B13,AC$4)="","-",TEXT(INDEX(aData,$B13,AC$4),$H13)),INDEX(aScoresRounded,$B13,AC$4)),CHOOSE(uxb_works!$B$47,IF(INDEX(aData_Basin,$B13,AC$4)="","-",TEXT(INDEX(aData_Basin,$B13,AC$4),$H13)),INDEX(aScoresRounded_Basin,$B13,AC$4)))) -> - | AD13: =IF(AD$4="","",CHOOSE(uxb_works!$B$52,CHOOSE(uxb_works!$B$47,IF(INDEX(aData,$B13,AD$4)="","-",TEXT(INDEX(aData,$B13,AD$4),$H13)),INDEX(aScoresRounded,$B13,AD$4)),CHOOSE(uxb_works!$B$47,IF(INDEX(aData_Basin,$B13,AD$4)="","-",TEXT(INDEX(aData_Basin,$B13,AD$4),$H13)),INDEX(aScoresRounded_Basin,$B13,AD$4)))) -> - | AE13: =IF(AE$4="","",CHOOSE(uxb_works!$B$52,CHOOSE(uxb_works!$B$47,IF(INDEX(aData,$B13,AE$4)="","-",TEXT(INDEX(aData,$B13,AE$4),$H13)),INDEX(aScoresRounded,$B13,AE$4)),CHOOSE(uxb_works!$B$47,IF(INDEX(aData_Basin,$B13,AE$4)="","-",TEXT(INDEX(aData_Basin,$B13,AE$4),$H13)),INDEX(aScoresRounded_Basin,$B13,AE$4)))) -> - | AF13: =IF(AF$4="","",CHOOSE(uxb_works!$B$52,CHOOSE(uxb_works!$B$47,IF(INDEX(aData,$B13,AF$4)="","-",TEXT(INDEX(aData,$B13,AF$4),$H13)),INDEX(aScoresRounded,$B13,AF$4)),CHOOSE(uxb_works!$B$47,IF(INDEX(aData_Basin,$B13,AF$4)="","-",TEXT(INDEX(aData_Basin,$B13,AF$4),$H13)),INDEX(aScoresRounded_Basin,$B13,AF$4)))) -> - | AG13: =IF(AG$4="","",CHOOSE(uxb_works!$B$52,CHOOSE(uxb_works!$B$47,IF(INDEX(aData,$B13,AG$4)="","-",TEXT(INDEX(aData,$B13,AG$4),$H13)),INDEX(aScoresRounded,$B13,AG$4)),CHOOSE(uxb_works!$B$47,IF(INDEX(aData_Basin,$B13,AG$4)="","-",TEXT(INDEX(aData_Basin,$B13,AG$4),$H13)),INDEX(aScoresRounded_Basin,$B13,AG$4)))) -> - | AH13: =IF(AH$4="","",CHOOSE(uxb_works!$B$52,CHOOSE(uxb_works!$B$47,IF(INDEX(aData,$B13,AH$4)="","-",TEXT(INDEX(aData,$B13,AH$4),$H13)),INDEX(aScoresRounded,$B13,AH$4)),CHOOSE(uxb_works!$B$47,IF(INDEX(aData_Basin,$B13,AH$4)="","-",TEXT(INDEX(aData_Basin,$B13,AH$4),$H13)),INDEX(aScoresRounded_Basin,$B13,AH$4)))) -> - | AI13: =IF(AI$4="","",CHOOSE(uxb_works!$B$52,CHOOSE(uxb_works!$B$47,IF(INDEX(aData,$B13,AI$4)="","-",TEXT(INDEX(aData,$B13,AI$4),$H13)),INDEX(aScoresRounded,$B13,AI$4)),CHOOSE(uxb_works!$B$47,IF(INDEX(aData_Basin,$B13,AI$4)="","-",TEXT(INDEX(aData_Basin,$B13,AI$4),$H13)),INDEX(aScoresRounded_Basin,$B13,AI$4)))) -> - | AJ13: =IF(AJ$4="","",CHOOSE(uxb_works!$B$52,CHOOSE(uxb_works!$B$47,IF(INDEX(aData,$B13,AJ$4)="","-",TEXT(INDEX(aData,$B13,AJ$4),$H13)),INDEX(aScoresRounded,$B13,AJ$4)),CHOOSE(uxb_works!$B$47,IF(INDEX(aData_Basin,$B13,AJ$4)="","-",TEXT(INDEX(aData_Basin,$B13,AJ$4),$H13)),INDEX(aScoresRounded_Basin,$B13,AJ$4)))) -> - | AK13: =IF(AK$4="","",CHOOSE(uxb_works!$B$52,CHOOSE(uxb_works!$B$47,IF(INDEX(aData,$B13,AK$4)="","-",TEXT(INDEX(aData,$B13,AK$4),$H13)),INDEX(aScoresRounded,$B13,AK$4)),CHOOSE(uxb_works!$B$47,IF(INDEX(aData_Basin,$B13,AK$4)="","-",TEXT(INDEX(aData_Basin,$B13,AK$4),$H13)),INDEX(aScoresRounded_Basin,$B13,AK$4)))) -> - | AL13: =IF(AL$4="","",CHOOSE(uxb_works!$B$52,CHOOSE(uxb_works!$B$47,IF(INDEX(aData,$B13,AL$4)="","-",TEXT(INDEX(aData,$B13,AL$4),$H13)),INDEX(aScoresRounded,$B13,AL$4)),CHOOSE(uxb_works!$B$47,IF(INDEX(aData_Basin,$B13,AL$4)="","-",TEXT(INDEX(aData_Basin,$B13,AL$4),$H13)),INDEX(aScoresRounded_Basin,$B13,AL$4)))) -> - | AM13: =IF(AM$4="","",CHOOSE(uxb_works!$B$52,CHOOSE(uxb_works!$B$47,IF(INDEX(aData,$B13,AM$4)="","-",TEXT(INDEX(aData,$B13,AM$4),$H13)),INDEX(aScoresRounded,$B13,AM$4)),CHOOSE(uxb_works!$B$47,IF(INDEX(aData_Basin,$B13,AM$4)="","-",TEXT(INDEX(aData_Basin,$B13,AM$4),$H13)),INDEX(aScoresRounded_Basin,$B13,AM$4)))) -> - | AN13: =IF(AN$4="","",CHOOSE(uxb_works!$B$52,CHOOSE(uxb_works!$B$47,IF(INDEX(aData,$B13,AN$4)="","-",TEXT(INDEX(aData,$B13,AN$4),$H13)),INDEX(aScoresRounded,$B13,AN$4)),CHOOSE(uxb_works!$B$47,IF(INDEX(aData_Basin,$B13,AN$4)="","-",TEXT(INDEX(aData_Basin,$B13,AN$4),$H13)),INDEX(aScoresRounded_Basin,$B13,AN$4)))) -> - | AO13: =IF(AO$4="","",CHOOSE(uxb_works!$B$52,CHOOSE(uxb_works!$B$47,IF(INDEX(aData,$B13,AO$4)="","-",TEXT(INDEX(aData,$B13,AO$4),$H13)),INDEX(aScoresRounded,$B13,AO$4)),CHOOSE(uxb_works!$B$47,IF(INDEX(aData_Basin,$B13,AO$4)="","-",TEXT(INDEX(aData_Basin,$B13,AO$4),$H13)),INDEX(aScoresRounded_Basin,$B13,AO$4)))) -> - | AP13: =IF(AP$4="","",CHOOSE(uxb_works!$B$52,CHOOSE(uxb_works!$B$47,IF(INDEX(aData,$B13,AP$4)="","-",TEXT(INDEX(aData,$B13,AP$4),$H13)),INDEX(aScoresRounded,$B13,AP$4)),CHOOSE(uxb_works!$B$47,IF(INDEX(aData_Basin,$B13,AP$4)="","-",TEXT(INDEX(aData_Basin,$B13,AP$4),$H13)),INDEX(aScoresRounded_Basin,$B13,AP$4)))) -> - | AQ13: =IF(AQ$4="","",CHOOSE(uxb_works!$B$52,CHOOSE(uxb_works!$B$47,IF(INDEX(aData,$B13,AQ$4)="","-",TEXT(INDEX(aData,$B13,AQ$4),$H13)),INDEX(aScoresRounded,$B13,AQ$4)),CHOOSE(uxb_works!$B$47,IF(INDEX(aData_Basin,$B13,AQ$4)="","-",TEXT(INDEX(aData_Basin,$B13,AQ$4),$H13)),INDEX(aScoresRounded_Basin,$B13,AQ$4)))) -> - | AR13: =IF(AR$4="","",CHOOSE(uxb_works!$B$52,CHOOSE(uxb_works!$B$47,IF(INDEX(aData,$B13,AR$4)="","-",TEXT(INDEX(aData,$B13,AR$4),$H13)),INDEX(aScoresRounded,$B13,AR$4)),CHOOSE(uxb_works!$B$47,IF(INDEX(aData_Basin,$B13,AR$4)="","-",TEXT(INDEX(aData_Basin,$B13,AR$4),$H13)),INDEX(aScoresRounded_Basin,$B13,AR$4)))) -> - | AS13: =IF(AS$4="","",CHOOSE(uxb_works!$B$52,CHOOSE(uxb_works!$B$47,IF(INDEX(aData,$B13,AS$4)="","-",TEXT(INDEX(aData,$B13,AS$4),$H13)),INDEX(aScoresRounded,$B13,AS$4)),CHOOSE(uxb_works!$B$47,IF(INDEX(aData_Basin,$B13,AS$4)="","-",TEXT(INDEX(aData_Basin,$B13,AS$4),$H13)),INDEX(aScoresRounded_Basin,$B13,AS$4)))) -> - | AT13: =IF(AT$4="","",CHOOSE(uxb_works!$B$52,CHOOSE(uxb_works!$B$47,IF(INDEX(aData,$B13,AT$4)="","-",TEXT(INDEX(aData,$B13,AT$4),$H13)),INDEX(aScoresRounded,$B13,AT$4)),CHOOSE(uxb_works!$B$47,IF(INDEX(aData_Basin,$B13,AT$4)="","-",TEXT(INDEX(aData_Basin,$B13,AT$4),$H13)),INDEX(aScoresRounded_Basin,$B13,AT$4)))) -> - | AU13: =IF(AU$4="","",CHOOSE(uxb_works!$B$52,CHOOSE(uxb_works!$B$47,IF(INDEX(aData,$B13,AU$4)="","-",TEXT(INDEX(aData,$B13,AU$4),$H13)),INDEX(aScoresRounded,$B13,AU$4)),CHOOSE(uxb_works!$B$47,IF(INDEX(aData_Basin,$B13,AU$4)="","-",TEXT(INDEX(aData_Basin,$B13,AU$4),$H13)),INDEX(aScoresRounded_Basin,$B13,AU$4)))) -> - | AV13: =IF(AV$4="","",CHOOSE(uxb_works!$B$52,CHOOSE(uxb_works!$B$47,IF(INDEX(aData,$B13,AV$4)="","-",TEXT(INDEX(aData,$B13,AV$4),$H13)),INDEX(aScoresRounded,$B13,AV$4)),CHOOSE(uxb_works!$B$47,IF(INDEX(aData_Basin,$B13,AV$4)="","-",TEXT(INDEX(aData_Basin,$B13,AV$4),$H13)),INDEX(aScoresRounded_Basin,$B13,AV$4)))) -> -
B14: =tblIndicators!A4 -> 3 | F14: =tblIndicators!G4 -> 2 | H14: =tblIndicators!AC4 -> #,##0.0 | K14: =IF(uxb_works!$B$46>=L14,1,0) -> 1 | L14: =tblIndicators!G4 -> 2 | N14: =iScores!N8 -> 1.1) National water policy | O14: =CHOOSE(uxb_works!$B$47,iData!I8,iScores!O8) ->  | P14: =IF(tblIndicators!T4="","",IF(AND(uxb_works!$B$47=1,OR(F14=5,Scores!F14<=2)),"",tblIndicators!T4)) ->  | Q14: =IF(Q$4="","",CHOOSE(uxb_works!$B$52,CHOOSE(uxb_works!$B$47,IF(INDEX(aData,$B14,Q$4)="","-",TEXT(INDEX(aData,$B14,Q$4),$H14)),INDEX(aScoresRounded,$B14,Q$4)),CHOOSE(uxb_works!$B$47,IF(INDEX(aData_Basin,$B14,Q$4)="","-",TEXT(INDEX(aData_Basin,$B14,Q$4),$H14)),INDEX(aScoresRounded_Basin,$B14,Q$4)))) -> - | R14: =IF(R$4="","",CHOOSE(uxb_works!$B$52,CHOOSE(uxb_works!$B$47,IF(INDEX(aData,$B14,R$4)="","-",TEXT(INDEX(aData,$B14,R$4),$H14)),INDEX(aScoresRounded,$B14,R$4)),CHOOSE(uxb_works!$B$47,IF(INDEX(aData_Basin,$B14,R$4)="","-",TEXT(INDEX(aData_Basin,$B14,R$4),$H14)),INDEX(aScoresRounded_Basin,$B14,R$4)))) -> - | S14: =IF(S$4="","",CHOOSE(uxb_works!$B$52,CHOOSE(uxb_works!$B$47,IF(INDEX(aData,$B14,S$4)="","-",TEXT(INDEX(aData,$B14,S$4),$H14)),INDEX(aScoresRounded,$B14,S$4)),CHOOSE(uxb_works!$B$47,IF(INDEX(aData_Basin,$B14,S$4)="","-",TEXT(INDEX(aData_Basin,$B14,S$4),$H14)),INDEX(aScoresRounded_Basin,$B14,S$4)))) -> - | T14: =IF(T$4="","",CHOOSE(uxb_works!$B$52,CHOOSE(uxb_works!$B$47,IF(INDEX(aData,$B14,T$4)="","-",TEXT(INDEX(aData,$B14,T$4),$H14)),INDEX(aScoresRounded,$B14,T$4)),CHOOSE(uxb_works!$B$47,IF(INDEX(aData_Basin,$B14,T$4)="","-",TEXT(INDEX(aData_Basin,$B14,T$4),$H14)),INDEX(aScoresRounded_Basin,$B14,T$4)))) -> - | U14: =IF(U$4="","",CHOOSE(uxb_works!$B$52,CHOOSE(uxb_works!$B$47,IF(INDEX(aData,$B14,U$4)="","-",TEXT(INDEX(aData,$B14,U$4),$H14)),INDEX(aScoresRounded,$B14,U$4)),CHOOSE(uxb_works!$B$47,IF(INDEX(aData_Basin,$B14,U$4)="","-",TEXT(INDEX(aData_Basin,$B14,U$4),$H14)),INDEX(aScoresRounded_Basin,$B14,U$4)))) -> - | V14: =IF(V$4="","",CHOOSE(uxb_works!$B$52,CHOOSE(uxb_works!$B$47,IF(INDEX(aData,$B14,V$4)="","-",TEXT(INDEX(aData,$B14,V$4),$H14)),INDEX(aScoresRounded,$B14,V$4)),CHOOSE(uxb_works!$B$47,IF(INDEX(aData_Basin,$B14,V$4)="","-",TEXT(INDEX(aData_Basin,$B14,V$4),$H14)),INDEX(aScoresRounded_Basin,$B14,V$4)))) -> - | W14: =IF(W$4="","",CHOOSE(uxb_works!$B$52,CHOOSE(uxb_works!$B$47,IF(INDEX(aData,$B14,W$4)="","-",TEXT(INDEX(aData,$B14,W$4),$H14)),INDEX(aScoresRounded,$B14,W$4)),CHOOSE(uxb_works!$B$47,IF(INDEX(aData_Basin,$B14,W$4)="","-",TEXT(INDEX(aData_Basin,$B14,W$4),$H14)),INDEX(aScoresRounded_Basin,$B14,W$4)))) -> - | X14: =IF(X$4="","",CHOOSE(uxb_works!$B$52,CHOOSE(uxb_works!$B$47,IF(INDEX(aData,$B14,X$4)="","-",TEXT(INDEX(aData,$B14,X$4),$H14)),INDEX(aScoresRounded,$B14,X$4)),CHOOSE(uxb_works!$B$47,IF(INDEX(aData_Basin,$B14,X$4)="","-",TEXT(INDEX(aData_Basin,$B14,X$4),$H14)),INDEX(aScoresRounded_Basin,$B14,X$4)))) -> - | Y14: =IF(Y$4="","",CHOOSE(uxb_works!$B$52,CHOOSE(uxb_works!$B$47,IF(INDEX(aData,$B14,Y$4)="","-",TEXT(INDEX(aData,$B14,Y$4),$H14)),INDEX(aScoresRounded,$B14,Y$4)),CHOOSE(uxb_works!$B$47,IF(INDEX(aData_Basin,$B14,Y$4)="","-",TEXT(INDEX(aData_Basin,$B14,Y$4),$H14)),INDEX(aScoresRounded_Basin,$B14,Y$4)))) -> - | Z14: =IF(Z$4="","",CHOOSE(uxb_works!$B$52,CHOOSE(uxb_works!$B$47,IF(INDEX(aData,$B14,Z$4)="","-",TEXT(INDEX(aData,$B14,Z$4),$H14)),INDEX(aScoresRounded,$B14,Z$4)),CHOOSE(uxb_works!$B$47,IF(INDEX(aData_Basin,$B14,Z$4)="","-",TEXT(INDEX(aData_Basin,$B14,Z$4),$H14)),INDEX(aScoresRounded_Basin,$B14,Z$4)))) -> - | AA14: =IF(AA$4="","",CHOOSE(uxb_works!$B$52,CHOOSE(uxb_works!$B$47,IF(INDEX(aData,$B14,AA$4)="","-",TEXT(INDEX(aData,$B14,AA$4),$H14)),INDEX(aScoresRounded,$B14,AA$4)),CHOOSE(uxb_works!$B$47,IF(INDEX(aData_Basin,$B14,AA$4)="","-",TEXT(INDEX(aData_Basin,$B14,AA$4),$H14)),INDEX(aScoresRounded_Basin,$B14,AA$4)))) -> - | AB14: =IF(AB$4="","",CHOOSE(uxb_works!$B$52,CHOOSE(uxb_works!$B$47,IF(INDEX(aData,$B14,AB$4)="","-",TEXT(INDEX(aData,$B14,AB$4),$H14)),INDEX(aScoresRounded,$B14,AB$4)),CHOOSE(uxb_works!$B$47,IF(INDEX(aData_Basin,$B14,AB$4)="","-",TEXT(INDEX(aData_Basin,$B14,AB$4),$H14)),INDEX(aScoresRounded_Basin,$B14,AB$4)))) -> - | AC14: =IF(AC$4="","",CHOOSE(uxb_works!$B$52,CHOOSE(uxb_works!$B$47,IF(INDEX(aData,$B14,AC$4)="","-",TEXT(INDEX(aData,$B14,AC$4),$H14)),INDEX(aScoresRounded,$B14,AC$4)),CHOOSE(uxb_works!$B$47,IF(INDEX(aData_Basin,$B14,AC$4)="","-",TEXT(INDEX(aData_Basin,$B14,AC$4),$H14)),INDEX(aScoresRounded_Basin,$B14,AC$4)))) -> - | AD14: =IF(AD$4="","",CHOOSE(uxb_works!$B$52,CHOOSE(uxb_works!$B$47,IF(INDEX(aData,$B14,AD$4)="","-",TEXT(INDEX(aData,$B14,AD$4),$H14)),INDEX(aScoresRounded,$B14,AD$4)),CHOOSE(uxb_works!$B$47,IF(INDEX(aData_Basin,$B14,AD$4)="","-",TEXT(INDEX(aData_Basin,$B14,AD$4),$H14)),INDEX(aScoresRounded_Basin,$B14,AD$4)))) -> - | AE14: =IF(AE$4="","",CHOOSE(uxb_works!$B$52,CHOOSE(uxb_works!$B$47,IF(INDEX(aData,$B14,AE$4)="","-",TEXT(INDEX(aData,$B14,AE$4),$H14)),INDEX(aScoresRounded,$B14,AE$4)),CHOOSE(uxb_works!$B$47,IF(INDEX(aData_Basin,$B14,AE$4)="","-",TEXT(INDEX(aData_Basin,$B14,AE$4),$H14)),INDEX(aScoresRounded_Basin,$B14,AE$4)))) -> - | AF14: =IF(AF$4="","",CHOOSE(uxb_works!$B$52,CHOOSE(uxb_works!$B$47,IF(INDEX(aData,$B14,AF$4)="","-",TEXT(INDEX(aData,$B14,AF$4),$H14)),INDEX(aScoresRounded,$B14,AF$4)),CHOOSE(uxb_works!$B$47,IF(INDEX(aData_Basin,$B14,AF$4)="","-",TEXT(INDEX(aData_Basin,$B14,AF$4),$H14)),INDEX(aScoresRounded_Basin,$B14,AF$4)))) -> - | AG14: =IF(AG$4="","",CHOOSE(uxb_works!$B$52,CHOOSE(uxb_works!$B$47,IF(INDEX(aData,$B14,AG$4)="","-",TEXT(INDEX(aData,$B14,AG$4),$H14)),INDEX(aScoresRounded,$B14,AG$4)),CHOOSE(uxb_works!$B$47,IF(INDEX(aData_Basin,$B14,AG$4)="","-",TEXT(INDEX(aData_Basin,$B14,AG$4),$H14)),INDEX(aScoresRounded_Basin,$B14,AG$4)))) -> - | AH14: =IF(AH$4="","",CHOOSE(uxb_works!$B$52,CHOOSE(uxb_works!$B$47,IF(INDEX(aData,$B14,AH$4)="","-",TEXT(INDEX(aData,$B14,AH$4),$H14)),INDEX(aScoresRounded,$B14,AH$4)),CHOOSE(uxb_works!$B$47,IF(INDEX(aData_Basin,$B14,AH$4)="","-",TEXT(INDEX(aData_Basin,$B14,AH$4),$H14)),INDEX(aScoresRounded_Basin,$B14,AH$4)))) -> - | AI14: =IF(AI$4="","",CHOOSE(uxb_works!$B$52,CHOOSE(uxb_works!$B$47,IF(INDEX(aData,$B14,AI$4)="","-",TEXT(INDEX(aData,$B14,AI$4),$H14)),INDEX(aScoresRounded,$B14,AI$4)),CHOOSE(uxb_works!$B$47,IF(INDEX(aData_Basin,$B14,AI$4)="","-",TEXT(INDEX(aData_Basin,$B14,AI$4),$H14)),INDEX(aScoresRounded_Basin,$B14,AI$4)))) -> - | AJ14: =IF(AJ$4="","",CHOOSE(uxb_works!$B$52,CHOOSE(uxb_works!$B$47,IF(INDEX(aData,$B14,AJ$4)="","-",TEXT(INDEX(aData,$B14,AJ$4),$H14)),INDEX(aScoresRounded,$B14,AJ$4)),CHOOSE(uxb_works!$B$47,IF(INDEX(aData_Basin,$B14,AJ$4)="","-",TEXT(INDEX(aData_Basin,$B14,AJ$4),$H14)),INDEX(aScoresRounded_Basin,$B14,AJ$4)))) -> - | AK14: =IF(AK$4="","",CHOOSE(uxb_works!$B$52,CHOOSE(uxb_works!$B$47,IF(INDEX(aData,$B14,AK$4)="","-",TEXT(INDEX(aData,$B14,AK$4),$H14)),INDEX(aScoresRounded,$B14,AK$4)),CHOOSE(uxb_works!$B$47,IF(INDEX(aData_Basin,$B14,AK$4)="","-",TEXT(INDEX(aData_Basin,$B14,AK$4),$H14)),INDEX(aScoresRounded_Basin,$B14,AK$4)))) -> - | AL14: =IF(AL$4="","",CHOOSE(uxb_works!$B$52,CHOOSE(uxb_works!$B$47,IF(INDEX(aData,$B14,AL$4)="","-",TEXT(INDEX(aData,$B14,AL$4),$H14)),INDEX(aScoresRounded,$B14,AL$4)),CHOOSE(uxb_works!$B$47,IF(INDEX(aData_Basin,$B14,AL$4)="","-",TEXT(INDEX(aData_Basin,$B14,AL$4),$H14)),INDEX(aScoresRounded_Basin,$B14,AL$4)))) -> - | AM14: =IF(AM$4="","",CHOOSE(uxb_works!$B$52,CHOOSE(uxb_works!$B$47,IF(INDEX(aData,$B14,AM$4)="","-",TEXT(INDEX(aData,$B14,AM$4),$H14)),INDEX(aScoresRounded,$B14,AM$4)),CHOOSE(uxb_works!$B$47,IF(INDEX(aData_Basin,$B14,AM$4)="","-",TEXT(INDEX(aData_Basin,$B14,AM$4),$H14)),INDEX(aScoresRounded_Basin,$B14,AM$4)))) -> - | AN14: =IF(AN$4="","",CHOOSE(uxb_works!$B$52,CHOOSE(uxb_works!$B$47,IF(INDEX(aData,$B14,AN$4)="","-",TEXT(INDEX(aData,$B14,AN$4),$H14)),INDEX(aScoresRounded,$B14,AN$4)),CHOOSE(uxb_works!$B$47,IF(INDEX(aData_Basin,$B14,AN$4)="","-",TEXT(INDEX(aData_Basin,$B14,AN$4),$H14)),INDEX(aScoresRounded_Basin,$B14,AN$4)))) -> - | AO14: =IF(AO$4="","",CHOOSE(uxb_works!$B$52,CHOOSE(uxb_works!$B$47,IF(INDEX(aData,$B14,AO$4)="","-",TEXT(INDEX(aData,$B14,AO$4),$H14)),INDEX(aScoresRounded,$B14,AO$4)),CHOOSE(uxb_works!$B$47,IF(INDEX(aData_Basin,$B14,AO$4)="","-",TEXT(INDEX(aData_Basin,$B14,AO$4),$H14)),INDEX(aScoresRounded_Basin,$B14,AO$4)))) -> - | AP14: =IF(AP$4="","",CHOOSE(uxb_works!$B$52,CHOOSE(uxb_works!$B$47,IF(INDEX(aData,$B14,AP$4)="","-",TEXT(INDEX(aData,$B14,AP$4),$H14)),INDEX(aScoresRounded,$B14,AP$4)),CHOOSE(uxb_works!$B$47,IF(INDEX(aData_Basin,$B14,AP$4)="","-",TEXT(INDEX(aData_Basin,$B14,AP$4),$H14)),INDEX(aScoresRounded_Basin,$B14,AP$4)))) -> - | AQ14: =IF(AQ$4="","",CHOOSE(uxb_works!$B$52,CHOOSE(uxb_works!$B$47,IF(INDEX(aData,$B14,AQ$4)="","-",TEXT(INDEX(aData,$B14,AQ$4),$H14)),INDEX(aScoresRounded,$B14,AQ$4)),CHOOSE(uxb_works!$B$47,IF(INDEX(aData_Basin,$B14,AQ$4)="","-",TEXT(INDEX(aData_Basin,$B14,AQ$4),$H14)),INDEX(aScoresRounded_Basin,$B14,AQ$4)))) -> - | AR14: =IF(AR$4="","",CHOOSE(uxb_works!$B$52,CHOOSE(uxb_works!$B$47,IF(INDEX(aData,$B14,AR$4)="","-",TEXT(INDEX(aData,$B14,AR$4),$H14)),INDEX(aScoresRounded,$B14,AR$4)),CHOOSE(uxb_works!$B$47,IF(INDEX(aData_Basin,$B14,AR$4)="","-",TEXT(INDEX(aData_Basin,$B14,AR$4),$H14)),INDEX(aScoresRounded_Basin,$B14,AR$4)))) -> - | AS14: =IF(AS$4="","",CHOOSE(uxb_works!$B$52,CHOOSE(uxb_works!$B$47,IF(INDEX(aData,$B14,AS$4)="","-",TEXT(INDEX(aData,$B14,AS$4),$H14)),INDEX(aScoresRounded,$B14,AS$4)),CHOOSE(uxb_works!$B$47,IF(INDEX(aData_Basin,$B14,AS$4)="","-",TEXT(INDEX(aData_Basin,$B14,AS$4),$H14)),INDEX(aScoresRounded_Basin,$B14,AS$4)))) -> - | AT14: =IF(AT$4="","",CHOOSE(uxb_works!$B$52,CHOOSE(uxb_works!$B$47,IF(INDEX(aData,$B14,AT$4)="","-",TEXT(INDEX(aData,$B14,AT$4),$H14)),INDEX(aScoresRounded,$B14,AT$4)),CHOOSE(uxb_works!$B$47,IF(INDEX(aData_Basin,$B14,AT$4)="","-",TEXT(INDEX(aData_Basin,$B14,AT$4),$H14)),INDEX(aScoresRounded_Basin,$B14,AT$4)))) -> - | AU14: =IF(AU$4="","",CHOOSE(uxb_works!$B$52,CHOOSE(uxb_works!$B$47,IF(INDEX(aData,$B14,AU$4)="","-",TEXT(INDEX(aData,$B14,AU$4),$H14)),INDEX(aScoresRounded,$B14,AU$4)),CHOOSE(uxb_works!$B$47,IF(INDEX(aData_Basin,$B14,AU$4)="","-",TEXT(INDEX(aData_Basin,$B14,AU$4),$H14)),INDEX(aScoresRounded_Basin,$B14,AU$4)))) -> - | AV14: =IF(AV$4="","",CHOOSE(uxb_works!$B$52,CHOOSE(uxb_works!$B$47,IF(INDEX(aData,$B14,AV$4)="","-",TEXT(INDEX(aData,$B14,AV$4),$H14)),INDEX(aScoresRounded,$B14,AV$4)),CHOOSE(uxb_works!$B$47,IF(INDEX(aData_Basin,$B14,AV$4)="","-",TEXT(INDEX(aData_Basin,$B14,AV$4),$H14)),INDEX(aScoresRounded_Basin,$B14,AV$4)))) -> -
B15: =tblIndicators!A5 -> 4 | F15: =tblIndicators!G5 -> 3 | H15: =tblIndicators!AC5 -> #,##0 | K15: =IF(uxb_works!$B$46>=L15,1,0) -> 1 | L15: =tblIndicators!G5 -> 3 | N15: =iScores!N9 -> 1.1.1) National water law/policy | O15: =CHOOSE(uxb_works!$B$47,iData!I9,iScores!O9) -> Score (0-2) | P15: =IF(tblIndicators!T5="","",IF(AND(uxb_works!$B$47=1,OR(F15=5,Scores!F15<=2)),"",tblIndicators!T5)) -> EIU research | Q15: =IF(Q$4="","",CHOOSE(uxb_works!$B$52,CHOOSE(uxb_works!$B$47,IF(INDEX(aData,$B15,Q$4)="","-",TEXT(INDEX(aData,$B15,Q$4),$H15)),INDEX(aScoresRounded,$B15,Q$4)),CHOOSE(uxb_works!$B$47,IF(INDEX(aData_Basin,$B15,Q$4)="","-",TEXT(INDEX(aData_Basin,$B15,Q$4),$H15)),INDEX(aScoresRounded_Basin,$B15,Q$4)))) -> 1 | R15: =IF(R$4="","",CHOOSE(uxb_works!$B$52,CHOOSE(uxb_works!$B$47,IF(INDEX(aData,$B15,R$4)="","-",TEXT(INDEX(aData,$B15,R$4),$H15)),INDEX(aScoresRounded,$B15,R$4)),CHOOSE(uxb_works!$B$47,IF(INDEX(aData_Basin,$B15,R$4)="","-",TEXT(INDEX(aData_Basin,$B15,R$4),$H15)),INDEX(aScoresRounded_Basin,$B15,R$4)))) -> 1 | S15: =IF(S$4="","",CHOOSE(uxb_works!$B$52,CHOOSE(uxb_works!$B$47,IF(INDEX(aData,$B15,S$4)="","-",TEXT(INDEX(aData,$B15,S$4),$H15)),INDEX(aScoresRounded,$B15,S$4)),CHOOSE(uxb_works!$B$47,IF(INDEX(aData_Basin,$B15,S$4)="","-",TEXT(INDEX(aData_Basin,$B15,S$4),$H15)),INDEX(aScoresRounded_Basin,$B15,S$4)))) -> 2 | T15: =IF(T$4="","",CHOOSE(uxb_works!$B$52,CHOOSE(uxb_works!$B$47,IF(INDEX(aData,$B15,T$4)="","-",TEXT(INDEX(aData,$B15,T$4),$H15)),INDEX(aScoresRounded,$B15,T$4)),CHOOSE(uxb_works!$B$47,IF(INDEX(aData_Basin,$B15,T$4)="","-",TEXT(INDEX(aData_Basin,$B15,T$4),$H15)),INDEX(aScoresRounded_Basin,$B15,T$4)))) -> 2 | U15: =IF(U$4="","",CHOOSE(uxb_works!$B$52,CHOOSE(uxb_works!$B$47,IF(INDEX(aData,$B15,U$4)="","-",TEXT(INDEX(aData,$B15,U$4),$H15)),INDEX(aScoresRounded,$B15,U$4)),CHOOSE(uxb_works!$B$47,IF(INDEX(aData_Basin,$B15,U$4)="","-",TEXT(INDEX(aData_Basin,$B15,U$4),$H15)),INDEX(aScoresRounded_Basin,$B15,U$4)))) -> 1 | V15: =IF(V$4="","",CHOOSE(uxb_works!$B$52,CHOOSE(uxb_works!$B$47,IF(INDEX(aData,$B15,V$4)="","-",TEXT(INDEX(aData,$B15,V$4),$H15)),INDEX(aScoresRounded,$B15,V$4)),CHOOSE(uxb_works!$B$47,IF(INDEX(aData_Basin,$B15,V$4)="","-",TEXT(INDEX(aData_Basin,$B15,V$4),$H15)),INDEX(aScoresRounded_Basin,$B15,V$4)))) -> 2 | W15: =IF(W$4="","",CHOOSE(uxb_works!$B$52,CHOOSE(uxb_works!$B$47,IF(INDEX(aData,$B15,W$4)="","-",TEXT(INDEX(aData,$B15,W$4),$H15)),INDEX(aScoresRounded,$B15,W$4)),CHOOSE(uxb_works!$B$47,IF(INDEX(aData_Basin,$B15,W$4)="","-",TEXT(INDEX(aData_Basin,$B15,W$4),$H15)),INDEX(aScoresRounded_Basin,$B15,W$4)))) -> 2 | X15: =IF(X$4="","",CHOOSE(uxb_works!$B$52,CHOOSE(uxb_works!$B$47,IF(INDEX(aData,$B15,X$4)="","-",TEXT(INDEX(aData,$B15,X$4),$H15)),INDEX(aScoresRounded,$B15,X$4)),CHOOSE(uxb_works!$B$47,IF(INDEX(aData_Basin,$B15,X$4)="","-",TEXT(INDEX(aData_Basin,$B15,X$4),$H15)),INDEX(aScoresRounded_Basin,$B15,X$4)))) -> 2 | Y15: =IF(Y$4="","",CHOOSE(uxb_works!$B$52,CHOOSE(uxb_works!$B$47,IF(INDEX(aData,$B15,Y$4)="","-",TEXT(INDEX(aData,$B15,Y$4),$H15)),INDEX(aScoresRounded,$B15,Y$4)),CHOOSE(uxb_works!$B$47,IF(INDEX(aData_Basin,$B15,Y$4)="","-",TEXT(INDEX(aData_Basin,$B15,Y$4),$H15)),INDEX(aScoresRounded_Basin,$B15,Y$4)))) -> 2 | Z15: =IF(Z$4="","",CHOOSE(uxb_works!$B$52,CHOOSE(uxb_works!$B$47,IF(INDEX(aData,$B15,Z$4)="","-",TEXT(INDEX(aData,$B15,Z$4),$H15)),INDEX(aScoresRounded,$B15,Z$4)),CHOOSE(uxb_works!$B$47,IF(INDEX(aData_Basin,$B15,Z$4)="","-",TEXT(INDEX(aData_Basin,$B15,Z$4),$H15)),INDEX(aScoresRounded_Basin,$B15,Z$4)))) -> 1 | AA15: =IF(AA$4="","",CHOOSE(uxb_works!$B$52,CHOOSE(uxb_works!$B$47,IF(INDEX(aData,$B15,AA$4)="","-",TEXT(INDEX(aData,$B15,AA$4),$H15)),INDEX(aScoresRounded,$B15,AA$4)),CHOOSE(uxb_works!$B$47,IF(INDEX(aData_Basin,$B15,AA$4)="","-",TEXT(INDEX(aData_Basin,$B15,AA$4),$H15)),INDEX(aScoresRounded_Basin,$B15,AA$4)))) -> 1 | AB15: =IF(AB$4="","",CHOOSE(uxb_works!$B$52,CHOOSE(uxb_works!$B$47,IF(INDEX(aData,$B15,AB$4)="","-",TEXT(INDEX(aData,$B15,AB$4),$H15)),INDEX(aScoresRounded,$B15,AB$4)),CHOOSE(uxb_works!$B$47,IF(INDEX(aData_Basin,$B15,AB$4)="","-",TEXT(INDEX(aData_Basin,$B15,AB$4),$H15)),INDEX(aScoresRounded_Basin,$B15,AB$4)))) -> 1 | AC15: =IF(AC$4="","",CHOOSE(uxb_works!$B$52,CHOOSE(uxb_works!$B$47,IF(INDEX(aData,$B15,AC$4)="","-",TEXT(INDEX(aData,$B15,AC$4),$H15)),INDEX(aScoresRounded,$B15,AC$4)),CHOOSE(uxb_works!$B$47,IF(INDEX(aData_Basin,$B15,AC$4)="","-",TEXT(INDEX(aData_Basin,$B15,AC$4),$H15)),INDEX(aScoresRounded_Basin,$B15,AC$4)))) -> 1 | AD15: =IF(AD$4="","",CHOOSE(uxb_works!$B$52,CHOOSE(uxb_works!$B$47,IF(INDEX(aData,$B15,AD$4)="","-",TEXT(INDEX(aData,$B15,AD$4),$H15)),INDEX(aScoresRounded,$B15,AD$4)),CHOOSE(uxb_works!$B$47,IF(INDEX(aData_Basin,$B15,AD$4)="","-",TEXT(INDEX(aData_Basin,$B15,AD$4),$H15)),INDEX(aScoresRounded_Basin,$B15,AD$4)))) -> 1 | AE15: =IF(AE$4="","",CHOOSE(uxb_works!$B$52,CHOOSE(uxb_works!$B$47,IF(INDEX(aData,$B15,AE$4)="","-",TEXT(INDEX(aData,$B15,AE$4),$H15)),INDEX(aScoresRounded,$B15,AE$4)),CHOOSE(uxb_works!$B$47,IF(INDEX(aData_Basin,$B15,AE$4)="","-",TEXT(INDEX(aData_Basin,$B15,AE$4),$H15)),INDEX(aScoresRounded_Basin,$B15,AE$4)))) -> 1 | AF15: =IF(AF$4="","",CHOOSE(uxb_works!$B$52,CHOOSE(uxb_works!$B$47,IF(INDEX(aData,$B15,AF$4)="","-",TEXT(INDEX(aData,$B15,AF$4),$H15)),INDEX(aScoresRounded,$B15,AF$4)),CHOOSE(uxb_works!$B$47,IF(INDEX(aData_Basin,$B15,AF$4)="","-",TEXT(INDEX(aData_Basin,$B15,AF$4),$H15)),INDEX(aScoresRounded_Basin,$B15,AF$4)))) -> 2 | AG15: =IF(AG$4="","",CHOOSE(uxb_works!$B$52,CHOOSE(uxb_works!$B$47,IF(INDEX(aData,$B15,AG$4)="","-",TEXT(INDEX(aData,$B15,AG$4),$H15)),INDEX(aScoresRounded,$B15,AG$4)),CHOOSE(uxb_works!$B$47,IF(INDEX(aData_Basin,$B15,AG$4)="","-",TEXT(INDEX(aData_Basin,$B15,AG$4),$H15)),INDEX(aScoresRounded_Basin,$B15,AG$4)))) -> 2 | AH15: =IF(AH$4="","",CHOOSE(uxb_works!$B$52,CHOOSE(uxb_works!$B$47,IF(INDEX(aData,$B15,AH$4)="","-",TEXT(INDEX(aData,$B15,AH$4),$H15)),INDEX(aScoresRounded,$B15,AH$4)),CHOOSE(uxb_works!$B$47,IF(INDEX(aData_Basin,$B15,AH$4)="","-",TEXT(INDEX(aData_Basin,$B15,AH$4),$H15)),INDEX(aScoresRounded_Basin,$B15,AH$4)))) -> 1 | AI15: =IF(AI$4="","",CHOOSE(uxb_works!$B$52,CHOOSE(uxb_works!$B$47,IF(INDEX(aData,$B15,AI$4)="","-",TEXT(INDEX(aData,$B15,AI$4),$H15)),INDEX(aScoresRounded,$B15,AI$4)),CHOOSE(uxb_works!$B$47,IF(INDEX(aData_Basin,$B15,AI$4)="","-",TEXT(INDEX(aData_Basin,$B15,AI$4),$H15)),INDEX(aScoresRounded_Basin,$B15,AI$4)))) -> 1 | AJ15: =IF(AJ$4="","",CHOOSE(uxb_works!$B$52,CHOOSE(uxb_works!$B$47,IF(INDEX(aData,$B15,AJ$4)="","-",TEXT(INDEX(aData,$B15,AJ$4),$H15)),INDEX(aScoresRounded,$B15,AJ$4)),CHOOSE(uxb_works!$B$47,IF(INDEX(aData_Basin,$B15,AJ$4)="","-",TEXT(INDEX(aData_Basin,$B15,AJ$4),$H15)),INDEX(aScoresRounded_Basin,$B15,AJ$4)))) -> 2 | AK15: =IF(AK$4="","",CHOOSE(uxb_works!$B$52,CHOOSE(uxb_works!$B$47,IF(INDEX(aData,$B15,AK$4)="","-",TEXT(INDEX(aData,$B15,AK$4),$H15)),INDEX(aScoresRounded,$B15,AK$4)),CHOOSE(uxb_works!$B$47,IF(INDEX(aData_Basin,$B15,AK$4)="","-",TEXT(INDEX(aData_Basin,$B15,AK$4),$H15)),INDEX(aScoresRounded_Basin,$B15,AK$4)))) -> 1 | AL15: =IF(AL$4="","",CHOOSE(uxb_works!$B$52,CHOOSE(uxb_works!$B$47,IF(INDEX(aData,$B15,AL$4)="","-",TEXT(INDEX(aData,$B15,AL$4),$H15)),INDEX(aScoresRounded,$B15,AL$4)),CHOOSE(uxb_works!$B$47,IF(INDEX(aData_Basin,$B15,AL$4)="","-",TEXT(INDEX(aData_Basin,$B15,AL$4),$H15)),INDEX(aScoresRounded_Basin,$B15,AL$4)))) -> 2 | AM15: =IF(AM$4="","",CHOOSE(uxb_works!$B$52,CHOOSE(uxb_works!$B$47,IF(INDEX(aData,$B15,AM$4)="","-",TEXT(INDEX(aData,$B15,AM$4),$H15)),INDEX(aScoresRounded,$B15,AM$4)),CHOOSE(uxb_works!$B$47,IF(INDEX(aData_Basin,$B15,AM$4)="","-",TEXT(INDEX(aData_Basin,$B15,AM$4),$H15)),INDEX(aScoresRounded_Basin,$B15,AM$4)))) -> 1 | AN15: =IF(AN$4="","",CHOOSE(uxb_works!$B$52,CHOOSE(uxb_works!$B$47,IF(INDEX(aData,$B15,AN$4)="","-",TEXT(INDEX(aData,$B15,AN$4),$H15)),INDEX(aScoresRounded,$B15,AN$4)),CHOOSE(uxb_works!$B$47,IF(INDEX(aData_Basin,$B15,AN$4)="","-",TEXT(INDEX(aData_Basin,$B15,AN$4),$H15)),INDEX(aScoresRounded_Basin,$B15,AN$4)))) -> 1 | AO15: =IF(AO$4="","",CHOOSE(uxb_works!$B$52,CHOOSE(uxb_works!$B$47,IF(INDEX(aData,$B15,AO$4)="","-",TEXT(INDEX(aData,$B15,AO$4),$H15)),INDEX(aScoresRounded,$B15,AO$4)),CHOOSE(uxb_works!$B$47,IF(INDEX(aData_Basin,$B15,AO$4)="","-",TEXT(INDEX(aData_Basin,$B15,AO$4),$H15)),INDEX(aScoresRounded_Basin,$B15,AO$4)))) -> 1 | AP15: =IF(AP$4="","",CHOOSE(uxb_works!$B$52,CHOOSE(uxb_works!$B$47,IF(INDEX(aData,$B15,AP$4)="","-",TEXT(INDEX(aData,$B15,AP$4),$H15)),INDEX(aScoresRounded,$B15,AP$4)),CHOOSE(uxb_works!$B$47,IF(INDEX(aData_Basin,$B15,AP$4)="","-",TEXT(INDEX(aData_Basin,$B15,AP$4),$H15)),INDEX(aScoresRounded_Basin,$B15,AP$4)))) -> 2 | AQ15: =IF(AQ$4="","",CHOOSE(uxb_works!$B$52,CHOOSE(uxb_works!$B$47,IF(INDEX(aData,$B15,AQ$4)="","-",TEXT(INDEX(aData,$B15,AQ$4),$H15)),INDEX(aScoresRounded,$B15,AQ$4)),CHOOSE(uxb_works!$B$47,IF(INDEX(aData_Basin,$B15,AQ$4)="","-",TEXT(INDEX(aData_Basin,$B15,AQ$4),$H15)),INDEX(aScoresRounded_Basin,$B15,AQ$4)))) -> 1 | AR15: =IF(AR$4="","",CHOOSE(uxb_works!$B$52,CHOOSE(uxb_works!$B$47,IF(INDEX(aData,$B15,AR$4)="","-",TEXT(INDEX(aData,$B15,AR$4),$H15)),INDEX(aScoresRounded,$B15,AR$4)),CHOOSE(uxb_works!$B$47,IF(INDEX(aData_Basin,$B15,AR$4)="","-",TEXT(INDEX(aData_Basin,$B15,AR$4),$H15)),INDEX(aScoresRounded_Basin,$B15,AR$4)))) -> 1 | AS15: =IF(AS$4="","",CHOOSE(uxb_works!$B$52,CHOOSE(uxb_works!$B$47,IF(INDEX(aData,$B15,AS$4)="","-",TEXT(INDEX(aData,$B15,AS$4),$H15)),INDEX(aScoresRounded,$B15,AS$4)),CHOOSE(uxb_works!$B$47,IF(INDEX(aData_Basin,$B15,AS$4)="","-",TEXT(INDEX(aData_Basin,$B15,AS$4),$H15)),INDEX(aScoresRounded_Basin,$B15,AS$4)))) -> 1 | AT15: =IF(AT$4="","",CHOOSE(uxb_works!$B$52,CHOOSE(uxb_works!$B$47,IF(INDEX(aData,$B15,AT$4)="","-",TEXT(INDEX(aData,$B15,AT$4),$H15)),INDEX(aScoresRounded,$B15,AT$4)),CHOOSE(uxb_works!$B$47,IF(INDEX(aData_Basin,$B15,AT$4)="","-",TEXT(INDEX(aData_Basin,$B15,AT$4),$H15)),INDEX(aScoresRounded_Basin,$B15,AT$4)))) -> 1 | AU15: =IF(AU$4="","",CHOOSE(uxb_works!$B$52,CHOOSE(uxb_works!$B$47,IF(INDEX(aData,$B15,AU$4)="","-",TEXT(INDEX(aData,$B15,AU$4),$H15)),INDEX(aScoresRounded,$B15,AU$4)),CHOOSE(uxb_works!$B$47,IF(INDEX(aData_Basin,$B15,AU$4)="","-",TEXT(INDEX(aData_Basin,$B15,AU$4),$H15)),INDEX(aScoresRounded_Basin,$B15,AU$4)))) -> 1 | AV15: =IF(AV$4="","",CHOOSE(uxb_works!$B$52,CHOOSE(uxb_works!$B$47,IF(INDEX(aData,$B15,AV$4)="","-",TEXT(INDEX(aData,$B15,AV$4),$H15)),INDEX(aScoresRounded,$B15,AV$4)),CHOOSE(uxb_works!$B$47,IF(INDEX(aData_Basin,$B15,AV$4)="","-",TEXT(INDEX(aData_Basin,$B15,AV$4),$H15)),INDEX(aScoresRounded_Basin,$B15,AV$4)))) -> 2
B16: =tblIndicators!A6 -> 5 | F16: =tblIndicators!G6 -> 3 | H16: =tblIndicators!AC6 -> #,##0 | K16: =IF(uxb_works!$B$46>=L16,1,0) -> 1 | L16: =tblIndicators!G6 -> 3 | N16: =iScores!N10 -> 1.1.2) Integrated Water Resources Management (IWRM) principles | O16: =CHOOSE(uxb_works!$B$47,iData!I10,iScores!O10) -> Score (0-2) | P16: =IF(tblIndicators!T6="","",IF(AND(uxb_works!$B$47=1,OR(F16=5,Scores!F16<=2)),"",tblIndicators!T6)) -> EIU research | Q16: =IF(Q$4="","",CHOOSE(uxb_works!$B$52,CHOOSE(uxb_works!$B$47,IF(INDEX(aData,$B16,Q$4)="","-",TEXT(INDEX(aData,$B16,Q$4),$H16)),INDEX(aScoresRounded,$B16,Q$4)),CHOOSE(uxb_works!$B$47,IF(INDEX(aData_Basin,$B16,Q$4)="","-",TEXT(INDEX(aData_Basin,$B16,Q$4),$H16)),INDEX(aScoresRounded_Basin,$B16,Q$4)))) -> 1 | R16: =IF(R$4="","",CHOOSE(uxb_works!$B$52,CHOOSE(uxb_works!$B$47,IF(INDEX(aData,$B16,R$4)="","-",TEXT(INDEX(aData,$B16,R$4),$H16)),INDEX(aScoresRounded,$B16,R$4)),CHOOSE(uxb_works!$B$47,IF(INDEX(aData_Basin,$B16,R$4)="","-",TEXT(INDEX(aData_Basin,$B16,R$4),$H16)),INDEX(aScoresRounded_Basin,$B16,R$4)))) -> 2 | S16: =IF(S$4="","",CHOOSE(uxb_works!$B$52,CHOOSE(uxb_works!$B$47,IF(INDEX(aData,$B16,S$4)="","-",TEXT(INDEX(aData,$B16,S$4),$H16)),INDEX(aScoresRounded,$B16,S$4)),CHOOSE(uxb_works!$B$47,IF(INDEX(aData_Basin,$B16,S$4)="","-",TEXT(INDEX(aData_Basin,$B16,S$4),$H16)),INDEX(aScoresRounded_Basin,$B16,S$4)))) -> 1 | T16: =IF(T$4="","",CHOOSE(uxb_works!$B$52,CHOOSE(uxb_works!$B$47,IF(INDEX(aData,$B16,T$4)="","-",TEXT(INDEX(aData,$B16,T$4),$H16)),INDEX(aScoresRounded,$B16,T$4)),CHOOSE(uxb_works!$B$47,IF(INDEX(aData_Basin,$B16,T$4)="","-",TEXT(INDEX(aData_Basin,$B16,T$4),$H16)),INDEX(aScoresRounded_Basin,$B16,T$4)))) -> 1 | U16: =IF(U$4="","",CHOOSE(uxb_works!$B$52,CHOOSE(uxb_works!$B$47,IF(INDEX(aData,$B16,U$4)="","-",TEXT(INDEX(aData,$B16,U$4),$H16)),INDEX(aScoresRounded,$B16,U$4)),CHOOSE(uxb_works!$B$47,IF(INDEX(aData_Basin,$B16,U$4)="","-",TEXT(INDEX(aData_Basin,$B16,U$4),$H16)),INDEX(aScoresRounded_Basin,$B16,U$4)))) -> 1 | V16: =IF(V$4="","",CHOOSE(uxb_works!$B$52,CHOOSE(uxb_works!$B$47,IF(INDEX(aData,$B16,V$4)="","-",TEXT(INDEX(aData,$B16,V$4),$H16)),INDEX(aScoresRounded,$B16,V$4)),CHOOSE(uxb_works!$B$47,IF(INDEX(aData_Basin,$B16,V$4)="","-",TEXT(INDEX(aData_Basin,$B16,V$4),$H16)),INDEX(aScoresRounded_Basin,$B16,V$4)))) -> 1 | W16: =IF(W$4="","",CHOOSE(uxb_works!$B$52,CHOOSE(uxb_works!$B$47,IF(INDEX(aData,$B16,W$4)="","-",TEXT(INDEX(aData,$B16,W$4),$H16)),INDEX(aScoresRounded,$B16,W$4)),CHOOSE(uxb_works!$B$47,IF(INDEX(aData_Basin,$B16,W$4)="","-",TEXT(INDEX(aData_Basin,$B16,W$4),$H16)),INDEX(aScoresRounded_Basin,$B16,W$4)))) -> 2 | X16: =IF(X$4="","",CHOOSE(uxb_works!$B$52,CHOOSE(uxb_works!$B$47,IF(INDEX(aData,$B16,X$4)="","-",TEXT(INDEX(aData,$B16,X$4),$H16)),INDEX(aScoresRounded,$B16,X$4)),CHOOSE(uxb_works!$B$47,IF(INDEX(aData_Basin,$B16,X$4)="","-",TEXT(INDEX(aData_Basin,$B16,X$4),$H16)),INDEX(aScoresRounded_Basin,$B16,X$4)))) -> 2 | Y16: =IF(Y$4="","",CHOOSE(uxb_works!$B$52,CHOOSE(uxb_works!$B$47,IF(INDEX(aData,$B16,Y$4)="","-",TEXT(INDEX(aData,$B16,Y$4),$H16)),INDEX(aScoresRounded,$B16,Y$4)),CHOOSE(uxb_works!$B$47,IF(INDEX(aData_Basin,$B16,Y$4)="","-",TEXT(INDEX(aData_Basin,$B16,Y$4),$H16)),INDEX(aScoresRounded_Basin,$B16,Y$4)))) -> 2 | Z16: =IF(Z$4="","",CHOOSE(uxb_works!$B$52,CHOOSE(uxb_works!$B$47,IF(INDEX(aData,$B16,Z$4)="","-",TEXT(INDEX(aData,$B16,Z$4),$H16)),INDEX(aScoresRounded,$B16,Z$4)),CHOOSE(uxb_works!$B$47,IF(INDEX(aData_Basin,$B16,Z$4)="","-",TEXT(INDEX(aData_Basin,$B16,Z$4),$H16)),INDEX(aScoresRounded_Basin,$B16,Z$4)))) -> 0 | AA16: =IF(AA$4="","",CHOOSE(uxb_works!$B$52,CHOOSE(uxb_works!$B$47,IF(INDEX(aData,$B16,AA$4)="","-",TEXT(INDEX(aData,$B16,AA$4),$H16)),INDEX(aScoresRounded,$B16,AA$4)),CHOOSE(uxb_works!$B$47,IF(INDEX(aData_Basin,$B16,AA$4)="","-",TEXT(INDEX(aData_Basin,$B16,AA$4),$H16)),INDEX(aScoresRounded_Basin,$B16,AA$4)))) -> 1 | AB16: =IF(AB$4="","",CHOOSE(uxb_works!$B$52,CHOOSE(uxb_works!$B$47,IF(INDEX(aData,$B16,AB$4)="","-",TEXT(INDEX(aData,$B16,AB$4),$H16)),INDEX(aScoresRounded,$B16,AB$4)),CHOOSE(uxb_works!$B$47,IF(INDEX(aData_Basin,$B16,AB$4)="","-",TEXT(INDEX(aData_Basin,$B16,AB$4),$H16)),INDEX(aScoresRounded_Basin,$B16,AB$4)))) -> 0 | AC16: =IF(AC$4="","",CHOOSE(uxb_works!$B$52,CHOOSE(uxb_works!$B$47,IF(INDEX(aData,$B16,AC$4)="","-",TEXT(INDEX(aData,$B16,AC$4),$H16)),INDEX(aScoresRounded,$B16,AC$4)),CHOOSE(uxb_works!$B$47,IF(INDEX(aData_Basin,$B16,AC$4)="","-",TEXT(INDEX(aData_Basin,$B16,AC$4),$H16)),INDEX(aScoresRounded_Basin,$B16,AC$4)))) -> 1 | AD16: =IF(AD$4="","",CHOOSE(uxb_works!$B$52,CHOOSE(uxb_works!$B$47,IF(INDEX(aData,$B16,AD$4)="","-",TEXT(INDEX(aData,$B16,AD$4),$H16)),INDEX(aScoresRounded,$B16,AD$4)),CHOOSE(uxb_works!$B$47,IF(INDEX(aData_Basin,$B16,AD$4)="","-",TEXT(INDEX(aData_Basin,$B16,AD$4),$H16)),INDEX(aScoresRounded_Basin,$B16,AD$4)))) -> 1 | AE16: =IF(AE$4="","",CHOOSE(uxb_works!$B$52,CHOOSE(uxb_works!$B$47,IF(INDEX(aData,$B16,AE$4)="","-",TEXT(INDEX(aData,$B16,AE$4),$H16)),INDEX(aScoresRounded,$B16,AE$4)),CHOOSE(uxb_works!$B$47,IF(INDEX(aData_Basin,$B16,AE$4)="","-",TEXT(INDEX(aData_Basin,$B16,AE$4),$H16)),INDEX(aScoresRounded_Basin,$B16,AE$4)))) -> 2 | AF16: =IF(AF$4="","",CHOOSE(uxb_works!$B$52,CHOOSE(uxb_works!$B$47,IF(INDEX(aData,$B16,AF$4)="","-",TEXT(INDEX(aData,$B16,AF$4),$H16)),INDEX(aScoresRounded,$B16,AF$4)),CHOOSE(uxb_works!$B$47,IF(INDEX(aData_Basin,$B16,AF$4)="","-",TEXT(INDEX(aData_Basin,$B16,AF$4),$H16)),INDEX(aScoresRounded_Basin,$B16,AF$4)))) -> 2 | AG16: =IF(AG$4="","",CHOOSE(uxb_works!$B$52,CHOOSE(uxb_works!$B$47,IF(INDEX(aData,$B16,AG$4)="","-",TEXT(INDEX(aData,$B16,AG$4),$H16)),INDEX(aScoresRounded,$B16,AG$4)),CHOOSE(uxb_works!$B$47,IF(INDEX(aData_Basin,$B16,AG$4)="","-",TEXT(INDEX(aData_Basin,$B16,AG$4),$H16)),INDEX(aScoresRounded_Basin,$B16,AG$4)))) -> 1 | AH16: =IF(AH$4="","",CHOOSE(uxb_works!$B$52,CHOOSE(uxb_works!$B$47,IF(INDEX(aData,$B16,AH$4)="","-",TEXT(INDEX(aData,$B16,AH$4),$H16)),INDEX(aScoresRounded,$B16,AH$4)),CHOOSE(uxb_works!$B$47,IF(INDEX(aData_Basin,$B16,AH$4)="","-",TEXT(INDEX(aData_Basin,$B16,AH$4),$H16)),INDEX(aScoresRounded_Basin,$B16,AH$4)))) -> 1 | AI16: =IF(AI$4="","",CHOOSE(uxb_works!$B$52,CHOOSE(uxb_works!$B$47,IF(INDEX(aData,$B16,AI$4)="","-",TEXT(INDEX(aData,$B16,AI$4),$H16)),INDEX(aScoresRounded,$B16,AI$4)),CHOOSE(uxb_works!$B$47,IF(INDEX(aData_Basin,$B16,AI$4)="","-",TEXT(INDEX(aData_Basin,$B16,AI$4),$H16)),INDEX(aScoresRounded_Basin,$B16,AI$4)))) -> 1 | AJ16: =IF(AJ$4="","",CHOOSE(uxb_works!$B$52,CHOOSE(uxb_works!$B$47,IF(INDEX(aData,$B16,AJ$4)="","-",TEXT(INDEX(aData,$B16,AJ$4),$H16)),INDEX(aScoresRounded,$B16,AJ$4)),CHOOSE(uxb_works!$B$47,IF(INDEX(aData_Basin,$B16,AJ$4)="","-",TEXT(INDEX(aData_Basin,$B16,AJ$4),$H16)),INDEX(aScoresRounded_Basin,$B16,AJ$4)))) -> 2 | AK16: =IF(AK$4="","",CHOOSE(uxb_works!$B$52,CHOOSE(uxb_works!$B$47,IF(INDEX(aData,$B16,AK$4)="","-",TEXT(INDEX(aData,$B16,AK$4),$H16)),INDEX(aScoresRounded,$B16,AK$4)),CHOOSE(uxb_works!$B$47,IF(INDEX(aData_Basin,$B16,AK$4)="","-",TEXT(INDEX(aData_Basin,$B16,AK$4),$H16)),INDEX(aScoresRounded_Basin,$B16,AK$4)))) -> 2 | AL16: =IF(AL$4="","",CHOOSE(uxb_works!$B$52,CHOOSE(uxb_works!$B$47,IF(INDEX(aData,$B16,AL$4)="","-",TEXT(INDEX(aData,$B16,AL$4),$H16)),INDEX(aScoresRounded,$B16,AL$4)),CHOOSE(uxb_works!$B$47,IF(INDEX(aData_Basin,$B16,AL$4)="","-",TEXT(INDEX(aData_Basin,$B16,AL$4),$H16)),INDEX(aScoresRounded_Basin,$B16,AL$4)))) -> 1 | AM16: =IF(AM$4="","",CHOOSE(uxb_works!$B$52,CHOOSE(uxb_works!$B$47,IF(INDEX(aData,$B16,AM$4)="","-",TEXT(INDEX(aData,$B16,AM$4),$H16)),INDEX(aScoresRounded,$B16,AM$4)),CHOOSE(uxb_works!$B$47,IF(INDEX(aData_Basin,$B16,AM$4)="","-",TEXT(INDEX(aData_Basin,$B16,AM$4),$H16)),INDEX(aScoresRounded_Basin,$B16,AM$4)))) -> 0 | AN16: =IF(AN$4="","",CHOOSE(uxb_works!$B$52,CHOOSE(uxb_works!$B$47,IF(INDEX(aData,$B16,AN$4)="","-",TEXT(INDEX(aData,$B16,AN$4),$H16)),INDEX(aScoresRounded,$B16,AN$4)),CHOOSE(uxb_works!$B$47,IF(INDEX(aData_Basin,$B16,AN$4)="","-",TEXT(INDEX(aData_Basin,$B16,AN$4),$H16)),INDEX(aScoresRounded_Basin,$B16,AN$4)))) -> 1 | AO16: =IF(AO$4="","",CHOOSE(uxb_works!$B$52,CHOOSE(uxb_works!$B$47,IF(INDEX(aData,$B16,AO$4)="","-",TEXT(INDEX(aData,$B16,AO$4),$H16)),INDEX(aScoresRounded,$B16,AO$4)),CHOOSE(uxb_works!$B$47,IF(INDEX(aData_Basin,$B16,AO$4)="","-",TEXT(INDEX(aData_Basin,$B16,AO$4),$H16)),INDEX(aScoresRounded_Basin,$B16,AO$4)))) -> 1 | AP16: =IF(AP$4="","",CHOOSE(uxb_works!$B$52,CHOOSE(uxb_works!$B$47,IF(INDEX(aData,$B16,AP$4)="","-",TEXT(INDEX(aData,$B16,AP$4),$H16)),INDEX(aScoresRounded,$B16,AP$4)),CHOOSE(uxb_works!$B$47,IF(INDEX(aData_Basin,$B16,AP$4)="","-",TEXT(INDEX(aData_Basin,$B16,AP$4),$H16)),INDEX(aScoresRounded_Basin,$B16,AP$4)))) -> 1 | AQ16: =IF(AQ$4="","",CHOOSE(uxb_works!$B$52,CHOOSE(uxb_works!$B$47,IF(INDEX(aData,$B16,AQ$4)="","-",TEXT(INDEX(aData,$B16,AQ$4),$H16)),INDEX(aScoresRounded,$B16,AQ$4)),CHOOSE(uxb_works!$B$47,IF(INDEX(aData_Basin,$B16,AQ$4)="","-",TEXT(INDEX(aData_Basin,$B16,AQ$4),$H16)),INDEX(aScoresRounded_Basin,$B16,AQ$4)))) -> 2 | AR16: =IF(AR$4="","",CHOOSE(uxb_works!$B$52,CHOOSE(uxb_works!$B$47,IF(INDEX(aData,$B16,AR$4)="","-",TEXT(INDEX(aData,$B16,AR$4),$H16)),INDEX(aScoresRounded,$B16,AR$4)),CHOOSE(uxb_works!$B$47,IF(INDEX(aData_Basin,$B16,AR$4)="","-",TEXT(INDEX(aData_Basin,$B16,AR$4),$H16)),INDEX(aScoresRounded_Basin,$B16,AR$4)))) -> 1 | AS16: =IF(AS$4="","",CHOOSE(uxb_works!$B$52,CHOOSE(uxb_works!$B$47,IF(INDEX(aData,$B16,AS$4)="","-",TEXT(INDEX(aData,$B16,AS$4),$H16)),INDEX(aScoresRounded,$B16,AS$4)),CHOOSE(uxb_works!$B$47,IF(INDEX(aData_Basin,$B16,AS$4)="","-",TEXT(INDEX(aData_Basin,$B16,AS$4),$H16)),INDEX(aScoresRounded_Basin,$B16,AS$4)))) -> 1 | AT16: =IF(AT$4="","",CHOOSE(uxb_works!$B$52,CHOOSE(uxb_works!$B$47,IF(INDEX(aData,$B16,AT$4)="","-",TEXT(INDEX(aData,$B16,AT$4),$H16)),INDEX(aScoresRounded,$B16,AT$4)),CHOOSE(uxb_works!$B$47,IF(INDEX(aData_Basin,$B16,AT$4)="","-",TEXT(INDEX(aData_Basin,$B16,AT$4),$H16)),INDEX(aScoresRounded_Basin,$B16,AT$4)))) -> 1 | AU16: =IF(AU$4="","",CHOOSE(uxb_works!$B$52,CHOOSE(uxb_works!$B$47,IF(INDEX(aData,$B16,AU$4)="","-",TEXT(INDEX(aData,$B16,AU$4),$H16)),INDEX(aScoresRounded,$B16,AU$4)),CHOOSE(uxb_works!$B$47,IF(INDEX(aData_Basin,$B16,AU$4)="","-",TEXT(INDEX(aData_Basin,$B16,AU$4),$H16)),INDEX(aScoresRounded_Basin,$B16,AU$4)))) -> 2 | AV16: =IF(AV$4="","",CHOOSE(uxb_works!$B$52,CHOOSE(uxb_works!$B$47,IF(INDEX(aData,$B16,AV$4)="","-",TEXT(INDEX(aData,$B16,AV$4),$H16)),INDEX(aScoresRounded,$B16,AV$4)),CHOOSE(uxb_works!$B$47,IF(INDEX(aData_Basin,$B16,AV$4)="","-",TEXT(INDEX(aData_Basin,$B16,AV$4),$H16)),INDEX(aScoresRounded_Basin,$B16,AV$4)))) -> 1
B17: =tblIndicators!A7 -> 6 | F17: =tblIndicators!G7 -> 3 | H17: =tblIndicators!AC7 -> #,##0 | K17: =IF(uxb_works!$B$46>=L17,1,0) -> 1 | L17: =tblIndicators!G7 -> 3 | N17: =iScores!N11 -> 1.1.3) Transboundary impact provisions | O17: =CHOOSE(uxb_works!$B$47,iData!I11,iScores!O11) -> Score (0-2) | P17: =IF(tblIndicators!T7="","",IF(AND(uxb_works!$B$47=1,OR(F17=5,Scores!F17<=2)),"",tblIndicators!T7)) -> EIU research | Q17: =IF(Q$4="","",CHOOSE(uxb_works!$B$52,CHOOSE(uxb_works!$B$47,IF(INDEX(aData,$B17,Q$4)="","-",TEXT(INDEX(aData,$B17,Q$4),$H17)),INDEX(aScoresRounded,$B17,Q$4)),CHOOSE(uxb_works!$B$47,IF(INDEX(aData_Basin,$B17,Q$4)="","-",TEXT(INDEX(aData_Basin,$B17,Q$4),$H17)),INDEX(aScoresRounded_Basin,$B17,Q$4)))) -> 0 | R17: =IF(R$4="","",CHOOSE(uxb_works!$B$52,CHOOSE(uxb_works!$B$47,IF(INDEX(aData,$B17,R$4)="","-",TEXT(INDEX(aData,$B17,R$4),$H17)),INDEX(aScoresRounded,$B17,R$4)),CHOOSE(uxb_works!$B$47,IF(INDEX(aData_Basin,$B17,R$4)="","-",TEXT(INDEX(aData_Basin,$B17,R$4),$H17)),INDEX(aScoresRounded_Basin,$B17,R$4)))) -> 2 | S17: =IF(S$4="","",CHOOSE(uxb_works!$B$52,CHOOSE(uxb_works!$B$47,IF(INDEX(aData,$B17,S$4)="","-",TEXT(INDEX(aData,$B17,S$4),$H17)),INDEX(aScoresRounded,$B17,S$4)),CHOOSE(uxb_works!$B$47,IF(INDEX(aData_Basin,$B17,S$4)="","-",TEXT(INDEX(aData_Basin,$B17,S$4),$H17)),INDEX(aScoresRounded_Basin,$B17,S$4)))) -> 1 | T17: =IF(T$4="","",CHOOSE(uxb_works!$B$52,CHOOSE(uxb_works!$B$47,IF(INDEX(aData,$B17,T$4)="","-",TEXT(INDEX(aData,$B17,T$4),$H17)),INDEX(aScoresRounded,$B17,T$4)),CHOOSE(uxb_works!$B$47,IF(INDEX(aData_Basin,$B17,T$4)="","-",TEXT(INDEX(aData_Basin,$B17,T$4),$H17)),INDEX(aScoresRounded_Basin,$B17,T$4)))) -> 1 | U17: =IF(U$4="","",CHOOSE(uxb_works!$B$52,CHOOSE(uxb_works!$B$47,IF(INDEX(aData,$B17,U$4)="","-",TEXT(INDEX(aData,$B17,U$4),$H17)),INDEX(aScoresRounded,$B17,U$4)),CHOOSE(uxb_works!$B$47,IF(INDEX(aData_Basin,$B17,U$4)="","-",TEXT(INDEX(aData_Basin,$B17,U$4),$H17)),INDEX(aScoresRounded_Basin,$B17,U$4)))) -> 1 | V17: =IF(V$4="","",CHOOSE(uxb_works!$B$52,CHOOSE(uxb_works!$B$47,IF(INDEX(aData,$B17,V$4)="","-",TEXT(INDEX(aData,$B17,V$4),$H17)),INDEX(aScoresRounded,$B17,V$4)),CHOOSE(uxb_works!$B$47,IF(INDEX(aData_Basin,$B17,V$4)="","-",TEXT(INDEX(aData_Basin,$B17,V$4),$H17)),INDEX(aScoresRounded_Basin,$B17,V$4)))) -> 0 | W17: =IF(W$4="","",CHOOSE(uxb_works!$B$52,CHOOSE(uxb_works!$B$47,IF(INDEX(aData,$B17,W$4)="","-",TEXT(INDEX(aData,$B17,W$4),$H17)),INDEX(aScoresRounded,$B17,W$4)),CHOOSE(uxb_works!$B$47,IF(INDEX(aData_Basin,$B17,W$4)="","-",TEXT(INDEX(aData_Basin,$B17,W$4),$H17)),INDEX(aScoresRounded_Basin,$B17,W$4)))) -> 0 | X17: =IF(X$4="","",CHOOSE(uxb_works!$B$52,CHOOSE(uxb_works!$B$47,IF(INDEX(aData,$B17,X$4)="","-",TEXT(INDEX(aData,$B17,X$4),$H17)),INDEX(aScoresRounded,$B17,X$4)),CHOOSE(uxb_works!$B$47,IF(INDEX(aData_Basin,$B17,X$4)="","-",TEXT(INDEX(aData_Basin,$B17,X$4),$H17)),INDEX(aScoresRounded_Basin,$B17,X$4)))) -> 1 | Y17: =IF(Y$4="","",CHOOSE(uxb_works!$B$52,CHOOSE(uxb_works!$B$47,IF(INDEX(aData,$B17,Y$4)="","-",TEXT(INDEX(aData,$B17,Y$4),$H17)),INDEX(aScoresRounded,$B17,Y$4)),CHOOSE(uxb_works!$B$47,IF(INDEX(aData_Basin,$B17,Y$4)="","-",TEXT(INDEX(aData_Basin,$B17,Y$4),$H17)),INDEX(aScoresRounded_Basin,$B17,Y$4)))) -> 0 | Z17: =IF(Z$4="","",CHOOSE(uxb_works!$B$52,CHOOSE(uxb_works!$B$47,IF(INDEX(aData,$B17,Z$4)="","-",TEXT(INDEX(aData,$B17,Z$4),$H17)),INDEX(aScoresRounded,$B17,Z$4)),CHOOSE(uxb_works!$B$47,IF(INDEX(aData_Basin,$B17,Z$4)="","-",TEXT(INDEX(aData_Basin,$B17,Z$4),$H17)),INDEX(aScoresRounded_Basin,$B17,Z$4)))) -> 0 | AA17: =IF(AA$4="","",CHOOSE(uxb_works!$B$52,CHOOSE(uxb_works!$B$47,IF(INDEX(aData,$B17,AA$4)="","-",TEXT(INDEX(aData,$B17,AA$4),$H17)),INDEX(aScoresRounded,$B17,AA$4)),CHOOSE(uxb_works!$B$47,IF(INDEX(aData_Basin,$B17,AA$4)="","-",TEXT(INDEX(aData_Basin,$B17,AA$4),$H17)),INDEX(aScoresRounded_Basin,$B17,AA$4)))) -> 0 | AB17: =IF(AB$4="","",CHOOSE(uxb_works!$B$52,CHOOSE(uxb_works!$B$47,IF(INDEX(aData,$B17,AB$4)="","-",TEXT(INDEX(aData,$B17,AB$4),$H17)),INDEX(aScoresRounded,$B17,AB$4)),CHOOSE(uxb_works!$B$47,IF(INDEX(aData_Basin,$B17,AB$4)="","-",TEXT(INDEX(aData_Basin,$B17,AB$4),$H17)),INDEX(aScoresRounded_Basin,$B17,AB$4)))) -> 0 | AC17: =IF(AC$4="","",CHOOSE(uxb_works!$B$52,CHOOSE(uxb_works!$B$47,IF(INDEX(aData,$B17,AC$4)="","-",TEXT(INDEX(aData,$B17,AC$4),$H17)),INDEX(aScoresRounded,$B17,AC$4)),CHOOSE(uxb_works!$B$47,IF(INDEX(aData_Basin,$B17,AC$4)="","-",TEXT(INDEX(aData_Basin,$B17,AC$4),$H17)),INDEX(aScoresRounded_Basin,$B17,AC$4)))) -> 1 | AD17: =IF(AD$4="","",CHOOSE(uxb_works!$B$52,CHOOSE(uxb_works!$B$47,IF(INDEX(aData,$B17,AD$4)="","-",TEXT(INDEX(aData,$B17,AD$4),$H17)),INDEX(aScoresRounded,$B17,AD$4)),CHOOSE(uxb_works!$B$47,IF(INDEX(aData_Basin,$B17,AD$4)="","-",TEXT(INDEX(aData_Basin,$B17,AD$4),$H17)),INDEX(aScoresRounded_Basin,$B17,AD$4)))) -> 1 | AE17: =IF(AE$4="","",CHOOSE(uxb_works!$B$52,CHOOSE(uxb_works!$B$47,IF(INDEX(aData,$B17,AE$4)="","-",TEXT(INDEX(aData,$B17,AE$4),$H17)),INDEX(aScoresRounded,$B17,AE$4)),CHOOSE(uxb_works!$B$47,IF(INDEX(aData_Basin,$B17,AE$4)="","-",TEXT(INDEX(aData_Basin,$B17,AE$4),$H17)),INDEX(aScoresRounded_Basin,$B17,AE$4)))) -> 0 | AF17: =IF(AF$4="","",CHOOSE(uxb_works!$B$52,CHOOSE(uxb_works!$B$47,IF(INDEX(aData,$B17,AF$4)="","-",TEXT(INDEX(aData,$B17,AF$4),$H17)),INDEX(aScoresRounded,$B17,AF$4)),CHOOSE(uxb_works!$B$47,IF(INDEX(aData_Basin,$B17,AF$4)="","-",TEXT(INDEX(aData_Basin,$B17,AF$4),$H17)),INDEX(aScoresRounded_Basin,$B17,AF$4)))) -> 0 | AG17: =IF(AG$4="","",CHOOSE(uxb_works!$B$52,CHOOSE(uxb_works!$B$47,IF(INDEX(aData,$B17,AG$4)="","-",TEXT(INDEX(aData,$B17,AG$4),$H17)),INDEX(aScoresRounded,$B17,AG$4)),CHOOSE(uxb_works!$B$47,IF(INDEX(aData_Basin,$B17,AG$4)="","-",TEXT(INDEX(aData_Basin,$B17,AG$4),$H17)),INDEX(aScoresRounded_Basin,$B17,AG$4)))) -> 0 | AH17: =IF(AH$4="","",CHOOSE(uxb_works!$B$52,CHOOSE(uxb_works!$B$47,IF(INDEX(aData,$B17,AH$4)="","-",TEXT(INDEX(aData,$B17,AH$4),$H17)),INDEX(aScoresRounded,$B17,AH$4)),CHOOSE(uxb_works!$B$47,IF(INDEX(aData_Basin,$B17,AH$4)="","-",TEXT(INDEX(aData_Basin,$B17,AH$4),$H17)),INDEX(aScoresRounded_Basin,$B17,AH$4)))) -> 1 | AI17: =IF(AI$4="","",CHOOSE(uxb_works!$B$52,CHOOSE(uxb_works!$B$47,IF(INDEX(aData,$B17,AI$4)="","-",TEXT(INDEX(aData,$B17,AI$4),$H17)),INDEX(aScoresRounded,$B17,AI$4)),CHOOSE(uxb_works!$B$47,IF(INDEX(aData_Basin,$B17,AI$4)="","-",TEXT(INDEX(aData_Basin,$B17,AI$4),$H17)),INDEX(aScoresRounded_Basin,$B17,AI$4)))) -> 1 | AJ17: =IF(AJ$4="","",CHOOSE(uxb_works!$B$52,CHOOSE(uxb_works!$B$47,IF(INDEX(aData,$B17,AJ$4)="","-",TEXT(INDEX(aData,$B17,AJ$4),$H17)),INDEX(aScoresRounded,$B17,AJ$4)),CHOOSE(uxb_works!$B$47,IF(INDEX(aData_Basin,$B17,AJ$4)="","-",TEXT(INDEX(aData_Basin,$B17,AJ$4),$H17)),INDEX(aScoresRounded_Basin,$B17,AJ$4)))) -> 0 | AK17: =IF(AK$4="","",CHOOSE(uxb_works!$B$52,CHOOSE(uxb_works!$B$47,IF(INDEX(aData,$B17,AK$4)="","-",TEXT(INDEX(aData,$B17,AK$4),$H17)),INDEX(aScoresRounded,$B17,AK$4)),CHOOSE(uxb_works!$B$47,IF(INDEX(aData_Basin,$B17,AK$4)="","-",TEXT(INDEX(aData_Basin,$B17,AK$4),$H17)),INDEX(aScoresRounded_Basin,$B17,AK$4)))) -> 1 | AL17: =IF(AL$4="","",CHOOSE(uxb_works!$B$52,CHOOSE(uxb_works!$B$47,IF(INDEX(aData,$B17,AL$4)="","-",TEXT(INDEX(aData,$B17,AL$4),$H17)),INDEX(aScoresRounded,$B17,AL$4)),CHOOSE(uxb_works!$B$47,IF(INDEX(aData_Basin,$B17,AL$4)="","-",TEXT(INDEX(aData_Basin,$B17,AL$4),$H17)),INDEX(aScoresRounded_Basin,$B17,AL$4)))) -> 1 | AM17: =IF(AM$4="","",CHOOSE(uxb_works!$B$52,CHOOSE(uxb_works!$B$47,IF(INDEX(aData,$B17,AM$4)="","-",TEXT(INDEX(aData,$B17,AM$4),$H17)),INDEX(aScoresRounded,$B17,AM$4)),CHOOSE(uxb_works!$B$47,IF(INDEX(aData_Basin,$B17,AM$4)="","-",TEXT(INDEX(aData_Basin,$B17,AM$4),$H17)),INDEX(aScoresRounded_Basin,$B17,AM$4)))) -> 0 | AN17: =IF(AN$4="","",CHOOSE(uxb_works!$B$52,CHOOSE(uxb_works!$B$47,IF(INDEX(aData,$B17,AN$4)="","-",TEXT(INDEX(aData,$B17,AN$4),$H17)),INDEX(aScoresRounded,$B17,AN$4)),CHOOSE(uxb_works!$B$47,IF(INDEX(aData_Basin,$B17,AN$4)="","-",TEXT(INDEX(aData_Basin,$B17,AN$4),$H17)),INDEX(aScoresRounded_Basin,$B17,AN$4)))) -> 0 | AO17: =IF(AO$4="","",CHOOSE(uxb_works!$B$52,CHOOSE(uxb_works!$B$47,IF(INDEX(aData,$B17,AO$4)="","-",TEXT(INDEX(aData,$B17,AO$4),$H17)),INDEX(aScoresRounded,$B17,AO$4)),CHOOSE(uxb_works!$B$47,IF(INDEX(aData_Basin,$B17,AO$4)="","-",TEXT(INDEX(aData_Basin,$B17,AO$4),$H17)),INDEX(aScoresRounded_Basin,$B17,AO$4)))) -> 0 | AP17: =IF(AP$4="","",CHOOSE(uxb_works!$B$52,CHOOSE(uxb_works!$B$47,IF(INDEX(aData,$B17,AP$4)="","-",TEXT(INDEX(aData,$B17,AP$4),$H17)),INDEX(aScoresRounded,$B17,AP$4)),CHOOSE(uxb_works!$B$47,IF(INDEX(aData_Basin,$B17,AP$4)="","-",TEXT(INDEX(aData_Basin,$B17,AP$4),$H17)),INDEX(aScoresRounded_Basin,$B17,AP$4)))) -> 0 | AQ17: =IF(AQ$4="","",CHOOSE(uxb_works!$B$52,CHOOSE(uxb_works!$B$47,IF(INDEX(aData,$B17,AQ$4)="","-",TEXT(INDEX(aData,$B17,AQ$4),$H17)),INDEX(aScoresRounded,$B17,AQ$4)),CHOOSE(uxb_works!$B$47,IF(INDEX(aData_Basin,$B17,AQ$4)="","-",TEXT(INDEX(aData_Basin,$B17,AQ$4),$H17)),INDEX(aScoresRounded_Basin,$B17,AQ$4)))) -> 0 | AR17: =IF(AR$4="","",CHOOSE(uxb_works!$B$52,CHOOSE(uxb_works!$B$47,IF(INDEX(aData,$B17,AR$4)="","-",TEXT(INDEX(aData,$B17,AR$4),$H17)),INDEX(aScoresRounded,$B17,AR$4)),CHOOSE(uxb_works!$B$47,IF(INDEX(aData_Basin,$B17,AR$4)="","-",TEXT(INDEX(aData_Basin,$B17,AR$4),$H17)),INDEX(aScoresRounded_Basin,$B17,AR$4)))) -> 1 | AS17: =IF(AS$4="","",CHOOSE(uxb_works!$B$52,CHOOSE(uxb_works!$B$47,IF(INDEX(aData,$B17,AS$4)="","-",TEXT(INDEX(aData,$B17,AS$4),$H17)),INDEX(aScoresRounded,$B17,AS$4)),CHOOSE(uxb_works!$B$47,IF(INDEX(aData_Basin,$B17,AS$4)="","-",TEXT(INDEX(aData_Basin,$B17,AS$4),$H17)),INDEX(aScoresRounded_Basin,$B17,AS$4)))) -> 0 | AT17: =IF(AT$4="","",CHOOSE(uxb_works!$B$52,CHOOSE(uxb_works!$B$47,IF(INDEX(aData,$B17,AT$4)="","-",TEXT(INDEX(aData,$B17,AT$4),$H17)),INDEX(aScoresRounded,$B17,AT$4)),CHOOSE(uxb_works!$B$47,IF(INDEX(aData_Basin,$B17,AT$4)="","-",TEXT(INDEX(aData_Basin,$B17,AT$4),$H17)),INDEX(aScoresRounded_Basin,$B17,AT$4)))) -> 0 | AU17: =IF(AU$4="","",CHOOSE(uxb_works!$B$52,CHOOSE(uxb_works!$B$47,IF(INDEX(aData,$B17,AU$4)="","-",TEXT(INDEX(aData,$B17,AU$4),$H17)),INDEX(aScoresRounded,$B17,AU$4)),CHOOSE(uxb_works!$B$47,IF(INDEX(aData_Basin,$B17,AU$4)="","-",TEXT(INDEX(aData_Basin,$B17,AU$4),$H17)),INDEX(aScoresRounded_Basin,$B17,AU$4)))) -> 0 | AV17: =IF(AV$4="","",CHOOSE(uxb_works!$B$52,CHOOSE(uxb_works!$B$47,IF(INDEX(aData,$B17,AV$4)="","-",TEXT(INDEX(aData,$B17,AV$4),$H17)),INDEX(aScoresRounded,$B17,AV$4)),CHOOSE(uxb_works!$B$47,IF(INDEX(aData_Basin,$B17,AV$4)="","-",TEXT(INDEX(aData_Basin,$B17,AV$4),$H17)),INDEX(aScoresRounded_Basin,$B17,AV$4)))) -> 1
B18: =tblIndicators!A8 -> 7 | F18: =tblIndicators!G8 -> 2 | H18: =tblIndicators!AC8 -> #,##0.0 | K18: =IF(uxb_works!$B$46>=L18,1,0) -> 1 | L18: =tblIndicators!G8 -> 2 | N18: =iScores!N12 -> 1.2) National environmental policy | O18: =CHOOSE(uxb_works!$B$47,iData!I12,iScores!O12) ->  | P18: =IF(tblIndicators!T8="","",IF(AND(uxb_works!$B$47=1,OR(F18=5,Scores!F18<=2)),"",tblIndicators!T8)) ->  | Q18: =IF(Q$4="","",CHOOSE(uxb_works!$B$52,CHOOSE(uxb_works!$B$47,IF(INDEX(aData,$B18,Q$4)="","-",TEXT(INDEX(aData,$B18,Q$4),$H18)),INDEX(aScoresRounded,$B18,Q$4)),CHOOSE(uxb_works!$B$47,IF(INDEX(aData_Basin,$B18,Q$4)="","-",TEXT(INDEX(aData_Basin,$B18,Q$4),$H18)),INDEX(aScoresRounded_Basin,$B18,Q$4)))) -> - | R18: =IF(R$4="","",CHOOSE(uxb_works!$B$52,CHOOSE(uxb_works!$B$47,IF(INDEX(aData,$B18,R$4)="","-",TEXT(INDEX(aData,$B18,R$4),$H18)),INDEX(aScoresRounded,$B18,R$4)),CHOOSE(uxb_works!$B$47,IF(INDEX(aData_Basin,$B18,R$4)="","-",TEXT(INDEX(aData_Basin,$B18,R$4),$H18)),INDEX(aScoresRounded_Basin,$B18,R$4)))) -> - | S18: =IF(S$4="","",CHOOSE(uxb_works!$B$52,CHOOSE(uxb_works!$B$47,IF(INDEX(aData,$B18,S$4)="","-",TEXT(INDEX(aData,$B18,S$4),$H18)),INDEX(aScoresRounded,$B18,S$4)),CHOOSE(uxb_works!$B$47,IF(INDEX(aData_Basin,$B18,S$4)="","-",TEXT(INDEX(aData_Basin,$B18,S$4),$H18)),INDEX(aScoresRounded_Basin,$B18,S$4)))) -> - | T18: =IF(T$4="","",CHOOSE(uxb_works!$B$52,CHOOSE(uxb_works!$B$47,IF(INDEX(aData,$B18,T$4)="","-",TEXT(INDEX(aData,$B18,T$4),$H18)),INDEX(aScoresRounded,$B18,T$4)),CHOOSE(uxb_works!$B$47,IF(INDEX(aData_Basin,$B18,T$4)="","-",TEXT(INDEX(aData_Basin,$B18,T$4),$H18)),INDEX(aScoresRounded_Basin,$B18,T$4)))) -> - | U18: =IF(U$4="","",CHOOSE(uxb_works!$B$52,CHOOSE(uxb_works!$B$47,IF(INDEX(aData,$B18,U$4)="","-",TEXT(INDEX(aData,$B18,U$4),$H18)),INDEX(aScoresRounded,$B18,U$4)),CHOOSE(uxb_works!$B$47,IF(INDEX(aData_Basin,$B18,U$4)="","-",TEXT(INDEX(aData_Basin,$B18,U$4),$H18)),INDEX(aScoresRounded_Basin,$B18,U$4)))) -> - | V18: =IF(V$4="","",CHOOSE(uxb_works!$B$52,CHOOSE(uxb_works!$B$47,IF(INDEX(aData,$B18,V$4)="","-",TEXT(INDEX(aData,$B18,V$4),$H18)),INDEX(aScoresRounded,$B18,V$4)),CHOOSE(uxb_works!$B$47,IF(INDEX(aData_Basin,$B18,V$4)="","-",TEXT(INDEX(aData_Basin,$B18,V$4),$H18)),INDEX(aScoresRounded_Basin,$B18,V$4)))) -> - | W18: =IF(W$4="","",CHOOSE(uxb_works!$B$52,CHOOSE(uxb_works!$B$47,IF(INDEX(aData,$B18,W$4)="","-",TEXT(INDEX(aData,$B18,W$4),$H18)),INDEX(aScoresRounded,$B18,W$4)),CHOOSE(uxb_works!$B$47,IF(INDEX(aData_Basin,$B18,W$4)="","-",TEXT(INDEX(aData_Basin,$B18,W$4),$H18)),INDEX(aScoresRounded_Basin,$B18,W$4)))) -> - | X18: =IF(X$4="","",CHOOSE(uxb_works!$B$52,CHOOSE(uxb_works!$B$47,IF(INDEX(aData,$B18,X$4)="","-",TEXT(INDEX(aData,$B18,X$4),$H18)),INDEX(aScoresRounded,$B18,X$4)),CHOOSE(uxb_works!$B$47,IF(INDEX(aData_Basin,$B18,X$4)="","-",TEXT(INDEX(aData_Basin,$B18,X$4),$H18)),INDEX(aScoresRounded_Basin,$B18,X$4)))) -> - | Y18: =IF(Y$4="","",CHOOSE(uxb_works!$B$52,CHOOSE(uxb_works!$B$47,IF(INDEX(aData,$B18,Y$4)="","-",TEXT(INDEX(aData,$B18,Y$4),$H18)),INDEX(aScoresRounded,$B18,Y$4)),CHOOSE(uxb_works!$B$47,IF(INDEX(aData_Basin,$B18,Y$4)="","-",TEXT(INDEX(aData_Basin,$B18,Y$4),$H18)),INDEX(aScoresRounded_Basin,$B18,Y$4)))) -> - | Z18: =IF(Z$4="","",CHOOSE(uxb_works!$B$52,CHOOSE(uxb_works!$B$47,IF(INDEX(aData,$B18,Z$4)="","-",TEXT(INDEX(aData,$B18,Z$4),$H18)),INDEX(aScoresRounded,$B18,Z$4)),CHOOSE(uxb_works!$B$47,IF(INDEX(aData_Basin,$B18,Z$4)="","-",TEXT(INDEX(aData_Basin,$B18,Z$4),$H18)),INDEX(aScoresRounded_Basin,$B18,Z$4)))) -> - | AA18: =IF(AA$4="","",CHOOSE(uxb_works!$B$52,CHOOSE(uxb_works!$B$47,IF(INDEX(aData,$B18,AA$4)="","-",TEXT(INDEX(aData,$B18,AA$4),$H18)),INDEX(aScoresRounded,$B18,AA$4)),CHOOSE(uxb_works!$B$47,IF(INDEX(aData_Basin,$B18,AA$4)="","-",TEXT(INDEX(aData_Basin,$B18,AA$4),$H18)),INDEX(aScoresRounded_Basin,$B18,AA$4)))) -> - | AB18: =IF(AB$4="","",CHOOSE(uxb_works!$B$52,CHOOSE(uxb_works!$B$47,IF(INDEX(aData,$B18,AB$4)="","-",TEXT(INDEX(aData,$B18,AB$4),$H18)),INDEX(aScoresRounded,$B18,AB$4)),CHOOSE(uxb_works!$B$47,IF(INDEX(aData_Basin,$B18,AB$4)="","-",TEXT(INDEX(aData_Basin,$B18,AB$4),$H18)),INDEX(aScoresRounded_Basin,$B18,AB$4)))) -> - | AC18: =IF(AC$4="","",CHOOSE(uxb_works!$B$52,CHOOSE(uxb_works!$B$47,IF(INDEX(aData,$B18,AC$4)="","-",TEXT(INDEX(aData,$B18,AC$4),$H18)),INDEX(aScoresRounded,$B18,AC$4)),CHOOSE(uxb_works!$B$47,IF(INDEX(aData_Basin,$B18,AC$4)="","-",TEXT(INDEX(aData_Basin,$B18,AC$4),$H18)),INDEX(aScoresRounded_Basin,$B18,AC$4)))) -> - | AD18: =IF(AD$4="","",CHOOSE(uxb_works!$B$52,CHOOSE(uxb_works!$B$47,IF(INDEX(aData,$B18,AD$4)="","-",TEXT(INDEX(aData,$B18,AD$4),$H18)),INDEX(aScoresRounded,$B18,AD$4)),CHOOSE(uxb_works!$B$47,IF(INDEX(aData_Basin,$B18,AD$4)="","-",TEXT(INDEX(aData_Basin,$B18,AD$4),$H18)),INDEX(aScoresRounded_Basin,$B18,AD$4)))) -> - | AE18: =IF(AE$4="","",CHOOSE(uxb_works!$B$52,CHOOSE(uxb_works!$B$47,IF(INDEX(aData,$B18,AE$4)="","-",TEXT(INDEX(aData,$B18,AE$4),$H18)),INDEX(aScoresRounded,$B18,AE$4)),CHOOSE(uxb_works!$B$47,IF(INDEX(aData_Basin,$B18,AE$4)="","-",TEXT(INDEX(aData_Basin,$B18,AE$4),$H18)),INDEX(aScoresRounded_Basin,$B18,AE$4)))) -> - | AF18: =IF(AF$4="","",CHOOSE(uxb_works!$B$52,CHOOSE(uxb_works!$B$47,IF(INDEX(aData,$B18,AF$4)="","-",TEXT(INDEX(aData,$B18,AF$4),$H18)),INDEX(aScoresRounded,$B18,AF$4)),CHOOSE(uxb_works!$B$47,IF(INDEX(aData_Basin,$B18,AF$4)="","-",TEXT(INDEX(aData_Basin,$B18,AF$4),$H18)),INDEX(aScoresRounded_Basin,$B18,AF$4)))) -> - | AG18: =IF(AG$4="","",CHOOSE(uxb_works!$B$52,CHOOSE(uxb_works!$B$47,IF(INDEX(aData,$B18,AG$4)="","-",TEXT(INDEX(aData,$B18,AG$4),$H18)),INDEX(aScoresRounded,$B18,AG$4)),CHOOSE(uxb_works!$B$47,IF(INDEX(aData_Basin,$B18,AG$4)="","-",TEXT(INDEX(aData_Basin,$B18,AG$4),$H18)),INDEX(aScoresRounded_Basin,$B18,AG$4)))) -> - | AH18: =IF(AH$4="","",CHOOSE(uxb_works!$B$52,CHOOSE(uxb_works!$B$47,IF(INDEX(aData,$B18,AH$4)="","-",TEXT(INDEX(aData,$B18,AH$4),$H18)),INDEX(aScoresRounded,$B18,AH$4)),CHOOSE(uxb_works!$B$47,IF(INDEX(aData_Basin,$B18,AH$4)="","-",TEXT(INDEX(aData_Basin,$B18,AH$4),$H18)),INDEX(aScoresRounded_Basin,$B18,AH$4)))) -> - | AI18: =IF(AI$4="","",CHOOSE(uxb_works!$B$52,CHOOSE(uxb_works!$B$47,IF(INDEX(aData,$B18,AI$4)="","-",TEXT(INDEX(aData,$B18,AI$4),$H18)),INDEX(aScoresRounded,$B18,AI$4)),CHOOSE(uxb_works!$B$47,IF(INDEX(aData_Basin,$B18,AI$4)="","-",TEXT(INDEX(aData_Basin,$B18,AI$4),$H18)),INDEX(aScoresRounded_Basin,$B18,AI$4)))) -> - | AJ18: =IF(AJ$4="","",CHOOSE(uxb_works!$B$52,CHOOSE(uxb_works!$B$47,IF(INDEX(aData,$B18,AJ$4)="","-",TEXT(INDEX(aData,$B18,AJ$4),$H18)),INDEX(aScoresRounded,$B18,AJ$4)),CHOOSE(uxb_works!$B$47,IF(INDEX(aData_Basin,$B18,AJ$4)="","-",TEXT(INDEX(aData_Basin,$B18,AJ$4),$H18)),INDEX(aScoresRounded_Basin,$B18,AJ$4)))) -> - | AK18: =IF(AK$4="","",CHOOSE(uxb_works!$B$52,CHOOSE(uxb_works!$B$47,IF(INDEX(aData,$B18,AK$4)="","-",TEXT(INDEX(aData,$B18,AK$4),$H18)),INDEX(aScoresRounded,$B18,AK$4)),CHOOSE(uxb_works!$B$47,IF(INDEX(aData_Basin,$B18,AK$4)="","-",TEXT(INDEX(aData_Basin,$B18,AK$4),$H18)),INDEX(aScoresRounded_Basin,$B18,AK$4)))) -> - | AL18: =IF(AL$4="","",CHOOSE(uxb_works!$B$52,CHOOSE(uxb_works!$B$47,IF(INDEX(aData,$B18,AL$4)="","-",TEXT(INDEX(aData,$B18,AL$4),$H18)),INDEX(aScoresRounded,$B18,AL$4)),CHOOSE(uxb_works!$B$47,IF(INDEX(aData_Basin,$B18,AL$4)="","-",TEXT(INDEX(aData_Basin,$B18,AL$4),$H18)),INDEX(aScoresRounded_Basin,$B18,AL$4)))) -> - | AM18: =IF(AM$4="","",CHOOSE(uxb_works!$B$52,CHOOSE(uxb_works!$B$47,IF(INDEX(aData,$B18,AM$4)="","-",TEXT(INDEX(aData,$B18,AM$4),$H18)),INDEX(aScoresRounded,$B18,AM$4)),CHOOSE(uxb_works!$B$47,IF(INDEX(aData_Basin,$B18,AM$4)="","-",TEXT(INDEX(aData_Basin,$B18,AM$4),$H18)),INDEX(aScoresRounded_Basin,$B18,AM$4)))) -> - | AN18: =IF(AN$4="","",CHOOSE(uxb_works!$B$52,CHOOSE(uxb_works!$B$47,IF(INDEX(aData,$B18,AN$4)="","-",TEXT(INDEX(aData,$B18,AN$4),$H18)),INDEX(aScoresRounded,$B18,AN$4)),CHOOSE(uxb_works!$B$47,IF(INDEX(aData_Basin,$B18,AN$4)="","-",TEXT(INDEX(aData_Basin,$B18,AN$4),$H18)),INDEX(aScoresRounded_Basin,$B18,AN$4)))) -> - | AO18: =IF(AO$4="","",CHOOSE(uxb_works!$B$52,CHOOSE(uxb_works!$B$47,IF(INDEX(aData,$B18,AO$4)="","-",TEXT(INDEX(aData,$B18,AO$4),$H18)),INDEX(aScoresRounded,$B18,AO$4)),CHOOSE(uxb_works!$B$47,IF(INDEX(aData_Basin,$B18,AO$4)="","-",TEXT(INDEX(aData_Basin,$B18,AO$4),$H18)),INDEX(aScoresRounded_Basin,$B18,AO$4)))) -> - | AP18: =IF(AP$4="","",CHOOSE(uxb_works!$B$52,CHOOSE(uxb_works!$B$47,IF(INDEX(aData,$B18,AP$4)="","-",TEXT(INDEX(aData,$B18,AP$4),$H18)),INDEX(aScoresRounded,$B18,AP$4)),CHOOSE(uxb_works!$B$47,IF(INDEX(aData_Basin,$B18,AP$4)="","-",TEXT(INDEX(aData_Basin,$B18,AP$4),$H18)),INDEX(aScoresRounded_Basin,$B18,AP$4)))) -> - | AQ18: =IF(AQ$4="","",CHOOSE(uxb_works!$B$52,CHOOSE(uxb_works!$B$47,IF(INDEX(aData,$B18,AQ$4)="","-",TEXT(INDEX(aData,$B18,AQ$4),$H18)),INDEX(aScoresRounded,$B18,AQ$4)),CHOOSE(uxb_works!$B$47,IF(INDEX(aData_Basin,$B18,AQ$4)="","-",TEXT(INDEX(aData_Basin,$B18,AQ$4),$H18)),INDEX(aScoresRounded_Basin,$B18,AQ$4)))) -> - | AR18: =IF(AR$4="","",CHOOSE(uxb_works!$B$52,CHOOSE(uxb_works!$B$47,IF(INDEX(aData,$B18,AR$4)="","-",TEXT(INDEX(aData,$B18,AR$4),$H18)),INDEX(aScoresRounded,$B18,AR$4)),CHOOSE(uxb_works!$B$47,IF(INDEX(aData_Basin,$B18,AR$4)="","-",TEXT(INDEX(aData_Basin,$B18,AR$4),$H18)),INDEX(aScoresRounded_Basin,$B18,AR$4)))) -> - | AS18: =IF(AS$4="","",CHOOSE(uxb_works!$B$52,CHOOSE(uxb_works!$B$47,IF(INDEX(aData,$B18,AS$4)="","-",TEXT(INDEX(aData,$B18,AS$4),$H18)),INDEX(aScoresRounded,$B18,AS$4)),CHOOSE(uxb_works!$B$47,IF(INDEX(aData_Basin,$B18,AS$4)="","-",TEXT(INDEX(aData_Basin,$B18,AS$4),$H18)),INDEX(aScoresRounded_Basin,$B18,AS$4)))) -> - | AT18: =IF(AT$4="","",CHOOSE(uxb_works!$B$52,CHOOSE(uxb_works!$B$47,IF(INDEX(aData,$B18,AT$4)="","-",TEXT(INDEX(aData,$B18,AT$4),$H18)),INDEX(aScoresRounded,$B18,AT$4)),CHOOSE(uxb_works!$B$47,IF(INDEX(aData_Basin,$B18,AT$4)="","-",TEXT(INDEX(aData_Basin,$B18,AT$4),$H18)),INDEX(aScoresRounded_Basin,$B18,AT$4)))) -> - | AU18: =IF(AU$4="","",CHOOSE(uxb_works!$B$52,CHOOSE(uxb_works!$B$47,IF(INDEX(aData,$B18,AU$4)="","-",TEXT(INDEX(aData,$B18,AU$4),$H18)),INDEX(aScoresRounded,$B18,AU$4)),CHOOSE(uxb_works!$B$47,IF(INDEX(aData_Basin,$B18,AU$4)="","-",TEXT(INDEX(aData_Basin,$B18,AU$4),$H18)),INDEX(aScoresRounded_Basin,$B18,AU$4)))) -> - | AV18: =IF(AV$4="","",CHOOSE(uxb_works!$B$52,CHOOSE(uxb_works!$B$47,IF(INDEX(aData,$B18,AV$4)="","-",TEXT(INDEX(aData,$B18,AV$4),$H18)),INDEX(aScoresRounded,$B18,AV$4)),CHOOSE(uxb_works!$B$47,IF(INDEX(aData_Basin,$B18,AV$4)="","-",TEXT(INDEX(aData_Basin,$B18,AV$4),$H18)),INDEX(aScoresRounded_Basin,$B18,AV$4)))) -> -
B19: =tblIndicators!A9 -> 8 | F19: =tblIndicators!G9 -> 3 | H19: =tblIndicators!AC9 -> #,##0 | K19: =IF(uxb_works!$B$46>=L19,1,0) -> 1 | L19: =tblIndicators!G9 -> 3 | N19: =iScores!N13 -> 1.2.1) National wastewater discharge permitting system | O19: =CHOOSE(uxb_works!$B$47,iData!I13,iScores!O13) -> Score (0-2) | P19: =IF(tblIndicators!T9="","",IF(AND(uxb_works!$B$47=1,OR(F19=5,Scores!F19<=2)),"",tblIndicators!T9)) -> EIU research | Q19: =IF(Q$4="","",CHOOSE(uxb_works!$B$52,CHOOSE(uxb_works!$B$47,IF(INDEX(aData,$B19,Q$4)="","-",TEXT(INDEX(aData,$B19,Q$4),$H19)),INDEX(aScoresRounded,$B19,Q$4)),CHOOSE(uxb_works!$B$47,IF(INDEX(aData_Basin,$B19,Q$4)="","-",TEXT(INDEX(aData_Basin,$B19,Q$4),$H19)),INDEX(aScoresRounded_Basin,$B19,Q$4)))) -> 1 | R19: =IF(R$4="","",CHOOSE(uxb_works!$B$52,CHOOSE(uxb_works!$B$47,IF(INDEX(aData,$B19,R$4)="","-",TEXT(INDEX(aData,$B19,R$4),$H19)),INDEX(aScoresRounded,$B19,R$4)),CHOOSE(uxb_works!$B$47,IF(INDEX(aData_Basin,$B19,R$4)="","-",TEXT(INDEX(aData_Basin,$B19,R$4),$H19)),INDEX(aScoresRounded_Basin,$B19,R$4)))) -> 2 | S19: =IF(S$4="","",CHOOSE(uxb_works!$B$52,CHOOSE(uxb_works!$B$47,IF(INDEX(aData,$B19,S$4)="","-",TEXT(INDEX(aData,$B19,S$4),$H19)),INDEX(aScoresRounded,$B19,S$4)),CHOOSE(uxb_works!$B$47,IF(INDEX(aData_Basin,$B19,S$4)="","-",TEXT(INDEX(aData_Basin,$B19,S$4),$H19)),INDEX(aScoresRounded_Basin,$B19,S$4)))) -> 2 | T19: =IF(T$4="","",CHOOSE(uxb_works!$B$52,CHOOSE(uxb_works!$B$47,IF(INDEX(aData,$B19,T$4)="","-",TEXT(INDEX(aData,$B19,T$4),$H19)),INDEX(aScoresRounded,$B19,T$4)),CHOOSE(uxb_works!$B$47,IF(INDEX(aData_Basin,$B19,T$4)="","-",TEXT(INDEX(aData_Basin,$B19,T$4),$H19)),INDEX(aScoresRounded_Basin,$B19,T$4)))) -> 2 | U19: =IF(U$4="","",CHOOSE(uxb_works!$B$52,CHOOSE(uxb_works!$B$47,IF(INDEX(aData,$B19,U$4)="","-",TEXT(INDEX(aData,$B19,U$4),$H19)),INDEX(aScoresRounded,$B19,U$4)),CHOOSE(uxb_works!$B$47,IF(INDEX(aData_Basin,$B19,U$4)="","-",TEXT(INDEX(aData_Basin,$B19,U$4),$H19)),INDEX(aScoresRounded_Basin,$B19,U$4)))) -> 2 | V19: =IF(V$4="","",CHOOSE(uxb_works!$B$52,CHOOSE(uxb_works!$B$47,IF(INDEX(aData,$B19,V$4)="","-",TEXT(INDEX(aData,$B19,V$4),$H19)),INDEX(aScoresRounded,$B19,V$4)),CHOOSE(uxb_works!$B$47,IF(INDEX(aData_Basin,$B19,V$4)="","-",TEXT(INDEX(aData_Basin,$B19,V$4),$H19)),INDEX(aScoresRounded_Basin,$B19,V$4)))) -> 2 | W19: =IF(W$4="","",CHOOSE(uxb_works!$B$52,CHOOSE(uxb_works!$B$47,IF(INDEX(aData,$B19,W$4)="","-",TEXT(INDEX(aData,$B19,W$4),$H19)),INDEX(aScoresRounded,$B19,W$4)),CHOOSE(uxb_works!$B$47,IF(INDEX(aData_Basin,$B19,W$4)="","-",TEXT(INDEX(aData_Basin,$B19,W$4),$H19)),INDEX(aScoresRounded_Basin,$B19,W$4)))) -> 2 | X19: =IF(X$4="","",CHOOSE(uxb_works!$B$52,CHOOSE(uxb_works!$B$47,IF(INDEX(aData,$B19,X$4)="","-",TEXT(INDEX(aData,$B19,X$4),$H19)),INDEX(aScoresRounded,$B19,X$4)),CHOOSE(uxb_works!$B$47,IF(INDEX(aData_Basin,$B19,X$4)="","-",TEXT(INDEX(aData_Basin,$B19,X$4),$H19)),INDEX(aScoresRounded_Basin,$B19,X$4)))) -> 2 | Y19: =IF(Y$4="","",CHOOSE(uxb_works!$B$52,CHOOSE(uxb_works!$B$47,IF(INDEX(aData,$B19,Y$4)="","-",TEXT(INDEX(aData,$B19,Y$4),$H19)),INDEX(aScoresRounded,$B19,Y$4)),CHOOSE(uxb_works!$B$47,IF(INDEX(aData_Basin,$B19,Y$4)="","-",TEXT(INDEX(aData_Basin,$B19,Y$4),$H19)),INDEX(aScoresRounded_Basin,$B19,Y$4)))) -> 2 | Z19: =IF(Z$4="","",CHOOSE(uxb_works!$B$52,CHOOSE(uxb_works!$B$47,IF(INDEX(aData,$B19,Z$4)="","-",TEXT(INDEX(aData,$B19,Z$4),$H19)),INDEX(aScoresRounded,$B19,Z$4)),CHOOSE(uxb_works!$B$47,IF(INDEX(aData_Basin,$B19,Z$4)="","-",TEXT(INDEX(aData_Basin,$B19,Z$4),$H19)),INDEX(aScoresRounded_Basin,$B19,Z$4)))) -> 0 | AA19: =IF(AA$4="","",CHOOSE(uxb_works!$B$52,CHOOSE(uxb_works!$B$47,IF(INDEX(aData,$B19,AA$4)="","-",TEXT(INDEX(aData,$B19,AA$4),$H19)),INDEX(aScoresRounded,$B19,AA$4)),CHOOSE(uxb_works!$B$47,IF(INDEX(aData_Basin,$B19,AA$4)="","-",TEXT(INDEX(aData_Basin,$B19,AA$4),$H19)),INDEX(aScoresRounded_Basin,$B19,AA$4)))) -> 2 | AB19: =IF(AB$4="","",CHOOSE(uxb_works!$B$52,CHOOSE(uxb_works!$B$47,IF(INDEX(aData,$B19,AB$4)="","-",TEXT(INDEX(aData,$B19,AB$4),$H19)),INDEX(aScoresRounded,$B19,AB$4)),CHOOSE(uxb_works!$B$47,IF(INDEX(aData_Basin,$B19,AB$4)="","-",TEXT(INDEX(aData_Basin,$B19,AB$4),$H19)),INDEX(aScoresRounded_Basin,$B19,AB$4)))) -> 0 | AC19: =IF(AC$4="","",CHOOSE(uxb_works!$B$52,CHOOSE(uxb_works!$B$47,IF(INDEX(aData,$B19,AC$4)="","-",TEXT(INDEX(aData,$B19,AC$4),$H19)),INDEX(aScoresRounded,$B19,AC$4)),CHOOSE(uxb_works!$B$47,IF(INDEX(aData_Basin,$B19,AC$4)="","-",TEXT(INDEX(aData_Basin,$B19,AC$4),$H19)),INDEX(aScoresRounded_Basin,$B19,AC$4)))) -> 1 | AD19: =IF(AD$4="","",CHOOSE(uxb_works!$B$52,CHOOSE(uxb_works!$B$47,IF(INDEX(aData,$B19,AD$4)="","-",TEXT(INDEX(aData,$B19,AD$4),$H19)),INDEX(aScoresRounded,$B19,AD$4)),CHOOSE(uxb_works!$B$47,IF(INDEX(aData_Basin,$B19,AD$4)="","-",TEXT(INDEX(aData_Basin,$B19,AD$4),$H19)),INDEX(aScoresRounded_Basin,$B19,AD$4)))) -> 2 | AE19: =IF(AE$4="","",CHOOSE(uxb_works!$B$52,CHOOSE(uxb_works!$B$47,IF(INDEX(aData,$B19,AE$4)="","-",TEXT(INDEX(aData,$B19,AE$4),$H19)),INDEX(aScoresRounded,$B19,AE$4)),CHOOSE(uxb_works!$B$47,IF(INDEX(aData_Basin,$B19,AE$4)="","-",TEXT(INDEX(aData_Basin,$B19,AE$4),$H19)),INDEX(aScoresRounded_Basin,$B19,AE$4)))) -> 1 | AF19: =IF(AF$4="","",CHOOSE(uxb_works!$B$52,CHOOSE(uxb_works!$B$47,IF(INDEX(aData,$B19,AF$4)="","-",TEXT(INDEX(aData,$B19,AF$4),$H19)),INDEX(aScoresRounded,$B19,AF$4)),CHOOSE(uxb_works!$B$47,IF(INDEX(aData_Basin,$B19,AF$4)="","-",TEXT(INDEX(aData_Basin,$B19,AF$4),$H19)),INDEX(aScoresRounded_Basin,$B19,AF$4)))) -> 1 | AG19: =IF(AG$4="","",CHOOSE(uxb_works!$B$52,CHOOSE(uxb_works!$B$47,IF(INDEX(aData,$B19,AG$4)="","-",TEXT(INDEX(aData,$B19,AG$4),$H19)),INDEX(aScoresRounded,$B19,AG$4)),CHOOSE(uxb_works!$B$47,IF(INDEX(aData_Basin,$B19,AG$4)="","-",TEXT(INDEX(aData_Basin,$B19,AG$4),$H19)),INDEX(aScoresRounded_Basin,$B19,AG$4)))) -> 0 | AH19: =IF(AH$4="","",CHOOSE(uxb_works!$B$52,CHOOSE(uxb_works!$B$47,IF(INDEX(aData,$B19,AH$4)="","-",TEXT(INDEX(aData,$B19,AH$4),$H19)),INDEX(aScoresRounded,$B19,AH$4)),CHOOSE(uxb_works!$B$47,IF(INDEX(aData_Basin,$B19,AH$4)="","-",TEXT(INDEX(aData_Basin,$B19,AH$4),$H19)),INDEX(aScoresRounded_Basin,$B19,AH$4)))) -> 1 | AI19: =IF(AI$4="","",CHOOSE(uxb_works!$B$52,CHOOSE(uxb_works!$B$47,IF(INDEX(aData,$B19,AI$4)="","-",TEXT(INDEX(aData,$B19,AI$4),$H19)),INDEX(aScoresRounded,$B19,AI$4)),CHOOSE(uxb_works!$B$47,IF(INDEX(aData_Basin,$B19,AI$4)="","-",TEXT(INDEX(aData_Basin,$B19,AI$4),$H19)),INDEX(aScoresRounded_Basin,$B19,AI$4)))) -> 2 | AJ19: =IF(AJ$4="","",CHOOSE(uxb_works!$B$52,CHOOSE(uxb_works!$B$47,IF(INDEX(aData,$B19,AJ$4)="","-",TEXT(INDEX(aData,$B19,AJ$4),$H19)),INDEX(aScoresRounded,$B19,AJ$4)),CHOOSE(uxb_works!$B$47,IF(INDEX(aData_Basin,$B19,AJ$4)="","-",TEXT(INDEX(aData_Basin,$B19,AJ$4),$H19)),INDEX(aScoresRounded_Basin,$B19,AJ$4)))) -> 2 | AK19: =IF(AK$4="","",CHOOSE(uxb_works!$B$52,CHOOSE(uxb_works!$B$47,IF(INDEX(aData,$B19,AK$4)="","-",TEXT(INDEX(aData,$B19,AK$4),$H19)),INDEX(aScoresRounded,$B19,AK$4)),CHOOSE(uxb_works!$B$47,IF(INDEX(aData_Basin,$B19,AK$4)="","-",TEXT(INDEX(aData_Basin,$B19,AK$4),$H19)),INDEX(aScoresRounded_Basin,$B19,AK$4)))) -> 2 | AL19: =IF(AL$4="","",CHOOSE(uxb_works!$B$52,CHOOSE(uxb_works!$B$47,IF(INDEX(aData,$B19,AL$4)="","-",TEXT(INDEX(aData,$B19,AL$4),$H19)),INDEX(aScoresRounded,$B19,AL$4)),CHOOSE(uxb_works!$B$47,IF(INDEX(aData_Basin,$B19,AL$4)="","-",TEXT(INDEX(aData_Basin,$B19,AL$4),$H19)),INDEX(aScoresRounded_Basin,$B19,AL$4)))) -> 2 | AM19: =IF(AM$4="","",CHOOSE(uxb_works!$B$52,CHOOSE(uxb_works!$B$47,IF(INDEX(aData,$B19,AM$4)="","-",TEXT(INDEX(aData,$B19,AM$4),$H19)),INDEX(aScoresRounded,$B19,AM$4)),CHOOSE(uxb_works!$B$47,IF(INDEX(aData_Basin,$B19,AM$4)="","-",TEXT(INDEX(aData_Basin,$B19,AM$4),$H19)),INDEX(aScoresRounded_Basin,$B19,AM$4)))) -> 0 | AN19: =IF(AN$4="","",CHOOSE(uxb_works!$B$52,CHOOSE(uxb_works!$B$47,IF(INDEX(aData,$B19,AN$4)="","-",TEXT(INDEX(aData,$B19,AN$4),$H19)),INDEX(aScoresRounded,$B19,AN$4)),CHOOSE(uxb_works!$B$47,IF(INDEX(aData_Basin,$B19,AN$4)="","-",TEXT(INDEX(aData_Basin,$B19,AN$4),$H19)),INDEX(aScoresRounded_Basin,$B19,AN$4)))) -> 2 | AO19: =IF(AO$4="","",CHOOSE(uxb_works!$B$52,CHOOSE(uxb_works!$B$47,IF(INDEX(aData,$B19,AO$4)="","-",TEXT(INDEX(aData,$B19,AO$4),$H19)),INDEX(aScoresRounded,$B19,AO$4)),CHOOSE(uxb_works!$B$47,IF(INDEX(aData_Basin,$B19,AO$4)="","-",TEXT(INDEX(aData_Basin,$B19,AO$4),$H19)),INDEX(aScoresRounded_Basin,$B19,AO$4)))) -> 2 | AP19: =IF(AP$4="","",CHOOSE(uxb_works!$B$52,CHOOSE(uxb_works!$B$47,IF(INDEX(aData,$B19,AP$4)="","-",TEXT(INDEX(aData,$B19,AP$4),$H19)),INDEX(aScoresRounded,$B19,AP$4)),CHOOSE(uxb_works!$B$47,IF(INDEX(aData_Basin,$B19,AP$4)="","-",TEXT(INDEX(aData_Basin,$B19,AP$4),$H19)),INDEX(aScoresRounded_Basin,$B19,AP$4)))) -> 2 | AQ19: =IF(AQ$4="","",CHOOSE(uxb_works!$B$52,CHOOSE(uxb_works!$B$47,IF(INDEX(aData,$B19,AQ$4)="","-",TEXT(INDEX(aData,$B19,AQ$4),$H19)),INDEX(aScoresRounded,$B19,AQ$4)),CHOOSE(uxb_works!$B$47,IF(INDEX(aData_Basin,$B19,AQ$4)="","-",TEXT(INDEX(aData_Basin,$B19,AQ$4),$H19)),INDEX(aScoresRounded_Basin,$B19,AQ$4)))) -> 2 | AR19: =IF(AR$4="","",CHOOSE(uxb_works!$B$52,CHOOSE(uxb_works!$B$47,IF(INDEX(aData,$B19,AR$4)="","-",TEXT(INDEX(aData,$B19,AR$4),$H19)),INDEX(aScoresRounded,$B19,AR$4)),CHOOSE(uxb_works!$B$47,IF(INDEX(aData_Basin,$B19,AR$4)="","-",TEXT(INDEX(aData_Basin,$B19,AR$4),$H19)),INDEX(aScoresRounded_Basin,$B19,AR$4)))) -> 1 | AS19: =IF(AS$4="","",CHOOSE(uxb_works!$B$52,CHOOSE(uxb_works!$B$47,IF(INDEX(aData,$B19,AS$4)="","-",TEXT(INDEX(aData,$B19,AS$4),$H19)),INDEX(aScoresRounded,$B19,AS$4)),CHOOSE(uxb_works!$B$47,IF(INDEX(aData_Basin,$B19,AS$4)="","-",TEXT(INDEX(aData_Basin,$B19,AS$4),$H19)),INDEX(aScoresRounded_Basin,$B19,AS$4)))) -> 2 | AT19: =IF(AT$4="","",CHOOSE(uxb_works!$B$52,CHOOSE(uxb_works!$B$47,IF(INDEX(aData,$B19,AT$4)="","-",TEXT(INDEX(aData,$B19,AT$4),$H19)),INDEX(aScoresRounded,$B19,AT$4)),CHOOSE(uxb_works!$B$47,IF(INDEX(aData_Basin,$B19,AT$4)="","-",TEXT(INDEX(aData_Basin,$B19,AT$4),$H19)),INDEX(aScoresRounded_Basin,$B19,AT$4)))) -> 2 | AU19: =IF(AU$4="","",CHOOSE(uxb_works!$B$52,CHOOSE(uxb_works!$B$47,IF(INDEX(aData,$B19,AU$4)="","-",TEXT(INDEX(aData,$B19,AU$4),$H19)),INDEX(aScoresRounded,$B19,AU$4)),CHOOSE(uxb_works!$B$47,IF(INDEX(aData_Basin,$B19,AU$4)="","-",TEXT(INDEX(aData_Basin,$B19,AU$4),$H19)),INDEX(aScoresRounded_Basin,$B19,AU$4)))) -> 1 | AV19: =IF(AV$4="","",CHOOSE(uxb_works!$B$52,CHOOSE(uxb_works!$B$47,IF(INDEX(aData,$B19,AV$4)="","-",TEXT(INDEX(aData,$B19,AV$4),$H19)),INDEX(aScoresRounded,$B19,AV$4)),CHOOSE(uxb_works!$B$47,IF(INDEX(aData_Basin,$B19,AV$4)="","-",TEXT(INDEX(aData_Basin,$B19,AV$4),$H19)),INDEX(aScoresRounded_Basin,$B19,AV$4)))) -> 1
B20: =tblIndicators!A10 -> 9 | F20: =tblIndicators!G10 -> 3 | H20: =tblIndicators!AC10 -> #,##0 | K20: =IF(uxb_works!$B$46>=L20,1,0) -> 1 | L20: =tblIndicators!G10 -> 3 | N20: =iScores!N14 -> 1.2.2) Polluter pays principle | O20: =CHOOSE(uxb_works!$B$47,iData!I14,iScores!O14) -> Score (0-2) | P20: =IF(tblIndicators!T10="","",IF(AND(uxb_works!$B$47=1,OR(F20=5,Scores!F20<=2)),"",tblIndicators!T10)) -> EIU research | Q20: =IF(Q$4="","",CHOOSE(uxb_works!$B$52,CHOOSE(uxb_works!$B$47,IF(INDEX(aData,$B20,Q$4)="","-",TEXT(INDEX(aData,$B20,Q$4),$H20)),INDEX(aScoresRounded,$B20,Q$4)),CHOOSE(uxb_works!$B$47,IF(INDEX(aData_Basin,$B20,Q$4)="","-",TEXT(INDEX(aData_Basin,$B20,Q$4),$H20)),INDEX(aScoresRounded_Basin,$B20,Q$4)))) -> 1 | R20: =IF(R$4="","",CHOOSE(uxb_works!$B$52,CHOOSE(uxb_works!$B$47,IF(INDEX(aData,$B20,R$4)="","-",TEXT(INDEX(aData,$B20,R$4),$H20)),INDEX(aScoresRounded,$B20,R$4)),CHOOSE(uxb_works!$B$47,IF(INDEX(aData_Basin,$B20,R$4)="","-",TEXT(INDEX(aData_Basin,$B20,R$4),$H20)),INDEX(aScoresRounded_Basin,$B20,R$4)))) -> 2 | S20: =IF(S$4="","",CHOOSE(uxb_works!$B$52,CHOOSE(uxb_works!$B$47,IF(INDEX(aData,$B20,S$4)="","-",TEXT(INDEX(aData,$B20,S$4),$H20)),INDEX(aScoresRounded,$B20,S$4)),CHOOSE(uxb_works!$B$47,IF(INDEX(aData_Basin,$B20,S$4)="","-",TEXT(INDEX(aData_Basin,$B20,S$4),$H20)),INDEX(aScoresRounded_Basin,$B20,S$4)))) -> 1 | T20: =IF(T$4="","",CHOOSE(uxb_works!$B$52,CHOOSE(uxb_works!$B$47,IF(INDEX(aData,$B20,T$4)="","-",TEXT(INDEX(aData,$B20,T$4),$H20)),INDEX(aScoresRounded,$B20,T$4)),CHOOSE(uxb_works!$B$47,IF(INDEX(aData_Basin,$B20,T$4)="","-",TEXT(INDEX(aData_Basin,$B20,T$4),$H20)),INDEX(aScoresRounded_Basin,$B20,T$4)))) -> 2 | U20: =IF(U$4="","",CHOOSE(uxb_works!$B$52,CHOOSE(uxb_works!$B$47,IF(INDEX(aData,$B20,U$4)="","-",TEXT(INDEX(aData,$B20,U$4),$H20)),INDEX(aScoresRounded,$B20,U$4)),CHOOSE(uxb_works!$B$47,IF(INDEX(aData_Basin,$B20,U$4)="","-",TEXT(INDEX(aData_Basin,$B20,U$4),$H20)),INDEX(aScoresRounded_Basin,$B20,U$4)))) -> 0 | V20: =IF(V$4="","",CHOOSE(uxb_works!$B$52,CHOOSE(uxb_works!$B$47,IF(INDEX(aData,$B20,V$4)="","-",TEXT(INDEX(aData,$B20,V$4),$H20)),INDEX(aScoresRounded,$B20,V$4)),CHOOSE(uxb_works!$B$47,IF(INDEX(aData_Basin,$B20,V$4)="","-",TEXT(INDEX(aData_Basin,$B20,V$4),$H20)),INDEX(aScoresRounded_Basin,$B20,V$4)))) -> 2 | W20: =IF(W$4="","",CHOOSE(uxb_works!$B$52,CHOOSE(uxb_works!$B$47,IF(INDEX(aData,$B20,W$4)="","-",TEXT(INDEX(aData,$B20,W$4),$H20)),INDEX(aScoresRounded,$B20,W$4)),CHOOSE(uxb_works!$B$47,IF(INDEX(aData_Basin,$B20,W$4)="","-",TEXT(INDEX(aData_Basin,$B20,W$4),$H20)),INDEX(aScoresRounded_Basin,$B20,W$4)))) -> 2 | X20: =IF(X$4="","",CHOOSE(uxb_works!$B$52,CHOOSE(uxb_works!$B$47,IF(INDEX(aData,$B20,X$4)="","-",TEXT(INDEX(aData,$B20,X$4),$H20)),INDEX(aScoresRounded,$B20,X$4)),CHOOSE(uxb_works!$B$47,IF(INDEX(aData_Basin,$B20,X$4)="","-",TEXT(INDEX(aData_Basin,$B20,X$4),$H20)),INDEX(aScoresRounded_Basin,$B20,X$4)))) -> 2 | Y20: =IF(Y$4="","",CHOOSE(uxb_works!$B$52,CHOOSE(uxb_works!$B$47,IF(INDEX(aData,$B20,Y$4)="","-",TEXT(INDEX(aData,$B20,Y$4),$H20)),INDEX(aScoresRounded,$B20,Y$4)),CHOOSE(uxb_works!$B$47,IF(INDEX(aData_Basin,$B20,Y$4)="","-",TEXT(INDEX(aData_Basin,$B20,Y$4),$H20)),INDEX(aScoresRounded_Basin,$B20,Y$4)))) -> 2 | Z20: =IF(Z$4="","",CHOOSE(uxb_works!$B$52,CHOOSE(uxb_works!$B$47,IF(INDEX(aData,$B20,Z$4)="","-",TEXT(INDEX(aData,$B20,Z$4),$H20)),INDEX(aScoresRounded,$B20,Z$4)),CHOOSE(uxb_works!$B$47,IF(INDEX(aData_Basin,$B20,Z$4)="","-",TEXT(INDEX(aData_Basin,$B20,Z$4),$H20)),INDEX(aScoresRounded_Basin,$B20,Z$4)))) -> 1 | AA20: =IF(AA$4="","",CHOOSE(uxb_works!$B$52,CHOOSE(uxb_works!$B$47,IF(INDEX(aData,$B20,AA$4)="","-",TEXT(INDEX(aData,$B20,AA$4),$H20)),INDEX(aScoresRounded,$B20,AA$4)),CHOOSE(uxb_works!$B$47,IF(INDEX(aData_Basin,$B20,AA$4)="","-",TEXT(INDEX(aData_Basin,$B20,AA$4),$H20)),INDEX(aScoresRounded_Basin,$B20,AA$4)))) -> 2 | AB20: =IF(AB$4="","",CHOOSE(uxb_works!$B$52,CHOOSE(uxb_works!$B$47,IF(INDEX(aData,$B20,AB$4)="","-",TEXT(INDEX(aData,$B20,AB$4),$H20)),INDEX(aScoresRounded,$B20,AB$4)),CHOOSE(uxb_works!$B$47,IF(INDEX(aData_Basin,$B20,AB$4)="","-",TEXT(INDEX(aData_Basin,$B20,AB$4),$H20)),INDEX(aScoresRounded_Basin,$B20,AB$4)))) -> 1 | AC20: =IF(AC$4="","",CHOOSE(uxb_works!$B$52,CHOOSE(uxb_works!$B$47,IF(INDEX(aData,$B20,AC$4)="","-",TEXT(INDEX(aData,$B20,AC$4),$H20)),INDEX(aScoresRounded,$B20,AC$4)),CHOOSE(uxb_works!$B$47,IF(INDEX(aData_Basin,$B20,AC$4)="","-",TEXT(INDEX(aData_Basin,$B20,AC$4),$H20)),INDEX(aScoresRounded_Basin,$B20,AC$4)))) -> 1 | AD20: =IF(AD$4="","",CHOOSE(uxb_works!$B$52,CHOOSE(uxb_works!$B$47,IF(INDEX(aData,$B20,AD$4)="","-",TEXT(INDEX(aData,$B20,AD$4),$H20)),INDEX(aScoresRounded,$B20,AD$4)),CHOOSE(uxb_works!$B$47,IF(INDEX(aData_Basin,$B20,AD$4)="","-",TEXT(INDEX(aData_Basin,$B20,AD$4),$H20)),INDEX(aScoresRounded_Basin,$B20,AD$4)))) -> 2 | AE20: =IF(AE$4="","",CHOOSE(uxb_works!$B$52,CHOOSE(uxb_works!$B$47,IF(INDEX(aData,$B20,AE$4)="","-",TEXT(INDEX(aData,$B20,AE$4),$H20)),INDEX(aScoresRounded,$B20,AE$4)),CHOOSE(uxb_works!$B$47,IF(INDEX(aData_Basin,$B20,AE$4)="","-",TEXT(INDEX(aData_Basin,$B20,AE$4),$H20)),INDEX(aScoresRounded_Basin,$B20,AE$4)))) -> 1 | AF20: =IF(AF$4="","",CHOOSE(uxb_works!$B$52,CHOOSE(uxb_works!$B$47,IF(INDEX(aData,$B20,AF$4)="","-",TEXT(INDEX(aData,$B20,AF$4),$H20)),INDEX(aScoresRounded,$B20,AF$4)),CHOOSE(uxb_works!$B$47,IF(INDEX(aData_Basin,$B20,AF$4)="","-",TEXT(INDEX(aData_Basin,$B20,AF$4),$H20)),INDEX(aScoresRounded_Basin,$B20,AF$4)))) -> 1 | AG20: =IF(AG$4="","",CHOOSE(uxb_works!$B$52,CHOOSE(uxb_works!$B$47,IF(INDEX(aData,$B20,AG$4)="","-",TEXT(INDEX(aData,$B20,AG$4),$H20)),INDEX(aScoresRounded,$B20,AG$4)),CHOOSE(uxb_works!$B$47,IF(INDEX(aData_Basin,$B20,AG$4)="","-",TEXT(INDEX(aData_Basin,$B20,AG$4),$H20)),INDEX(aScoresRounded_Basin,$B20,AG$4)))) -> 0 | AH20: =IF(AH$4="","",CHOOSE(uxb_works!$B$52,CHOOSE(uxb_works!$B$47,IF(INDEX(aData,$B20,AH$4)="","-",TEXT(INDEX(aData,$B20,AH$4),$H20)),INDEX(aScoresRounded,$B20,AH$4)),CHOOSE(uxb_works!$B$47,IF(INDEX(aData_Basin,$B20,AH$4)="","-",TEXT(INDEX(aData_Basin,$B20,AH$4),$H20)),INDEX(aScoresRounded_Basin,$B20,AH$4)))) -> 1 | AI20: =IF(AI$4="","",CHOOSE(uxb_works!$B$52,CHOOSE(uxb_works!$B$47,IF(INDEX(aData,$B20,AI$4)="","-",TEXT(INDEX(aData,$B20,AI$4),$H20)),INDEX(aScoresRounded,$B20,AI$4)),CHOOSE(uxb_works!$B$47,IF(INDEX(aData_Basin,$B20,AI$4)="","-",TEXT(INDEX(aData_Basin,$B20,AI$4),$H20)),INDEX(aScoresRounded_Basin,$B20,AI$4)))) -> 2 | AJ20: =IF(AJ$4="","",CHOOSE(uxb_works!$B$52,CHOOSE(uxb_works!$B$47,IF(INDEX(aData,$B20,AJ$4)="","-",TEXT(INDEX(aData,$B20,AJ$4),$H20)),INDEX(aScoresRounded,$B20,AJ$4)),CHOOSE(uxb_works!$B$47,IF(INDEX(aData_Basin,$B20,AJ$4)="","-",TEXT(INDEX(aData_Basin,$B20,AJ$4),$H20)),INDEX(aScoresRounded_Basin,$B20,AJ$4)))) -> 1 | AK20: =IF(AK$4="","",CHOOSE(uxb_works!$B$52,CHOOSE(uxb_works!$B$47,IF(INDEX(aData,$B20,AK$4)="","-",TEXT(INDEX(aData,$B20,AK$4),$H20)),INDEX(aScoresRounded,$B20,AK$4)),CHOOSE(uxb_works!$B$47,IF(INDEX(aData_Basin,$B20,AK$4)="","-",TEXT(INDEX(aData_Basin,$B20,AK$4),$H20)),INDEX(aScoresRounded_Basin,$B20,AK$4)))) -> 1 | AL20: =IF(AL$4="","",CHOOSE(uxb_works!$B$52,CHOOSE(uxb_works!$B$47,IF(INDEX(aData,$B20,AL$4)="","-",TEXT(INDEX(aData,$B20,AL$4),$H20)),INDEX(aScoresRounded,$B20,AL$4)),CHOOSE(uxb_works!$B$47,IF(INDEX(aData_Basin,$B20,AL$4)="","-",TEXT(INDEX(aData_Basin,$B20,AL$4),$H20)),INDEX(aScoresRounded_Basin,$B20,AL$4)))) -> 2 | AM20: =IF(AM$4="","",CHOOSE(uxb_works!$B$52,CHOOSE(uxb_works!$B$47,IF(INDEX(aData,$B20,AM$4)="","-",TEXT(INDEX(aData,$B20,AM$4),$H20)),INDEX(aScoresRounded,$B20,AM$4)),CHOOSE(uxb_works!$B$47,IF(INDEX(aData_Basin,$B20,AM$4)="","-",TEXT(INDEX(aData_Basin,$B20,AM$4),$H20)),INDEX(aScoresRounded_Basin,$B20,AM$4)))) -> 0 | AN20: =IF(AN$4="","",CHOOSE(uxb_works!$B$52,CHOOSE(uxb_works!$B$47,IF(INDEX(aData,$B20,AN$4)="","-",TEXT(INDEX(aData,$B20,AN$4),$H20)),INDEX(aScoresRounded,$B20,AN$4)),CHOOSE(uxb_works!$B$47,IF(INDEX(aData_Basin,$B20,AN$4)="","-",TEXT(INDEX(aData_Basin,$B20,AN$4),$H20)),INDEX(aScoresRounded_Basin,$B20,AN$4)))) -> 1 | AO20: =IF(AO$4="","",CHOOSE(uxb_works!$B$52,CHOOSE(uxb_works!$B$47,IF(INDEX(aData,$B20,AO$4)="","-",TEXT(INDEX(aData,$B20,AO$4),$H20)),INDEX(aScoresRounded,$B20,AO$4)),CHOOSE(uxb_works!$B$47,IF(INDEX(aData_Basin,$B20,AO$4)="","-",TEXT(INDEX(aData_Basin,$B20,AO$4),$H20)),INDEX(aScoresRounded_Basin,$B20,AO$4)))) -> 1 | AP20: =IF(AP$4="","",CHOOSE(uxb_works!$B$52,CHOOSE(uxb_works!$B$47,IF(INDEX(aData,$B20,AP$4)="","-",TEXT(INDEX(aData,$B20,AP$4),$H20)),INDEX(aScoresRounded,$B20,AP$4)),CHOOSE(uxb_works!$B$47,IF(INDEX(aData_Basin,$B20,AP$4)="","-",TEXT(INDEX(aData_Basin,$B20,AP$4),$H20)),INDEX(aScoresRounded_Basin,$B20,AP$4)))) -> 1 | AQ20: =IF(AQ$4="","",CHOOSE(uxb_works!$B$52,CHOOSE(uxb_works!$B$47,IF(INDEX(aData,$B20,AQ$4)="","-",TEXT(INDEX(aData,$B20,AQ$4),$H20)),INDEX(aScoresRounded,$B20,AQ$4)),CHOOSE(uxb_works!$B$47,IF(INDEX(aData_Basin,$B20,AQ$4)="","-",TEXT(INDEX(aData_Basin,$B20,AQ$4),$H20)),INDEX(aScoresRounded_Basin,$B20,AQ$4)))) -> 2 | AR20: =IF(AR$4="","",CHOOSE(uxb_works!$B$52,CHOOSE(uxb_works!$B$47,IF(INDEX(aData,$B20,AR$4)="","-",TEXT(INDEX(aData,$B20,AR$4),$H20)),INDEX(aScoresRounded,$B20,AR$4)),CHOOSE(uxb_works!$B$47,IF(INDEX(aData_Basin,$B20,AR$4)="","-",TEXT(INDEX(aData_Basin,$B20,AR$4),$H20)),INDEX(aScoresRounded_Basin,$B20,AR$4)))) -> 1 | AS20: =IF(AS$4="","",CHOOSE(uxb_works!$B$52,CHOOSE(uxb_works!$B$47,IF(INDEX(aData,$B20,AS$4)="","-",TEXT(INDEX(aData,$B20,AS$4),$H20)),INDEX(aScoresRounded,$B20,AS$4)),CHOOSE(uxb_works!$B$47,IF(INDEX(aData_Basin,$B20,AS$4)="","-",TEXT(INDEX(aData_Basin,$B20,AS$4),$H20)),INDEX(aScoresRounded_Basin,$B20,AS$4)))) -> 2 | AT20: =IF(AT$4="","",CHOOSE(uxb_works!$B$52,CHOOSE(uxb_works!$B$47,IF(INDEX(aData,$B20,AT$4)="","-",TEXT(INDEX(aData,$B20,AT$4),$H20)),INDEX(aScoresRounded,$B20,AT$4)),CHOOSE(uxb_works!$B$47,IF(INDEX(aData_Basin,$B20,AT$4)="","-",TEXT(INDEX(aData_Basin,$B20,AT$4),$H20)),INDEX(aScoresRounded_Basin,$B20,AT$4)))) -> 2 | AU20: =IF(AU$4="","",CHOOSE(uxb_works!$B$52,CHOOSE(uxb_works!$B$47,IF(INDEX(aData,$B20,AU$4)="","-",TEXT(INDEX(aData,$B20,AU$4),$H20)),INDEX(aScoresRounded,$B20,AU$4)),CHOOSE(uxb_works!$B$47,IF(INDEX(aData_Basin,$B20,AU$4)="","-",TEXT(INDEX(aData_Basin,$B20,AU$4),$H20)),INDEX(aScoresRounded_Basin,$B20,AU$4)))) -> 1 | AV20: =IF(AV$4="","",CHOOSE(uxb_works!$B$52,CHOOSE(uxb_works!$B$47,IF(INDEX(aData,$B20,AV$4)="","-",TEXT(INDEX(aData,$B20,AV$4),$H20)),INDEX(aScoresRounded,$B20,AV$4)),CHOOSE(uxb_works!$B$47,IF(INDEX(aData_Basin,$B20,AV$4)="","-",TEXT(INDEX(aData_Basin,$B20,AV$4),$H20)),INDEX(aScoresRounded_Basin,$B20,AV$4)))) -> 1
B21: =tblIndicators!A11 -> 10 | F21: =tblIndicators!G11 -> 3 | H21: =tblIndicators!AC11 -> #,##0 | K21: =IF(uxb_works!$B$46>=L21,1,0) -> 1 | L21: =tblIndicators!G11 -> 3 | N21: =iScores!N15 -> 1.2.3) Transboundary Environmental Impact Assessment (EIA) | O21: =CHOOSE(uxb_works!$B$47,iData!I15,iScores!O15) -> Score (0-2) | P21: =IF(tblIndicators!T11="","",IF(AND(uxb_works!$B$47=1,OR(F21=5,Scores!F21<=2)),"",tblIndicators!T11)) -> EIU research | Q21: =IF(Q$4="","",CHOOSE(uxb_works!$B$52,CHOOSE(uxb_works!$B$47,IF(INDEX(aData,$B21,Q$4)="","-",TEXT(INDEX(aData,$B21,Q$4),$H21)),INDEX(aScoresRounded,$B21,Q$4)),CHOOSE(uxb_works!$B$47,IF(INDEX(aData_Basin,$B21,Q$4)="","-",TEXT(INDEX(aData_Basin,$B21,Q$4),$H21)),INDEX(aScoresRounded_Basin,$B21,Q$4)))) -> 0 | R21: =IF(R$4="","",CHOOSE(uxb_works!$B$52,CHOOSE(uxb_works!$B$47,IF(INDEX(aData,$B21,R$4)="","-",TEXT(INDEX(aData,$B21,R$4),$H21)),INDEX(aScoresRounded,$B21,R$4)),CHOOSE(uxb_works!$B$47,IF(INDEX(aData_Basin,$B21,R$4)="","-",TEXT(INDEX(aData_Basin,$B21,R$4),$H21)),INDEX(aScoresRounded_Basin,$B21,R$4)))) -> 2 | S21: =IF(S$4="","",CHOOSE(uxb_works!$B$52,CHOOSE(uxb_works!$B$47,IF(INDEX(aData,$B21,S$4)="","-",TEXT(INDEX(aData,$B21,S$4),$H21)),INDEX(aScoresRounded,$B21,S$4)),CHOOSE(uxb_works!$B$47,IF(INDEX(aData_Basin,$B21,S$4)="","-",TEXT(INDEX(aData_Basin,$B21,S$4),$H21)),INDEX(aScoresRounded_Basin,$B21,S$4)))) -> 2 | T21: =IF(T$4="","",CHOOSE(uxb_works!$B$52,CHOOSE(uxb_works!$B$47,IF(INDEX(aData,$B21,T$4)="","-",TEXT(INDEX(aData,$B21,T$4),$H21)),INDEX(aScoresRounded,$B21,T$4)),CHOOSE(uxb_works!$B$47,IF(INDEX(aData_Basin,$B21,T$4)="","-",TEXT(INDEX(aData_Basin,$B21,T$4),$H21)),INDEX(aScoresRounded_Basin,$B21,T$4)))) -> 1 | U21: =IF(U$4="","",CHOOSE(uxb_works!$B$52,CHOOSE(uxb_works!$B$47,IF(INDEX(aData,$B21,U$4)="","-",TEXT(INDEX(aData,$B21,U$4),$H21)),INDEX(aScoresRounded,$B21,U$4)),CHOOSE(uxb_works!$B$47,IF(INDEX(aData_Basin,$B21,U$4)="","-",TEXT(INDEX(aData_Basin,$B21,U$4),$H21)),INDEX(aScoresRounded_Basin,$B21,U$4)))) -> 0 | V21: =IF(V$4="","",CHOOSE(uxb_works!$B$52,CHOOSE(uxb_works!$B$47,IF(INDEX(aData,$B21,V$4)="","-",TEXT(INDEX(aData,$B21,V$4),$H21)),INDEX(aScoresRounded,$B21,V$4)),CHOOSE(uxb_works!$B$47,IF(INDEX(aData_Basin,$B21,V$4)="","-",TEXT(INDEX(aData_Basin,$B21,V$4),$H21)),INDEX(aScoresRounded_Basin,$B21,V$4)))) -> 1 | W21: =IF(W$4="","",CHOOSE(uxb_works!$B$52,CHOOSE(uxb_works!$B$47,IF(INDEX(aData,$B21,W$4)="","-",TEXT(INDEX(aData,$B21,W$4),$H21)),INDEX(aScoresRounded,$B21,W$4)),CHOOSE(uxb_works!$B$47,IF(INDEX(aData_Basin,$B21,W$4)="","-",TEXT(INDEX(aData_Basin,$B21,W$4),$H21)),INDEX(aScoresRounded_Basin,$B21,W$4)))) -> 1 | X21: =IF(X$4="","",CHOOSE(uxb_works!$B$52,CHOOSE(uxb_works!$B$47,IF(INDEX(aData,$B21,X$4)="","-",TEXT(INDEX(aData,$B21,X$4),$H21)),INDEX(aScoresRounded,$B21,X$4)),CHOOSE(uxb_works!$B$47,IF(INDEX(aData_Basin,$B21,X$4)="","-",TEXT(INDEX(aData_Basin,$B21,X$4),$H21)),INDEX(aScoresRounded_Basin,$B21,X$4)))) -> 2 | Y21: =IF(Y$4="","",CHOOSE(uxb_works!$B$52,CHOOSE(uxb_works!$B$47,IF(INDEX(aData,$B21,Y$4)="","-",TEXT(INDEX(aData,$B21,Y$4),$H21)),INDEX(aScoresRounded,$B21,Y$4)),CHOOSE(uxb_works!$B$47,IF(INDEX(aData_Basin,$B21,Y$4)="","-",TEXT(INDEX(aData_Basin,$B21,Y$4),$H21)),INDEX(aScoresRounded_Basin,$B21,Y$4)))) -> 1 | Z21: =IF(Z$4="","",CHOOSE(uxb_works!$B$52,CHOOSE(uxb_works!$B$47,IF(INDEX(aData,$B21,Z$4)="","-",TEXT(INDEX(aData,$B21,Z$4),$H21)),INDEX(aScoresRounded,$B21,Z$4)),CHOOSE(uxb_works!$B$47,IF(INDEX(aData_Basin,$B21,Z$4)="","-",TEXT(INDEX(aData_Basin,$B21,Z$4),$H21)),INDEX(aScoresRounded_Basin,$B21,Z$4)))) -> 0 | AA21: =IF(AA$4="","",CHOOSE(uxb_works!$B$52,CHOOSE(uxb_works!$B$47,IF(INDEX(aData,$B21,AA$4)="","-",TEXT(INDEX(aData,$B21,AA$4),$H21)),INDEX(aScoresRounded,$B21,AA$4)),CHOOSE(uxb_works!$B$47,IF(INDEX(aData_Basin,$B21,AA$4)="","-",TEXT(INDEX(aData_Basin,$B21,AA$4),$H21)),INDEX(aScoresRounded_Basin,$B21,AA$4)))) -> 0 | AB21: =IF(AB$4="","",CHOOSE(uxb_works!$B$52,CHOOSE(uxb_works!$B$47,IF(INDEX(aData,$B21,AB$4)="","-",TEXT(INDEX(aData,$B21,AB$4),$H21)),INDEX(aScoresRounded,$B21,AB$4)),CHOOSE(uxb_works!$B$47,IF(INDEX(aData_Basin,$B21,AB$4)="","-",TEXT(INDEX(aData_Basin,$B21,AB$4),$H21)),INDEX(aScoresRounded_Basin,$B21,AB$4)))) -> 0 | AC21: =IF(AC$4="","",CHOOSE(uxb_works!$B$52,CHOOSE(uxb_works!$B$47,IF(INDEX(aData,$B21,AC$4)="","-",TEXT(INDEX(aData,$B21,AC$4),$H21)),INDEX(aScoresRounded,$B21,AC$4)),CHOOSE(uxb_works!$B$47,IF(INDEX(aData_Basin,$B21,AC$4)="","-",TEXT(INDEX(aData_Basin,$B21,AC$4),$H21)),INDEX(aScoresRounded_Basin,$B21,AC$4)))) -> 1 | AD21: =IF(AD$4="","",CHOOSE(uxb_works!$B$52,CHOOSE(uxb_works!$B$47,IF(INDEX(aData,$B21,AD$4)="","-",TEXT(INDEX(aData,$B21,AD$4),$H21)),INDEX(aScoresRounded,$B21,AD$4)),CHOOSE(uxb_works!$B$47,IF(INDEX(aData_Basin,$B21,AD$4)="","-",TEXT(INDEX(aData_Basin,$B21,AD$4),$H21)),INDEX(aScoresRounded_Basin,$B21,AD$4)))) -> 1 | AE21: =IF(AE$4="","",CHOOSE(uxb_works!$B$52,CHOOSE(uxb_works!$B$47,IF(INDEX(aData,$B21,AE$4)="","-",TEXT(INDEX(aData,$B21,AE$4),$H21)),INDEX(aScoresRounded,$B21,AE$4)),CHOOSE(uxb_works!$B$47,IF(INDEX(aData_Basin,$B21,AE$4)="","-",TEXT(INDEX(aData_Basin,$B21,AE$4),$H21)),INDEX(aScoresRounded_Basin,$B21,AE$4)))) -> 2 | AF21: =IF(AF$4="","",CHOOSE(uxb_works!$B$52,CHOOSE(uxb_works!$B$47,IF(INDEX(aData,$B21,AF$4)="","-",TEXT(INDEX(aData,$B21,AF$4),$H21)),INDEX(aScoresRounded,$B21,AF$4)),CHOOSE(uxb_works!$B$47,IF(INDEX(aData_Basin,$B21,AF$4)="","-",TEXT(INDEX(aData_Basin,$B21,AF$4),$H21)),INDEX(aScoresRounded_Basin,$B21,AF$4)))) -> 1 | AG21: =IF(AG$4="","",CHOOSE(uxb_works!$B$52,CHOOSE(uxb_works!$B$47,IF(INDEX(aData,$B21,AG$4)="","-",TEXT(INDEX(aData,$B21,AG$4),$H21)),INDEX(aScoresRounded,$B21,AG$4)),CHOOSE(uxb_works!$B$47,IF(INDEX(aData_Basin,$B21,AG$4)="","-",TEXT(INDEX(aData_Basin,$B21,AG$4),$H21)),INDEX(aScoresRounded_Basin,$B21,AG$4)))) -> 0 | AH21: =IF(AH$4="","",CHOOSE(uxb_works!$B$52,CHOOSE(uxb_works!$B$47,IF(INDEX(aData,$B21,AH$4)="","-",TEXT(INDEX(aData,$B21,AH$4),$H21)),INDEX(aScoresRounded,$B21,AH$4)),CHOOSE(uxb_works!$B$47,IF(INDEX(aData_Basin,$B21,AH$4)="","-",TEXT(INDEX(aData_Basin,$B21,AH$4),$H21)),INDEX(aScoresRounded_Basin,$B21,AH$4)))) -> 1 | AI21: =IF(AI$4="","",CHOOSE(uxb_works!$B$52,CHOOSE(uxb_works!$B$47,IF(INDEX(aData,$B21,AI$4)="","-",TEXT(INDEX(aData,$B21,AI$4),$H21)),INDEX(aScoresRounded,$B21,AI$4)),CHOOSE(uxb_works!$B$47,IF(INDEX(aData_Basin,$B21,AI$4)="","-",TEXT(INDEX(aData_Basin,$B21,AI$4),$H21)),INDEX(aScoresRounded_Basin,$B21,AI$4)))) -> 1 | AJ21: =IF(AJ$4="","",CHOOSE(uxb_works!$B$52,CHOOSE(uxb_works!$B$47,IF(INDEX(aData,$B21,AJ$4)="","-",TEXT(INDEX(aData,$B21,AJ$4),$H21)),INDEX(aScoresRounded,$B21,AJ$4)),CHOOSE(uxb_works!$B$47,IF(INDEX(aData_Basin,$B21,AJ$4)="","-",TEXT(INDEX(aData_Basin,$B21,AJ$4),$H21)),INDEX(aScoresRounded_Basin,$B21,AJ$4)))) -> 2 | AK21: =IF(AK$4="","",CHOOSE(uxb_works!$B$52,CHOOSE(uxb_works!$B$47,IF(INDEX(aData,$B21,AK$4)="","-",TEXT(INDEX(aData,$B21,AK$4),$H21)),INDEX(aScoresRounded,$B21,AK$4)),CHOOSE(uxb_works!$B$47,IF(INDEX(aData_Basin,$B21,AK$4)="","-",TEXT(INDEX(aData_Basin,$B21,AK$4),$H21)),INDEX(aScoresRounded_Basin,$B21,AK$4)))) -> 2 | AL21: =IF(AL$4="","",CHOOSE(uxb_works!$B$52,CHOOSE(uxb_works!$B$47,IF(INDEX(aData,$B21,AL$4)="","-",TEXT(INDEX(aData,$B21,AL$4),$H21)),INDEX(aScoresRounded,$B21,AL$4)),CHOOSE(uxb_works!$B$47,IF(INDEX(aData_Basin,$B21,AL$4)="","-",TEXT(INDEX(aData_Basin,$B21,AL$4),$H21)),INDEX(aScoresRounded_Basin,$B21,AL$4)))) -> 2 | AM21: =IF(AM$4="","",CHOOSE(uxb_works!$B$52,CHOOSE(uxb_works!$B$47,IF(INDEX(aData,$B21,AM$4)="","-",TEXT(INDEX(aData,$B21,AM$4),$H21)),INDEX(aScoresRounded,$B21,AM$4)),CHOOSE(uxb_works!$B$47,IF(INDEX(aData_Basin,$B21,AM$4)="","-",TEXT(INDEX(aData_Basin,$B21,AM$4),$H21)),INDEX(aScoresRounded_Basin,$B21,AM$4)))) -> 0 | AN21: =IF(AN$4="","",CHOOSE(uxb_works!$B$52,CHOOSE(uxb_works!$B$47,IF(INDEX(aData,$B21,AN$4)="","-",TEXT(INDEX(aData,$B21,AN$4),$H21)),INDEX(aScoresRounded,$B21,AN$4)),CHOOSE(uxb_works!$B$47,IF(INDEX(aData_Basin,$B21,AN$4)="","-",TEXT(INDEX(aData_Basin,$B21,AN$4),$H21)),INDEX(aScoresRounded_Basin,$B21,AN$4)))) -> 2 | AO21: =IF(AO$4="","",CHOOSE(uxb_works!$B$52,CHOOSE(uxb_works!$B$47,IF(INDEX(aData,$B21,AO$4)="","-",TEXT(INDEX(aData,$B21,AO$4),$H21)),INDEX(aScoresRounded,$B21,AO$4)),CHOOSE(uxb_works!$B$47,IF(INDEX(aData_Basin,$B21,AO$4)="","-",TEXT(INDEX(aData_Basin,$B21,AO$4),$H21)),INDEX(aScoresRounded_Basin,$B21,AO$4)))) -> 2 | AP21: =IF(AP$4="","",CHOOSE(uxb_works!$B$52,CHOOSE(uxb_works!$B$47,IF(INDEX(aData,$B21,AP$4)="","-",TEXT(INDEX(aData,$B21,AP$4),$H21)),INDEX(aScoresRounded,$B21,AP$4)),CHOOSE(uxb_works!$B$47,IF(INDEX(aData_Basin,$B21,AP$4)="","-",TEXT(INDEX(aData_Basin,$B21,AP$4),$H21)),INDEX(aScoresRounded_Basin,$B21,AP$4)))) -> 1 | AQ21: =IF(AQ$4="","",CHOOSE(uxb_works!$B$52,CHOOSE(uxb_works!$B$47,IF(INDEX(aData,$B21,AQ$4)="","-",TEXT(INDEX(aData,$B21,AQ$4),$H21)),INDEX(aScoresRounded,$B21,AQ$4)),CHOOSE(uxb_works!$B$47,IF(INDEX(aData_Basin,$B21,AQ$4)="","-",TEXT(INDEX(aData_Basin,$B21,AQ$4),$H21)),INDEX(aScoresRounded_Basin,$B21,AQ$4)))) -> 1 | AR21: =IF(AR$4="","",CHOOSE(uxb_works!$B$52,CHOOSE(uxb_works!$B$47,IF(INDEX(aData,$B21,AR$4)="","-",TEXT(INDEX(aData,$B21,AR$4),$H21)),INDEX(aScoresRounded,$B21,AR$4)),CHOOSE(uxb_works!$B$47,IF(INDEX(aData_Basin,$B21,AR$4)="","-",TEXT(INDEX(aData_Basin,$B21,AR$4),$H21)),INDEX(aScoresRounded_Basin,$B21,AR$4)))) -> 0 | AS21: =IF(AS$4="","",CHOOSE(uxb_works!$B$52,CHOOSE(uxb_works!$B$47,IF(INDEX(aData,$B21,AS$4)="","-",TEXT(INDEX(aData,$B21,AS$4),$H21)),INDEX(aScoresRounded,$B21,AS$4)),CHOOSE(uxb_works!$B$47,IF(INDEX(aData_Basin,$B21,AS$4)="","-",TEXT(INDEX(aData_Basin,$B21,AS$4),$H21)),INDEX(aScoresRounded_Basin,$B21,AS$4)))) -> 0 | AT21: =IF(AT$4="","",CHOOSE(uxb_works!$B$52,CHOOSE(uxb_works!$B$47,IF(INDEX(aData,$B21,AT$4)="","-",TEXT(INDEX(aData,$B21,AT$4),$H21)),INDEX(aScoresRounded,$B21,AT$4)),CHOOSE(uxb_works!$B$47,IF(INDEX(aData_Basin,$B21,AT$4)="","-",TEXT(INDEX(aData_Basin,$B21,AT$4),$H21)),INDEX(aScoresRounded_Basin,$B21,AT$4)))) -> 0 | AU21: =IF(AU$4="","",CHOOSE(uxb_works!$B$52,CHOOSE(uxb_works!$B$47,IF(INDEX(aData,$B21,AU$4)="","-",TEXT(INDEX(aData,$B21,AU$4),$H21)),INDEX(aScoresRounded,$B21,AU$4)),CHOOSE(uxb_works!$B$47,IF(INDEX(aData_Basin,$B21,AU$4)="","-",TEXT(INDEX(aData_Basin,$B21,AU$4),$H21)),INDEX(aScoresRounded_Basin,$B21,AU$4)))) -> 1 | AV21: =IF(AV$4="","",CHOOSE(uxb_works!$B$52,CHOOSE(uxb_works!$B$47,IF(INDEX(aData,$B21,AV$4)="","-",TEXT(INDEX(aData,$B21,AV$4),$H21)),INDEX(aScoresRounded,$B21,AV$4)),CHOOSE(uxb_works!$B$47,IF(INDEX(aData_Basin,$B21,AV$4)="","-",TEXT(INDEX(aData_Basin,$B21,AV$4),$H21)),INDEX(aScoresRounded_Basin,$B21,AV$4)))) -> 1
B22: =tblIndicators!A12 -> 11 | F22: =tblIndicators!G12 -> 3 | H22: =tblIndicators!AC12 -> #,##0 | K22: =IF(uxb_works!$B$46>=L22,1,0) -> 1 | L22: =tblIndicators!G12 -> 3 | N22: =iScores!N16 -> 1.2.4) Environmental Impact Assessment (EIA) public consultations | O22: =CHOOSE(uxb_works!$B$47,iData!I16,iScores!O16) -> Score (0-2) | P22: =IF(tblIndicators!T12="","",IF(AND(uxb_works!$B$47=1,OR(F22=5,Scores!F22<=2)),"",tblIndicators!T12)) -> EIU research | Q22: =IF(Q$4="","",CHOOSE(uxb_works!$B$52,CHOOSE(uxb_works!$B$47,IF(INDEX(aData,$B22,Q$4)="","-",TEXT(INDEX(aData,$B22,Q$4),$H22)),INDEX(aScoresRounded,$B22,Q$4)),CHOOSE(uxb_works!$B$47,IF(INDEX(aData_Basin,$B22,Q$4)="","-",TEXT(INDEX(aData_Basin,$B22,Q$4),$H22)),INDEX(aScoresRounded_Basin,$B22,Q$4)))) -> 1 | R22: =IF(R$4="","",CHOOSE(uxb_works!$B$52,CHOOSE(uxb_works!$B$47,IF(INDEX(aData,$B22,R$4)="","-",TEXT(INDEX(aData,$B22,R$4),$H22)),INDEX(aScoresRounded,$B22,R$4)),CHOOSE(uxb_works!$B$47,IF(INDEX(aData_Basin,$B22,R$4)="","-",TEXT(INDEX(aData_Basin,$B22,R$4),$H22)),INDEX(aScoresRounded_Basin,$B22,R$4)))) -> 2 | S22: =IF(S$4="","",CHOOSE(uxb_works!$B$52,CHOOSE(uxb_works!$B$47,IF(INDEX(aData,$B22,S$4)="","-",TEXT(INDEX(aData,$B22,S$4),$H22)),INDEX(aScoresRounded,$B22,S$4)),CHOOSE(uxb_works!$B$47,IF(INDEX(aData_Basin,$B22,S$4)="","-",TEXT(INDEX(aData_Basin,$B22,S$4),$H22)),INDEX(aScoresRounded_Basin,$B22,S$4)))) -> 2 | T22: =IF(T$4="","",CHOOSE(uxb_works!$B$52,CHOOSE(uxb_works!$B$47,IF(INDEX(aData,$B22,T$4)="","-",TEXT(INDEX(aData,$B22,T$4),$H22)),INDEX(aScoresRounded,$B22,T$4)),CHOOSE(uxb_works!$B$47,IF(INDEX(aData_Basin,$B22,T$4)="","-",TEXT(INDEX(aData_Basin,$B22,T$4),$H22)),INDEX(aScoresRounded_Basin,$B22,T$4)))) -> 1 | U22: =IF(U$4="","",CHOOSE(uxb_works!$B$52,CHOOSE(uxb_works!$B$47,IF(INDEX(aData,$B22,U$4)="","-",TEXT(INDEX(aData,$B22,U$4),$H22)),INDEX(aScoresRounded,$B22,U$4)),CHOOSE(uxb_works!$B$47,IF(INDEX(aData_Basin,$B22,U$4)="","-",TEXT(INDEX(aData_Basin,$B22,U$4),$H22)),INDEX(aScoresRounded_Basin,$B22,U$4)))) -> 1 | V22: =IF(V$4="","",CHOOSE(uxb_works!$B$52,CHOOSE(uxb_works!$B$47,IF(INDEX(aData,$B22,V$4)="","-",TEXT(INDEX(aData,$B22,V$4),$H22)),INDEX(aScoresRounded,$B22,V$4)),CHOOSE(uxb_works!$B$47,IF(INDEX(aData_Basin,$B22,V$4)="","-",TEXT(INDEX(aData_Basin,$B22,V$4),$H22)),INDEX(aScoresRounded_Basin,$B22,V$4)))) -> 1 | W22: =IF(W$4="","",CHOOSE(uxb_works!$B$52,CHOOSE(uxb_works!$B$47,IF(INDEX(aData,$B22,W$4)="","-",TEXT(INDEX(aData,$B22,W$4),$H22)),INDEX(aScoresRounded,$B22,W$4)),CHOOSE(uxb_works!$B$47,IF(INDEX(aData_Basin,$B22,W$4)="","-",TEXT(INDEX(aData_Basin,$B22,W$4),$H22)),INDEX(aScoresRounded_Basin,$B22,W$4)))) -> 1 | X22: =IF(X$4="","",CHOOSE(uxb_works!$B$52,CHOOSE(uxb_works!$B$47,IF(INDEX(aData,$B22,X$4)="","-",TEXT(INDEX(aData,$B22,X$4),$H22)),INDEX(aScoresRounded,$B22,X$4)),CHOOSE(uxb_works!$B$47,IF(INDEX(aData_Basin,$B22,X$4)="","-",TEXT(INDEX(aData_Basin,$B22,X$4),$H22)),INDEX(aScoresRounded_Basin,$B22,X$4)))) -> 2 | Y22: =IF(Y$4="","",CHOOSE(uxb_works!$B$52,CHOOSE(uxb_works!$B$47,IF(INDEX(aData,$B22,Y$4)="","-",TEXT(INDEX(aData,$B22,Y$4),$H22)),INDEX(aScoresRounded,$B22,Y$4)),CHOOSE(uxb_works!$B$47,IF(INDEX(aData_Basin,$B22,Y$4)="","-",TEXT(INDEX(aData_Basin,$B22,Y$4),$H22)),INDEX(aScoresRounded_Basin,$B22,Y$4)))) -> 2 | Z22: =IF(Z$4="","",CHOOSE(uxb_works!$B$52,CHOOSE(uxb_works!$B$47,IF(INDEX(aData,$B22,Z$4)="","-",TEXT(INDEX(aData,$B22,Z$4),$H22)),INDEX(aScoresRounded,$B22,Z$4)),CHOOSE(uxb_works!$B$47,IF(INDEX(aData_Basin,$B22,Z$4)="","-",TEXT(INDEX(aData_Basin,$B22,Z$4),$H22)),INDEX(aScoresRounded_Basin,$B22,Z$4)))) -> 2 | AA22: =IF(AA$4="","",CHOOSE(uxb_works!$B$52,CHOOSE(uxb_works!$B$47,IF(INDEX(aData,$B22,AA$4)="","-",TEXT(INDEX(aData,$B22,AA$4),$H22)),INDEX(aScoresRounded,$B22,AA$4)),CHOOSE(uxb_works!$B$47,IF(INDEX(aData_Basin,$B22,AA$4)="","-",TEXT(INDEX(aData_Basin,$B22,AA$4),$H22)),INDEX(aScoresRounded_Basin,$B22,AA$4)))) -> 1 | AB22: =IF(AB$4="","",CHOOSE(uxb_works!$B$52,CHOOSE(uxb_works!$B$47,IF(INDEX(aData,$B22,AB$4)="","-",TEXT(INDEX(aData,$B22,AB$4),$H22)),INDEX(aScoresRounded,$B22,AB$4)),CHOOSE(uxb_works!$B$47,IF(INDEX(aData_Basin,$B22,AB$4)="","-",TEXT(INDEX(aData_Basin,$B22,AB$4),$H22)),INDEX(aScoresRounded_Basin,$B22,AB$4)))) -> 0 | AC22: =IF(AC$4="","",CHOOSE(uxb_works!$B$52,CHOOSE(uxb_works!$B$47,IF(INDEX(aData,$B22,AC$4)="","-",TEXT(INDEX(aData,$B22,AC$4),$H22)),INDEX(aScoresRounded,$B22,AC$4)),CHOOSE(uxb_works!$B$47,IF(INDEX(aData_Basin,$B22,AC$4)="","-",TEXT(INDEX(aData_Basin,$B22,AC$4),$H22)),INDEX(aScoresRounded_Basin,$B22,AC$4)))) -> 1 | AD22: =IF(AD$4="","",CHOOSE(uxb_works!$B$52,CHOOSE(uxb_works!$B$47,IF(INDEX(aData,$B22,AD$4)="","-",TEXT(INDEX(aData,$B22,AD$4),$H22)),INDEX(aScoresRounded,$B22,AD$4)),CHOOSE(uxb_works!$B$47,IF(INDEX(aData_Basin,$B22,AD$4)="","-",TEXT(INDEX(aData_Basin,$B22,AD$4),$H22)),INDEX(aScoresRounded_Basin,$B22,AD$4)))) -> 2 | AE22: =IF(AE$4="","",CHOOSE(uxb_works!$B$52,CHOOSE(uxb_works!$B$47,IF(INDEX(aData,$B22,AE$4)="","-",TEXT(INDEX(aData,$B22,AE$4),$H22)),INDEX(aScoresRounded,$B22,AE$4)),CHOOSE(uxb_works!$B$47,IF(INDEX(aData_Basin,$B22,AE$4)="","-",TEXT(INDEX(aData_Basin,$B22,AE$4),$H22)),INDEX(aScoresRounded_Basin,$B22,AE$4)))) -> 2 | AF22: =IF(AF$4="","",CHOOSE(uxb_works!$B$52,CHOOSE(uxb_works!$B$47,IF(INDEX(aData,$B22,AF$4)="","-",TEXT(INDEX(aData,$B22,AF$4),$H22)),INDEX(aScoresRounded,$B22,AF$4)),CHOOSE(uxb_works!$B$47,IF(INDEX(aData_Basin,$B22,AF$4)="","-",TEXT(INDEX(aData_Basin,$B22,AF$4),$H22)),INDEX(aScoresRounded_Basin,$B22,AF$4)))) -> 2 | AG22: =IF(AG$4="","",CHOOSE(uxb_works!$B$52,CHOOSE(uxb_works!$B$47,IF(INDEX(aData,$B22,AG$4)="","-",TEXT(INDEX(aData,$B22,AG$4),$H22)),INDEX(aScoresRounded,$B22,AG$4)),CHOOSE(uxb_works!$B$47,IF(INDEX(aData_Basin,$B22,AG$4)="","-",TEXT(INDEX(aData_Basin,$B22,AG$4),$H22)),INDEX(aScoresRounded_Basin,$B22,AG$4)))) -> 2 | AH22: =IF(AH$4="","",CHOOSE(uxb_works!$B$52,CHOOSE(uxb_works!$B$47,IF(INDEX(aData,$B22,AH$4)="","-",TEXT(INDEX(aData,$B22,AH$4),$H22)),INDEX(aScoresRounded,$B22,AH$4)),CHOOSE(uxb_works!$B$47,IF(INDEX(aData_Basin,$B22,AH$4)="","-",TEXT(INDEX(aData_Basin,$B22,AH$4),$H22)),INDEX(aScoresRounded_Basin,$B22,AH$4)))) -> 2 | AI22: =IF(AI$4="","",CHOOSE(uxb_works!$B$52,CHOOSE(uxb_works!$B$47,IF(INDEX(aData,$B22,AI$4)="","-",TEXT(INDEX(aData,$B22,AI$4),$H22)),INDEX(aScoresRounded,$B22,AI$4)),CHOOSE(uxb_works!$B$47,IF(INDEX(aData_Basin,$B22,AI$4)="","-",TEXT(INDEX(aData_Basin,$B22,AI$4),$H22)),INDEX(aScoresRounded_Basin,$B22,AI$4)))) -> 2 | AJ22: =IF(AJ$4="","",CHOOSE(uxb_works!$B$52,CHOOSE(uxb_works!$B$47,IF(INDEX(aData,$B22,AJ$4)="","-",TEXT(INDEX(aData,$B22,AJ$4),$H22)),INDEX(aScoresRounded,$B22,AJ$4)),CHOOSE(uxb_works!$B$47,IF(INDEX(aData_Basin,$B22,AJ$4)="","-",TEXT(INDEX(aData_Basin,$B22,AJ$4),$H22)),INDEX(aScoresRounded_Basin,$B22,AJ$4)))) -> 2 | AK22: =IF(AK$4="","",CHOOSE(uxb_works!$B$52,CHOOSE(uxb_works!$B$47,IF(INDEX(aData,$B22,AK$4)="","-",TEXT(INDEX(aData,$B22,AK$4),$H22)),INDEX(aScoresRounded,$B22,AK$4)),CHOOSE(uxb_works!$B$47,IF(INDEX(aData_Basin,$B22,AK$4)="","-",TEXT(INDEX(aData_Basin,$B22,AK$4),$H22)),INDEX(aScoresRounded_Basin,$B22,AK$4)))) -> 2 | AL22: =IF(AL$4="","",CHOOSE(uxb_works!$B$52,CHOOSE(uxb_works!$B$47,IF(INDEX(aData,$B22,AL$4)="","-",TEXT(INDEX(aData,$B22,AL$4),$H22)),INDEX(aScoresRounded,$B22,AL$4)),CHOOSE(uxb_works!$B$47,IF(INDEX(aData_Basin,$B22,AL$4)="","-",TEXT(INDEX(aData_Basin,$B22,AL$4),$H22)),INDEX(aScoresRounded_Basin,$B22,AL$4)))) -> 2 | AM22: =IF(AM$4="","",CHOOSE(uxb_works!$B$52,CHOOSE(uxb_works!$B$47,IF(INDEX(aData,$B22,AM$4)="","-",TEXT(INDEX(aData,$B22,AM$4),$H22)),INDEX(aScoresRounded,$B22,AM$4)),CHOOSE(uxb_works!$B$47,IF(INDEX(aData_Basin,$B22,AM$4)="","-",TEXT(INDEX(aData_Basin,$B22,AM$4),$H22)),INDEX(aScoresRounded_Basin,$B22,AM$4)))) -> 0 | AN22: =IF(AN$4="","",CHOOSE(uxb_works!$B$52,CHOOSE(uxb_works!$B$47,IF(INDEX(aData,$B22,AN$4)="","-",TEXT(INDEX(aData,$B22,AN$4),$H22)),INDEX(aScoresRounded,$B22,AN$4)),CHOOSE(uxb_works!$B$47,IF(INDEX(aData_Basin,$B22,AN$4)="","-",TEXT(INDEX(aData_Basin,$B22,AN$4),$H22)),INDEX(aScoresRounded_Basin,$B22,AN$4)))) -> 1 | AO22: =IF(AO$4="","",CHOOSE(uxb_works!$B$52,CHOOSE(uxb_works!$B$47,IF(INDEX(aData,$B22,AO$4)="","-",TEXT(INDEX(aData,$B22,AO$4),$H22)),INDEX(aScoresRounded,$B22,AO$4)),CHOOSE(uxb_works!$B$47,IF(INDEX(aData_Basin,$B22,AO$4)="","-",TEXT(INDEX(aData_Basin,$B22,AO$4),$H22)),INDEX(aScoresRounded_Basin,$B22,AO$4)))) -> 1 | AP22: =IF(AP$4="","",CHOOSE(uxb_works!$B$52,CHOOSE(uxb_works!$B$47,IF(INDEX(aData,$B22,AP$4)="","-",TEXT(INDEX(aData,$B22,AP$4),$H22)),INDEX(aScoresRounded,$B22,AP$4)),CHOOSE(uxb_works!$B$47,IF(INDEX(aData_Basin,$B22,AP$4)="","-",TEXT(INDEX(aData_Basin,$B22,AP$4),$H22)),INDEX(aScoresRounded_Basin,$B22,AP$4)))) -> 2 | AQ22: =IF(AQ$4="","",CHOOSE(uxb_works!$B$52,CHOOSE(uxb_works!$B$47,IF(INDEX(aData,$B22,AQ$4)="","-",TEXT(INDEX(aData,$B22,AQ$4),$H22)),INDEX(aScoresRounded,$B22,AQ$4)),CHOOSE(uxb_works!$B$47,IF(INDEX(aData_Basin,$B22,AQ$4)="","-",TEXT(INDEX(aData_Basin,$B22,AQ$4),$H22)),INDEX(aScoresRounded_Basin,$B22,AQ$4)))) -> 2 | AR22: =IF(AR$4="","",CHOOSE(uxb_works!$B$52,CHOOSE(uxb_works!$B$47,IF(INDEX(aData,$B22,AR$4)="","-",TEXT(INDEX(aData,$B22,AR$4),$H22)),INDEX(aScoresRounded,$B22,AR$4)),CHOOSE(uxb_works!$B$47,IF(INDEX(aData_Basin,$B22,AR$4)="","-",TEXT(INDEX(aData_Basin,$B22,AR$4),$H22)),INDEX(aScoresRounded_Basin,$B22,AR$4)))) -> 0 | AS22: =IF(AS$4="","",CHOOSE(uxb_works!$B$52,CHOOSE(uxb_works!$B$47,IF(INDEX(aData,$B22,AS$4)="","-",TEXT(INDEX(aData,$B22,AS$4),$H22)),INDEX(aScoresRounded,$B22,AS$4)),CHOOSE(uxb_works!$B$47,IF(INDEX(aData_Basin,$B22,AS$4)="","-",TEXT(INDEX(aData_Basin,$B22,AS$4),$H22)),INDEX(aScoresRounded_Basin,$B22,AS$4)))) -> 0 | AT22: =IF(AT$4="","",CHOOSE(uxb_works!$B$52,CHOOSE(uxb_works!$B$47,IF(INDEX(aData,$B22,AT$4)="","-",TEXT(INDEX(aData,$B22,AT$4),$H22)),INDEX(aScoresRounded,$B22,AT$4)),CHOOSE(uxb_works!$B$47,IF(INDEX(aData_Basin,$B22,AT$4)="","-",TEXT(INDEX(aData_Basin,$B22,AT$4),$H22)),INDEX(aScoresRounded_Basin,$B22,AT$4)))) -> 0 | AU22: =IF(AU$4="","",CHOOSE(uxb_works!$B$52,CHOOSE(uxb_works!$B$47,IF(INDEX(aData,$B22,AU$4)="","-",TEXT(INDEX(aData,$B22,AU$4),$H22)),INDEX(aScoresRounded,$B22,AU$4)),CHOOSE(uxb_works!$B$47,IF(INDEX(aData_Basin,$B22,AU$4)="","-",TEXT(INDEX(aData_Basin,$B22,AU$4),$H22)),INDEX(aScoresRounded_Basin,$B22,AU$4)))) -> 1 | AV22: =IF(AV$4="","",CHOOSE(uxb_works!$B$52,CHOOSE(uxb_works!$B$47,IF(INDEX(aData,$B22,AV$4)="","-",TEXT(INDEX(aData,$B22,AV$4),$H22)),INDEX(aScoresRounded,$B22,AV$4)),CHOOSE(uxb_works!$B$47,IF(INDEX(aData_Basin,$B22,AV$4)="","-",TEXT(INDEX(aData_Basin,$B22,AV$4),$H22)),INDEX(aScoresRounded_Basin,$B22,AV$4)))) -> 1
B23: =tblIndicators!A13 -> 12 | F23: =tblIndicators!G13 -> 2 | H23: =tblIndicators!AC13 -> #,##0.0 | K23: =IF(uxb_works!$B$46>=L23,1,0) -> 1 | L23: =tblIndicators!G13 -> 2 | N23: =iScores!N17 -> 1.3) International water conventions | O23: =CHOOSE(uxb_works!$B$47,iData!I17,iScores!O17) ->  | P23: =IF(tblIndicators!T13="","",IF(AND(uxb_works!$B$47=1,OR(F23=5,Scores!F23<=2)),"",tblIndicators!T13)) ->  | Q23: =IF(Q$4="","",CHOOSE(uxb_works!$B$52,CHOOSE(uxb_works!$B$47,IF(INDEX(aData,$B23,Q$4)="","-",TEXT(INDEX(aData,$B23,Q$4),$H23)),INDEX(aScoresRounded,$B23,Q$4)),CHOOSE(uxb_works!$B$47,IF(INDEX(aData_Basin,$B23,Q$4)="","-",TEXT(INDEX(aData_Basin,$B23,Q$4),$H23)),INDEX(aScoresRounded_Basin,$B23,Q$4)))) -> - | R23: =IF(R$4="","",CHOOSE(uxb_works!$B$52,CHOOSE(uxb_works!$B$47,IF(INDEX(aData,$B23,R$4)="","-",TEXT(INDEX(aData,$B23,R$4),$H23)),INDEX(aScoresRounded,$B23,R$4)),CHOOSE(uxb_works!$B$47,IF(INDEX(aData_Basin,$B23,R$4)="","-",TEXT(INDEX(aData_Basin,$B23,R$4),$H23)),INDEX(aScoresRounded_Basin,$B23,R$4)))) -> - | S23: =IF(S$4="","",CHOOSE(uxb_works!$B$52,CHOOSE(uxb_works!$B$47,IF(INDEX(aData,$B23,S$4)="","-",TEXT(INDEX(aData,$B23,S$4),$H23)),INDEX(aScoresRounded,$B23,S$4)),CHOOSE(uxb_works!$B$47,IF(INDEX(aData_Basin,$B23,S$4)="","-",TEXT(INDEX(aData_Basin,$B23,S$4),$H23)),INDEX(aScoresRounded_Basin,$B23,S$4)))) -> - | T23: =IF(T$4="","",CHOOSE(uxb_works!$B$52,CHOOSE(uxb_works!$B$47,IF(INDEX(aData,$B23,T$4)="","-",TEXT(INDEX(aData,$B23,T$4),$H23)),INDEX(aScoresRounded,$B23,T$4)),CHOOSE(uxb_works!$B$47,IF(INDEX(aData_Basin,$B23,T$4)="","-",TEXT(INDEX(aData_Basin,$B23,T$4),$H23)),INDEX(aScoresRounded_Basin,$B23,T$4)))) -> - | U23: =IF(U$4="","",CHOOSE(uxb_works!$B$52,CHOOSE(uxb_works!$B$47,IF(INDEX(aData,$B23,U$4)="","-",TEXT(INDEX(aData,$B23,U$4),$H23)),INDEX(aScoresRounded,$B23,U$4)),CHOOSE(uxb_works!$B$47,IF(INDEX(aData_Basin,$B23,U$4)="","-",TEXT(INDEX(aData_Basin,$B23,U$4),$H23)),INDEX(aScoresRounded_Basin,$B23,U$4)))) -> - | V23: =IF(V$4="","",CHOOSE(uxb_works!$B$52,CHOOSE(uxb_works!$B$47,IF(INDEX(aData,$B23,V$4)="","-",TEXT(INDEX(aData,$B23,V$4),$H23)),INDEX(aScoresRounded,$B23,V$4)),CHOOSE(uxb_works!$B$47,IF(INDEX(aData_Basin,$B23,V$4)="","-",TEXT(INDEX(aData_Basin,$B23,V$4),$H23)),INDEX(aScoresRounded_Basin,$B23,V$4)))) -> - | W23: =IF(W$4="","",CHOOSE(uxb_works!$B$52,CHOOSE(uxb_works!$B$47,IF(INDEX(aData,$B23,W$4)="","-",TEXT(INDEX(aData,$B23,W$4),$H23)),INDEX(aScoresRounded,$B23,W$4)),CHOOSE(uxb_works!$B$47,IF(INDEX(aData_Basin,$B23,W$4)="","-",TEXT(INDEX(aData_Basin,$B23,W$4),$H23)),INDEX(aScoresRounded_Basin,$B23,W$4)))) -> - | X23: =IF(X$4="","",CHOOSE(uxb_works!$B$52,CHOOSE(uxb_works!$B$47,IF(INDEX(aData,$B23,X$4)="","-",TEXT(INDEX(aData,$B23,X$4),$H23)),INDEX(aScoresRounded,$B23,X$4)),CHOOSE(uxb_works!$B$47,IF(INDEX(aData_Basin,$B23,X$4)="","-",TEXT(INDEX(aData_Basin,$B23,X$4),$H23)),INDEX(aScoresRounded_Basin,$B23,X$4)))) -> - | Y23: =IF(Y$4="","",CHOOSE(uxb_works!$B$52,CHOOSE(uxb_works!$B$47,IF(INDEX(aData,$B23,Y$4)="","-",TEXT(INDEX(aData,$B23,Y$4),$H23)),INDEX(aScoresRounded,$B23,Y$4)),CHOOSE(uxb_works!$B$47,IF(INDEX(aData_Basin,$B23,Y$4)="","-",TEXT(INDEX(aData_Basin,$B23,Y$4),$H23)),INDEX(aScoresRounded_Basin,$B23,Y$4)))) -> - | Z23: =IF(Z$4="","",CHOOSE(uxb_works!$B$52,CHOOSE(uxb_works!$B$47,IF(INDEX(aData,$B23,Z$4)="","-",TEXT(INDEX(aData,$B23,Z$4),$H23)),INDEX(aScoresRounded,$B23,Z$4)),CHOOSE(uxb_works!$B$47,IF(INDEX(aData_Basin,$B23,Z$4)="","-",TEXT(INDEX(aData_Basin,$B23,Z$4),$H23)),INDEX(aScoresRounded_Basin,$B23,Z$4)))) -> - | AA23: =IF(AA$4="","",CHOOSE(uxb_works!$B$52,CHOOSE(uxb_works!$B$47,IF(INDEX(aData,$B23,AA$4)="","-",TEXT(INDEX(aData,$B23,AA$4),$H23)),INDEX(aScoresRounded,$B23,AA$4)),CHOOSE(uxb_works!$B$47,IF(INDEX(aData_Basin,$B23,AA$4)="","-",TEXT(INDEX(aData_Basin,$B23,AA$4),$H23)),INDEX(aScoresRounded_Basin,$B23,AA$4)))) -> - | AB23: =IF(AB$4="","",CHOOSE(uxb_works!$B$52,CHOOSE(uxb_works!$B$47,IF(INDEX(aData,$B23,AB$4)="","-",TEXT(INDEX(aData,$B23,AB$4),$H23)),INDEX(aScoresRounded,$B23,AB$4)),CHOOSE(uxb_works!$B$47,IF(INDEX(aData_Basin,$B23,AB$4)="","-",TEXT(INDEX(aData_Basin,$B23,AB$4),$H23)),INDEX(aScoresRounded_Basin,$B23,AB$4)))) -> - | AC23: =IF(AC$4="","",CHOOSE(uxb_works!$B$52,CHOOSE(uxb_works!$B$47,IF(INDEX(aData,$B23,AC$4)="","-",TEXT(INDEX(aData,$B23,AC$4),$H23)),INDEX(aScoresRounded,$B23,AC$4)),CHOOSE(uxb_works!$B$47,IF(INDEX(aData_Basin,$B23,AC$4)="","-",TEXT(INDEX(aData_Basin,$B23,AC$4),$H23)),INDEX(aScoresRounded_Basin,$B23,AC$4)))) -> - | AD23: =IF(AD$4="","",CHOOSE(uxb_works!$B$52,CHOOSE(uxb_works!$B$47,IF(INDEX(aData,$B23,AD$4)="","-",TEXT(INDEX(aData,$B23,AD$4),$H23)),INDEX(aScoresRounded,$B23,AD$4)),CHOOSE(uxb_works!$B$47,IF(INDEX(aData_Basin,$B23,AD$4)="","-",TEXT(INDEX(aData_Basin,$B23,AD$4),$H23)),INDEX(aScoresRounded_Basin,$B23,AD$4)))) -> - | AE23: =IF(AE$4="","",CHOOSE(uxb_works!$B$52,CHOOSE(uxb_works!$B$47,IF(INDEX(aData,$B23,AE$4)="","-",TEXT(INDEX(aData,$B23,AE$4),$H23)),INDEX(aScoresRounded,$B23,AE$4)),CHOOSE(uxb_works!$B$47,IF(INDEX(aData_Basin,$B23,AE$4)="","-",TEXT(INDEX(aData_Basin,$B23,AE$4),$H23)),INDEX(aScoresRounded_Basin,$B23,AE$4)))) -> - | AF23: =IF(AF$4="","",CHOOSE(uxb_works!$B$52,CHOOSE(uxb_works!$B$47,IF(INDEX(aData,$B23,AF$4)="","-",TEXT(INDEX(aData,$B23,AF$4),$H23)),INDEX(aScoresRounded,$B23,AF$4)),CHOOSE(uxb_works!$B$47,IF(INDEX(aData_Basin,$B23,AF$4)="","-",TEXT(INDEX(aData_Basin,$B23,AF$4),$H23)),INDEX(aScoresRounded_Basin,$B23,AF$4)))) -> - | AG23: =IF(AG$4="","",CHOOSE(uxb_works!$B$52,CHOOSE(uxb_works!$B$47,IF(INDEX(aData,$B23,AG$4)="","-",TEXT(INDEX(aData,$B23,AG$4),$H23)),INDEX(aScoresRounded,$B23,AG$4)),CHOOSE(uxb_works!$B$47,IF(INDEX(aData_Basin,$B23,AG$4)="","-",TEXT(INDEX(aData_Basin,$B23,AG$4),$H23)),INDEX(aScoresRounded_Basin,$B23,AG$4)))) -> - | AH23: =IF(AH$4="","",CHOOSE(uxb_works!$B$52,CHOOSE(uxb_works!$B$47,IF(INDEX(aData,$B23,AH$4)="","-",TEXT(INDEX(aData,$B23,AH$4),$H23)),INDEX(aScoresRounded,$B23,AH$4)),CHOOSE(uxb_works!$B$47,IF(INDEX(aData_Basin,$B23,AH$4)="","-",TEXT(INDEX(aData_Basin,$B23,AH$4),$H23)),INDEX(aScoresRounded_Basin,$B23,AH$4)))) -> - | AI23: =IF(AI$4="","",CHOOSE(uxb_works!$B$52,CHOOSE(uxb_works!$B$47,IF(INDEX(aData,$B23,AI$4)="","-",TEXT(INDEX(aData,$B23,AI$4),$H23)),INDEX(aScoresRounded,$B23,AI$4)),CHOOSE(uxb_works!$B$47,IF(INDEX(aData_Basin,$B23,AI$4)="","-",TEXT(INDEX(aData_Basin,$B23,AI$4),$H23)),INDEX(aScoresRounded_Basin,$B23,AI$4)))) -> - | AJ23: =IF(AJ$4="","",CHOOSE(uxb_works!$B$52,CHOOSE(uxb_works!$B$47,IF(INDEX(aData,$B23,AJ$4)="","-",TEXT(INDEX(aData,$B23,AJ$4),$H23)),INDEX(aScoresRounded,$B23,AJ$4)),CHOOSE(uxb_works!$B$47,IF(INDEX(aData_Basin,$B23,AJ$4)="","-",TEXT(INDEX(aData_Basin,$B23,AJ$4),$H23)),INDEX(aScoresRounded_Basin,$B23,AJ$4)))) -> - | AK23: =IF(AK$4="","",CHOOSE(uxb_works!$B$52,CHOOSE(uxb_works!$B$47,IF(INDEX(aData,$B23,AK$4)="","-",TEXT(INDEX(aData,$B23,AK$4),$H23)),INDEX(aScoresRounded,$B23,AK$4)),CHOOSE(uxb_works!$B$47,IF(INDEX(aData_Basin,$B23,AK$4)="","-",TEXT(INDEX(aData_Basin,$B23,AK$4),$H23)),INDEX(aScoresRounded_Basin,$B23,AK$4)))) -> - | AL23: =IF(AL$4="","",CHOOSE(uxb_works!$B$52,CHOOSE(uxb_works!$B$47,IF(INDEX(aData,$B23,AL$4)="","-",TEXT(INDEX(aData,$B23,AL$4),$H23)),INDEX(aScoresRounded,$B23,AL$4)),CHOOSE(uxb_works!$B$47,IF(INDEX(aData_Basin,$B23,AL$4)="","-",TEXT(INDEX(aData_Basin,$B23,AL$4),$H23)),INDEX(aScoresRounded_Basin,$B23,AL$4)))) -> - | AM23: =IF(AM$4="","",CHOOSE(uxb_works!$B$52,CHOOSE(uxb_works!$B$47,IF(INDEX(aData,$B23,AM$4)="","-",TEXT(INDEX(aData,$B23,AM$4),$H23)),INDEX(aScoresRounded,$B23,AM$4)),CHOOSE(uxb_works!$B$47,IF(INDEX(aData_Basin,$B23,AM$4)="","-",TEXT(INDEX(aData_Basin,$B23,AM$4),$H23)),INDEX(aScoresRounded_Basin,$B23,AM$4)))) -> - | AN23: =IF(AN$4="","",CHOOSE(uxb_works!$B$52,CHOOSE(uxb_works!$B$47,IF(INDEX(aData,$B23,AN$4)="","-",TEXT(INDEX(aData,$B23,AN$4),$H23)),INDEX(aScoresRounded,$B23,AN$4)),CHOOSE(uxb_works!$B$47,IF(INDEX(aData_Basin,$B23,AN$4)="","-",TEXT(INDEX(aData_Basin,$B23,AN$4),$H23)),INDEX(aScoresRounded_Basin,$B23,AN$4)))) -> - | AO23: =IF(AO$4="","",CHOOSE(uxb_works!$B$52,CHOOSE(uxb_works!$B$47,IF(INDEX(aData,$B23,AO$4)="","-",TEXT(INDEX(aData,$B23,AO$4),$H23)),INDEX(aScoresRounded,$B23,AO$4)),CHOOSE(uxb_works!$B$47,IF(INDEX(aData_Basin,$B23,AO$4)="","-",TEXT(INDEX(aData_Basin,$B23,AO$4),$H23)),INDEX(aScoresRounded_Basin,$B23,AO$4)))) -> - | AP23: =IF(AP$4="","",CHOOSE(uxb_works!$B$52,CHOOSE(uxb_works!$B$47,IF(INDEX(aData,$B23,AP$4)="","-",TEXT(INDEX(aData,$B23,AP$4),$H23)),INDEX(aScoresRounded,$B23,AP$4)),CHOOSE(uxb_works!$B$47,IF(INDEX(aData_Basin,$B23,AP$4)="","-",TEXT(INDEX(aData_Basin,$B23,AP$4),$H23)),INDEX(aScoresRounded_Basin,$B23,AP$4)))) -> - | AQ23: =IF(AQ$4="","",CHOOSE(uxb_works!$B$52,CHOOSE(uxb_works!$B$47,IF(INDEX(aData,$B23,AQ$4)="","-",TEXT(INDEX(aData,$B23,AQ$4),$H23)),INDEX(aScoresRounded,$B23,AQ$4)),CHOOSE(uxb_works!$B$47,IF(INDEX(aData_Basin,$B23,AQ$4)="","-",TEXT(INDEX(aData_Basin,$B23,AQ$4),$H23)),INDEX(aScoresRounded_Basin,$B23,AQ$4)))) -> - | AR23: =IF(AR$4="","",CHOOSE(uxb_works!$B$52,CHOOSE(uxb_works!$B$47,IF(INDEX(aData,$B23,AR$4)="","-",TEXT(INDEX(aData,$B23,AR$4),$H23)),INDEX(aScoresRounded,$B23,AR$4)),CHOOSE(uxb_works!$B$47,IF(INDEX(aData_Basin,$B23,AR$4)="","-",TEXT(INDEX(aData_Basin,$B23,AR$4),$H23)),INDEX(aScoresRounded_Basin,$B23,AR$4)))) -> - | AS23: =IF(AS$4="","",CHOOSE(uxb_works!$B$52,CHOOSE(uxb_works!$B$47,IF(INDEX(aData,$B23,AS$4)="","-",TEXT(INDEX(aData,$B23,AS$4),$H23)),INDEX(aScoresRounded,$B23,AS$4)),CHOOSE(uxb_works!$B$47,IF(INDEX(aData_Basin,$B23,AS$4)="","-",TEXT(INDEX(aData_Basin,$B23,AS$4),$H23)),INDEX(aScoresRounded_Basin,$B23,AS$4)))) -> - | AT23: =IF(AT$4="","",CHOOSE(uxb_works!$B$52,CHOOSE(uxb_works!$B$47,IF(INDEX(aData,$B23,AT$4)="","-",TEXT(INDEX(aData,$B23,AT$4),$H23)),INDEX(aScoresRounded,$B23,AT$4)),CHOOSE(uxb_works!$B$47,IF(INDEX(aData_Basin,$B23,AT$4)="","-",TEXT(INDEX(aData_Basin,$B23,AT$4),$H23)),INDEX(aScoresRounded_Basin,$B23,AT$4)))) -> - | AU23: =IF(AU$4="","",CHOOSE(uxb_works!$B$52,CHOOSE(uxb_works!$B$47,IF(INDEX(aData,$B23,AU$4)="","-",TEXT(INDEX(aData,$B23,AU$4),$H23)),INDEX(aScoresRounded,$B23,AU$4)),CHOOSE(uxb_works!$B$47,IF(INDEX(aData_Basin,$B23,AU$4)="","-",TEXT(INDEX(aData_Basin,$B23,AU$4),$H23)),INDEX(aScoresRounded_Basin,$B23,AU$4)))) -> - | AV23: =IF(AV$4="","",CHOOSE(uxb_works!$B$52,CHOOSE(uxb_works!$B$47,IF(INDEX(aData,$B23,AV$4)="","-",TEXT(INDEX(aData,$B23,AV$4),$H23)),INDEX(aScoresRounded,$B23,AV$4)),CHOOSE(uxb_works!$B$47,IF(INDEX(aData_Basin,$B23,AV$4)="","-",TEXT(INDEX(aData_Basin,$B23,AV$4),$H23)),INDEX(aScoresRounded_Basin,$B23,AV$4)))) -> -
